Workbook

Sheet Lexique
B1: LEXIQUE FICHE AGENCE "VERS LA PV 2021"
C5: Le rôle de la fiche Agence "Vers la Part Variable 2021" est de vous aider à piloter les principaux items de la Part Variable 2021 sur les 2 derniers mois de l'année. Les indicateurs vous permettent d'avoir une vision hebdomadaire et par ETP des performances à réaliser pour atteindre vos objectifs.
C7: Elle sera mise à jour chaque mardi matin pour vous offrir la vision la plus complète de la production de la semaine précédente et du reste à faire.
C9: Ce suivi n'a pas vocation à figer vos résultats et les taux de Part Variable, ces derniers le seront lors de la réalisation des arrêtés définitifs début 2022.
C11: Pour piloter vos objectifs Part Variable en quotidien : | H11: Suivi Quotidien Part Variable sur Objectifs
C16: ● Taux d'atteinte de l'objectif : réalisation cumulée à fin de semaine précédente / objectif annuel 2021
C18: ● Meilleure performance hebdo : meilleure production hebdomadaire en 2021 (avant S44) rapportée à l'ETP moyen annuel
F19: à fin septembre
C21: ● Reste à faire pour atteindre l'objectif de 100% ou 120% : il s'agit d'une estimation du reste à faire pour atteindre l'objectif
C22: annuel. Ce dernier s'adapte en fonction de :
C23: - la réalisation sur la semaine précédente
C24: - la mise à jour mensuelle de l'objectif en fonction de l'ETP annuel moyen (ETP d'octobre disponible autour du 20/11)
C26: ● ETP utilisé dans le calcul du reste à faire et de la production des semaines 45 à 50 : il s'agit de l'ETP PERFORMANCE MOYEN
C28: ● 1er décile AGENCE CEGEE : il s'agit du premier décile toutes agence de la CEGEE confondues.
C29: Il faut lire : 10% des agences de la CEGEE ont un taux supérieur à X%.
C34: L'ETP utilisé pour calculer mon reste à faire et ma production sur les semaines 45 à 50 est trop éloigné de la réalité, comment le modifier ?
C35: Il vous suffit d'envoyer un email à la boîte CEGEE-B-CRM-DATA en précisant l'ETP le plus proche de votre situation sur cette période.
C37: Mon reste à faire ne correspond pas au reste à faire de la semaine précédente moins ma production de la semaine, comment est-ce possible ?
C38: Le reste à faire s'adapte au fil de l'eau à 2 informations : l'objectif annuel, qui dépend de l'ETP moyen annuel, et la réalisation sur la semaine précédente.
C39: Lorsque les ETP d'octobre seront intégrés à l'ETP moyen annuel, autour du 20/11, l'objectif annuel va s'ajuster. Le reste à faire sera donc recalculé selon l'objectif annuel.

Sheet Fiche Agence
C1: REGION | H1: TERRITOIRE | N1: AGENCE | X1: S-1 | Y1: =Y2-1 -> 50
C2: AUBE_HAUTE_MARNE | X2: Semaine en cours : | Y2: 51 | Z2: A modifier manuellement | AE2: IARD PREVOYANCE
X3: Nb semaines restantes : | Y3: =50-Y2+1 -> 0 | AE3: 0 | AF3: 45 | AG3: 46 | AH3: 47 | AI3: 48 | AJ3: 49 | AK3: 50
B4: ="VERS LA PART VARIABLE 2021 - SEMAINE " &Y2 -> VERS LA PART VARIABLE 2021 - SEMAINE 51 | X4: Code EDS | Y4: =VLOOKUP(N2,ETP_Challenge!D:F,3,0) ->  | AD4: PROD | AE4: =(IF(ISBLANK($H$2),SUMIF('CUMUL résultats semaine'!$A:$A,'Fiche Agence'!$C$2,'CUMUL résultats semaine'!$D:$D),IF(ISBLANK($N$2),SUMIF('CUMUL résultats semaine'!$B:$B,'Fiche Agence'!$H$2,'CUMUL résultats semaine'!$D:$D),SUMIF('CUMUL résultats semaine'!$C:$C,'Fiche Agence'!$N$2,'CUMUL résultats semaine'!$D:$D)))) -> 5538.5 | AF4: =(IF(ISBLANK($H$2),SUMIF('CUMUL résultats semaine'!$A:$A,'Fiche Agence'!$C$2,'CUMUL résultats semaine'!$P:$P),IF(ISBLANK($N$2),SUMIF('CUMUL résultats semaine'!$B:$B,'Fiche Agence'!$H$2,'CUMUL résultats semaine'!$P:$P),SUMIF('CUMUL résultats semaine'!$C:$C,'Fiche Agence'!$N$2,'CUMUL résultats semaine'!$P:$P)))) -> 5598.9 | AG4: =(IF(ISBLANK($H$2),SUMIF('CUMUL résultats semaine'!$A:$A,'Fiche Agence'!$C$2,'CUMUL résultats semaine'!$AB:$AB),IF(ISBLANK($N$2),SUMIF('CUMUL résultats semaine'!$B:$B,'Fiche Agence'!$H$2,'CUMUL résultats semaine'!$AB:$AB),SUMIF('CUMUL résultats semaine'!$C:$C,'Fiche Agence'!$N$2,'CUMUL résultats semaine'!$AB:$AB)))) -> 5769.1 | AH4: =(IF(ISBLANK($H$2),SUMIF('CUMUL résultats semaine'!$A:$A,'Fiche Agence'!$C$2,'CUMUL résultats semaine'!$AN:$AN),IF(ISBLANK($N$2),SUMIF('CUMUL résultats semaine'!$B:$B,'Fiche Agence'!$H$2,'CUMUL résultats semaine'!$AN:$AN),SUMIF('CUMUL résultats semaine'!$C:$C,'Fiche Agence'!$N$2,'CUMUL résultats semaine'!$AN:$AN)))) -> 5819.3 | AI4: =(IF(ISBLANK($H$2),SUMIF('CUMUL résultats semaine'!$A:$A,'Fiche Agence'!$C$2,'CUMUL résultats semaine'!$AZ:$AZ),IF(ISBLANK($N$2),SUMIF('CUMUL résultats semaine'!$B:$B,'Fiche Agence'!$H$2,'CUMUL résultats semaine'!$AZ:$AZ),SUMIF('CUMUL résultats semaine'!$C:$C,'Fiche Agence'!$N$2,'CUMUL résultats semaine'!$AZ:$AZ)))) -> 5919.7 | AJ4: =(IF(ISBLANK($H$2),SUMIF('CUMUL résultats semaine'!$A:$A,'Fiche Agence'!$C$2,'CUMUL résultats semaine'!$BL:$BL),IF(ISBLANK($N$2),SUMIF('CUMUL résultats semaine'!$B:$B,'Fiche Agence'!$H$2,'CUMUL résultats semaine'!$BL:$BL),SUMIF('CUMUL résultats semaine'!$C:$C,'Fiche Agence'!$N$2,'CUMUL résultats semaine'!$BL:$BL)))) -> 6017.8 | AK4: =(IF(ISBLANK($H$2),SUMIF('CUMUL résultats semaine'!$A:$A,'Fiche Agence'!$C$2,'CUMUL résultats semaine'!$BX:$BX),IF(ISBLANK($N$2),SUMIF('CUMUL résultats semaine'!$B:$B,'Fiche Agence'!$H$2,'CUMUL résultats semaine'!$BX:$BX),SUMIF('CUMUL résultats semaine'!$C:$C,'Fiche Agence'!$N$2,'CUMUL résultats semaine'!$BX:$BX)))) -> 6093.6
X5: ETP | Y5: =IF(ISBLANK($H$2),SUMIF(ETP_Challenge!$A:$A,'Fiche Agence'!$C$2,ETP_Challenge!$E:$E),IF(ISBLANK($N$2),SUMIF(ETP_Challenge!$B:$B,'Fiche Agence'!$H$2,ETP_Challenge!$E:$E),SUMIF(ETP_Challenge!$D:$D,'Fiche Agence'!$N$2,ETP_Challenge!$E:$E))) -> 102.0091388 | Z5: ="ETP entité : "&Y5 -> ETP entité : 102,00913876 | AD5: RAF 100% | AE5: =(IF(ISBLANK($H$2),SUMIF('CUMUL résultats semaine'!$A:$A,'Fiche Agence'!$C$2,'CUMUL résultats semaine'!$E:$E),IF(ISBLANK($N$2),SUMIF('CUMUL résultats semaine'!$B:$B,'Fiche Agence'!$H$2,'CUMUL résultats semaine'!$E:$E),SUMIF('CUMUL résultats semaine'!$C:$C,'Fiche Agence'!$N$2,'CUMUL résultats semaine'!$E:$E)))) -> 1205 | AF5: =(IF(ISBLANK($H$2),SUMIF('CUMUL résultats semaine'!$A:$A,'Fiche Agence'!$C$2,'CUMUL résultats semaine'!$Q:$Q),IF(ISBLANK($N$2),SUMIF('CUMUL résultats semaine'!$B:$B,'Fiche Agence'!$H$2,'CUMUL résultats semaine'!$Q:$Q),SUMIF('CUMUL résultats semaine'!$C:$C,'Fiche Agence'!$N$2,'CUMUL résultats semaine'!$Q:$Q)))) -> 1167 | AG5: =(IF(ISBLANK($H$2),SUMIF('CUMUL résultats semaine'!$A:$A,'Fiche Agence'!$C$2,'CUMUL résultats semaine'!$AC:$AC),IF(ISBLANK($N$2),SUMIF('CUMUL résultats semaine'!$B:$B,'Fiche Agence'!$H$2,'CUMUL résultats semaine'!$AC:$AC),SUMIF('CUMUL résultats semaine'!$C:$C,'Fiche Agence'!$N$2,'CUMUL résultats semaine'!$AC:$AC)))) -> 1049 | AH5: =(IF(ISBLANK($H$2),SUMIF('CUMUL résultats semaine'!$A:$A,'Fiche Agence'!$C$2,'CUMUL résultats semaine'!$AO:$AO),IF(ISBLANK($N$2),SUMIF('CUMUL résultats semaine'!$B:$B,'Fiche Agence'!$H$2,'CUMUL résultats semaine'!$AO:$AO),SUMIF('CUMUL résultats semaine'!$C:$C,'Fiche Agence'!$N$2,'CUMUL résultats semaine'!$AO:$AO)))) -> 1036 | AI5: =(IF(ISBLANK($H$2),SUMIF('CUMUL résultats semaine'!$A:$A,'Fiche Agence'!$C$2,'CUMUL résultats semaine'!$BA:$BA),IF(ISBLANK($N$2),SUMIF('CUMUL résultats semaine'!$B:$B,'Fiche Agence'!$H$2,'CUMUL résultats semaine'!$BA:$BA),SUMIF('CUMUL résultats semaine'!$C:$C,'Fiche Agence'!$N$2,'CUMUL résultats semaine'!$BA:$BA)))) -> 708 | AJ5: =(IF(ISBLANK($H$2),SUMIF('CUMUL résultats semaine'!$A:$A,'Fiche Agence'!$C$2,'CUMUL résultats semaine'!$BM:$BM),IF(ISBLANK($N$2),SUMIF('CUMUL résultats semaine'!$B:$B,'Fiche Agence'!$H$2,'CUMUL résultats semaine'!$BM:$BM),SUMIF('CUMUL résultats semaine'!$C:$C,'Fiche Agence'!$N$2,'CUMUL résultats semaine'!$BM:$BM)))) -> 684 | AK5: =(IF(ISBLANK($H$2),SUMIF('CUMUL résultats semaine'!$A:$A,'Fiche Agence'!$C$2,'CUMUL résultats semaine'!$BY:$BY),IF(ISBLANK($N$2),SUMIF('CUMUL résultats semaine'!$B:$B,'Fiche Agence'!$H$2,'CUMUL résultats semaine'!$BY:$BY),SUMIF('CUMUL résultats semaine'!$C:$C,'Fiche Agence'!$N$2,'CUMUL résultats semaine'!$BY:$BY)))) -> 664
X6: OBJ GEDEL | Y6: =IF(ISBLANK($H$2),SUMIF(GEDEL!$A:$A,'Fiche Agence'!$C$2,GEDEL!$F:$F),IF(ISBLANK($N$2),SUMIF(GEDEL!$B:$B,'Fiche Agence'!$H$2,GEDEL!$F:$F),SUMIF(GEDEL!$C:$C,'Fiche Agence'!$N$2,GEDEL!$F:$F))) -> 1278066 | AD6: RAF 120% | AE6: =(IF(ISBLANK($H$2),SUMIF('CUMUL résultats semaine'!$A:$A,'Fiche Agence'!$C$2,'CUMUL résultats semaine'!$F:$F),IF(ISBLANK($N$2),SUMIF('CUMUL résultats semaine'!$B:$B,'Fiche Agence'!$H$2,'CUMUL résultats semaine'!$F:$F),SUMIF('CUMUL résultats semaine'!$C:$C,'Fiche Agence'!$N$2,'CUMUL résultats semaine'!$F:$F)))) -> 2295 | AF6: =(IF(ISBLANK($H$2),SUMIF('CUMUL résultats semaine'!$A:$A,'Fiche Agence'!$C$2,'CUMUL résultats semaine'!$R:$R),IF(ISBLANK($N$2),SUMIF('CUMUL résultats semaine'!$B:$B,'Fiche Agence'!$H$2,'CUMUL résultats semaine'!$R:$R),SUMIF('CUMUL résultats semaine'!$C:$C,'Fiche Agence'!$N$2,'CUMUL résultats semaine'!$R:$R)))) -> 2239 | AG6: =(IF(ISBLANK($H$2),SUMIF('CUMUL résultats semaine'!$A:$A,'Fiche Agence'!$C$2,'CUMUL résultats semaine'!$AD:$AD),IF(ISBLANK($N$2),SUMIF('CUMUL résultats semaine'!$B:$B,'Fiche Agence'!$H$2,'CUMUL résultats semaine'!$AD:$AD),SUMIF('CUMUL résultats semaine'!$C:$C,'Fiche Agence'!$N$2,'CUMUL résultats semaine'!$AD:$AD)))) -> 2045 | AH6: =(IF(ISBLANK($H$2),SUMIF('CUMUL résultats semaine'!$A:$A,'Fiche Agence'!$C$2,'CUMUL résultats semaine'!$AP:$AP),IF(ISBLANK($N$2),SUMIF('CUMUL résultats semaine'!$B:$B,'Fiche Agence'!$H$2,'CUMUL résultats semaine'!$AP:$AP),SUMIF('CUMUL résultats semaine'!$C:$C,'Fiche Agence'!$N$2,'CUMUL résultats semaine'!$AP:$AP)))) -> 2040 | AI6: =(IF(ISBLANK($H$2),SUMIF('CUMUL résultats semaine'!$A:$A,'Fiche Agence'!$C$2,'CUMUL résultats semaine'!$BB:$BB),IF(ISBLANK($N$2),SUMIF('CUMUL résultats semaine'!$B:$B,'Fiche Agence'!$H$2,'CUMUL résultats semaine'!$BB:$BB),SUMIF('CUMUL résultats semaine'!$C:$C,'Fiche Agence'!$N$2,'CUMUL résultats semaine'!$BB:$BB)))) -> 3816 | AJ6: =(IF(ISBLANK($H$2),SUMIF('CUMUL résultats semaine'!$A:$A,'Fiche Agence'!$C$2,'CUMUL résultats semaine'!$BN:$BN),IF(ISBLANK($N$2),SUMIF('CUMUL résultats semaine'!$B:$B,'Fiche Agence'!$H$2,'CUMUL résultats semaine'!$BN:$BN),SUMIF('CUMUL résultats semaine'!$C:$C,'Fiche Agence'!$N$2,'CUMUL résultats semaine'!$BN:$BN)))) -> 3770 | AK6: =(IF(ISBLANK($H$2),SUMIF('CUMUL résultats semaine'!$A:$A,'Fiche Agence'!$C$2,'CUMUL résultats semaine'!$BZ:$BZ),IF(ISBLANK($N$2),SUMIF('CUMUL résultats semaine'!$B:$B,'Fiche Agence'!$H$2,'CUMUL résultats semaine'!$BZ:$BZ),SUMIF('CUMUL résultats semaine'!$C:$C,'Fiche Agence'!$N$2,'CUMUL résultats semaine'!$BZ:$BZ)))) -> 3695
AD7: RAF 100% | AE7: =HLOOKUP(Y1,3:6,3,FALSE) -> 664
G8: MEILLEURE PERFORMANCE HEBDO EN 2021 : | K8: ATTENDU : 0,5 VB / ETP / SEMAINE DU 12 OCTOBRE AU 18 DECEMBRE | AD8: RAF 120% | AE8: =HLOOKUP(Y1,3:6,4,FALSE) -> 3695
X10: Jauge | AE10: BANCA
K11: REAL DEPUIS LE 12/10 | N11: % SAIS. | X11: 0 - 79% | Z11: 80 | AE11: 0 | AF11: 45 | AG11: 46 | AH11: 47 | AI11: 48 | AJ11: 49 | AK11: 50
G12: R à F Entité : | K12: ENTITE | M12: PAR ETP | N12: =K13/(0.5*Y5*(10-Y3)) -> 0.6626857243 | T12: RàF total | U12: RàF hebdo | X12: 80% - 100% | Z12: 20 | AD12: PROD | AE12: =(IF(ISBLANK($H$2),SUMIF('CUMUL résultats semaine'!$A:$A,'Fiche Agence'!$C$2,'CUMUL résultats semaine'!$J:$J),IF(ISBLANK($N$2),SUMIF('CUMUL résultats semaine'!$B:$B,'Fiche Agence'!$H$2,'CUMUL résultats semaine'!$J:$J),SUMIF('CUMUL résultats semaine'!$C:$C,'Fiche Agence'!$N$2,'CUMUL résultats semaine'!$J:$J)))) -> 4257 | AF12: =(IF(ISBLANK($H$2),SUMIF('CUMUL résultats semaine'!$A:$A,'Fiche Agence'!$C$2,'CUMUL résultats semaine'!$V:$V),IF(ISBLANK($N$2),SUMIF('CUMUL résultats semaine'!$B:$B,'Fiche Agence'!$H$2,'CUMUL résultats semaine'!$V:$V),SUMIF('CUMUL résultats semaine'!$C:$C,'Fiche Agence'!$N$2,'CUMUL résultats semaine'!$V:$V)))) -> 4330 | AG12: =(IF(ISBLANK($H$2),SUMIF('CUMUL résultats semaine'!$A:$A,'Fiche Agence'!$C$2,'CUMUL résultats semaine'!$AH:$AH),IF(ISBLANK($N$2),SUMIF('CUMUL résultats semaine'!$B:$B,'Fiche Agence'!$H$2,'CUMUL résultats semaine'!$AH:$AH),SUMIF('CUMUL résultats semaine'!$C:$C,'Fiche Agence'!$N$2,'CUMUL résultats semaine'!$AH:$AH)))) -> 4410 | AH12: =(IF(ISBLANK($H$2),SUMIF('CUMUL résultats semaine'!$A:$A,'Fiche Agence'!$C$2,'CUMUL résultats semaine'!$AT:$AT),IF(ISBLANK($N$2),SUMIF('CUMUL résultats semaine'!$B:$B,'Fiche Agence'!$H$2,'CUMUL résultats semaine'!$AT:$AT),SUMIF('CUMUL résultats semaine'!$C:$C,'Fiche Agence'!$N$2,'CUMUL résultats semaine'!$AT:$AT)))) -> 4465 | AI12: =(IF(ISBLANK($H$2),SUMIF('CUMUL résultats semaine'!$A:$A,'Fiche Agence'!$C$2,'CUMUL résultats semaine'!$BF:$BF),IF(ISBLANK($N$2),SUMIF('CUMUL résultats semaine'!$B:$B,'Fiche Agence'!$H$2,'CUMUL résultats semaine'!$BF:$BF),SUMIF('CUMUL résultats semaine'!$C:$C,'Fiche Agence'!$N$2,'CUMUL résultats semaine'!$BF:$BF)))) -> 4544 | AJ12: =(IF(ISBLANK($H$2),SUMIF('CUMUL résultats semaine'!$A:$A,'Fiche Agence'!$C$2,'CUMUL résultats semaine'!$BR:$BR),IF(ISBLANK($N$2),SUMIF('CUMUL résultats semaine'!$B:$B,'Fiche Agence'!$H$2,'CUMUL résultats semaine'!$BR:$BR),SUMIF('CUMUL résultats semaine'!$C:$C,'Fiche Agence'!$N$2,'CUMUL résultats semaine'!$BR:$BR)))) -> 4612 | AK12: =(IF(ISBLANK($H$2),SUMIF('CUMUL résultats semaine'!$A:$A,'Fiche Agence'!$C$2,'CUMUL résultats semaine'!$CD:$CD),IF(ISBLANK($N$2),SUMIF('CUMUL résultats semaine'!$B:$B,'Fiche Agence'!$H$2,'CUMUL résultats semaine'!$CD:$CD),SUMIF('CUMUL résultats semaine'!$C:$C,'Fiche Agence'!$N$2,'CUMUL résultats semaine'!$CD:$CD)))) -> 4688
H13: 1 | K13: =IF(ISBLANK($H$2),SUMIF(PROD_AUTO5_PREV_PERI_PART_SOC!$A:$A,'Fiche Agence'!$C$2,PROD_AUTO5_PREV_PERI_PART_SOC!$E:$E),IF(ISBLANK($N$2),SUMIF(PROD_AUTO5_PREV_PERI_PART_SOC!$B:$B,'Fiche Agence'!$H$2,PROD_AUTO5_PREV_PERI_PART_SOC!$E:$E),SUMIF(PROD_AUTO5_PREV_PERI_PART_SOC!$D:$D,'Fiche Agence'!$N$2,PROD_AUTO5_PREV_PERI_PART_SOC!$E:$E))) -> 338 | M13: =K13/(IF(ISBLANK($H$2),SUMIF(ETP_Challenge!$A:$A,'Fiche Agence'!$C$2,ETP_Challenge!$E:$E),IF(ISBLANK($N$2),SUMIF(ETP_Challenge!$B:$B,'Fiche Agence'!$H$2,ETP_Challenge!$E:$E),SUMIF(ETP_Challenge!$D:$D,'Fiche Agence'!$N$2,ETP_Challenge!$E:$E)))) -> 3.313428621 | T13: =IF(((ROUND(0.5*Y5,1)*10 - K13))<=0,0,((ROUND(0.5*Y5,1)*10 - K13))) -> 172 | U13: =T13 -> 172 | X13: 101% - 120% | Z13: 20 | AD13: RAF 100% | AE13: =(IF(ISBLANK($H$2),SUMIF('CUMUL résultats semaine'!$A:$A,'Fiche Agence'!$C$2,'CUMUL résultats semaine'!$K:$K),IF(ISBLANK($N$2),SUMIF('CUMUL résultats semaine'!$B:$B,'Fiche Agence'!$H$2,'CUMUL résultats semaine'!$K:$K),SUMIF('CUMUL résultats semaine'!$C:$C,'Fiche Agence'!$N$2,'CUMUL résultats semaine'!$K:$K)))) -> 86 | AF13: =(IF(ISBLANK($H$2),SUMIF('CUMUL résultats semaine'!$A:$A,'Fiche Agence'!$C$2,'CUMUL résultats semaine'!$W:$W),IF(ISBLANK($N$2),SUMIF('CUMUL résultats semaine'!$B:$B,'Fiche Agence'!$H$2,'CUMUL résultats semaine'!$W:$W),SUMIF('CUMUL résultats semaine'!$C:$C,'Fiche Agence'!$N$2,'CUMUL résultats semaine'!$W:$W)))) -> 73 | AG13: =(IF(ISBLANK($H$2),SUMIF('CUMUL résultats semaine'!$A:$A,'Fiche Agence'!$C$2,'CUMUL résultats semaine'!$AI:$AI),IF(ISBLANK($N$2),SUMIF('CUMUL résultats semaine'!$B:$B,'Fiche Agence'!$H$2,'CUMUL résultats semaine'!$AI:$AI),SUMIF('CUMUL résultats semaine'!$C:$C,'Fiche Agence'!$N$2,'CUMUL résultats semaine'!$AI:$AI)))) -> 51 | AH13: =(IF(ISBLANK($H$2),SUMIF('CUMUL résultats semaine'!$A:$A,'Fiche Agence'!$C$2,'CUMUL résultats semaine'!$AU:$AU),IF(ISBLANK($N$2),SUMIF('CUMUL résultats semaine'!$B:$B,'Fiche Agence'!$H$2,'CUMUL résultats semaine'!$AU:$AU),SUMIF('CUMUL résultats semaine'!$C:$C,'Fiche Agence'!$N$2,'CUMUL résultats semaine'!$AU:$AU)))) -> 48 | AI13: =(IF(ISBLANK($H$2),SUMIF('CUMUL résultats semaine'!$A:$A,'Fiche Agence'!$C$2,'CUMUL résultats semaine'!$BG:$BG),IF(ISBLANK($N$2),SUMIF('CUMUL résultats semaine'!$B:$B,'Fiche Agence'!$H$2,'CUMUL résultats semaine'!$BG:$BG),SUMIF('CUMUL résultats semaine'!$C:$C,'Fiche Agence'!$N$2,'CUMUL résultats semaine'!$BG:$BG)))) -> 41 | AJ13: =(IF(ISBLANK($H$2),SUMIF('CUMUL résultats semaine'!$A:$A,'Fiche Agence'!$C$2,'CUMUL résultats semaine'!$BS:$BS),IF(ISBLANK($N$2),SUMIF('CUMUL résultats semaine'!$B:$B,'Fiche Agence'!$H$2,'CUMUL résultats semaine'!$BS:$BS),SUMIF('CUMUL résultats semaine'!$C:$C,'Fiche Agence'!$N$2,'CUMUL résultats semaine'!$BS:$BS)))) -> 29 | AK13: =(IF(ISBLANK($H$2),SUMIF('CUMUL résultats semaine'!$A:$A,'Fiche Agence'!$C$2,'CUMUL résultats semaine'!$CE:$CE),IF(ISBLANK($N$2),SUMIF('CUMUL résultats semaine'!$B:$B,'Fiche Agence'!$H$2,'CUMUL résultats semaine'!$CE:$CE),SUMIF('CUMUL résultats semaine'!$C:$C,'Fiche Agence'!$N$2,'CUMUL résultats semaine'!$CE:$CE)))) -> 21
C14: =Y16&"%" -> 93,5% | H14: 1.5 | T14: =T13/Y5 -> 1.68612344 | U14: =U13/Y5 -> 1.68612344 | Z14: =SUM(Z11:Z13) -> 120 | AD14: RAF 120% | AE14: =(IF(ISBLANK($H$2),SUMIF('CUMUL résultats semaine'!$A:$A,'Fiche Agence'!$C$2,'CUMUL résultats semaine'!$L:$L),IF(ISBLANK($N$2),SUMIF('CUMUL résultats semaine'!$B:$B,'Fiche Agence'!$H$2,'CUMUL résultats semaine'!$L:$L),SUMIF('CUMUL résultats semaine'!$C:$C,'Fiche Agence'!$N$2,'CUMUL résultats semaine'!$L:$L)))) -> 318 | AF14: =(IF(ISBLANK($H$2),SUMIF('CUMUL résultats semaine'!$A:$A,'Fiche Agence'!$C$2,'CUMUL résultats semaine'!$X:$X),IF(ISBLANK($N$2),SUMIF('CUMUL résultats semaine'!$B:$B,'Fiche Agence'!$H$2,'CUMUL résultats semaine'!$X:$X),SUMIF('CUMUL résultats semaine'!$C:$C,'Fiche Agence'!$N$2,'CUMUL résultats semaine'!$X:$X)))) -> 293 | AG14: =(IF(ISBLANK($H$2),SUMIF('CUMUL résultats semaine'!$A:$A,'Fiche Agence'!$C$2,'CUMUL résultats semaine'!$AJ:$AJ),IF(ISBLANK($N$2),SUMIF('CUMUL résultats semaine'!$B:$B,'Fiche Agence'!$H$2,'CUMUL résultats semaine'!$AJ:$AJ),SUMIF('CUMUL résultats semaine'!$C:$C,'Fiche Agence'!$N$2,'CUMUL résultats semaine'!$AJ:$AJ)))) -> 243 | AH14: =(IF(ISBLANK($H$2),SUMIF('CUMUL résultats semaine'!$A:$A,'Fiche Agence'!$C$2,'CUMUL résultats semaine'!$AV:$AV),IF(ISBLANK($N$2),SUMIF('CUMUL résultats semaine'!$B:$B,'Fiche Agence'!$H$2,'CUMUL résultats semaine'!$AV:$AV),SUMIF('CUMUL résultats semaine'!$C:$C,'Fiche Agence'!$N$2,'CUMUL résultats semaine'!$AV:$AV)))) -> 225 | AI14: =(IF(ISBLANK($H$2),SUMIF('CUMUL résultats semaine'!$A:$A,'Fiche Agence'!$C$2,'CUMUL résultats semaine'!$BH:$BH),IF(ISBLANK($N$2),SUMIF('CUMUL résultats semaine'!$B:$B,'Fiche Agence'!$H$2,'CUMUL résultats semaine'!$BH:$BH),SUMIF('CUMUL résultats semaine'!$C:$C,'Fiche Agence'!$N$2,'CUMUL résultats semaine'!$BH:$BH)))) -> 195 | AJ14: =(IF(ISBLANK($H$2),SUMIF('CUMUL résultats semaine'!$A:$A,'Fiche Agence'!$C$2,'CUMUL résultats semaine'!$BT:$BT),IF(ISBLANK($N$2),SUMIF('CUMUL résultats semaine'!$B:$B,'Fiche Agence'!$H$2,'CUMUL résultats semaine'!$BT:$BT),SUMIF('CUMUL résultats semaine'!$C:$C,'Fiche Agence'!$N$2,'CUMUL résultats semaine'!$BT:$BT)))) -> 161 | AK14: =(IF(ISBLANK($H$2),SUMIF('CUMUL résultats semaine'!$A:$A,'Fiche Agence'!$C$2,'CUMUL résultats semaine'!$CF:$CF),IF(ISBLANK($N$2),SUMIF('CUMUL résultats semaine'!$B:$B,'Fiche Agence'!$H$2,'CUMUL résultats semaine'!$CF:$CF),SUMIF('CUMUL résultats semaine'!$C:$C,'Fiche Agence'!$N$2,'CUMUL résultats semaine'!$CF:$CF)))) -> 132
AD15: RAF 100% | AE15: =HLOOKUP(Y1,11:14,3,FALSE) -> 21
D16: Reste à faire hebdo par ETP pour atteindre l'objectif | K16: ATTENDU : 0,5 VB / ETP / SEMAINE DU 1ER SEPTEMBRE AU 18 DECEMBRE | X16: aiguille IARD | Y16: =ROUND((AA17/AB17)*100,1) -> 93.5 | Z16: =IF(Y16>=120,120,Y16) -> 93.5 | AA16: VB IARD | AB16: OBJ TOTAL | AD16: RAF 120% | AE16: =HLOOKUP(Y1,11:14,4,FALSE) -> 132
D17: S45 | E17: S46 | F17: S47 | G17: S48 | H17: S49 | I17: S50 | X17: largeur | Z17: 1 | AA17: =IF(ISBLANK($H$2),SUMIF('Coller ici dernier suivi PV'!$A:$A,'Fiche Agence'!$C$2,'Coller ici dernier suivi PV'!$BE:$BE),IF(ISBLANK($N$2),SUMIF('Coller ici dernier suivi PV'!$B:$B,'Fiche Agence'!$H$2,'Coller ici dernier suivi PV'!$BE:$BE),SUMIF('Coller ici dernier suivi PV'!$C:$C,'Fiche Agence'!$N$2,'Coller ici dernier suivi PV'!$BE:$BE))) -> 6201.3 | AB17: =Y5*65 -> 6630.594019
C18: Obj 100% | D18: =(AE5/$Y$5)/6 -> 1.968777854 | E18: =IF(ISNUMBER(D$20),((AF5/$Y$5)/5),D18) -> 2.288030296 | F18: =IF(ISNUMBER(E$20),((AG5/$Y$5)/4),E18) -> 2.570848094 | G18: =IF(ISNUMBER(F$20),((AH5/$Y$5)/3),F18) -> 3.385317605 | H18: =IF(ISNUMBER(G$20),((AI5/$Y$5)/2),G18) -> 3.470277313 | I18: =IF(ISNUMBER(H$20),((AJ5/$Y$5)/1),H18) -> 6.705281589 | K18: REAL DEPUIS LE 01/09 | N18: % SAIS. | T18: RàF total | U18: RàF hebdo | X18: part invisible | Z18: =SUM($Z$11:$Z$14)-(Z17+Z16) -> 145.5 | AE18: CONSO
C19: Obj 150% | D19: =(AE6/$Y$5)/6 -> 3.749664046 | E19: =IF(ISNUMBER(D$20),((AF6/$Y$5)/5),D19) -> 4.389802771 | F19: =IF(ISNUMBER(E$20),((AG6/$Y$5)/4),E19) -> 5.011805866 | G19: =IF(ISNUMBER(F$20),((AH6/$Y$5)/3),F19) -> 6.666069416 | H19: =IF(ISNUMBER(G$20),((AI6/$Y$5)/2),G19) -> 18.70420654 | I19: =IF(ISNUMBER(H$20),((AJ6/$Y$5)/1),H19) -> 36.95747308 | K19: ENTITE | M19: PAR ETP | N19: =K20/(0.5*Y5*(16-Y3)) -> 0.7915957431 | T19: =IF(((ROUND(0.5*Y5,1)*16 - K20))<=0,0,((ROUND(0.5*Y5,1)*16 - K20))) -> 170 | U19: =T19 -> 170 | X19: aiguille CONSO | Y19: =ROUND((AA20/AB20)*100,1) -> 111.9 | Z19: =IF(Y19>=120,120,Y19) -> 111.9 | AA19: Engag. nets Conso | AB19: OBJ TOTAL | AE19: 0 | AF19: 45 | AG19: 46 | AH19: 47 | AI19: 48 | AJ19: 49 | AK19: 50
C20: Réal. / ETP | D20: =IF(ISNUMBER(AF4),((AF4-AE4)/$Y$5),"-") -> 0.5921038128 | E20: =IF(ISNUMBER(AG4),((AG4-AF4)/$Y$5),"-") -> 1.668477963 | F20: 0.4921127716 | G20: 0.9842255431 | H20: 0.9616785436 | I20: 0.743070679 | K20: =IF(ISBLANK($H$2),SUMIF(PROD_AUTO5_PREV_PERI_PART_SOC!$A:$A,'Fiche Agence'!$C$2,PROD_AUTO5_PREV_PERI_PART_SOC!$F:$F),IF(ISBLANK($N$2),SUMIF(PROD_AUTO5_PREV_PERI_PART_SOC!$B:$B,'Fiche Agence'!$H$2,PROD_AUTO5_PREV_PERI_PART_SOC!$F:$F),SUMIF(PROD_AUTO5_PREV_PERI_PART_SOC!$D:$D,'Fiche Agence'!$N$2,PROD_AUTO5_PREV_PERI_PART_SOC!$F:$F))) -> 646 | M20: =K20/(IF(ISBLANK($H$2),SUMIF(ETP_Challenge!$A:$A,'Fiche Agence'!$C$2,ETP_Challenge!$E:$E),IF(ISBLANK($N$2),SUMIF(ETP_Challenge!$B:$B,'Fiche Agence'!$H$2,ETP_Challenge!$E:$E),SUMIF(ETP_Challenge!$D:$D,'Fiche Agence'!$N$2,ETP_Challenge!$E:$E)))) -> 6.332765945 | T20: =T19/Y5 -> 1.666517354 | U20: =U19/Y5 -> 1.666517354 | X20: largeur | Z20: 1 | AA20: =IF(ISBLANK($H$2),SUMIF('Coller ici dernier suivi PV'!$A:$A,'Fiche Agence'!$C$2,'Coller ici dernier suivi PV'!$AU:$AU),IF(ISBLANK($N$2),SUMIF('Coller ici dernier suivi PV'!$B:$B,'Fiche Agence'!$H$2,'Coller ici dernier suivi PV'!$AU:$AU),SUMIF('Coller ici dernier suivi PV'!$C:$C,'Fiche Agence'!$N$2,'Coller ici dernier suivi PV'!$AU:$AU))) -> 65425.65378 | AB20: =Y5*573 -> 58451.23651 | AD20: PROD | AE20: =(IF(ISBLANK($H$2),SUMIF('CUMUL résultats semaine'!$A:$A,'Fiche Agence'!$C$2,'CUMUL résultats semaine'!$G:$G),IF(ISBLANK($N$2),SUMIF('CUMUL résultats semaine'!$B:$B,'Fiche Agence'!$H$2,'CUMUL résultats semaine'!$G:$G),SUMIF('CUMUL résultats semaine'!$C:$C,'Fiche Agence'!$N$2,'CUMUL résultats semaine'!$G:$G)))) -> 59166.09573 | AF20: =(IF(ISBLANK($H$2),SUMIF('CUMUL résultats semaine'!$A:$A,'Fiche Agence'!$C$2,'CUMUL résultats semaine'!$S:$S),IF(ISBLANK($N$2),SUMIF('CUMUL résultats semaine'!$B:$B,'Fiche Agence'!$H$2,'CUMUL résultats semaine'!$S:$S),SUMIF('CUMUL résultats semaine'!$C:$C,'Fiche Agence'!$N$2,'CUMUL résultats semaine'!$S:$S)))) -> 60246.44285 | AG20: =(IF(ISBLANK($H$2),SUMIF('CUMUL résultats semaine'!$A:$A,'Fiche Agence'!$C$2,'CUMUL résultats semaine'!$AE:$AE),IF(ISBLANK($N$2),SUMIF('CUMUL résultats semaine'!$B:$B,'Fiche Agence'!$H$2,'CUMUL résultats semaine'!$AE:$AE),SUMIF('CUMUL résultats semaine'!$C:$C,'Fiche Agence'!$N$2,'CUMUL résultats semaine'!$AE:$AE)))) -> 60986.98521 | AH20: =(IF(ISBLANK($H$2),SUMIF('CUMUL résultats semaine'!$A:$A,'Fiche Agence'!$C$2,'CUMUL résultats semaine'!$AQ:$AQ),IF(ISBLANK($N$2),SUMIF('CUMUL résultats semaine'!$B:$B,'Fiche Agence'!$H$2,'CUMUL résultats semaine'!$AQ:$AQ),SUMIF('CUMUL résultats semaine'!$C:$C,'Fiche Agence'!$N$2,'CUMUL résultats semaine'!$AQ:$AQ)))) -> 62194.31702 | AI20: =(IF(ISBLANK($H$2),SUMIF('CUMUL résultats semaine'!$A:$A,'Fiche Agence'!$C$2,'CUMUL résultats semaine'!$BC:$BC),IF(ISBLANK($N$2),SUMIF('CUMUL résultats semaine'!$B:$B,'Fiche Agence'!$H$2,'CUMUL résultats semaine'!$BC:$BC),SUMIF('CUMUL résultats semaine'!$C:$C,'Fiche Agence'!$N$2,'CUMUL résultats semaine'!$BC:$BC)))) -> 63054.40995 | AJ20: =(IF(ISBLANK($H$2),SUMIF('CUMUL résultats semaine'!$A:$A,'Fiche Agence'!$C$2,'CUMUL résultats semaine'!$BO:$BO),IF(ISBLANK($N$2),SUMIF('CUMUL résultats semaine'!$B:$B,'Fiche Agence'!$H$2,'CUMUL résultats semaine'!$BO:$BO),SUMIF('CUMUL résultats semaine'!$C:$C,'Fiche Agence'!$N$2,'CUMUL résultats semaine'!$BO:$BO)))) -> 63795.66701 | AK20: =(IF(ISBLANK($H$2),SUMIF('CUMUL résultats semaine'!$A:$A,'Fiche Agence'!$C$2,'CUMUL résultats semaine'!$CA:$CA),IF(ISBLANK($N$2),SUMIF('CUMUL résultats semaine'!$B:$B,'Fiche Agence'!$H$2,'CUMUL résultats semaine'!$CA:$CA),SUMIF('CUMUL résultats semaine'!$C:$C,'Fiche Agence'!$N$2,'CUMUL résultats semaine'!$CA:$CA)))) -> 64430.98869
X21: part invisible | Z21: =SUM($Z$11:$Z$14)-(Z20+Z19) -> 127.1 | AD21: RAF 100% | AE21: =(IF(ISBLANK($H$2),SUMIF('CUMUL résultats semaine'!$A:$A,'Fiche Agence'!$C$2,'CUMUL résultats semaine'!$H:$H),IF(ISBLANK($N$2),SUMIF('CUMUL résultats semaine'!$B:$B,'Fiche Agence'!$H$2,'CUMUL résultats semaine'!$H:$H),SUMIF('CUMUL résultats semaine'!$C:$C,'Fiche Agence'!$N$2,'CUMUL résultats semaine'!$H:$H)))) -> 3374 | AF21: =(IF(ISBLANK($H$2),SUMIF('CUMUL résultats semaine'!$A:$A,'Fiche Agence'!$C$2,'CUMUL résultats semaine'!$T:$T),IF(ISBLANK($N$2),SUMIF('CUMUL résultats semaine'!$B:$B,'Fiche Agence'!$H$2,'CUMUL résultats semaine'!$T:$T),SUMIF('CUMUL résultats semaine'!$C:$C,'Fiche Agence'!$N$2,'CUMUL résultats semaine'!$T:$T)))) -> 2888 | AG21: =(IF(ISBLANK($H$2),SUMIF('CUMUL résultats semaine'!$A:$A,'Fiche Agence'!$C$2,'CUMUL résultats semaine'!$AF:$AF),IF(ISBLANK($N$2),SUMIF('CUMUL résultats semaine'!$B:$B,'Fiche Agence'!$H$2,'CUMUL résultats semaine'!$AF:$AF),SUMIF('CUMUL résultats semaine'!$C:$C,'Fiche Agence'!$N$2,'CUMUL résultats semaine'!$AF:$AF)))) -> 2259 | AH21: =(IF(ISBLANK($H$2),SUMIF('CUMUL résultats semaine'!$A:$A,'Fiche Agence'!$C$2,'CUMUL résultats semaine'!$AR:$AR),IF(ISBLANK($N$2),SUMIF('CUMUL résultats semaine'!$B:$B,'Fiche Agence'!$H$2,'CUMUL résultats semaine'!$AR:$AR),SUMIF('CUMUL résultats semaine'!$C:$C,'Fiche Agence'!$N$2,'CUMUL résultats semaine'!$AR:$AR)))) -> 1671 | AI21: =(IF(ISBLANK($H$2),SUMIF('CUMUL résultats semaine'!$A:$A,'Fiche Agence'!$C$2,'CUMUL résultats semaine'!$BD:$BD),IF(ISBLANK($N$2),SUMIF('CUMUL résultats semaine'!$B:$B,'Fiche Agence'!$H$2,'CUMUL résultats semaine'!$BD:$BD),SUMIF('CUMUL résultats semaine'!$C:$C,'Fiche Agence'!$N$2,'CUMUL résultats semaine'!$BD:$BD)))) -> 1498 | AJ21: =(IF(ISBLANK($H$2),SUMIF('CUMUL résultats semaine'!$A:$A,'Fiche Agence'!$C$2,'CUMUL résultats semaine'!$BP:$BP),IF(ISBLANK($N$2),SUMIF('CUMUL résultats semaine'!$B:$B,'Fiche Agence'!$H$2,'CUMUL résultats semaine'!$BP:$BP),SUMIF('CUMUL résultats semaine'!$C:$C,'Fiche Agence'!$N$2,'CUMUL résultats semaine'!$BP:$BP)))) -> 1491 | AK21: =(IF(ISBLANK($H$2),SUMIF('CUMUL résultats semaine'!$A:$A,'Fiche Agence'!$C$2,'CUMUL résultats semaine'!$CC:$CC),IF(ISBLANK($N$2),SUMIF('CUMUL résultats semaine'!$B:$B,'Fiche Agence'!$H$2,'CUMUL résultats semaine'!$CC:$CC),SUMIF('CUMUL résultats semaine'!$C:$C,'Fiche Agence'!$N$2,'CUMUL résultats semaine'!$CC:$CC)))) -> 6470
X22: aiguille BANCA | Y22: =ROUND((AA23/AB23)*100,1) -> 129.6 | Z22: =IF(Y22>=120,120,Y22) -> 120 | AA22: VB BANCA | AB22: OBJ TOTAL | AD22: RAF 120% | AE22: =(IF(ISBLANK($H$2),SUMIF('CUMUL résultats semaine'!$A:$A,'Fiche Agence'!$C$2,'CUMUL résultats semaine'!$I:$I),IF(ISBLANK($N$2),SUMIF('CUMUL résultats semaine'!$B:$B,'Fiche Agence'!$H$2,'CUMUL résultats semaine'!$I:$I),SUMIF('CUMUL résultats semaine'!$C:$C,'Fiche Agence'!$N$2,'CUMUL résultats semaine'!$I:$I)))) -> 10581 | AF22: =(IF(ISBLANK($H$2),SUMIF('CUMUL résultats semaine'!$A:$A,'Fiche Agence'!$C$2,'CUMUL résultats semaine'!$U:$U),IF(ISBLANK($N$2),SUMIF('CUMUL résultats semaine'!$B:$B,'Fiche Agence'!$H$2,'CUMUL résultats semaine'!$U:$U),SUMIF('CUMUL résultats semaine'!$C:$C,'Fiche Agence'!$N$2,'CUMUL résultats semaine'!$U:$U)))) -> 9663 | AG22: =(IF(ISBLANK($H$2),SUMIF('CUMUL résultats semaine'!$A:$A,'Fiche Agence'!$C$2,'CUMUL résultats semaine'!$AG:$AG),IF(ISBLANK($N$2),SUMIF('CUMUL résultats semaine'!$B:$B,'Fiche Agence'!$H$2,'CUMUL résultats semaine'!$AG:$AG),SUMIF('CUMUL résultats semaine'!$C:$C,'Fiche Agence'!$N$2,'CUMUL résultats semaine'!$AG:$AG)))) -> 8734 | AH22: =(IF(ISBLANK($H$2),SUMIF('CUMUL résultats semaine'!$A:$A,'Fiche Agence'!$C$2,'CUMUL résultats semaine'!$AS:$AS),IF(ISBLANK($N$2),SUMIF('CUMUL résultats semaine'!$B:$B,'Fiche Agence'!$H$2,'CUMUL résultats semaine'!$AS:$AS),SUMIF('CUMUL résultats semaine'!$C:$C,'Fiche Agence'!$N$2,'CUMUL résultats semaine'!$AS:$AS)))) -> 7911 | AI22: =(IF(ISBLANK($H$2),SUMIF('CUMUL résultats semaine'!$A:$A,'Fiche Agence'!$C$2,'CUMUL résultats semaine'!$BE:$BE),IF(ISBLANK($N$2),SUMIF('CUMUL résultats semaine'!$B:$B,'Fiche Agence'!$H$2,'CUMUL résultats semaine'!$BE:$BE),SUMIF('CUMUL résultats semaine'!$C:$C,'Fiche Agence'!$N$2,'CUMUL résultats semaine'!$BE:$BE)))) -> 7188 | AJ22: =(IF(ISBLANK($H$2),SUMIF('CUMUL résultats semaine'!$A:$A,'Fiche Agence'!$C$2,'CUMUL résultats semaine'!$BQ:$BQ),IF(ISBLANK($N$2),SUMIF('CUMUL résultats semaine'!$B:$B,'Fiche Agence'!$H$2,'CUMUL résultats semaine'!$BQ:$BQ),SUMIF('CUMUL résultats semaine'!$C:$C,'Fiche Agence'!$N$2,'CUMUL résultats semaine'!$BQ:$BQ)))) -> 6923 | AK22: =(IF(ISBLANK($H$2),SUMIF('CUMUL résultats semaine'!$A:$A,'Fiche Agence'!$C$2,'CUMUL résultats semaine'!$CD:$CD),IF(ISBLANK($N$2),SUMIF('CUMUL résultats semaine'!$B:$B,'Fiche Agence'!$H$2,'CUMUL résultats semaine'!$CD:$CD),SUMIF('CUMUL résultats semaine'!$C:$C,'Fiche Agence'!$N$2,'CUMUL résultats semaine'!$CD:$CD)))) -> 4688
X23: largeur | Z23: 1 | AA23: =IF(ISBLANK($H$2),SUMIF('Coller ici dernier suivi PV'!$A:$A,'Fiche Agence'!$C$2,'Coller ici dernier suivi PV'!$Q:$Q),IF(ISBLANK($N$2),SUMIF('Coller ici dernier suivi PV'!$B:$B,'Fiche Agence'!$H$2,'Coller ici dernier suivi PV'!$Q:$Q),SUMIF('Coller ici dernier suivi PV'!$C:$C,'Fiche Agence'!$N$2,'Coller ici dernier suivi PV'!$Q:$Q))) -> 4759 | AB23: =Y5*36 -> 3672.328995 | AD23: RAF 100% | AE23: =HLOOKUP(Y1,19:22,3,FALSE) -> 6470
X24: part invisible | Z24: =SUM($Z$11:$Z$14)-(Z23+Z22) -> 119 | AD24: RAF 120% | AE24: =HLOOKUP(Y1,19:22,4,FALSE) -> 4688
G25: MEILLEURE PERFORMANCE HEBDO EN 2021 : | O25: MEILLEURE PERFORMANCE HEBDO EN 2021 : | X25: aiguille ASS VIE | Y25: =ROUND((AA26/AB26)*100,1) -> 117.1 | Z25: =IF(Y25>=120,120,Y25) -> 117.1 | AA25: CA ASS VIE | AB25: OBJ TOTAL
X26: largeur | Z26: 1 | AA26: =IF(ISBLANK($H$2),SUMIF('Coller ici dernier suivi PV'!$A:$A,'Fiche Agence'!$C$2,'Coller ici dernier suivi PV'!$AK:$AK),IF(ISBLANK($N$2),SUMIF('Coller ici dernier suivi PV'!$B:$B,'Fiche Agence'!$H$2,'Coller ici dernier suivi PV'!$AK:$AK),SUMIF('Coller ici dernier suivi PV'!$C:$C,'Fiche Agence'!$N$2,'Coller ici dernier suivi PV'!$AK:$AK))) -> 81787.08688 | AB26: =IF(ISBLANK($H$2),SUMIF('Coller ici dernier suivi PV'!$A:$A,'Fiche Agence'!$C$2,'Coller ici dernier suivi PV'!$CD:$CD),IF(ISBLANK($N$2),SUMIF('Coller ici dernier suivi PV'!$B:$B,'Fiche Agence'!$H$2,'Coller ici dernier suivi PV'!$CD:$CD),SUMIF('Coller ici dernier suivi PV'!$C:$C,'Fiche Agence'!$N$2,'Coller ici dernier suivi PV'!$CD:$CD))) -> 69870.66005 | AE26: ASS VIE
O27: =ROUND((AF45/1000),1)&" K€" -> 7,4 K€ | X27: part invisible | Z27: =SUM($Z$11:$Z$14)-(Z26+Z25) -> 121.9 | AE27: 0 | AF27: 45 | AG27: 46 | AH27: 47 | AI27: 48 | AJ27: 49 | AK27: 50
AD28: PROD | AE28: =(IF(ISBLANK($H$2),SUMIF('CUMUL résultats semaine'!$A:$A,'Fiche Agence'!$C$2,'CUMUL résultats semaine'!$M:$M),IF(ISBLANK($N$2),SUMIF('CUMUL résultats semaine'!$B:$B,'Fiche Agence'!$H$2,'CUMUL résultats semaine'!$M:$M),SUMIF('CUMUL résultats semaine'!$C:$C,'Fiche Agence'!$N$2,'CUMUL résultats semaine'!$M:$M)))) -> 72345.05907 | AF28: =(IF(ISBLANK($H$2),SUMIF('CUMUL résultats semaine'!$A:$A,'Fiche Agence'!$C$2,'CUMUL résultats semaine'!$Y:$Y),IF(ISBLANK($N$2),SUMIF('CUMUL résultats semaine'!$B:$B,'Fiche Agence'!$H$2,'CUMUL résultats semaine'!$Y:$Y),SUMIF('CUMUL résultats semaine'!$C:$C,'Fiche Agence'!$N$2,'CUMUL résultats semaine'!$Y:$Y)))) -> 73649.56688 | AG28: =(IF(ISBLANK($H$2),SUMIF('CUMUL résultats semaine'!$A:$A,'Fiche Agence'!$C$2,'CUMUL résultats semaine'!$AK:$AK),IF(ISBLANK($N$2),SUMIF('CUMUL résultats semaine'!$B:$B,'Fiche Agence'!$H$2,'CUMUL résultats semaine'!$AK:$AK),SUMIF('CUMUL résultats semaine'!$C:$C,'Fiche Agence'!$N$2,'CUMUL résultats semaine'!$AK:$AK)))) -> 75117.44511 | AH28: =(IF(ISBLANK($H$2),SUMIF('CUMUL résultats semaine'!$A:$A,'Fiche Agence'!$C$2,'CUMUL résultats semaine'!$AW:$AW),IF(ISBLANK($N$2),SUMIF('CUMUL résultats semaine'!$B:$B,'Fiche Agence'!$H$2,'CUMUL résultats semaine'!$AW:$AW),SUMIF('CUMUL résultats semaine'!$C:$C,'Fiche Agence'!$N$2,'CUMUL résultats semaine'!$AW:$AW)))) -> 76121.21161 | AI28: =(IF(ISBLANK($H$2),SUMIF('CUMUL résultats semaine'!$A:$A,'Fiche Agence'!$C$2,'CUMUL résultats semaine'!$BI:$BI),IF(ISBLANK($N$2),SUMIF('CUMUL résultats semaine'!$B:$B,'Fiche Agence'!$H$2,'CUMUL résultats semaine'!$BI:$BI),SUMIF('CUMUL résultats semaine'!$C:$C,'Fiche Agence'!$N$2,'CUMUL résultats semaine'!$BI:$BI)))) -> 78878.69382 | AJ28: =(IF(ISBLANK($H$2),SUMIF('CUMUL résultats semaine'!$A:$A,'Fiche Agence'!$C$2,'CUMUL résultats semaine'!$BU:$BU),IF(ISBLANK($N$2),SUMIF('CUMUL résultats semaine'!$B:$B,'Fiche Agence'!$H$2,'CUMUL résultats semaine'!$BU:$BU),SUMIF('CUMUL résultats semaine'!$C:$C,'Fiche Agence'!$N$2,'CUMUL résultats semaine'!$BU:$BU)))) -> 79868.49862 | AK28: =(IF(ISBLANK($H$2),SUMIF('CUMUL résultats semaine'!$A:$A,'Fiche Agence'!$C$2,'CUMUL résultats semaine'!$CG:$CG),IF(ISBLANK($N$2),SUMIF('CUMUL résultats semaine'!$B:$B,'Fiche Agence'!$H$2,'CUMUL résultats semaine'!$CG:$CG),SUMIF('CUMUL résultats semaine'!$C:$C,'Fiche Agence'!$N$2,'CUMUL résultats semaine'!$CG:$CG)))) -> 80338.30892
G29: R à F Entité : | O29: R à F Entité : | AD29: RAF 100% | AE29: =(IF(ISBLANK($H$2),SUMIF('CUMUL résultats semaine'!$A:$A,'Fiche Agence'!$C$2,'CUMUL résultats semaine'!$N:$N),IF(ISBLANK($N$2),SUMIF('CUMUL résultats semaine'!$B:$B,'Fiche Agence'!$H$2,'CUMUL résultats semaine'!$N:$N),SUMIF('CUMUL résultats semaine'!$C:$C,'Fiche Agence'!$N$2,'CUMUL résultats semaine'!$N:$N)))) -> 8361 | AF29: =(IF(ISBLANK($H$2),SUMIF('CUMUL résultats semaine'!$A:$A,'Fiche Agence'!$C$2,'CUMUL résultats semaine'!$Z:$Z),IF(ISBLANK($N$2),SUMIF('CUMUL résultats semaine'!$B:$B,'Fiche Agence'!$H$2,'CUMUL résultats semaine'!$Z:$Z),SUMIF('CUMUL résultats semaine'!$C:$C,'Fiche Agence'!$N$2,'CUMUL résultats semaine'!$Z:$Z)))) -> 7718 | AG29: =(IF(ISBLANK($H$2),SUMIF('CUMUL résultats semaine'!$A:$A,'Fiche Agence'!$C$2,'CUMUL résultats semaine'!$AL:$AL),IF(ISBLANK($N$2),SUMIF('CUMUL résultats semaine'!$B:$B,'Fiche Agence'!$H$2,'CUMUL résultats semaine'!$AL:$AL),SUMIF('CUMUL résultats semaine'!$C:$C,'Fiche Agence'!$N$2,'CUMUL résultats semaine'!$AL:$AL)))) -> 6527 | AH29: =(IF(ISBLANK($H$2),SUMIF('CUMUL résultats semaine'!$A:$A,'Fiche Agence'!$C$2,'CUMUL résultats semaine'!$AX:$AX),IF(ISBLANK($N$2),SUMIF('CUMUL résultats semaine'!$B:$B,'Fiche Agence'!$H$2,'CUMUL résultats semaine'!$AX:$AX),SUMIF('CUMUL résultats semaine'!$C:$C,'Fiche Agence'!$N$2,'CUMUL résultats semaine'!$AX:$AX)))) -> 6067 | AI29: =(IF(ISBLANK($H$2),SUMIF('CUMUL résultats semaine'!$A:$A,'Fiche Agence'!$C$2,'CUMUL résultats semaine'!$BJ:$BJ),IF(ISBLANK($N$2),SUMIF('CUMUL résultats semaine'!$B:$B,'Fiche Agence'!$H$2,'CUMUL résultats semaine'!$BJ:$BJ),SUMIF('CUMUL résultats semaine'!$C:$C,'Fiche Agence'!$N$2,'CUMUL résultats semaine'!$BJ:$BJ)))) -> 5414 | AJ29: =(IF(ISBLANK($H$2),SUMIF('CUMUL résultats semaine'!$A:$A,'Fiche Agence'!$C$2,'CUMUL résultats semaine'!$BV:$BV),IF(ISBLANK($N$2),SUMIF('CUMUL résultats semaine'!$B:$B,'Fiche Agence'!$H$2,'CUMUL résultats semaine'!$BV:$BV),SUMIF('CUMUL résultats semaine'!$C:$C,'Fiche Agence'!$N$2,'CUMUL résultats semaine'!$BV:$BV)))) -> 5277 | AK29: =(IF(ISBLANK($H$2),SUMIF('CUMUL résultats semaine'!$A:$A,'Fiche Agence'!$C$2,'CUMUL résultats semaine'!$CH:$CH),IF(ISBLANK($N$2),SUMIF('CUMUL résultats semaine'!$B:$B,'Fiche Agence'!$H$2,'CUMUL résultats semaine'!$CH:$CH),SUMIF('CUMUL résultats semaine'!$C:$C,'Fiche Agence'!$N$2,'CUMUL résultats semaine'!$CH:$CH)))) -> 5263
H30: 1 | P30: 1 | AD30: RAF 120% | AE30: =(IF(ISBLANK($H$2),SUMIF('CUMUL résultats semaine'!$A:$A,'Fiche Agence'!$C$2,'CUMUL résultats semaine'!$O:$O),IF(ISBLANK($N$2),SUMIF('CUMUL résultats semaine'!$B:$B,'Fiche Agence'!$H$2,'CUMUL résultats semaine'!$O:$O),SUMIF('CUMUL résultats semaine'!$C:$C,'Fiche Agence'!$N$2,'CUMUL résultats semaine'!$O:$O)))) -> 16218 | AF30: =(IF(ISBLANK($H$2),SUMIF('CUMUL résultats semaine'!$A:$A,'Fiche Agence'!$C$2,'CUMUL résultats semaine'!$AA:$AA),IF(ISBLANK($N$2),SUMIF('CUMUL résultats semaine'!$B:$B,'Fiche Agence'!$H$2,'CUMUL résultats semaine'!$AA:$AA),SUMIF('CUMUL résultats semaine'!$C:$C,'Fiche Agence'!$N$2,'CUMUL résultats semaine'!$AA:$AA)))) -> 15354 | AG30: =(IF(ISBLANK($H$2),SUMIF('CUMUL résultats semaine'!$A:$A,'Fiche Agence'!$C$2,'CUMUL résultats semaine'!$AM:$AM),IF(ISBLANK($N$2),SUMIF('CUMUL résultats semaine'!$B:$B,'Fiche Agence'!$H$2,'CUMUL résultats semaine'!$AM:$AM),SUMIF('CUMUL résultats semaine'!$C:$C,'Fiche Agence'!$N$2,'CUMUL résultats semaine'!$AM:$AM)))) -> 13698 | AH30: =(IF(ISBLANK($H$2),SUMIF('CUMUL résultats semaine'!$A:$A,'Fiche Agence'!$C$2,'CUMUL résultats semaine'!$AY:$AY),IF(ISBLANK($N$2),SUMIF('CUMUL résultats semaine'!$B:$B,'Fiche Agence'!$H$2,'CUMUL résultats semaine'!$AY:$AY),SUMIF('CUMUL résultats semaine'!$C:$C,'Fiche Agence'!$N$2,'CUMUL résultats semaine'!$AY:$AY)))) -> 13086 | AI30: =(IF(ISBLANK($H$2),SUMIF('CUMUL résultats semaine'!$A:$A,'Fiche Agence'!$C$2,'CUMUL résultats semaine'!$BK:$BK),IF(ISBLANK($N$2),SUMIF('CUMUL résultats semaine'!$B:$B,'Fiche Agence'!$H$2,'CUMUL résultats semaine'!$BK:$BK),SUMIF('CUMUL résultats semaine'!$C:$C,'Fiche Agence'!$N$2,'CUMUL résultats semaine'!$BK:$BK)))) -> 12165 | AJ30: =(IF(ISBLANK($H$2),SUMIF('CUMUL résultats semaine'!$A:$A,'Fiche Agence'!$C$2,'CUMUL résultats semaine'!$BW:$BW),IF(ISBLANK($N$2),SUMIF('CUMUL résultats semaine'!$B:$B,'Fiche Agence'!$H$2,'CUMUL résultats semaine'!$BW:$BW),SUMIF('CUMUL résultats semaine'!$C:$C,'Fiche Agence'!$N$2,'CUMUL résultats semaine'!$BW:$BW)))) -> 11538 | AK30: =(IF(ISBLANK($H$2),SUMIF('CUMUL résultats semaine'!$A:$A,'Fiche Agence'!$C$2,'CUMUL résultats semaine'!$CI:$CI),IF(ISBLANK($N$2),SUMIF('CUMUL résultats semaine'!$B:$B,'Fiche Agence'!$H$2,'CUMUL résultats semaine'!$CI:$CI),SUMIF('CUMUL résultats semaine'!$C:$C,'Fiche Agence'!$N$2,'CUMUL résultats semaine'!$CI:$CI)))) -> 11302
C31: =Y22&"%" -> 129,6% | H31: 1.2 | K31: =Y19&"%" -> 111,9% | P31: 1.2 | X31: NB_CARTES | Y31: =IF(ISBLANK($H$2),SUMIF(TAUX_DD_HDG!$A:$A,'Fiche Agence'!$C$2,TAUX_DD_HDG!$E:$E),IF(ISBLANK($N$2),SUMIF(TAUX_DD_HDG!$B:$B,'Fiche Agence'!$H$2,TAUX_DD_HDG!$E:$E),SUMIF(TAUX_DD_HDG!$C:$C,'Fiche Agence'!$N$2,TAUX_DD_HDG!$E:$E))) -> 12709 | AD31: RAF 100% | AE31: =HLOOKUP(Y1,27:30,3,FALSE) -> 5263
X32: NB_HDG | Y32: =IF(ISBLANK($H$2),SUMIF(TAUX_DD_HDG!$A:$A,'Fiche Agence'!$C$2,TAUX_DD_HDG!$F:$F),IF(ISBLANK($N$2),SUMIF(TAUX_DD_HDG!$B:$B,'Fiche Agence'!$H$2,TAUX_DD_HDG!$F:$F),SUMIF(TAUX_DD_HDG!$C:$C,'Fiche Agence'!$N$2,TAUX_DD_HDG!$F:$F))) -> 5236 | AD32: RAF 120% | AE32: =HLOOKUP(Y1,27:30,4,FALSE) -> 11302
D33: Reste à faire hebdo par ETP pour atteindre l'objectif | L33: Reste à faire hebdo par ETP pour atteindre l'obj (K€) | X33: NB_DD | Y33: =IF(ISBLANK($H$2),SUMIF(TAUX_DD_HDG!$A:$A,'Fiche Agence'!$C$2,TAUX_DD_HDG!$G:$G),IF(ISBLANK($N$2),SUMIF(TAUX_DD_HDG!$B:$B,'Fiche Agence'!$H$2,TAUX_DD_HDG!$G:$G),SUMIF(TAUX_DD_HDG!$C:$C,'Fiche Agence'!$N$2,TAUX_DD_HDG!$G:$G))) -> 3534
D34: S45 | E34: S46 | F34: S47 | G34: S48 | H34: S49 | I34: S50 | L34: S45 | M34: S46 | N34: S47 | O34: S48 | P34: S49 | Q34: S50 | X34: TAUX HDG | Y34: =Y32/Y31 -> 0.4119915021 | AD34: R à F entité | AE34: iard | AF34: banca | AG34: conso | AH34: ass vie
C35: Obj 100% | D35: =(AE13/$Y$5)/6 -> 0.1405102867 | E35: =IF(ISNUMBER(D$37),((AF13/$Y$5)/5),D35) -> 0.1431244316 | F35: =IF(ISNUMBER(E$37),((AG13/$Y$5)/4),E35) -> 0.1249888015 | G35: =IF(ISNUMBER(F$37),((AH13/$Y$5)/3),F35) -> 0.1568486921 | H35: =IF(ISNUMBER(G$37),((AI13/$Y$5)/2),G35) -> 0.2009623868 | I35: =IF(ISNUMBER(H$37),((AJ13/$Y$5)/1),H35) -> 0.2842882545 | K35: Obj 100% | L35: =(AE21/$Y$5)/6 -> 5.512577992 | M35: =IF(ISNUMBER(L$37),((AF21/$Y$5)/5),L35) -> 5.662237786 | N35: =IF(ISNUMBER(M$37),((AG21/$Y$5)/4),M35) -> 5.53626868 | O35: =IF(ISNUMBER(N$37),((AH21/$Y$5)/3),N35) -> 5.460295095 | P35: =IF(ISNUMBER(O$37),((AI21/$Y$5)/2),O35) -> 7.3424794 | Q35: =IF(ISNUMBER(P$37),((AJ21/$Y$5)/1),P35) -> 14.6163375 | X35: TAUX DD | Y35: =Y33/Y31 -> 0.2780706586 | AD35: 1 | AE35: =AE7 -> 664 | AF35: =AE15 -> 21 | AG35: =AE23 -> 6470 | AH35: =AE31 -> 5263
C36: Obj 120% | D36: =(AE14/$Y$5)/6 -> 0.5195612927 | E36: =IF(ISNUMBER(D$37),((AF14/$Y$5)/5),D36) -> 0.5744583349 | F36: =IF(ISNUMBER(E$37),((AG14/$Y$5)/4),E36) -> 0.5955348779 | G36: =IF(ISNUMBER(F$37),((AH14/$Y$5)/3),F36) -> 0.7352282444 | H36: =IF(ISNUMBER(G$37),((AI14/$Y$5)/2),G36) -> 0.9557967177 | I36: =IF(ISNUMBER(H$37),((AJ14/$Y$5)/1),H36) -> 1.578289965 | K36: Obj 120% | L36: =(AE22/$Y$5)/6 -> 17.28766679 | M36: =IF(ISNUMBER(L$37),((AF22/$Y$5)/5),L36) -> 18.9453614 | N36: =IF(ISNUMBER(M$37),((AG22/$Y$5)/4),M36) -> 21.40494495 | O36: =IF(ISNUMBER(N$37),((AH22/$Y$5)/3),N36) -> 25.85062507 | P36: =IF(ISNUMBER(O$37),((AI22/$Y$5)/2),O36) -> 35.23213747 | Q36: =IF(ISNUMBER(P$37),((AJ22/$Y$5)/1),P36) -> 67.86646848 | X36: DECILE HDG | Y36: =PERCENTILE(TAUX_DD_HDG!H:H,0.9) -> 0.5489687219 | AD36: 1.2 | AE36: =AE8 -> 3695 | AF36: =AE16 -> 132 | AG36: =AE24 -> 4688 | AH36: =AE32 -> 11302
C37: Réal. / ETP | D37: =IF(ISNUMBER(AF12),((AF12-AE12)/$Y$5),"-") -> 0.7156221579 | E37: 0.7842434607 | F37: 0.5391673792 | G37: 0.7744404174 | H37: 0.6666069416 | I37: 0.7450312876 | K37: Réal. / ETP | L37: =IF(ISNUMBER(AF20),((AF20-AE20)/$Y$5),"-") -> 10.59068955 | M37: 7.25956879 | N37: 11.83552596 | O37: 8.431528199 | P37: 7.266575025 | Q37: 6.228085912 | X37: DECILE DD | Y37: =PERCENTILE(TAUX_DD_HDG!I:I,0.9) -> 0.4416418405 | AG37: =AE23&" K€" -> 6470 K€ | AH37: =AE31&" K€" -> 5263 K€
AG38: =AE24&" K€"&" K€" -> 4688 K€ K€ | AH38: =AE32&" K€" -> 11302 K€
X41: MEILLEURES PERF 2021 AGENCES | AA41: MEILLEURES PERF 2021 TERRI REGI
X43: FORFAITS | Y43: =IF(ISBLANK($H$2),SUMIF(Meilleures_perf_2021_AGENCE!$A:$A,'Fiche Agence'!$C$2,Meilleures_perf_2021_AGENCE!$G:$G),IF(ISBLANK($N$2),SUMIF(Meilleures_perf_2021_AGENCE!$B:$B,'Fiche Agence'!$H$2,Meilleures_perf_2021_AGENCE!$G:$G),SUMIF(Meilleures_perf_2021_AGENCE!$C:$C,'Fiche Agence'!$N$2,Meilleures_perf_2021_AGENCE!$G:$G))) -> 55.99847541 | AA43: FORFAITS | AB43: =IF(ISBLANK($H$2),SUMIF(Meilleures_perf_2021_TERRI_REGI!$A:$A,'Fiche Agence'!$C$2,Meilleures_perf_2021_TERRI_REGI!$G:$G),IF(ISBLANK($N$2),SUMIF(Meilleures_perf_2021_TERRI_REGI!$B:$B,'Fiche Agence'!$H$2,Meilleures_perf_2021_TERRI_REGI!$G:$G),SUMIF(Meilleures_perf_2021_TERRI_REGI!$C:$C,'Fiche Agence'!$N$2,Meilleures_perf_2021_TERRI_REGI!$G:$G))) -> 55.99847541 | AC43: =AB43/$Y$5 -> 0.5489554769 | AE43: FORFAITS | AF43: =IF(ISBLANK($H$2),AC43,IF(ISBLANK($N$2),AC43,SUMIF(Meilleures_perf_2021_AGENCE!$C:$C,'Fiche Agence'!$N$2,Meilleures_perf_2021_AGENCE!$G:$G))) -> 0.5489554769
K44: ATTENDU : 1,5 VB / ETP DU 1ER SEPTEMBRE AU 18 DECEMBRE | X44: IARD_PREV | Y44: =IF(ISBLANK($H$2),SUMIF(Meilleures_perf_2021_AGENCE!$A:$A,'Fiche Agence'!$C$2,Meilleures_perf_2021_AGENCE!$E:$E),IF(ISBLANK($N$2),SUMIF(Meilleures_perf_2021_AGENCE!$B:$B,'Fiche Agence'!$H$2,Meilleures_perf_2021_AGENCE!$E:$E),SUMIF(Meilleures_perf_2021_AGENCE!$C:$C,'Fiche Agence'!$N$2,Meilleures_perf_2021_AGENCE!$E:$E))) -> 83.35124385 | AA44: IARD_PREV | AB44: =IF(ISBLANK($H$2),SUMIF(Meilleures_perf_2021_TERRI_REGI!$A:$A,'Fiche Agence'!$C$2,Meilleures_perf_2021_TERRI_REGI!$E:$E),IF(ISBLANK($N$2),SUMIF(Meilleures_perf_2021_TERRI_REGI!$B:$B,'Fiche Agence'!$H$2,Meilleures_perf_2021_TERRI_REGI!$E:$E),SUMIF(Meilleures_perf_2021_TERRI_REGI!$C:$C,'Fiche Agence'!$N$2,Meilleures_perf_2021_TERRI_REGI!$E:$E))) -> 83.35124385 | AC44: =AB44/$Y$5 -> 0.8170958491 | AE44: IARD_PREV | AF44: =IF(ISBLANK($H$2),AC44,IF(ISBLANK($N$2),AC44,SUMIF(Meilleures_perf_2021_AGENCE!$C:$C,'Fiche Agence'!$N$2,Meilleures_perf_2021_AGENCE!$E:$E))) -> 0.8170958491
G45: MEILLEURE PERFORMANCE HEBDO EN 2021: | X45: CONSO | Y45: =IF(ISBLANK($H$2),SUMIF(Meilleures_perf_2021_AGENCE!$A:$A,'Fiche Agence'!$C$2,Meilleures_perf_2021_AGENCE!$F:$F),IF(ISBLANK($N$2),SUMIF(Meilleures_perf_2021_AGENCE!$B:$B,'Fiche Agence'!$H$2,Meilleures_perf_2021_AGENCE!$F:$F),SUMIF(Meilleures_perf_2021_AGENCE!$C:$C,'Fiche Agence'!$N$2,Meilleures_perf_2021_AGENCE!$F:$F))) -> 758300.8891 | AA45: CONSO | AB45: =IF(ISBLANK($H$2),SUMIF(Meilleures_perf_2021_TERRI_REGI!$A:$A,'Fiche Agence'!$C$2,Meilleures_perf_2021_TERRI_REGI!$F:$F),IF(ISBLANK($N$2),SUMIF(Meilleures_perf_2021_TERRI_REGI!$B:$B,'Fiche Agence'!$H$2,Meilleures_perf_2021_TERRI_REGI!$F:$F),SUMIF(Meilleures_perf_2021_TERRI_REGI!$C:$C,'Fiche Agence'!$N$2,Meilleures_perf_2021_TERRI_REGI!$F:$F))) -> 758300.8891 | AC45: 7433.656418 | AE45: CONSO | AF45: =IF(ISBLANK($H$2),AC45,IF(ISBLANK($N$2),AC45,SUMIF(Meilleures_perf_2021_AGENCE!$C:$C,'Fiche Agence'!$N$2,Meilleures_perf_2021_AGENCE!$F:$F))) -> 7433.656418
X46: ASS VIE | Y46: =IF(ISBLANK($H$2),SUMIF(Meilleures_perf_2021_AGENCE!$A:$A,'Fiche Agence'!$C$2,Meilleures_perf_2021_AGENCE!$H:$H),IF(ISBLANK($N$2),SUMIF(Meilleures_perf_2021_AGENCE!$B:$B,'Fiche Agence'!$H$2,Meilleures_perf_2021_AGENCE!$H:$H),SUMIF(Meilleures_perf_2021_AGENCE!$C:$C,'Fiche Agence'!$N$2,Meilleures_perf_2021_AGENCE!$H:$H))) -> 1640999.79 | AA46: ASS VIE | AB46: =IF(ISBLANK($H$2),SUMIF(Meilleures_perf_2021_TERRI_REGI!$A:$A,'Fiche Agence'!$C$2,Meilleures_perf_2021_TERRI_REGI!$H:$H),IF(ISBLANK($N$2),SUMIF(Meilleures_perf_2021_TERRI_REGI!$B:$B,'Fiche Agence'!$H$2,Meilleures_perf_2021_TERRI_REGI!$H:$H),SUMIF(Meilleures_perf_2021_TERRI_REGI!$C:$C,'Fiche Agence'!$N$2,Meilleures_perf_2021_TERRI_REGI!$H:$H))) -> 1640999.79 | AC46: 16086.79193 | AE46: ASS VIE | AF46: =IF(ISBLANK($H$2),AC46,IF(ISBLANK($N$2),AC46,SUMIF(Meilleures_perf_2021_AGENCE!$C:$C,'Fiche Agence'!$N$2,Meilleures_perf_2021_AGENCE!$H:$H))) -> 16086.79193
K47: REAL DEPUIS LE 01/09 | N47: % | O47: RESTE A FAIRE
G48: =ROUND((AF46/1000),1)&" K€" -> 16,1 K€ | K48: ENTITE | M48: PAR ETP | N48: =K49/(1.5*Y5*(16-Y3)) -> 0.01756378584 | O48: ENTITE | Q48: PAR ETP
K49: =IF(ISBLANK($H$2),SUMIF(PROD_AUTO5_PREV_PERI_PART_SOC!$A:$A,'Fiche Agence'!$C$2,PROD_AUTO5_PREV_PERI_PART_SOC!$G:$G),IF(ISBLANK($N$2),SUMIF(PROD_AUTO5_PREV_PERI_PART_SOC!$B:$B,'Fiche Agence'!$H$2,PROD_AUTO5_PREV_PERI_PART_SOC!$G:$G),SUMIF(PROD_AUTO5_PREV_PERI_PART_SOC!$D:$D,'Fiche Agence'!$N$2,PROD_AUTO5_PREV_PERI_PART_SOC!$G:$G))) -> 43 | M49: =K49/(IF(ISBLANK($H$2),SUMIF(ETP_Challenge!$A:$A,'Fiche Agence'!$C$2,ETP_Challenge!$E:$E),IF(ISBLANK($N$2),SUMIF(ETP_Challenge!$B:$B,'Fiche Agence'!$H$2,ETP_Challenge!$E:$E),SUMIF(ETP_Challenge!$D:$D,'Fiche Agence'!$N$2,ETP_Challenge!$E:$E)))) -> 0.4215308601 | O49: =IF(((ROUND(1.5*Y5,1) - K49))<=0,0,((ROUND(1.5*Y5,1) - K49))) -> 110 | Q49: =O49/Y5 -> 1.078334758
G50: R à F Entité :
C51: =Y25&"%" -> 117,1% | H51: 1
H52: 1.2
D54: Reste à faire hebdo par ETP pour atteindre l'obj (K€) | K54: ATTENDU | N54: =IF(ISBLANK($H$2),SUMIF(GEDEL!$A:$A,'Fiche Agence'!$C$2,GEDEL!$F:$F),IF(ISBLANK($N$2),SUMIF(GEDEL!$B:$B,'Fiche Agence'!$H$2,GEDEL!$F:$F),SUMIF(GEDEL!$C:$C,'Fiche Agence'!$N$2,GEDEL!$F:$F))) -> 1278066
D55: S45 | E55: S46 | F55: S47 | G55: S48 | H55: S49 | I55: S50 | K55: DU 1ER SEPTEMBRE AU 18 DECEMBRE
C56: Obj 100% | D56: =(AE29/$Y$5)/6 -> 13.66054078 | E56: =IF(ISNUMBER(D$58),((AF29/$Y$5)/5),D56) -> 15.13197757 | F56: =IF(ISNUMBER(E$58),((AG29/$Y$5)/4),E56) -> 15.99611584 | G56: =IF(ISNUMBER(F$58),((AH29/$Y$5)/3),F56) -> 19.82502115 | H56: =IF(ISNUMBER(G$58),((AI29/$Y$5)/2),G56) -> 26.5368381 | I56: =IF(ISNUMBER(H$58),((AJ29/$Y$5)/1),H56) -> 51.73065927 | K56: REAL DEPUIS LE 01/09 | N56: % SAIS. | T56: RàF total | U56: RàF hebdo
C57: Obj 120% | D57: =(AE30/$Y$5)/6 -> 26.49762593 | E57: =IF(ISNUMBER(D$58),((AF30/$Y$5)/5),D57) -> 30.10318524 | F57: =IF(ISNUMBER(E$58),((AG30/$Y$5)/4),E57) -> 33.57052164 | G57: =IF(ISNUMBER(F$58),((AH30/$Y$5)/3),F57) -> 42.76087469 | H57: =IF(ISNUMBER(G$58),((AI30/$Y$5)/2),G57) -> 59.62701062 | I57: =IF(ISNUMBER(H$58),((AJ30/$Y$5)/1),H57) -> 113.1075131 | K57: ENTITE | M57: PAR ETP | N57: =K58/(N54*(16-Y3)) -> 0.01467842819 | T57: =(N54-K58) -> 977906 | U57: =T57 -> 977906
C58: Réal. / ETP | D58: =IF(ISNUMBER(AF28),((AF28-AE28)/$Y$5),"-") -> 12.78814649 | E58: 14.38967379 | F58: 9.839966421 | G58: 27.03171739 | H58: 9.703099272 | I58: 4.605570694 | K58: =IF(ISBLANK($H$2),SUMIF(GEDEL!$A:$A,'Fiche Agence'!$C$2,GEDEL!$G:$G),IF(ISBLANK($N$2),SUMIF(GEDEL!$B:$B,'Fiche Agence'!$H$2,GEDEL!$G:$G),SUMIF(GEDEL!$C:$C,'Fiche Agence'!$N$2,GEDEL!$G:$G))) -> 300160 | M58: =K58/(IF(ISBLANK($H$2),SUMIF(ETP_Challenge!$A:$A,'Fiche Agence'!$C$2,ETP_Challenge!$E:$E),IF(ISBLANK($N$2),SUMIF(ETP_Challenge!$B:$B,'Fiche Agence'!$H$2,ETP_Challenge!$E:$E),SUMIF(ETP_Challenge!$D:$D,'Fiche Agence'!$N$2,ETP_Challenge!$E:$E)))) -> 2942.481464 | T58: =T57/Y5 -> 9586.45482 | U58: =U57/Y5 -> 9586.45482
C63: ATTENDU | G63: =IF(ISBLANK($H$2),SUMIF(OBJ_PARTS_SOC!$A:$A,'Fiche Agence'!$C$2,OBJ_PARTS_SOC!$I:$I),IF(ISBLANK($N$2),SUMIF(OBJ_PARTS_SOC!$B:$B,'Fiche Agence'!$H$2,OBJ_PARTS_SOC!$I:$I),SUMIF(OBJ_PARTS_SOC!$D:$D,'Fiche Agence'!$N$2,OBJ_PARTS_SOC!$I:$I))) -> 1000000 | J63: REAL DEPUIS LE 01/11 | M63: % SAIS.
J64: ENTITE | L64: PAR ETP | M64: =J65/(G63*(7-Y3)) -> 0.1686314286 | T64: RàF total | U64: RàF hebdo
C65: DU 1ER NOVEMBRE AU 31 DECEMBRE | J65: =IF(ISBLANK($H$2),SUMIF(PROD_AUTO5_PREV_PERI_PART_SOC!$A:$A,'Fiche Agence'!$C$2,PROD_AUTO5_PREV_PERI_PART_SOC!$H:$H),IF(ISBLANK($N$2),SUMIF(PROD_AUTO5_PREV_PERI_PART_SOC!$B:$B,'Fiche Agence'!$H$2,PROD_AUTO5_PREV_PERI_PART_SOC!$H:$H),SUMIF(PROD_AUTO5_PREV_PERI_PART_SOC!$D:$D,'Fiche Agence'!$N$2,PROD_AUTO5_PREV_PERI_PART_SOC!$H:$H))) -> 1180420 | L65: =J65/(IF(ISBLANK($H$2),SUMIF(ETP_Challenge!$A:$A,'Fiche Agence'!$C$2,ETP_Challenge!$E:$E),IF(ISBLANK($N$2),SUMIF(ETP_Challenge!$B:$B,'Fiche Agence'!$H$2,ETP_Challenge!$E:$E),SUMIF(ETP_Challenge!$D:$D,'Fiche Agence'!$N$2,ETP_Challenge!$E:$E)))) -> 11571.70832 | T65: =(G63-J65) -> -180420 | U65: =T65 -> -180420
T66: =T65/Y5 -> -1768.665065 | U66: =U65/Y5 -> -1768.665065
X75: Jauge
X76: 0 - 79% | Z76: 80
X77: 80% - 90% | Z77: 10
X78: 91% - 150% | Z78: 60
Z79: 150
X81: aiguille IARD | Y81: =ROUND((AA82/AB82)*100,1) -> 93.5 | Z81: =IF(Y81>=120,120,Y81) -> 93.5 | AA81: VB IARD | AB81: OBJ TOTAL
X82: largeur | Z82: 1 | AA82: =IF(ISBLANK($H$2),SUMIF('Coller ici dernier suivi PV'!$A:$A,'Fiche Agence'!$C$2,'Coller ici dernier suivi PV'!$BE:$BE),IF(ISBLANK($N$2),SUMIF('Coller ici dernier suivi PV'!$B:$B,'Fiche Agence'!$H$2,'Coller ici dernier suivi PV'!$BE:$BE),SUMIF('Coller ici dernier suivi PV'!$C:$C,'Fiche Agence'!$N$2,'Coller ici dernier suivi PV'!$BE:$BE))) -> 6201.3 | AB82: =Y5*65 -> 6630.594019
X83: part invisible | Z83: =SUM($Z$76:$Z$79)-(Z82+Z81) -> 205.5

Sheet Coller ici dernier suivi PV
A2: REGIONS | B2: TERRITOIRES | C2: AGENCES | D2: ETP Perf moyen annuel | F2: Taux PV sais. (max 9%) | G2: Taux PV annuel (max 9%) | I2: Nb items > 100% de l'objectif sais. | J2: Nb items > 100% de l'objectif annuel | L2: Satisfaction - TS- I Facilité à Joindre | Q2: Ventes brutes Forfaits hors Transformations depuis le 01/01 | AA2: VB Epargne | AK2: CA Assurance Vie (en K€) | AU2: Engagements nets Crédit Conso depuis le 01/01 (en K€) | BE2: IARD & Prévoyance | BO2: Evolution nette Top CC | BY2: RPM
L3: Données arrêtées au 31/10/21 - Tx PV max : 2% | Q3: Au 20/12/21 - Saisonnalité attendue : 100% - Tx PV max : 1% | AA3: Au 20/12/21 - Saisonnalité attendue : 100% - Tx PV max : 1% | AK3: Au 19/12/21 - Saisonnalité attendue : 100% - Tx PV max : 1% | AU3: Au 18/12/21 - Saisonnalité attendue : 100% - Tx PV max : 1,5% | BE3: Au 19/12/21 - Saisonnalité attendue : 100% - Tx PV max : 3% | BO3: Au 19/12/21 - Saisonnalité attendue : 100% - Tx PV max : 0,75% | BY3: Données arrêtées à fin 10/2021 - Tx PV max : 0,25%
L4: Tendance 20 dern. rép. au 20/12 | M4: TS-I moyenne mens. | N4: Obj. | O4: Taux PV | Q4: VB Forf | R4: Réal. / ETP | S4: Obj / ETP | T4: % Réal. | U4: Ecart / 120% de l'attendu | V4: Taux PV sais. | W4: Taux PV | X4: RàF pour 100% | Y4: RàF pour 120% | AA4: VB Epargne Pondérées | AB4: Réal. / ETP | AC4: Obj / ETP | AD4: % Réal. | AE4: Ecart / 120% de l'attendu | AF4: Taux PV sais. | AG4: Taux PV | AH4: RàF pour 100% | AI4: RàF pour 120% | AK4: Chiffre d'Affaires | AL4: Réal. / ETP | AM4: Obj / ETP | AN4: % Réal. | AO4: Ecart / 120% de l'attendu | AP4: Taux PV sais. | AQ4: Taux PV | AR4: RàF pour 100% | AS4: RàF pour 120% | AU4: Engag. nets Conso | AV4: Réal. / ETP | AW4: Obj / ETP | AX4: % Réal. | AY4: Ecart / 120% de l'attendu | AZ4: Taux PV sais. | BA4: Taux PV | BB4: RàF pour 100% | BC4: RàF pour 120% | BE4: VB Iard Prev Pondérées | BF4: Réal. / ETP | BG4: Obj / ETP | BH4: % Réal. | BI4: Ecart / 150% de l'attendu | BJ4: Taux PV sais. | BK4: Taux PV | BL4: RàF pour 90% | BM4: RàF pour 150% | BO4: Evol. CC Verts | BP4: Réal. / ETP | BQ4: Obj / ETP | BR4: % Réal. | BS4: Ecart / 120% de l'attendu | BT4: Taux PV sais. | BU4: Taux PV | BV4: RàF pour 100% | BW4: RàF pour 120% | BY4: Taux trait. RPM | BZ4: Taux trait. Risques Maj. | CA4: Taux pondéré | CB4: Obj | CC4: Taux PV
D5: Au 10/21 | F5: info | G5: info | I5: info | J5: info | CD5: OBJ ASS VIE
A6: AUBE_HAUTE_MARNE | B6: CHAUMONT | C6: CHAUMONT HOTEL DE VILLE | D6: 9.498691815 | F6: 0.05475 | G6: 0.05475 | I6: 6 | J6: 6 | L6: 0.6652698238 | M6: 0.55 | N6: 0.7 | Q6: 468 | R6: 49.26994255 | S6: 36 | T6: 1.368609515 | U6: 57.6565136 | V6: 0.01 | W6: 0.01 | X6: 0 | Y6: 0 | AA6: 1143 | AB6: 120.3323597 | AC6: 200 | AD6: 0.6016617984 | AE6: -1136.686036 | AH6: 757 | AI6: 1137 | AK6: 9032.13707 | AL6: 950.8822105 | AM6: 686.1 | AN6: 1.385923642 | AO6: 1211.674125 | AP6: 0.01 | AQ6: 0.01 | AR6: 0 | AS6: 0 | AU6: 7095.76054 | AV6: 747.0250302 | AW6: 573 | AX6: 1.303708604 | AY6: 564.4600481 | AZ6: 0.015 | BA6: 0.015 | BB6: 0 | BC6: 0 | BE6: 636.8 | BF6: 67.04081071 | BG6: 65 | BH6: 1.031397088 | BI6: -289.322452 | BJ6: 0.00975 | BK6: 0.00975 | BL6: 0 | BM6: 290 | BO6: 984 | BP6: 103.5932125 | BQ6: 78 | BR6: 1.328118109 | BS6: 94.92244613 | BT6: 0.0075 | BU6: 0.0075 | BV6: 0 | BW6: 0 | BY6: 0.9982912132 | BZ6: 1 | CA6: 0.9993164853 | CB6: 0.9 | CC6: 0.0025 | CD6: =D6*AM6 -> 6517.052454
A7: AUBE_HAUTE_MARNE | B7: CHAUMONT | C7: CHAUMONT REPUBLIQUE | D7: 3.338671427 | F7: 0.07538 | G7: 0.07538 | I7: 7 | J7: 7 | L7: 0.82 | M7: 0.721 | N7: 0.7 | O7: 0.003 | Q7: 172 | R7: 51.51749844 | S7: 36 | T7: 1.431041623 | U7: 27.76939437 | V7: 0.01 | W7: 0.01 | X7: 0 | Y7: 0 | AA7: 444 | AB7: 132.9870308 | AC7: 200 | AD7: 0.6649351542 | AE7: -357.2811424 | AH7: 224 | AI7: 358 | AK7: 3153.39699 | AL7: 944.5065378 | AM7: 612 | AN7: 1.543311336 | AO7: 701.4766942 | AP7: 0.01 | AQ7: 0.01 | AR7: 0 | AS7: 0 | AU7: 2505.24413 | AV7: 750.3715729 | AW7: 573 | AX7: 1.309548993 | AY7: 209.573657 | AZ7: 0.015 | BA7: 0.015 | BB7: 0 | BC7: 0 | BE7: 309.4 | BF7: 92.67159312 | BG7: 65 | BH7: 1.425716817 | BI7: -16.1204641 | BJ7: 0.02738 | BK7: 0.02738 | BL7: 0 | BM7: 17 | BO7: 367 | BP7: 109.9239647 | BQ7: 78 | BR7: 1.409281599 | BS7: 54.50035446 | BT7: 0.0075 | BU7: 0.0075 | BV7: 0 | BW7: 0 | BY7: 0.9983027834 | BZ7: 1 | CA7: 0.9993211134 | CB7: 0.9 | CC7: 0.0025 | CD7: =D7*AM7 -> 2043.266913
A8: AUBE_HAUTE_MARNE | B8: CHAUMONT | C8: JOINVILLE | D8: 1.875699856 | F8: 0.077 | G8: 0.077 | I8: 7 | J8: 7 | L8: 0.83 | M8: 0.798 | N8: 0.7 | O8: 0.014 | Q8: 94 | R8: 50.11462773 | S8: 36 | T8: 1.392072992 | U8: 12.96976623 | V8: 0.01 | W8: 0.01 | X8: 0 | Y8: 0 | AA8: 215 | AB8: 114.6238826 | AC8: 200 | AD8: 0.5731194129 | AE8: -235.1679654 | AH8: 161 | AI8: 236 | AK8: 1407.56021 | AL8: 750.4186801 | AM8: 612 | AN8: 1.226174314 | AO8: 30.04623597 | AP8: 0.01 | AQ8: 0.01 | AR8: 0 | AS8: 0 | AU8: 1318.27766 | AV8: 702.819087 | AW8: 573 | AX8: 1.226560361 | AY8: 28.54643922 | AZ8: 0.015 | BA8: 0.015 | BB8: 0 | BC8: 0 | BE8: 143.3 | BF8: 76.39815057 | BG8: 65 | BH8: 1.175356163 | BI8: -39.58073593 | BJ8: 0.018 | BK8: 0.018 | BL8: 0 | BM8: 40 | BO8: 193 | BP8: 102.8949271 | BQ8: 78 | BR8: 1.319165733 | BS8: 17.43449351 | BT8: 0.0075 | BU8: 0.0075 | BV8: 0 | BW8: 0 | BY8: 0.9996240602 | BZ8: 1 | CA8: 0.9998496241 | CB8: 0.9 | CC8: 0.0025 | CD8: 1147.928312
A9: AUBE_HAUTE_MARNE | B9: CHAUMONT | C9: LANGRES | D9: 9.062027015 | F9: 0.06338 | G9: 0.06338 | I9: 6 | J9: 6 | L9: 0.5480370146 | M9: 0.666 | N9: 0.7 | Q9: 403 | R9: 44.47128654 | S9: 36 | T9: 1.235313515 | U9: 11.52043295 | V9: 0.01 | W9: 0.01 | X9: 0 | Y9: 0 | AA9: 1605 | AB9: 177.112692 | AC9: 200 | AD9: 0.8855634602 | AE9: -569.8864836 | AH9: 208 | AI9: 570 | AK9: 8256.01087 | AL9: 911.0556453 | AM9: 694.2 | AN9: 1.312382088 | AO9: 706.9798853 | AP9: 0.01 | AQ9: 0.01 | AR9: 0 | AS9: 0 | AU9: 6260.66561 | AV9: 690.8681247 | AW9: 573 | AX9: 1.205703534 | AY9: 29.61583442 | AZ9: 0.015 | BA9: 0.015 | BB9: 0 | BC9: 0 | BE9: 702.4 | BF9: 77.51025227 | BG9: 65 | BH9: 1.19246542 | BI9: -181.147634 | BJ9: 0.01838 | BK9: 0.01838 | BL9: 0 | BM9: 182 | BO9: 861 | BP9: 95.01185536 | BQ9: 78 | BR9: 1.21810071 | BS9: 12.79427139 | BT9: 0.0075 | BU9: 0.0075 | BV9: 0 | BW9: 0 | BY9: 0.9960521799 | BZ9: 1 | CA9: 0.998420872 | CB9: 0.9 | CC9: 0.0025 | CD9: 6290.859154
A10: AUBE_HAUTE_MARNE | B10: CHAUMONT | C10: SAINT DIZIER CENTRE | D10: 9.131679878 | F10: 0.0585 | G10: 0.0585 | I10: 6 | J10: 6 | L10: 0.6019160244 | M10: 0.55 | N10: 0.7 | Q10: 458 | R10: 50.15506524 | S10: 36 | T10: 1.393196257 | U10: 63.51142927 | V10: 0.01 | W10: 0.01 | X10: 0 | Y10: 0 | AA10: 1427 | AB10: 156.2691661 | AC10: 200 | AD10: 0.7813458307 | AE10: -764.6031707 | AH10: 400 | AI10: 765 | AK10: 9791.15037 | AL10: 1072.217872 | AM10: 633.5 | AN10: 1.692530185 | AO10: 2849.247327 | AP10: 0.01 | AQ10: 0.01 | AR10: 0 | AS10: 0 | AU10: 6469.25781 | AV10: 708.4411517 | AW10: 573 | AX10: 1.236371993 | AY10: 190.3147259 | AZ10: 0.015 | BA10: 0.015 | BB10: 0 | BC10: 0 | BE10: 643.1 | BF10: 70.4251582 | BG10: 65 | BH10: 1.083463972 | BI10: -247.2387881 | BJ10: 0.0135 | BK10: 0.0135 | BL10: 0 | BM10: 248 | BO10: 947 | BP10: 103.7049056 | BQ10: 78 | BR10: 1.329550072 | BS10: 92.27476342 | BT10: 0.0075 | BU10: 0.0075 | BV10: 0 | BW10: 0 | BY10: 0.9965816704 | BZ10: 1 | CA10: 0.9986326681 | CB10: 0.9 | CC10: 0.0025 | CD10: 5784.919203
A11: AUBE_HAUTE_MARNE | B11: CHAUMONT | C11: WASSY | D11: 1.954169961 | F11: 0.06875 | G11: 0.06875 | I11: 7 | J11: 7 | L11: 0.47 | M11: 0.62 | N11: 0.7 | Q11: 111 | R11: 56.80161002 | S11: 36 | T11: 1.5778225 | U11: 26.57985771 | V11: 0.01 | W11: 0.01 | X11: 0 | Y11: 0 | AA11: 408 | AB11: 208.7842963 | AC11: 200 | AD11: 1.043921481 | AE11: -61.00079052 | AF11: 0.002 | AG11: 0.002 | AH11: 0 | AI11: 62 | AK11: 1619.37242 | AL11: 828.6753214 | AM11: 618 | AN11: 1.340898578 | AO11: 170.1599773 | AP11: 0.01 | AQ11: 0.01 | AR11: 0 | AS11: 0 | AU11: 1592.09223 | AV11: 814.7153329 | AW11: 573 | AX11: 1.421841768 | AY11: 248.4049652 | AZ11: 0.015 | BA11: 0.015 | BB11: 0 | BC11: 0 | BE11: 163 | BF11: 83.41137327 | BG11: 65 | BH11: 1.283251896 | BI11: -27.53157115 | BJ11: 0.02175 | BK11: 0.02175 | BL11: 0 | BM11: 28 | BO11: 260 | BP11: 133.0488163 | BQ11: 78 | BR11: 1.705754055 | BS11: 77.0896917 | BT11: 0.0075 | BU11: 0.0075 | BV11: 0 | BW11: 0 | BY11: 0.9969530774 | BZ11: 1 | CA11: 0.998781231 | CB11: 0.9 | CC11: 0.0025 | CD11: 1207.677036
A12: AUBE_HAUTE_MARNE | B12: TROYES | C12: ARCIS SUR AUBE | D12: 3.843910534 | F12: 0.028 | G12: 0.028 | I12: 5 | J12: 5 | L12: 0.47 | M12: 0.492 | N12: 0.7 | Q12: 147 | R12: 38.24230525 | S12: 36 | T12: 1.062286257 | U12: -19.05693506 | V12: 0.003 | W12: 0.003 | X12: 0 | Y12: 20 | AA12: 501 | AB12: 130.3360199 | AC12: 200 | AD12: 0.6516800997 | AE12: -421.5385281 | AH12: 268 | AI12: 422 | AK12: 2459.01428 | AL12: 639.7168348 | AM12: 692.7 | AN12: 0.9235121045 | AO12: -736.1979122 | AR12: 204 | AS12: 737 | AU12: 2382.46638 | AV12: 619.8027657 | AW12: 573 | AX12: 1.081680219 | AY12: -260.6065031 | AZ12: 0.006 | BA12: 0.006 | BB12: 0 | BC12: 261 | BE12: 254 | BF12: 66.07854105 | BG12: 65 | BH12: 1.016592939 | BI12: -120.7812771 | BJ12: 0.009 | BK12: 0.009 | BL12: 0 | BM12: 121 | BO12: 436 | BP12: 113.4261571 | BQ12: 78 | BR12: 1.454181501 | BS12: 76.20997403 | BT12: 0.0075 | BU12: 0.0075 | BV12: 0 | BW12: 0 | BY12: 0.9963425785 | BZ12: 1 | CA12: 0.9985370314 | CB12: 0.9 | CC12: 0.0025 | CD12: 2662.676827
A13: AUBE_HAUTE_MARNE | B13: TROYES | C13: BAR SUR AUBE | D13: 5.867908579 | F13: 0.05575 | G13: 0.05575 | I13: 6 | J13: 6 | L13: 0.710059976 | M13: 0.749 | N13: 0.7 | O13: 0.007 | Q13: 252 | R13: 42.94545435 | S13: 36 | T13: 1.192929287 | U13: -1.493650613 | V13: 0.0095 | W13: 0.0095 | X13: 0 | Y13: 2 | AA13: 539 | AB13: 91.85555513 | AC13: 200 | AD13: 0.4592777757 | AE13: -869.298059 | AH13: 635 | AI13: 870 | AK13: 3355.8469 | AL13: 571.898293 | AM13: 648.5 | AN13: 0.8818786323 | AO13: -1210.559556 | AR13: 450 | AS13: 1211 | AU13: 4076.45013 | AV13: 694.7023927 | AW13: 573 | AX13: 1.212395101 | AY13: 41.67619108 | AZ13: 0.015 | BA13: 0.015 | BB13: 0 | BC13: 0 | BE13: 415.7 | BF13: 70.84295783 | BG13: 65 | BH13: 1.089891659 | BI13: -156.4210865 | BJ13: 0.01425 | BK13: 0.01425 | BL13: 0 | BM13: 157 | BO13: 616 | BP13: 104.9777773 | BQ13: 78 | BR13: 1.34586894 | BS13: 66.76375701 | BT13: 0.0075 | BU13: 0.0075 | BV13: 0 | BW13: 0 | BY13: 0.9972138877 | BZ13: 1 | CA13: 0.9988855551 | CB13: 0.9 | CC13: 0.0025 | CD13: 3805.338713
A14: AUBE_HAUTE_MARNE | B14: TROYES | C14: BAR SUR SEINE | D14: 3.568710898 | F14: 0.040625 | G14: 0.040625 | I14: 5 | J14: 5 | L14: 0.59 | M14: 0.538 | N14: 0.7 | Q14: 147 | R14: 41.1913445 | S14: 36 | T14: 1.144204014 | U14: -7.168310789 | V14: 0.007 | W14: 0.007 | X14: 0 | Y14: 8 | AA14: 297 | AB14: 83.22332867 | AC14: 200 | AD14: 0.4161166434 | AE14: -559.4906155 | AH14: 417 | AI14: 560 | AK14: 2088.23667 | AL14: 585.1515378 | AM14: 700.2 | AN14: 0.8356919992 | AO14: -910.3369749 | AR14: 411 | AS14: 911 | AU14: 2781.13371 | AV14: 779.310454 | AW14: 573 | AX14: 1.360053148 | AY14: 327.2880966 | AZ14: 0.015 | BA14: 0.015 | BB14: 0 | BC14: 0 | BE14: 246.4 | BF14: 69.04453934 | BG14: 65 | BH14: 1.062223682 | BI14: -101.5493125 | BJ14: 0.012 | BK14: 0.012 | BL14: 0 | BM14: 102 | BO14: 309 | BP14: 86.58588741 | BQ14: 78 | BR14: 1.11007548 | BS14: -25.03134004 | BT14: 0.004125 | BU14: 0.004125 | BV14: 0 | BW14: 26 | BY14: 0.9970104634 | BZ14: 1 | CA14: 0.9988041854 | CB14: 0.9 | CC14: 0.0025 | CD14: 2498.811371
A15: AUBE_HAUTE_MARNE | B15: TROYES | C15: LA CHAPELLE ST LUC | D15: 5.712697889 | F15: 0.0425 | G15: 0.0425 | I15: 4 | J15: 4 | L15: 0.4056988235 | M15: 0.377 | N15: 0.7 | Q15: 298 | R15: 52.16449492 | S15: 36 | T15: 1.449013748 | U15: 51.21145122 | V15: 0.01 | W15: 0.01 | X15: 0 | Y15: 0 | AA15: 644 | AB15: 112.7313246 | AC15: 200 | AD15: 0.563656623 | AE15: -727.0474932 | AH15: 499 | AI15: 728 | AK15: 2604.25857 | AL15: 455.8719227 | AM15: 617.2 | AN15: 0.7386129661 | AO15: -1626.793994 | AR15: 922 | AS15: 1627 | AU15: 3181.84863 | AV15: 556.9782775 | AW15: 573 | AX15: 0.9720388788 | AY15: -746.2024381 | BB15: 92 | BC15: 747 | BE15: 481.3 | BF15: 84.25091076 | BG15: 65 | BH15: 1.296167858 | BI15: -75.68804413 | BJ15: 0.0225 | BK15: 0.0225 | BL15: 0 | BM15: 76 | BO15: 667 | BP15: 116.7574433 | BQ15: 78 | BR15: 1.496890299 | BS15: 132.2914776 | BT15: 0.0075 | BU15: 0.0075 | BV15: 0 | BW15: 0 | BY15: 0.9987280296 | BZ15: 1 | CA15: 0.9994912118 | CB15: 0.9 | CC15: 0.0025 | CD15: 3525.877137
A16: AUBE_HAUTE_MARNE | B16: TROYES | C16: NOGENT SUR SEINE | D16: 4.690200866 | F16: 0.029 | G16: 0.029 | I16: 6 | J16: 6 | L16: 0.8 | M16: 0.768 | N16: 0.7 | O16: 0.009 | Q16: 171 | R16: 36.45899289 | S16: 36 | T16: 1.012749802 | U16: -31.6166774 | V16: 0.0005 | W16: 0.0005 | X16: 0 | Y16: 32 | AA16: 477 | AB16: 101.7014012 | AC16: 200 | AD16: 0.508507006 | AE16: -648.6482078 | AH16: 462 | AI16: 649 | AK16: 3642.71533 | AL16: 776.6651012 | AM16: 687.6 | AN16: 1.129530397 | AO16: -227.2632084 | AP16: 0.0065 | AQ16: 0.0065 | AR16: 0 | AS16: 228 | AU16: 2797.74094 | AV16: 596.5077019 | AW16: 573 | AX16: 1.041025658 | AY16: -427.2411753 | AZ16: 0.003 | BA16: 0.003 | BB16: 0 | BC16: 428 | BE16: 173.7 | BF16: 37.03466119 | BG16: 65 | BH16: 0.5697640184 | BI16: -283.5945844 | BL16: 101 | BM16: 284 | BO16: 569 | BP16: 121.3167658 | BQ16: 78 | BR16: 1.555343151 | BS16: 129.997199 | BT16: 0.0075 | BU16: 0.0075 | BV16: 0 | BW16: 0 | BY16: 0.9974541752 | BZ16: 1 | CA16: 0.9989816701 | CB16: 0.9 | CC16: 0.0025 | CD16: 3224.982115
A17: AUBE_HAUTE_MARNE | B17: TROYES | C17: ROMILLY SUR SEINE | D17: 7.358695698 | F17: 0.02425 | G17: 0.02425 | I17: 5 | J17: 5 | L17: 0.4 | M17: 0.643 | N17: 0.7 | Q17: 305 | R17: 41.44756252 | S17: 36 | T17: 1.151321181 | U17: -12.89565416 | V17: 0.0075 | W17: 0.0075 | X17: 0 | Y17: 13 | AA17: 824 | AB17: 111.9763656 | AC17: 200 | AD17: 0.5598818281 | AE17: -942.0869675 | AH17: 648 | AI17: 943 | AK17: 5114.83105 | AL17: 695.0730482 | AM17: 639.5 | AN17: 1.086900779 | AO17: -532.2320287 | AP17: 0.0045 | AQ17: 0.0045 | AR17: 0 | AS17: 533 | AU17: 4363.81409 | AV17: 593.0146141 | AW17: 573 | AX17: 1.034929519 | AY17: -696.025072 | AZ17: 0.00225 | BA17: 0.00225 | BB17: 0 | BC17: 697 | BE17: 305.8 | BF17: 41.55627744 | BG17: 65 | BH17: 0.6393273452 | BI17: -411.6728306 | BL17: 125 | BM17: 412 | BO17: 837 | BP17: 113.742983 | BQ17: 78 | BR17: 1.458243372 | BS17: 148.2260827 | BT17: 0.0075 | BU17: 0.0075 | BV17: 0 | BW17: 0 | BY17: 0.9954198473 | BZ17: 1 | CA17: 0.9981679389 | CB17: 0.9 | CC17: 0.0025 | CD17: 4705.885899
A18: AUBE_HAUTE_MARNE | B18: TROYES | C18: SAINT ANDRE LES VERGERS | D18: 3.862114386 | F18: 0.045 | G18: 0.045 | I18: 5 | J18: 5 | L18: 0 | M18: 0.375 | N18: 0.7 | Q18: 211 | R18: 54.63328605 | S18: 36 | T18: 1.517591279 | U18: 44.15665853 | V18: 0.01 | W18: 0.01 | X18: 0 | Y18: 0 | AA18: 448 | AB18: 115.9986358 | AC18: 200 | AD18: 0.5799931789 | AE18: -478.9074526 | AH18: 325 | AI18: 479 | AK18: 5782.14155 | AL18: 1497.144044 | AM18: 724.7 | AN18: 2.065881115 | AO18: 2423.492396 | AP18: 0.01 | AQ18: 0.01 | AR18: 0 | AS18: 0 | AU18: 2953.87842 | AV18: 764.8345245 | AW18: 573 | AX18: 1.334789746 | AY18: 298.2885683 | AZ18: 0.015 | BA18: 0.015 | BB18: 0 | BC18: 0 | BE18: 178.3 | BF18: 46.16642134 | BG18: 65 | BH18: 0.710252636 | BI18: -198.2561526 | BL18: 48 | BM18: 199 | BO18: 420 | BP18: 108.748721 | BQ18: 78 | BR18: 1.394214372 | BS18: 58.50609349 | BT18: 0.0075 | BU18: 0.0075 | BV18: 0 | BW18: 0 | BY18: 0.9982090889 | BZ18: 1 | CA18: 0.9992836355 | CB18: 0.9 | CC18: 0.0025 | CD18: 2798.874295
A19: AUBE_HAUTE_MARNE | B19: TROYES | C19: SAINTE SAVINE | D19: 4.986288896 | F19: 0.01 | G19: 0.01 | I19: 2 | J19: 2 | L19: 0.44 | M19: 0.573 | N19: 0.7 | Q19: 159 | R19: 31.88744241 | S19: 36 | T19: 0.8857622892 | U19: -56.40768029 | X19: 21 | Y19: 57 | AA19: 422 | AB19: 84.63207985 | AC19: 200 | AD19: 0.4231603993 | AE19: -774.709335 | AH19: 576 | AI19: 775 | AK19: 2432.13732 | AL19: 487.7650234 | AM19: 808.4 | AN19: 0.603370885 | AO19: -2404.961812 | AR19: 1599 | AS19: 2405 | AU19: 2420.26788 | AV19: 485.3846078 | AW19: 573 | AX19: 0.8470935564 | AY19: -1008.304365 | BB19: 437 | BC19: 1009 | BE19: 176.8 | BF19: 35.45723156 | BG19: 65 | BH19: 0.5454958702 | BI19: -309.3631673 | BL19: 115 | BM19: 310 | BO19: 517 | BP19: 103.6843253 | BQ19: 78 | BR19: 1.329286222 | BS19: 50.28335936 | BT19: 0.0075 | BU19: 0.0075 | BV19: 0 | BW19: 0 | BY19: 0.9972385862 | BZ19: 1 | CA19: 0.9988954345 | CB19: 0.9 | CC19: 0.0025 | CD19: 4030.915943
A20: AUBE_HAUTE_MARNE | B20: TROYES | C20: SAINT JULIEN LES VILLAS | D20: 4.70601173 | F20: 0.036 | G20: 0.036 | I20: 5 | J20: 5 | L20: 0.25 | M20: 0.312 | N20: 0.7 | Q20: 249 | R20: 52.91104533 | S20: 36 | T20: 1.469751259 | U20: 45.70029326 | V20: 0.01 | W20: 0.01 | X20: 0 | Y20: 0 | AA20: 671 | AB20: 142.58358 | AC20: 200 | AD20: 0.7129179 | AE20: -458.4428152 | AH20: 271 | AI20: 459 | AK20: 4575.28971 | AL20: 972.2223344 | AM20: 738.6 | AN20: 1.316304271 | AO20: 404.2573933 | AP20: 0.01 | AQ20: 0.01 | AR20: 0 | AS20: 0 | AU20: 2898.88208 | AV20: 615.9955066 | AW20: 573 | AX20: 1.075035788 | AY20: -336.9715857 | AZ20: 0.006 | BA20: 0.006 | BB20: 0 | BC20: 337 | BE20: 207.8 | BF20: 44.15628603 | BG20: 65 | BH20: 0.6793274773 | BI20: -251.0361437 | BL20: 68 | BM20: 252 | BO20: 468 | BP20: 99.44726593 | BQ20: 78 | BR20: 1.274964948 | BS20: 27.51730205 | BT20: 0.0075 | BU20: 0.0075 | BV20: 0 | BW20: 0 | BY20: 0.9934585356 | BZ20: 1 | CA20: 0.9973834142 | CB20: 0.9 | CC20: 0.0025 | CD20: 3475.860264
A21: AUBE_HAUTE_MARNE | B21: TROYES | C21: TROYES 1ER MAI | D21: 3.375942676 | F21: 0.05175 | G21: 0.05175 | I21: 6 | J21: 6 | L21: 0.38 | M21: 0.186 | N21: 0.7 | Q21: 214 | R21: 63.38970195 | S21: 36 | T21: 1.760825054 | U21: 68.15927641 | V21: 0.01 | W21: 0.01 | X21: 0 | Y21: 0 | AA21: 473 | AB21: 140.1090141 | AC21: 200 | AD21: 0.7005450706 | AE21: -337.2262421 | AH21: 203 | AI21: 338 | AK21: 3103.80978 | AL21: 919.3905461 | AM21: 612 | AN21: 1.502272134 | AO21: 624.517479 | AP21: 0.01 | AQ21: 0.01 | AR21: 0 | AS21: 0 | AU21: 2113.85204 | AV21: 626.1516391 | AW21: 573 | AX21: 1.092760278 | AY21: -207.4461437 | AZ21: 0.00675 | BA21: 0.00675 | BB21: 0 | BC21: 208 | BE21: 240.8 | BF21: 71.32822537 | BG21: 65 | BH21: 1.097357313 | BI21: -88.35441087 | BJ21: 0.015 | BK21: 0.015 | BL21: 0 | BM21: 89 | BO21: 418 | BP21: 123.8172683 | BQ21: 78 | BR21: 1.587400876 | BS21: 102.0117656 | BT21: 0.0075 | BU21: 0.0075 | BV21: 0 | BW21: 0 | BY21: 0.9981099656 | BZ21: 1 | CA21: 0.9992439863 | CB21: 0.9 | CC21: 0.0025 | CD21: 2066.076917
A22: AUBE_HAUTE_MARNE | B22: TROYES | C22: TROYES BROSSOLETTE | D22: 1.597364195 | F22: 0.045375 | G22: 0.045375 | I22: 6 | J22: 6 | L22: 0.16 | M22: 0.61 | N22: 0.7 | Q22: 71 | R22: 44.44822303 | S22: 36 | T22: 1.234672862 | U22: 1.99386678 | V22: 0.01 | W22: 0.01 | X22: 0 | Y22: 0 | AA22: 302 | AB22: 189.0614557 | AC22: 200 | AD22: 0.9453072786 | AE22: -81.36740678 | AH22: 18 | AI22: 82 | AK22: 1448.77796 | AL22: 906.9803647 | AM22: 694.9 | AN22: 1.305195517 | AO22: 116.7679052 | AP22: 0.01 | AQ22: 0.01 | AR22: 0 | AS22: 0 | AU22: 994.66509 | AV22: 622.6914896 | AW22: 573 | AX22: 1.086721622 | AY22: -103.6825304 | AZ22: 0.00675 | BA22: 0.00675 | BB22: 0 | BC22: 104 | BE22: 107.7 | BF22: 67.42357212 | BG22: 65 | BH22: 1.037285725 | BI22: -48.043009 | BJ22: 0.0105 | BK22: 0.0105 | BL22: 0 | BM22: 49 | BO22: 143 | BP22: 89.52247738 | BQ22: 78 | BR22: 1.147724069 | BS22: -6.513288643 | BT22: 0.005625 | BU22: 0.005625 | BV22: 0 | BW22: 7 | BY22: 0.9986263736 | BZ22: 1 | CA22: 0.9994505495 | CB22: 0.9 | CC22: 0.0025 | CD22: 1110.008379
A23: AUBE_HAUTE_MARNE | B23: TROYES | C23: TROYES CHARTREUX | D23: 2.81190797 | F23: 0.018125 | G23: 0.018125 | I23: 3 | J23: 3 | L23: 0.42 | M23: 0.632 | N23: 0.7 | Q23: 124 | R23: 44.09817154 | S23: 36 | T23: 1.224949209 | U23: 2.525575713 | V23: 0.01 | W23: 0.01 | X23: 0 | Y23: 0 | AA23: 185 | AB23: 65.7916269 | AC23: 200 | AD23: 0.3289581345 | AE23: -489.8579127 | AH23: 378 | AI23: 490 | AK23: 791.61813 | AL23: 281.5234846 | AM23: 634.3 | AN23: 0.4438333353 | AO23: -1348.69374 | AR23: 992 | AS23: 1349 | AU23: 1448.38011 | AV23: 515.0880205 | AW23: 573 | AX23: 0.898931973 | AY23: -485.0878099 | BB23: 163 | BC23: 486 | BE23: 106 | BF23: 37.69682406 | BG23: 65 | BH23: 0.5799511394 | BI23: -168.161027 | BL23: 59 | BM23: 169 | BO23: 252 | BP23: 89.61886474 | BQ23: 78 | BR23: 1.148959804 | BS23: -11.19458595 | BT23: 0.005625 | BU23: 0.005625 | BV23: 0 | BW23: 12 | BY23: 0.9998582365 | BZ23: 1 | CA23: 0.9999432946 | CB23: 0.9 | CC23: 0.0025 | CD23: 1783.593225
A24: AUBE_HAUTE_MARNE | B24: TROYES | C24: TROYES GAMBETTA | D24: 9.737554113 | F24: 0.024 | G24: 0.024 | I24: 4 | J24: 4 | L24: 0.56 | M24: 0.567 | N24: 0.7 | Q24: 482 | R24: 49.49908308 | S24: 36 | T24: 1.37497453 | U24: 61.33766234 | V24: 0.01 | W24: 0.01 | X24: 0 | Y24: 0 | AA24: 1059 | AB24: 108.7542095 | AC24: 200 | AD24: 0.5437710475 | AE24: -1278.012987 | AH24: 889 | AI24: 1279 | AK24: 8313.79451 | AL24: 853.7867327 | AM24: 789.8 | AN24: 1.081016375 | AO24: -915.0697758 | AP24: 0.004 | AQ24: 0.004 | AR24: 0 | AS24: 916 | AU24: 4869.87542 | AV24: 500.1127967 | AW24: 573 | AX24: 0.8727972019 | AY24: -1825.666788 | BB24: 710 | BC24: 1826 | BE24: 450.8 | BF24: 46.29499305 | BG24: 65 | BH24: 0.7122306624 | BI24: -498.611526 | BL24: 119 | BM24: 499 | BO24: 1265 | BP24: 129.9094193 | BQ24: 78 | BR24: 1.665505375 | BS24: 353.5649351 | BT24: 0.0075 | BU24: 0.0075 | BV24: 0 | BW24: 0 | BY24: 0.9973664806 | BZ24: 1 | CA24: 0.9989465922 | CB24: 0.9 | CC24: 0.0025 | CD24: 7690.720238
A25: AUBE_HAUTE_MARNE | B25: TROYES | C25: TROYES ZOLA | D25: 4.903090453 | F25: 0.02225 | G25: 0.02225 | I25: 4 | J25: 4 | L25: 0.72 | M25: 0.317 | N25: 0.7 | Q25: 223 | R25: 45.48151867 | S25: 36 | T25: 1.263375519 | U25: 11.18649243 | V25: 0.01 | W25: 0.01 | X25: 0 | Y25: 0 | AA25: 378 | AB25: 77.09423345 | AC25: 200 | AD25: 0.3854711672 | AE25: -798.7417087 | AH25: 603 | AI25: 799 | AK25: 2814.98719 | AL25: 574.1250782 | AM25: 713.7 | AN25: 0.804434746 | AO25: -1384.215598 | AR25: 685 | AS25: 1385 | AU25: 2901.10088 | AV25: 591.6882235 | AW25: 573 | AX25: 1.032614701 | AY25: -470.2641156 | AZ25: 0.00225 | BA25: 0.00225 | BB25: 0 | BC25: 471 | BE25: 258.2 | BF25: 52.66066422 | BG25: 65 | BH25: 0.810164065 | BI25: -219.8513192 | BL25: 29 | BM25: 220 | BO25: 562 | BP25: 114.6215852 | BQ25: 78 | BR25: 1.469507502 | BS25: 103.0707336 | BT25: 0.0075 | BU25: 0.0075 | BV25: 0 | BW25: 0 | BY25: 0.9985421622 | BZ25: 1 | CA25: 0.9994168649 | CB25: 0.9 | CC25: 0.0025 | CD25: 3499.335656
A26: BAS_RHIN | B26: HAGUENAU | C26: BISCHWILLER | D26: 6.845747823 | F26: 0.029 | G26: 0.029 | I26: 6 | J26: 6 | L26: 0.6895289659 | M26: 0.475 | N26: 0.7 | Q26: 334 | R26: 48.78941039 | S26: 36 | T26: 1.3552614 | U26: 38.26369402 | V26: 0.01 | W26: 0.01 | X26: 0 | Y26: 0 | AA26: 783 | AB26: 114.3775699 | AC26: 200 | AD26: 0.5718878494 | AE26: -859.9794776 | AH26: 587 | AI26: 860 | AK26: 5621.16079 | AL26: 821.1171277 | AM26: 716.4 | AN26: 1.146171312 | AO26: -263.9916989 | AP26: 0.0075 | AQ26: 0.0075 | AR26: 0 | AS26: 264 | AU26: 3962.33917 | AV26: 578.8029697 | AW26: 573 | AX26: 1.010127347 | AY26: -744.7970334 | AZ26: 0.00075 | BA26: 0.00075 | BB26: 0 | BC26: 745 | BE26: 401.5 | BF26: 58.64954573 | BG26: 65 | BH26: 0.9023007035 | BI26: -265.9604128 | BJ26: 0.00075 | BK26: 0.00075 | BL26: 0 | BM26: 266 | BO26: 826 | BP26: 120.6588413 | BQ26: 78 | BR26: 1.546908221 | BS26: 185.2380037 | BT26: 0.0075 | BU26: 0.0075 | BV26: 0 | BW26: 0 | BY26: 0.9992240041 | BZ26: 1 | CA26: 0.9996896017 | CB26: 0.9 | CC26: 0.0025 | CD26: 4904.293741
A27: BAS_RHIN | B27: HAGUENAU | C27: BOUXWILLER | D27: 2.686334776 | F27: 0.0495 | G27: 0.0495 | I27: 6 | J27: 6 | L27: 0.84 | M27: 0.68 | N27: 0.7 | Q27: 131 | R27: 48.76532931 | S27: 36 | T27: 1.354592481 | U27: 14.95033766 | V27: 0.01 | W27: 0.01 | X27: 0 | Y27: 0 | AA27: 323 | AB27: 120.2381784 | AC27: 200 | AD27: 0.6011908918 | AE27: -321.7203463 | AH27: 215 | AI27: 322 | AK27: 2344.26043 | AL27: 872.6613118 | AM27: 744 | AN27: 1.172931871 | AO27: -54.09925837 | AP27: 0.0085 | AQ27: 0.0085 | AR27: 0 | AS27: 55 | AU27: 1951.05699 | AV27: 726.2895925 | AW27: 573 | AX27: 1.267521104 | AY27: 103.9331977 | AZ27: 0.015 | BA27: 0.015 | BB27: 0 | BC27: 0 | BE27: 171.5 | BF27: 63.84163341 | BG27: 65 | BH27: 0.9821789755 | BI27: -90.4176407 | BJ27: 0.006 | BK27: 0.006 | BL27: 0 | BM27: 91 | BO27: 375 | BP27: 139.5954083 | BQ27: 78 | BR27: 1.789684722 | BS27: 123.5590649 | BT27: 0.0075 | BU27: 0.0075 | BV27: 0 | BW27: 0 | BY27: 0.9989086941 | BZ27: 1 | CA27: 0.9995634776 | CB27: 0.9 | CC27: 0.0025 | CD27: 1998.633074
A28: BAS_RHIN | B28: HAGUENAU | C28: BRUMATH | D28: 5.452505286 | F28: 0.04425 | G28: 0.04425 | I28: 5 | J28: 5 | L28: 0.65 | M28: 0.632 | N28: 0.7 | Q28: 255 | R28: 46.76749249 | S28: 36 | T28: 1.299097014 | U28: 19.45177165 | V28: 0.01 | W28: 0.01 | X28: 0 | Y28: 0 | AA28: 795 | AB28: 145.8045354 | AC28: 200 | AD28: 0.729022677 | AE28: -513.6012686 | AH28: 296 | AI28: 514 | AK28: 5494.9714 | AL28: 1007.788367 | AM28: 828 | AN28: 1.217135709 | AO28: 77.36214793 | AP28: 0.01 | AQ28: 0.01 | AR28: 0 | AS28: 0 | AU28: 3713.21656 | AV28: 681.0110885 | AW28: 573 | AX28: 1.188501027 | AY28: -35.92607458 | AZ28: 0.01425 | BA28: 0.01425 | BB28: 0 | BC28: 36 | BE28: 254 | BF28: 46.58409056 | BG28: 65 | BH28: 0.7166783163 | BI28: -277.6192654 | BL28: 65 | BM28: 278 | BO28: 938 | BP28: 172.0310116 | BQ28: 78 | BR28: 2.20552579 | BS28: 427.6455052 | BT28: 0.0075 | BU28: 0.0075 | BV28: 0 | BW28: 0 | BY28: 0.9983566146 | BZ28: 1 | CA28: 0.9993426459 | CB28: 0.9 | CC28: 0.0025 | CD28: 4514.674377
A29: BAS_RHIN | B29: HAGUENAU | C29: HAGUENAU HOUBLON | D29: 10.32145332 | F29: 0.028 | G29: 0.028 | I29: 4 | J29: 4 | L29: 0.5520797448 | M29: 0.428 | N29: 0.7 | Q29: 450 | R29: 43.5985114 | S29: 36 | T29: 1.211069761 | U29: 4.113216766 | V29: 0.01 | W29: 0.01 | X29: 0 | Y29: 0 | AA29: 1262 | AB29: 122.2696031 | AC29: 200 | AD29: 0.6113480153 | AE29: -1215.148796 | AH29: 803 | AI29: 1216 | AK29: 9843.01476 | AL29: 953.6462026 | AM29: 823.9 | AN29: 1.157478095 | AO29: -361.5997041 | AP29: 0.008 | AQ29: 0.008 | AR29: 0 | AS29: 362 | AU29: 5812.43425 | AV29: 563.1410686 | AW29: 573 | AX29: 0.9827941861 | AY29: -1284.59705 | BB29: 102 | BC29: 1285 | BE29: 494.2 | BF29: 47.88085407 | BG29: 65 | BH29: 0.7366285242 | BI29: -512.1416983 | BL29: 110 | BM29: 513 | BO29: 1357 | BP29: 131.4737333 | BQ29: 78 | BR29: 1.685560683 | BS29: 390.9119697 | BT29: 0.0075 | BU29: 0.0075 | BV29: 0 | BW29: 0 | BY29: 0.9977896696 | BZ29: 1 | CA29: 0.9991158678 | CB29: 0.9 | CC29: 0.0025 | CD29: 8503.845387
A30: BAS_RHIN | B30: HAGUENAU | C30: HOCHFELDEN | D30: 2.406126508 | F30: 0.0515 | G30: 0.0515 | I30: 5 | J30: 5 | L30: 0.88 | M30: 0.653 | N30: 0.7 | Q30: 153 | R30: 63.587679 | S30: 36 | T30: 1.766324417 | U30: 49.05533486 | V30: 0.01 | W30: 0.01 | X30: 0 | Y30: 0 | AA30: 294 | AB30: 122.188089 | AC30: 200 | AD30: 0.6109404452 | AE30: -283.4703619 | AH30: 188 | AI30: 284 | AK30: 1117.84217 | AL30: 464.5816279 | AM30: 703 | AN30: 0.6608558008 | AO30: -911.966152 | AR30: 574 | AS30: 912 | AU30: 1953.09371 | AV30: 811.7169665 | AW30: 573 | AX30: 1.416609017 | AY30: 298.6411232 | AZ30: 0.015 | BA30: 0.015 | BB30: 0 | BC30: 0 | BE30: 177.8 | BF30: 73.89470147 | BG30: 65 | BH30: 1.136841561 | BI30: -56.79733451 | BJ30: 0.0165 | BK30: 0.0165 | BL30: 0 | BM30: 57 | BO30: 432 | BP30: 179.5416819 | BQ30: 78 | BR30: 2.301816434 | BS30: 206.7865589 | BT30: 0.0075 | BU30: 0.0075 | BV30: 0 | BW30: 0 | BY30: 0.9983249581 | BZ30: 1 | CA30: 0.9993299832 | CB30: 0.9 | CC30: 0.0025 | CD30: 1691.506935
A31: BAS_RHIN | B31: HAGUENAU | C31: HOERDT | D31: 1.844197307 | F31: 0.03075 | G31: 0.03075 | I31: 5 | J31: 5 | L31: 0.73 | M31: 0.797 | N31: 0.7 | O31: 0.013 | Q31: 66 | R31: 35.78792775 | S31: 36 | T31: 0.9941091043 | U31: -13.66932368 | X31: 1 | Y31: 14 | AA31: 264 | AB31: 143.151711 | AC31: 200 | AD31: 0.7157585551 | AE31: -178.6073538 | AH31: 105 | AI31: 179 | AK31: 1699.08884 | AL31: 921.3161917 | AM31: 828 | AN31: 1.112700715 | AO31: -133.3056046 | AP31: 0.0055 | AQ31: 0.0055 | AR31: 0 | AS31: 134 | AU31: 810.72984 | AV31: 439.6112264 | AW31: 573 | AX31: 0.7672098192 | AY31: -457.3402286 | BB31: 246 | BC31: 458 | BE31: 111 | BF31: 60.18878759 | BG31: 65 | BH31: 0.9259813475 | BI31: -68.80923747 | BJ31: 0.00225 | BK31: 0.00225 | BL31: 0 | BM31: 69 | BO31: 196 | BP31: 106.2793006 | BQ31: 78 | BR31: 1.362555136 | BS31: 23.38313203 | BT31: 0.0075 | BU31: 0.0075 | BV31: 0 | BW31: 0 | BY31: 0.9924741298 | BZ31: 1 | CA31: 0.9969896519 | CB31: 0.9 | CC31: 0.0025 | CD31: 1526.995371
A32: BAS_RHIN | B32: HAGUENAU | C32: INGWILLER | D32: 3.202108581 | F32: 0.06525 | G32: 0.06525 | I32: 6 | J32: 6 | L32: 0.71 | M32: 0.548 | N32: 0.7 | Q32: 166 | R32: 51.84084043 | S32: 36 | T32: 1.440023345 | U32: 27.6689093 | V32: 0.01 | W32: 0.01 | X32: 0 | Y32: 0 | AA32: 456 | AB32: 142.4061641 | AC32: 200 | AD32: 0.7120308204 | AE32: -312.5060595 | AH32: 185 | AI32: 313 | AK32: 3198.31938 | AL32: 998.8166544 | AM32: 774.6 | AN32: 1.289461211 | AO32: 221.8954117 | AP32: 0.01 | AQ32: 0.01 | AR32: 0 | AS32: 0 | AU32: 2881.86266 | AV32: 899.98905 | AW32: 573 | AX32: 1.570661518 | AY32: 680.0927996 | AZ32: 0.015 | BA32: 0.015 | BB32: 0 | BC32: 0 | BE32: 257.9 | BF32: 80.5406792 | BG32: 65 | BH32: 1.239087372 | BI32: -54.30558666 | BJ32: 0.02025 | BK32: 0.02025 | BL32: 0 | BM32: 55 | BO32: 631 | BP32: 197.0576525 | BQ32: 78 | BR32: 2.52638016 | BS32: 331.2826368 | BT32: 0.0075 | BU32: 0.0075 | BV32: 0 | BW32: 0 | BY32: 0.9983475627 | BZ32: 1 | CA32: 0.9993390251 | CB32: 0.9 | CC32: 0.0025 | CD32: 2480.353307
A33: BAS_RHIN | B33: HAGUENAU | C33: NIEDERBRONN LES BAINS | D33: 7.596250282 | F33: 0.01775 | G33: 0.01775 | I33: 4 | J33: 4 | L33: 0.6674604609 | M33: 0.701 | N33: 0.7 | O33: 0.001 | Q33: 230 | R33: 30.27809662 | S33: 36 | T33: 0.8410582395 | U33: -98.15801219 | X33: 44 | Y33: 99 | AA33: 643 | AB33: 84.64702664 | AC33: 200 | AD33: 0.4232351332 | AE33: -1180.100068 | AH33: 877 | AI33: 1181 | AK33: 5147.82575 | AL33: 677.6798498 | AM33: 708.1 | AN33: 0.9570397539 | AO33: -1306.86004 | AR33: 232 | AS33: 1307 | AU33: 4735.23157 | AV33: 623.3643435 | AW33: 573 | AX33: 1.087895887 | AY33: -487.950124 | AZ33: 0.00675 | BA33: 0.00675 | BB33: 0 | BC33: 488 | BE33: 332.8 | BF33: 43.81108937 | BG33: 65 | BH33: 0.6740167596 | BI33: -407.8344025 | BL33: 112 | BM33: 408 | BO33: 1024 | BP33: 134.8033519 | BQ33: 78 | BR33: 1.728248101 | BS33: 312.9909736 | BT33: 0.0075 | BU33: 0.0075 | BV33: 0 | BW33: 0 | BY33: 0.9985763677 | BZ33: 1 | CA33: 0.9994305471 | CB33: 0.9 | CC33: 0.0025 | CD33: 5378.904825
A34: BAS_RHIN | B34: HAGUENAU | C34: PFAFFENHOFFEN | D34: 2.472443327 | F34: 0.0215 | G34: 0.0215 | I34: 4 | J34: 4 | L34: 0.79 | M34: 0.654 | N34: 0.7 | Q34: 91 | R34: 36.80569702 | S34: 36 | T34: 1.022380473 | U34: -15.80955174 | V34: 0.001 | W34: 0.001 | X34: 0 | Y34: 16 | AA34: 226 | AB34: 91.40755524 | AC34: 200 | AD34: 0.4570377762 | AE34: -367.3863985 | AH34: 269 | AI34: 368 | AK34: 1028.51445 | AL34: 415.9911124 | AM34: 735.8 | AN34: 0.5653589459 | AO34: -1154.55411 | AR34: 791 | AS34: 1155 | AU34: 1612.823 | AV34: 652.319502 | AW34: 573 | AX34: 1.13842845 | AY34: -87.22903178 | AZ34: 0.0105 | BA34: 0.0105 | BB34: 0 | BC34: 88 | BE34: 137 | BF34: 55.41077463 | BG34: 65 | BH34: 0.8524734559 | BI34: -104.0632244 | BL34: 8 | BM34: 105 | BO34: 490 | BP34: 198.1845224 | BQ34: 78 | BR34: 2.54082721 | BS34: 258.5793046 | BT34: 0.0075 | BU34: 0.0075 | BV34: 0 | BW34: 0 | BY34: 0.9958706125 | BZ34: 1 | CA34: 0.998348245 | CB34: 0.9 | CC34: 0.0025 | CD34: 1819.2238
A35: BAS_RHIN | B35: HAGUENAU | C35: SARRE UNION | D35: 4.735268311 | F35: 0.0305 | G35: 0.0305 | I35: 4 | J35: 4 | L35: 0.4 | M35: 0.639 | N35: 0.7 | Q35: 159 | R35: 33.57782274 | S35: 36 | T35: 0.9327172985 | U35: -45.56359104 | X35: 12 | Y35: 46 | AA35: 676 | AB35: 142.758542 | AC35: 200 | AD35: 0.7137927099 | AE35: -460.4643947 | AH35: 272 | AI35: 461 | AK35: 5864.51698 | AL35: 1238.476174 | AM35: 735.5 | AN35: 1.683856117 | AO35: 1685.169169 | AP35: 0.01 | AQ35: 0.01 | AR35: 0 | AS35: 0 | AU35: 3097.62372 | AV35: 654.160127 | AW35: 573 | AX35: 1.14164071 | AY35: -158.3467707 | AZ35: 0.0105 | BA35: 0.0105 | BB35: 0 | BC35: 159 | BE35: 210 | BF35: 44.34806778 | BG35: 65 | BH35: 0.6822779658 | BI35: -251.6886603 | BL35: 68 | BM35: 252 | BO35: 452 | BP35: 95.45393636 | BQ35: 78 | BR35: 1.223768415 | BS35: 8.778886081 | BT35: 0.0075 | BU35: 0.0075 | BV35: 0 | BW35: 0 | BY35: 0.9982951778 | BZ35: 1 | CA35: 0.9993180711 | CB35: 0.9 | CC35: 0.0025 | CD35: 3482.789843
A36: BAS_RHIN | B36: HAGUENAU | C36: SAVERNE | D36: 7.82734092 | F36: 0.045 | G36: 0.045 | I36: 5 | J36: 5 | L36: 0.3 | M36: 0.365 | N36: 0.7 | Q36: 380 | R36: 48.54777681 | S36: 36 | T36: 1.348549356 | U36: 41.85887228 | V36: 0.01 | W36: 0.01 | X36: 0 | Y36: 0 | AA36: 1006 | AB36: 128.5238512 | AC36: 200 | AD36: 0.6426192562 | AE36: -872.5618207 | AH36: 560 | AI36: 873 | AK36: 8429.70976 | AL36: 1076.957021 | AM36: 828 | AN36: 1.300672731 | AO36: 652.4638224 | AP36: 0.01 | AQ36: 0.01 | AR36: 0 | AS36: 0 | AU36: 5440.21418 | AV36: 695.0271153 | AW36: 573 | AX36: 1.212961807 | AY36: 58.13456375 | AZ36: 0.015 | BA36: 0.015 | BB36: 0 | BC36: 0 | BE36: 362.2 | BF36: 46.27369674 | BG36: 65 | BH36: 0.7119030268 | BI36: -400.9657397 | BL36: 96 | BM36: 401 | BO36: 918 | BP36: 117.2812082 | BQ36: 78 | BR36: 1.503605233 | BS36: 185.3608899 | BT36: 0.0075 | BU36: 0.0075 | BV36: 0 | BW36: 0 | BY36: 0.9979329691 | BZ36: 1 | CA36: 0.9991731877 | CB36: 0.9 | CC36: 0.0025 | CD36: 6481.038281
A37: BAS_RHIN | B37: HAGUENAU | C37: SOULTZ SOUS FORETS | D37: 2.10642701 | F37: 0.06225 | G37: 0.06225 | I37: 7 | J37: 7 | L37: 0.89 | M37: 0.722 | N37: 0.7 | O37: 0.003 | Q37: 109 | R37: 51.74639306 | S37: 36 | T37: 1.437399807 | U37: 18.00235318 | V37: 0.01 | W37: 0.01 | X37: 0 | Y37: 0 | AA37: 338 | AB37: 160.4612922 | AC37: 200 | AD37: 0.8023064612 | AE37: -167.5424823 | AH37: 84 | AI37: 168 | AK37: 2084.43386 | AL37: 989.559026 | AM37: 699.3 | AN37: 1.415070822 | AO37: 316.8045705 | AP37: 0.01 | AQ37: 0.01 | AR37: 0 | AS37: 0 | AU37: 1473.50501 | AV37: 699.5281599 | AW37: 573 | AX37: 1.220817033 | AY37: 25.12579813 | AZ37: 0.015 | BA37: 0.015 | BB37: 0 | BC37: 0 | BE37: 149.3 | BF37: 70.87831637 | BG37: 65 | BH37: 1.090435636 | BI37: -56.07663345 | BJ37: 0.01425 | BK37: 0.01425 | BL37: 0 | BM37: 57 | BO37: 212 | BP37: 100.6443608 | BQ37: 78 | BR37: 1.290312318 | BS37: 14.83843189 | BT37: 0.0075 | BU37: 0.0075 | BV37: 0 | BW37: 0 | BY37: 1 | BZ37: 1 | CA37: 1 | CB37: 0.9 | CC37: 0.0025 | CD37: 1473.024408
A38: BAS_RHIN | B38: HAGUENAU | C38: TRUCHTERSHEIM | D38: 2.915743146 | F38: 0.0375 | G38: 0.0375 | I38: 6 | J38: 6 | L38: 0.92 | M38: 0.738 | N38: 0.7 | O38: 0.005 | Q38: 119 | R38: 40.81292283 | S38: 36 | T38: 1.133692301 | U38: -6.960103899 | V38: 0.0065 | W38: 0.0065 | X38: 0 | Y38: 7 | AA38: 406 | AB38: 139.2440897 | AC38: 200 | AD38: 0.6962204483 | AE38: -293.778355 | AH38: 178 | AI38: 294 | AK38: 3158.14396 | AL38: 1083.135174 | AM38: 828 | AN38: 1.308134268 | AO38: 261.0615703 | AP38: 0.01 | AQ38: 0.01 | AR38: 0 | AS38: 0 | AU38: 1797.86593 | AV38: 616.6064156 | AW38: 573 | AX38: 1.076101947 | AY38: -206.9990571 | AZ38: 0.006 | BA38: 0.006 | BB38: 0 | BC38: 207 | BE38: 127 | BF38: 43.55664873 | BG38: 65 | BH38: 0.6701022882 | BI38: -157.2849567 | BL38: 44 | BM38: 158 | BO38: 290 | BP38: 99.46006404 | BQ38: 78 | BR38: 1.275129026 | BS38: 17.08644155 | BT38: 0.0075 | BU38: 0.0075 | BV38: 0 | BW38: 0 | BY38: 0.996802558 | BZ38: 1 | CA38: 0.9987210232 | CB38: 0.9 | CC38: 0.0025 | CD38: 2414.235325
A39: BAS_RHIN | B39: HAGUENAU | C39: WISSEMBOURG | D39: 8.406924657 | F39: 0.03775 | G39: 0.03775 | I39: 6 | J39: 6 | L39: 0.7524878049 | M39: 0.739 | N39: 0.7 | O39: 0.005 | Q39: 302 | R39: 35.92276752 | S39: 36 | T39: 0.9978546533 | U39: -61.1791452 | V39: 0 | W39: 0 | X39: 1 | Y39: 62 | AA39: 977 | AB39: 116.2137214 | AC39: 200 | AD39: 0.581068607 | AE39: -1040.661918 | AH39: 705 | AI39: 1041 | AK39: 8425.53547 | AL39: 1002.213748 | AM39: 828 | AN39: 1.210403077 | AO39: 72.41513051 | AP39: 0.01 | AQ39: 0.01 | AR39: 0 | AS39: 0 | AU39: 4942.86657 | AV39: 587.9518101 | AW39: 573 | AX39: 1.02609391 | AY39: -837.7348244 | AZ39: 0.00225 | BA39: 0.00225 | BB39: 0 | BC39: 838 | BE39: 569.7 | BF39: 67.76556508 | BG39: 65 | BH39: 1.042547155 | BI39: -249.9751541 | BJ39: 0.0105 | BK39: 0.0105 | BL39: 0 | BM39: 250 | BO39: 1120 | BP39: 133.2235087 | BQ39: 78 | BR39: 1.707993701 | BS39: 333.1118521 | BT39: 0.0075 | BU39: 0.0075 | BV39: 0 | BW39: 0 | BY39: 0.9992398328 | BZ39: 1 | CA39: 0.9996959331 | CB39: 0.9 | CC39: 0.0025 | CD39: 6960.933616
A40: BAS_RHIN | B40: SELESTAT | C40: BARR | D40: 2.964025974 | F40: 0.05825 | G40: 0.05825 | I40: 6 | J40: 6 | L40: 0.78 | M40: 0.849 | N40: 0.7 | O40: 0.02 | Q40: 173 | R40: 58.36656005 | S40: 36 | T40: 1.621293335 | U40: 44.95407792 | V40: 0.01 | W40: 0.01 | X40: 0 | Y40: 0 | AA40: 521 | AB40: 175.7744381 | AC40: 200 | AD40: 0.8788721903 | AE40: -190.3662338 | AH40: 72 | AI40: 191 | AK40: 3106.8019 | AL40: 1048.169593 | AM40: 828 | AN40: 1.265905306 | AO40: 161.7456921 | AP40: 0.01 | AQ40: 0.01 | AR40: 0 | AS40: 0 | AU40: 1612.92922 | AV40: 544.1683825 | AW40: 573 | AX40: 0.949683041 | AY40: -425.1350398 | BB40: 86 | BC40: 426 | BE40: 194.9 | BF40: 65.75515927 | BG40: 65 | BH40: 1.011617835 | BI40: -94.09253247 | BJ40: 0.00825 | BK40: 0.00825 | BL40: 0 | BM40: 95 | BO40: 558 | BP40: 188.2574596 | BQ40: 78 | BR40: 2.413557174 | BS40: 280.5671688 | BT40: 0.0075 | BU40: 0.0075 | BV40: 0 | BW40: 0 | BY40: 0.9977283053 | BZ40: 1 | CA40: 0.9990913221 | CB40: 0.9 | CC40: 0.0025 | CD40: 2454.213507
A41: BAS_RHIN | B41: SELESTAT | C41: BENFELD | D41: 4.13640741 | F41: 0.02925 | G41: 0.02925 | I41: 4 | J41: 4 | L41: 0.53 | M41: 0.58 | N41: 0.7 | Q41: 164 | R41: 39.64793207 | S41: 36 | T41: 1.101331446 | U41: -14.6928001 | V41: 0.005 | W41: 0.005 | X41: 0 | Y41: 15 | AA41: 463 | AB41: 111.9328814 | AC41: 200 | AD41: 0.559664407 | AE41: -529.7377784 | AH41: 365 | AI41: 530 | AK41: 2765.91159 | AL41: 668.6748465 | AM41: 815 | AN41: 0.8204599344 | AO41: -1279.494857 | AR41: 606 | AS41: 1280 | AU41: 1916.96064 | AV41: 463.4361295 | AW41: 573 | AX41: 0.8087890567 | AY41: -927.233095 | BB41: 454 | BC41: 928 | BE41: 293.9 | BF41: 71.05199534 | BG41: 65 | BH41: 1.093107621 | BI41: -109.3997225 | BJ41: 0.01425 | BK41: 0.01425 | BL41: 0 | BM41: 110 | BO41: 663 | BP41: 160.2840181 | BQ41: 78 | BR41: 2.054923309 | BS41: 275.8322664 | BT41: 0.0075 | BU41: 0.0075 | BV41: 0 | BW41: 0 | BY41: 0.9970640047 | BZ41: 1 | CA41: 0.9988256019 | CB41: 0.9 | CC41: 0.0025 | CD41: 3371.172039
A42: BAS_RHIN | B42: SELESTAT | C42: ERSTEIN | D42: 4.318709238 | F42: 0.01 | G42: 0.01 | I42: 2 | J42: 2 | L42: 0.56 | M42: 0.54 | N42: 0.7 | Q42: 131 | R42: 30.33313724 | S42: 36 | T42: 0.8425871454 | U42: -55.56823909 | X42: 25 | Y42: 56 | AA42: 564 | AB42: 130.5945756 | AC42: 200 | AD42: 0.6529728779 | AE42: -472.4902171 | AH42: 300 | AI42: 473 | AK42: 3166.06067 | AL42: 733.1034565 | AM42: 828 | AN42: 0.8853906479 | AO42: -1125.008829 | AR42: 410 | AS42: 1126 | AU42: 1883.76038 | AV42: 436.1859704 | AW42: 573 | AX42: 0.7612320601 | AY42: -1085.784092 | BB42: 591 | BC42: 1086 | BE42: 190.5 | BF42: 44.11040186 | BG42: 65 | BH42: 0.678621567 | BI42: -230.5741507 | BL42: 63 | BM42: 231 | BO42: 693 | BP42: 160.4646115 | BQ42: 78 | BR42: 2.057238609 | BS42: 288.7688153 | BT42: 0.0075 | BU42: 0.0075 | BV42: 0 | BW42: 0 | BY42: 0.9974670719 | BZ42: 1 | CA42: 0.9989868288 | CB42: 0.9 | CC42: 0.0025 | CD42: 3575.891249
A43: BAS_RHIN | B43: SELESTAT | C43: FEGERSHEIM | D43: 2.681915934 | F43: 0.0105 | G43: 0.0105 | I43: 3 | J43: 3 | L43: 0.58 | M43: 0.341 | N43: 0.7 | Q43: 89 | R43: 33.18523108 | S43: 36 | T43: 0.9218119745 | U43: -26.85876833 | X43: 8 | Y43: 27 | AA43: 243 | AB43: 90.60686689 | AC43: 200 | AD43: 0.4530343345 | AE43: -400.659824 | AH43: 294 | AI43: 401 | AK43: 2233.52474 | AL43: 832.8093778 | AM43: 828 | AN43: 1.005808427 | AO43: -431.2269315 | AP43: 0.0005 | AQ43: 0.0005 | AR43: 0 | AS43: 432 | AU43: 1434.34858 | AV43: 534.8223492 | AW43: 573 | AX43: 0.9333723372 | AY43: -409.7368159 | BB43: 103 | BC43: 410 | BE43: 113 | BF43: 42.13405744 | BG43: 65 | BH43: 0.6482162684 | BI43: -148.4868035 | BL43: 44 | BM43: 149 | BO43: 361 | BP43: 134.6052632 | BQ43: 78 | BR43: 1.725708502 | BS43: 109.9726686 | BT43: 0.0075 | BU43: 0.0075 | BV43: 0 | BW43: 0 | BY43: 0.9995541685 | BZ43: 1 | CA43: 0.9998216674 | CB43: 0.9 | CC43: 0.0025 | CD43: 2220.626393
A44: BAS_RHIN | B44: SELESTAT | C44: ILLKIRCH CENTRE | D44: 7.298532561 | F44: 0.0585 | G44: 0.0585 | I44: 6 | J44: 6 | L44: 0.42 | M44: 0.544 | N44: 0.7 | Q44: 321 | R44: 43.98144385 | S44: 36 | T44: 1.221706774 | U44: 5.703393382 | V44: 0.01 | W44: 0.01 | X44: 0 | Y44: 0 | AA44: 1164 | AB44: 159.4841141 | AC44: 200 | AD44: 0.7974205707 | AE44: -587.6478145 | AH44: 296 | AI44: 588 | AK44: 8649.6322 | AL44: 1185.119355 | AM44: 828 | AN44: 1.431303569 | AO44: 1397.810248 | AP44: 0.01 | AQ44: 0.01 | AR44: 0 | AS44: 0 | AU44: 4986.24951 | AV44: 683.1852114 | AW44: 573 | AX44: 1.192295308 | AY44: -32.22147867 | AZ44: 0.01425 | BA44: 0.01425 | BB44: 0 | BC44: 33 | BE44: 518.8 | BF44: 71.08278215 | BG44: 65 | BH44: 1.093581264 | BI44: -192.8069247 | BJ44: 0.01425 | BK44: 0.01425 | BL44: 0 | BM44: 193 | BO44: 915 | BP44: 125.367667 | BQ44: 78 | BR44: 1.607277783 | BS44: 231.8573523 | BT44: 0.0075 | BU44: 0.0075 | BV44: 0 | BW44: 0 | BY44: 0.9969454887 | BZ44: 1 | CA44: 0.9987781955 | CB44: 0.9 | CC44: 0.0025 | CD44: 6043.18496
A45: BAS_RHIN | B45: SELESTAT | C45: LINGOLSHEIM | D45: 4.212869048 | F45: 0.02675 | G45: 0.02675 | I45: 4 | J45: 4 | L45: 0.05 | M45: 0.614 | N45: 0.7 | Q45: 121 | R45: 28.72151938 | S45: 36 | T45: 0.7978199828 | U45: -60.99594286 | X45: 31 | Y45: 61 | AA45: 574 | AB45: 136.2491911 | AC45: 200 | AD45: 0.6812459555 | AE45: -437.0885715 | AH45: 269 | AI45: 438 | AK45: 5515.55322 | AL45: 1309.215444 | AM45: 828 | AN45: 1.581178072 | AO45: 1329.646534 | AP45: 0.01 | AQ45: 0.01 | AR45: 0 | AS45: 0 | AU45: 2635.34127 | AV45: 625.5454988 | AW45: 573 | AX45: 1.091702441 | AY45: -261.4274873 | AZ45: 0.00675 | BA45: 0.00675 | BB45: 0 | BC45: 262 | BE45: 227.6 | BF45: 54.02494059 | BG45: 65 | BH45: 0.8311529321 | BI45: -183.1547322 | BL45: 19 | BM45: 184 | BO45: 521 | BP45: 123.6686909 | BQ45: 78 | BR45: 1.585496037 | BS45: 126.6754571 | BT45: 0.0075 | BU45: 0.0075 | BV45: 0 | BW45: 0 | BY45: 0.9981799272 | BZ45: 1 | CA45: 0.9992719709 | CB45: 0.9 | CC45: 0.0025 | CD45: 3488.255572
A46: BAS_RHIN | B46: SELESTAT | C46: MARCKOLSHEIM | D46: 2.576363636 | F46: 0.03475 | G46: 0.03475 | I46: 5 | J46: 5 | L46: 0.63 | M46: 0.747 | N46: 0.7 | O46: 0.006 | Q46: 86 | R46: 33.38038109 | S46: 36 | T46: 0.927232808 | U46: -25.29890909 | X46: 7 | Y46: 26 | AA46: 282 | AB46: 109.4565984 | AC46: 200 | AD46: 0.5472829922 | AE46: -336.3272727 | AH46: 234 | AI46: 337 | AK46: 1275.91304 | AL46: 495.2379478 | AM46: 731 | AN46: 0.6774800927 | AO46: -984.0731419 | AR46: 608 | AS46: 985 | AU46: 1783.48607 | AV46: 692.2493567 | AW46: 573 | AX46: 1.208114061 | AY46: 11.97843361 | AZ46: 0.015 | BA46: 0.015 | BB46: 0 | BC46: 0 | BE46: 159 | BF46: 61.71489061 | BG46: 65 | BH46: 0.9494598556 | BI46: -92.19545455 | BJ46: 0.00375 | BK46: 0.00375 | BL46: 0 | BM46: 93 | BO46: 409 | BP46: 158.7508821 | BQ46: 78 | BR46: 2.03526772 | BS46: 167.8523636 | BT46: 0.0075 | BU46: 0.0075 | BV46: 0 | BW46: 0 | BY46: 0.9965820312 | BZ46: 1 | CA46: 0.9986328125 | CB46: 0.9 | CC46: 0.0025 | CD46: 1883.321818
A47: BAS_RHIN | B47: SELESTAT | C47: MOLSHEIM | D47: 5.05346655 | F47: 0.0345 | G47: 0.0345 | I47: 5 | J47: 5 | L47: 0.72 | M47: 0.651 | N47: 0.7 | Q47: 191 | R47: 37.79583739 | S47: 36 | T47: 1.049884372 | U47: -27.30975496 | V47: 0.0025 | W47: 0.0025 | X47: 0 | Y47: 28 | AA47: 742 | AB47: 146.8299023 | AC47: 200 | AD47: 0.7341495117 | AE47: -470.831972 | AH47: 269 | AI47: 471 | AK47: 5445.45939 | AL47: 1077.569098 | AM47: 828 | AN47: 1.301411954 | AO47: 424.3350258 | AP47: 0.01 | AQ47: 0.01 | AR47: 0 | AS47: 0 | AU47: 3351.07225 | AV47: 663.1234652 | AW47: 573 | AX47: 1.157283534 | AY47: -123.6913498 | AZ47: 0.012 | BA47: 0.012 | BB47: 0 | BC47: 124 | BE47: 255.9 | BF47: 50.63850675 | BG47: 65 | BH47: 0.77905395 | BI47: -236.8129886 | BL47: 40 | BM47: 237 | BO47: 804 | BP47: 159.0987082 | BQ47: 78 | BR47: 2.039727028 | BS47: 330.9955309 | BT47: 0.0075 | BU47: 0.0075 | BV47: 0 | BW47: 0 | BY47: 0.9980013324 | BZ47: 1 | CA47: 0.999200533 | CB47: 0.9 | CC47: 0.0025 | CD47: 4184.270303
A48: BAS_RHIN | B48: SELESTAT | C48: MUTZIG | D48: 2.32004262 | F48: 0.0555 | G48: 0.0555 | I48: 6 | J48: 6 | L48: 0.88 | M48: 0.504 | N48: 0.7 | Q48: 129 | R48: 55.60242683 | S48: 36 | T48: 1.544511856 | U48: 28.77415883 | V48: 0.01 | W48: 0.01 | X48: 0 | Y48: 0 | AA48: 364 | AB48: 156.8936695 | AC48: 200 | AD48: 0.7844683475 | AE48: -192.8102287 | AH48: 101 | AI48: 193 | AK48: 3957.28359 | AL48: 1705.694351 | AM48: 763.3 | AN48: 2.234631666 | AO48: 1832.217352 | AP48: 0.01 | AQ48: 0.01 | AR48: 0 | AS48: 0 | AU48: 2287.7958 | AV48: 986.1007641 | AW48: 573 | AX48: 1.720943742 | AY48: 692.5344947 | AZ48: 0.015 | BA48: 0.015 | BB48: 0 | BC48: 0 | BE48: 156.8 | BF48: 67.58496532 | BG48: 65 | BH48: 1.039768697 | BI48: -69.40415542 | BJ48: 0.0105 | BK48: 0.0105 | BL48: 0 | BM48: 70 | BO48: 347 | BP48: 149.5662179 | BQ48: 78 | BR48: 1.917515614 | BS48: 129.8440108 | BT48: 0.0075 | BU48: 0.0075 | BV48: 0 | BW48: 0 | BY48: 0.9937694704 | BZ48: 1 | CA48: 0.9975077882 | CB48: 0.9 | CC48: 0.0025 | CD48: 1770.888532
A49: BAS_RHIN | B49: SELESTAT | C49: OBERNAI | D49: 3.632365499 | F49: 0.02 | G49: 0.02 | I49: 3 | J49: 3 | L49: 0.39 | M49: 0.382 | N49: 0.7 | Q49: 125 | R49: 34.41283649 | S49: 36 | T49: 0.9559121248 | U49: -31.91818956 | X49: 6 | Y49: 32 | AA49: 554 | AB49: 152.5176913 | AC49: 200 | AD49: 0.7625884567 | AE49: -317.7677198 | AH49: 173 | AI49: 318 | AK49: 4262.70254 | AL49: 1173.533484 | AM49: 828 | AN49: 1.417310971 | AO49: 653.5841801 | AP49: 0.01 | AQ49: 0.01 | AR49: 0 | AS49: 0 | AU49: 1922.84039 | AV49: 529.3631355 | AW49: 573 | AX49: 0.9238449137 | AY49: -574.7741272 | BB49: 159 | BC49: 575 | BE49: 191.6 | BF49: 52.74799578 | BG49: 65 | BH49: 0.8115076273 | BI49: -162.5556362 | BL49: 21 | BM49: 163 | BO49: 756 | BP49: 208.1288351 | BQ49: 78 | BR49: 2.668318399 | BS49: 416.0105893 | BT49: 0.0075 | BU49: 0.0075 | BV49: 0 | BW49: 0 | BY49: 0.9975592748 | BZ49: 1 | CA49: 0.9990237099 | CB49: 0.9 | CC49: 0.0025 | CD49: 3007.598633
A50: BAS_RHIN | B50: SELESTAT | C50: ROSHEIM | D50: 1.974643206 | F50: 0.02538 | G50: 0.02538 | I50: 3 | J50: 3 | L50: 0.53 | M50: 0.492 | N50: 0.7 | Q50: 63 | R50: 31.90449789 | S50: 36 | T50: 0.8862360524 | U50: -22.30458651 | X50: 9 | Y50: 23 | AA50: 175 | AB50: 88.62360524 | AC50: 200 | AD50: 0.4431180262 | AE50: -298.9143695 | AH50: 220 | AI50: 299 | AK50: 483.01682 | AL50: 244.6096685 | AM50: 820.2 | AN50: 0.2982317343 | AO50: -1460.506009 | AR50: 1137 | AS50: 1461 | AU50: 957.61692 | AV50: 484.9569365 | AW50: 573 | AX50: 0.8463471842 | AY50: -400.1477486 | BB50: 174 | BC50: 401 | BE50: 142.3 | BF50: 72.06365158 | BG50: 65 | BH50: 1.108671563 | BI50: -50.2277126 | BJ50: 0.01538 | BK50: 0.01538 | BL50: 0 | BM50: 51 | BO50: 244 | BP50: 123.5666267 | BQ50: 78 | BR50: 1.584187522 | BS50: 59.1733959 | BT50: 0.0075 | BU50: 0.0075 | BV50: 0 | BW50: 0 | BY50: 0.9973890339 | BZ50: 1 | CA50: 0.9989556136 | CB50: 0.9 | CC50: 0.0025 | CD50: 1619.602358
A51: BAS_RHIN | B51: SELESTAT | C51: SCHIRMECK | D51: 3.081861472 | F51: 0.07263 | G51: 0.07263 | I51: 6 | J51: 6 | L51: 0.89 | M51: 0.845 | N51: 0.7 | O51: 0.02 | Q51: 148 | R51: 48.02292424 | S51: 36 | T51: 1.333970118 | U51: 14.86358441 | V51: 0.01 | W51: 0.01 | X51: 0 | Y51: 0 | AA51: 377 | AB51: 122.3286651 | AC51: 200 | AD51: 0.6116433257 | AE51: -362.6467533 | AH51: 240 | AI51: 363 | AK51: 938.37082 | AL51: 304.4818297 | AM51: 693.7 | AN51: 0.4389243617 | AO51: -1627.093944 | AR51: 1200 | AS51: 1628 | AU51: 2140.88946 | AV51: 694.6741375 | AW51: 573 | AX51: 1.21234579 | AY51: 21.80151185 | AZ51: 0.015 | BA51: 0.015 | BB51: 0 | BC51: 0 | BE51: 234.8 | BF51: 76.18772035 | BG51: 65 | BH51: 1.172118775 | BI51: -65.68149352 | BJ51: 0.01763 | BK51: 0.01763 | BL51: 0 | BM51: 66 | BO51: 416 | BP51: 134.9833546 | BQ51: 78 | BR51: 1.730555829 | BS51: 127.5377662 | BT51: 0.0075 | BU51: 0.0075 | BV51: 0 | BW51: 0 | BY51: 0.9975196362 | BZ51: 1 | CA51: 0.9990078545 | CB51: 0.9 | CC51: 0.0025 | CD51: 2137.887303
A52: BAS_RHIN | B52: SELESTAT | C52: SELESTAT CENTRE | D52: 8.435250091 | F52: 0.06525 | G52: 0.06525 | I52: 6 | J52: 6 | L52: 0.4856296296 | M52: 0.529 | N52: 0.7 | Q52: 388 | R52: 45.99745067 | S52: 36 | T52: 1.277706963 | U52: 23.59719606 | V52: 0.01 | W52: 0.01 | X52: 0 | Y52: 0 | AA52: 1222 | AB52: 144.8682596 | AC52: 200 | AD52: 0.724341298 | AE52: -802.4600219 | AH52: 466 | AI52: 803 | AK52: 8281.11742 | AL52: 981.7275517 | AM52: 781.5 | AN52: 1.256209279 | AO52: 370.5398845 | AP52: 0.01 | AQ52: 0.01 | AR52: 0 | AS52: 0 | AU52: 5939.18194 | AV52: 704.0907947 | AW52: 573 | AX52: 1.228779746 | AY52: 139.1039773 | AZ52: 0.015 | BA52: 0.015 | BB52: 0 | BC52: 0 | BE52: 679.2 | BF52: 80.51924871 | BG52: 65 | BH52: 1.238757672 | BI52: -143.2368839 | BJ52: 0.02025 | BK52: 0.02025 | BL52: 0 | BM52: 144 | BO52: 1147 | BP52: 135.9769998 | BQ52: 78 | BR52: 1.743294869 | BS52: 357.4605915 | BT52: 0.0075 | BU52: 0.0075 | BV52: 0 | BW52: 0 | BY52: 0.9991813823 | BZ52: 1 | CA52: 0.9996725529 | CB52: 0.9 | CC52: 0.0025 | CD52: 6592.147946
A53: BAS_RHIN | B53: SELESTAT | C53: VILLE | D53: 2.850991482 | F53: 0.04875 | G53: 0.04875 | I53: 7 | J53: 7 | L53: 0.72 | M53: 0.666 | N53: 0.7 | Q53: 136 | R53: 47.70270303 | S53: 36 | T53: 1.325075084 | U53: 12.83716799 | V53: 0.01 | W53: 0.01 | X53: 0 | Y53: 0 | AA53: 586 | AB53: 205.5425292 | AC53: 200 | AD53: 1.027712646 | AE53: -98.23795561 | AF53: 0.0015 | AG53: 0.0015 | AH53: 0 | AI53: 99 | AK53: 2412.8117 | AL53: 846.3061765 | AM53: 780.5 | AN53: 1.084312846 | AO53: -257.4269218 | AP53: 0.004 | AQ53: 0.004 | AR53: 0 | AS53: 258 | AU53: 1959.91617 | AV53: 687.4507281 | AW53: 573 | AX53: 1.199739491 | AY53: -0.4255728169 | AZ53: 0.015 | BA53: 0.015 | BB53: 0 | BC53: 1 | BE53: 187.6 | BF53: 65.80166977 | BG53: 65 | BH53: 1.012333381 | BI53: -90.37166947 | BJ53: 0.00825 | BK53: 0.00825 | BL53: 0 | BM53: 91 | BO53: 416 | BP53: 145.9141505 | BQ53: 78 | BR53: 1.870694237 | BS53: 149.1471973 | BT53: 0.0075 | BU53: 0.0075 | BV53: 0 | BW53: 0 | BY53: 0.9855072464 | BZ53: 1 | CA53: 0.9942028986 | CB53: 0.9 | CC53: 0.0025 | CD53: 2225.198851
A54: BAS_RHIN | B54: SELESTAT | C54: WASSELONNE | D54: 4.490685806 | F54: 0.05775 | G54: 0.05775 | I54: 6 | J54: 6 | L54: 0.5045640177 | M54: 0.595 | N54: 0.7 | Q54: 210 | R54: 46.76345865 | S54: 36 | T54: 1.298984963 | U54: 16.00237319 | V54: 0.01 | W54: 0.01 | X54: 0 | Y54: 0 | AA54: 748 | AB54: 166.5669861 | AC54: 200 | AD54: 0.8328349303 | AE54: -329.7645934 | AH54: 151 | AI54: 330 | AK54: 5362.63618 | AL54: 1194.168644 | AM54: 823.8 | AN54: 1.449585633 | AO54: 923.3238199 | AP54: 0.01 | AQ54: 0.01 | AR54: 0 | AS54: 0 | AU54: 3700.78836 | AV54: 824.1031593 | AW54: 573 | AX54: 1.438225409 | AY54: 612.9928 | AZ54: 0.015 | BA54: 0.015 | BB54: 0 | BC54: 0 | BE54: 312.2 | BF54: 69.5216752 | BG54: 65 | BH54: 1.069564234 | BI54: -125.6418661 | BJ54: 0.01275 | BK54: 0.01275 | BL54: 0 | BM54: 126 | BO54: 808 | BP54: 179.9279742 | BQ54: 78 | BR54: 2.306768901 | BS54: 387.6718086 | BT54: 0.0075 | BU54: 0.0075 | BV54: 0 | BW54: 0 | BY54: 0.9963794352 | BZ54: 1 | CA54: 0.9985517741 | CB54: 0.9 | CC54: 0.0025 | CD54: 3699.426967
A55: BAS_RHIN | B55: STRASBOURG | C55: BISCHHEIM | D55: 3.480967509 | F55: 0.03325 | G55: 0.03325 | I55: 6 | J55: 6 | L55: 0.47 | M55: 0.578 | N55: 0.7 | Q55: 144 | R55: 41.36780927 | S55: 36 | T55: 1.149105813 | U55: -6.377796402 | V55: 0.0075 | W55: 0.0075 | X55: 0 | Y55: 7 | AA55: 420 | AB55: 120.6561104 | AC55: 200 | AD55: 0.6032805519 | AE55: -415.4322022 | AH55: 277 | AI55: 416 | AK55: 3304.29061 | AL55: 949.244887 | AM55: 828 | AN55: 1.146431023 | AO55: -154.3987072 | AP55: 0.0075 | AQ55: 0.0075 | AR55: 0 | AS55: 155 | AU55: 2004.48523 | AV55: 575.8414075 | AW55: 573 | AX55: 1.004958826 | AY55: -389.0280294 | AZ55: 0.00075 | BA55: 0.00075 | BB55: 0 | BC55: 390 | BE55: 226.5 | BF55: 65.06811666 | BG55: 65 | BH55: 1.001047949 | BI55: -112.8943322 | BJ55: 0.0075 | BK55: 0.0075 | BL55: 0 | BM55: 113 | BO55: 463 | BP55: 133.0089979 | BQ55: 78 | BR55: 1.705243562 | BS55: 137.1814411 | BT55: 0.0075 | BU55: 0.0075 | BV55: 0 | BW55: 0 | BY55: 0.9983283183 | BZ55: 1 | CA55: 0.9993313273 | CB55: 0.9 | CC55: 0.0025 | CD55: 2882.241098
A56: BAS_RHIN | B56: STRASBOURG | C56: MUNDOLSHEIM | D56: 4.00523088 | F56: 0.061 | G56: 0.061 | I56: 7 | J56: 7 | L56: 0.5797843666 | M56: 0.713 | N56: 0.7 | O56: 0.001 | Q56: 248 | R56: 61.91902725 | S56: 36 | T56: 1.719972979 | U56: 74.97402597 | V56: 0.01 | W56: 0.01 | X56: 0 | Y56: 0 | AA56: 606 | AB56: 151.3021392 | AC56: 200 | AD56: 0.7565106958 | AE56: -355.2554113 | AH56: 196 | AI56: 356 | AK56: 4220.01138 | AL56: 1053.624998 | AM56: 828 | AN56: 1.272493959 | AO56: 240.4139773 | AP56: 0.01 | AQ56: 0.01 | AR56: 0 | AS56: 0 | AU56: 2893.07607 | AV56: 722.3244194 | AW56: 573 | AX56: 1.260601081 | AY56: 139.0793167 | AZ56: 0.015 | BA56: 0.015 | BB56: 0 | BC56: 0 | BE56: 285.8 | BF56: 71.35668543 | BG56: 65 | BH56: 1.09779516 | BI56: -104.7100108 | BJ56: 0.015 | BK56: 0.015 | BL56: 0 | BM56: 105 | BO56: 523 | BP56: 130.5792389 | BQ56: 78 | BR56: 1.674092807 | BS56: 148.1103896 | BT56: 0.0075 | BU56: 0.0075 | BV56: 0 | BW56: 0 | BY56: 0.9975288303 | BZ56: 1 | CA56: 0.9990115321 | CB56: 0.9 | CC56: 0.0025 | CD56: 3316.331169
A57: BAS_RHIN | B57: STRASBOURG | C57: OBERHAUSBERGEN | D57: 4.838614719 | F57: 0.04875 | G57: 0.04875 | I57: 6 | J57: 6 | L57: 0.769115 | M57: 0.742 | N57: 0.7 | O57: 0.006 | Q57: 252 | R57: 52.08102208 | S57: 36 | T57: 1.446695058 | U57: 42.97184415 | V57: 0.01 | W57: 0.01 | X57: 0 | Y57: 0 | AA57: 801 | AB57: 165.5432488 | AC57: 200 | AD57: 0.8277162438 | AE57: -360.2675325 | AH57: 167 | AI57: 361 | AK57: 4866.68097 | AL57: 1005.800472 | AM57: 828 | AN57: 1.21473487 | AO57: 59.0333855 | AP57: 0.01 | AQ57: 0.01 | AR57: 0 | AS57: 0 | AU57: 2640.62063 | AV57: 545.7389736 | AW57: 573 | AX57: 0.9524240376 | AY57: -686.4108506 | BB57: 132 | BC57: 687 | BE57: 336.1 | BF57: 69.46202985 | BG57: 65 | BH57: 1.068646613 | BI57: -135.6649351 | BJ57: 0.01275 | BK57: 0.01275 | BL57: 0 | BM57: 136 | BO57: 580 | BP57: 119.8690191 | BQ57: 78 | BR57: 1.536782296 | BS57: 127.1056623 | BT57: 0.0075 | BU57: 0.0075 | BV57: 0 | BW57: 0 | BY57: 0.9970453935 | BZ57: 1 | CA57: 0.9988181574 | CB57: 0.9 | CC57: 0.0025 | CD57: 4006.372987
A58: BAS_RHIN | B58: STRASBOURG | C58: REICHSTETT | D58: 1.615571299 | F58: 0.0465 | G58: 0.0465 | I58: 5 | J58: 5 | L58: 0.5 | M58: 0.432 | N58: 0.7 | Q58: 79 | R58: 48.89911082 | S58: 36 | T58: 1.358308634 | U58: 9.207319879 | V58: 0.01 | W58: 0.01 | X58: 0 | Y58: 0 | AA58: 258 | AB58: 159.6958303 | AC58: 200 | AD58: 0.7984791514 | AE58: -129.7371118 | AH58: 66 | AI58: 130 | AK58: 1839.47479 | AL58: 1138.590907 | AM58: 828 | AN58: 1.37510979 | AO58: 234.2431472 | AP58: 0.01 | AQ58: 0.01 | AR58: 0 | AS58: 0 | AU58: 870.02753 | AV58: 538.5262356 | AW58: 573 | AX58: 0.9398363623 | AY58: -240.8392953 | BB58: 56 | BC58: 241 | BE58: 119.2 | BF58: 73.7819495 | BG58: 65 | BH58: 1.135106915 | BI58: -38.31820166 | BJ58: 0.0165 | BK58: 0.0165 | BL58: 0 | BM58: 39 | BO58: 232 | BP58: 143.602452 | BQ58: 78 | BR58: 1.841057077 | BS58: 80.7825264 | BT58: 0.0075 | BU58: 0.0075 | BV58: 0 | BW58: 0 | BY58: 0.9979050279 | BZ58: 1 | CA58: 0.9991620112 | CB58: 0.9 | CC58: 0.0025 | CD58: 1337.693036
A59: BAS_RHIN | B59: STRASBOURG | C59: SCHILTIGHEIM CENTRE | D59: 3.582498698 | F59: 0.03825 | G59: 0.03825 | I59: 5 | J59: 5 | L59: 0.72 | M59: 0.417 | N59: 0.7 | Q59: 252 | R59: 70.34196554 | S59: 36 | T59: 1.953943487 | U59: 97.23605623 | V59: 0.01 | W59: 0.01 | X59: 0 | Y59: 0 | AA59: 547 | AB59: 152.6867268 | AC59: 200 | AD59: 0.763433634 | AE59: -312.7996876 | AH59: 170 | AI59: 313 | AK59: 3563.04033 | AL59: 994.5684926 | AM59: 775.4 | AN59: 1.28265217 | AO59: 229.5969412 | AP59: 0.01 | AQ59: 0.01 | AR59: 0 | AS59: 0 | AU59: 2276.04512 | AV59: 635.3233627 | AW59: 573 | AX59: 1.108766776 | AY59: -187.280985 | AZ59: 0.00825 | BA59: 0.00825 | BB59: 0 | BC59: 188 | BE59: 193.6 | BF59: 54.04049416 | BG59: 65 | BH59: 0.8313922179 | BI59: -155.6936231 | BL59: 16 | BM59: 156 | BO59: 589 | BP59: 164.4103877 | BQ59: 78 | BR59: 2.107825484 | BS59: 253.6781218 | BT59: 0.0075 | BU59: 0.0075 | BV59: 0 | BW59: 0 | BY59: 0.9989042297 | BZ59: 1 | CA59: 0.9995616919 | CB59: 0.9 | CC59: 0.0025 | CD59: 2777.869491
A60: BAS_RHIN | B60: STRASBOURG | C60: SCHILTIGHEIM KLEBER | D60: 2.86563492 | F60: 0.0275 | G60: 0.0275 | I60: 3 | J60: 3 | L60: 0.8 | M60: 0.545 | N60: 0.7 | Q60: 135 | R60: 47.10997868 | S60: 36 | T60: 1.308610519 | U60: 11.20457143 | V60: 0.01 | W60: 0.01 | X60: 0 | Y60: 0 | AA60: 296 | AB60: 103.2929903 | AC60: 200 | AD60: 0.5164649514 | AE60: -391.7523809 | AH60: 278 | AI60: 392 | AK60: 1805.23051 | AL60: 629.9583025 | AM60: 753.1 | AN60: 0.836486924 | AO60: -784.5010804 | AR60: 353 | AS60: 785 | AU60: 1160.64022 | AV60: 405.0202668 | AW60: 573 | AX60: 0.7068416523 | AY60: -809.7703513 | BB60: 482 | BC60: 810 | BE60: 205.6 | BF60: 71.74675271 | BG60: 65 | BH60: 1.103796196 | BI60: -73.79940475 | BJ60: 0.015 | BK60: 0.015 | BL60: 0 | BM60: 74 | BO60: 146 | BP60: 50.94856953 | BQ60: 78 | BR60: 0.6531867889 | BS60: -122.2234286 | BV60: 78 | BW60: 123 | BY60: 0.999103139 | BZ60: 1 | CA60: 0.9996412556 | CB60: 0.9 | CC60: 0.0025 | CD60: 2158.109659
A61: BAS_RHIN | B61: STRASBOURG | C61: STRASBOURG ANVERS | D61: 4.532476318 | F61: 0.05475 | G61: 0.05475 | I61: 6 | J61: 6 | L61: 0.3 | M61: 0.568 | N61: 0.7 | Q61: 265 | R61: 58.46693538 | S61: 36 | T61: 1.624081538 | U61: 69.19702305 | V61: 0.01 | W61: 0.01 | X61: 0 | Y61: 0 | AA61: 506 | AB61: 111.6387521 | AC61: 200 | AD61: 0.5581937604 | AE61: -581.7943164 | AH61: 401 | AI61: 582 | AK61: 5353.96465 | AL61: 1181.244925 | AM61: 828 | AN61: 1.426624306 | AO61: 850.49618 | AP61: 0.01 | AQ61: 0.01 | AR61: 0 | AS61: 0 | AU61: 2965.48788 | AV61: 654.2754273 | AW61: 573 | AX61: 1.141841932 | AY61: -151.0428365 | AZ61: 0.0105 | BA61: 0.0105 | BB61: 0 | BC61: 152 | BE61: 320.2 | BF61: 70.64570833 | BG61: 65 | BH61: 1.086857051 | BI61: -121.716441 | BJ61: 0.01425 | BK61: 0.01425 | BL61: 0 | BM61: 122 | BO61: 756 | BP61: 166.7962383 | BQ61: 78 | BR61: 2.138413311 | BS61: 331.7602166 | BT61: 0.0075 | BU61: 0.0075 | BV61: 0 | BW61: 0 | BY61: 0.9980582524 | BZ61: 1 | CA61: 0.999223301 | CB61: 0.9 | CC61: 0.0025 | CD61: 3752.890392
A62: BAS_RHIN | B62: STRASBOURG | C62: STRASBOURG AUSTERLITZ | D62: 2.415679142 | F62: 0.033505 | G62: 0.033505 | I62: 4 | J62: 4 | L62: 0.26 | M62: 0.367 | N62: 0.7 | Q62: 143 | R62: 59.19660336 | S62: 36 | T62: 1.644350093 | U62: 38.64266108 | V62: 0.01 | W62: 0.01 | X62: 0 | Y62: 0 | AA62: 450 | AB62: 186.2830176 | AC62: 200 | AD62: 0.9314150879 | AE62: -129.762994 | AH62: 34 | AI62: 130 | AK62: 1794.49257 | AL62: 742.8522021 | AM62: 828 | AN62: 0.8971644953 | AO62: -605.7262251 | AR62: 206 | AS62: 606 | AU62: 1208.85847 | AV62: 500.4217858 | AW62: 573 | AX62: 0.8733364499 | AY62: -452.1625078 | BB62: 176 | BC62: 453 | BE62: 176.8 | BF62: 73.1885278 | BG62: 65 | BH62: 1.125977351 | BI62: -58.72871631 | BJ62: 0.01613 | BK62: 0.01613 | BL62: 0 | BM62: 59 | BO62: 212 | BP62: 87.75999939 | BQ62: 78 | BR62: 1.125128197 | BS62: -14.10756765 | BT62: 0.004875 | BU62: 0.004875 | BV62: 0 | BW62: 15 | BY62: 0.9980544747 | BZ62: 1 | CA62: 0.9992217899 | CB62: 0.9 | CC62: 0.0025 | CD62: 2000.182329
A63: BAS_RHIN | B63: STRASBOURG | C63: STRASBOURG CRONENBOURG | D63: 4.859641184 | F63: 0.04638 | G63: 0.04638 | I63: 5 | J63: 5 | L63: 0.9 | M63: 0.757 | N63: 0.7 | O63: 0.008 | Q63: 328 | R63: 67.4946951 | S63: 36 | T63: 1.874852642 | U63: 118.0635009 | V63: 0.01 | W63: 0.01 | X63: 0 | Y63: 0 | AA63: 871 | AB63: 179.2313397 | AC63: 200 | AD63: 0.8961566987 | AE63: -295.3138841 | AH63: 101 | AI63: 296 | AK63: 3243.69789 | AL63: 667.4768296 | AM63: 718.8 | AN63: 0.9285988169 | AO63: -948.0342093 | AR63: 250 | AS63: 949 | AU63: 2498.22657 | AV63: 514.0763434 | AW63: 573 | AX63: 0.8971663934 | AY63: -843.2627078 | BB63: 287 | BC63: 844 | BE63: 376.7 | BF63: 77.51601111 | BG63: 65 | BH63: 1.192554017 | BI63: -97.1150154 | BJ63: 0.01838 | BK63: 0.01838 | BL63: 0 | BM63: 98 | BO63: 679 | BP63: 139.7222499 | BQ63: 78 | BR63: 1.791310896 | BS63: 224.1375852 | BT63: 0.0075 | BU63: 0.0075 | BV63: 0 | BW63: 0 | BY63: 0.9996446971 | BZ63: 1 | CA63: 0.9998578788 | CB63: 0.9 | CC63: 0.0025 | CD63: 3493.110083
A64: BAS_RHIN | B64: STRASBOURG | C64: STRASBOURG DANUBE | D64: 4.522826886 | F64: 0.04613 | G64: 0.04613 | I64: 5 | J64: 5 | L64: 0.4412045455 | M64: 0.273 | N64: 0.7 | Q64: 193 | R64: 42.67242697 | S64: 36 | T64: 1.185345194 | U64: -2.386121488 | V64: 0.0095 | W64: 0.0095 | X64: 0 | Y64: 3 | AA64: 635 | AB64: 140.3989177 | AC64: 200 | AD64: 0.7019945887 | AE64: -450.4784527 | AH64: 270 | AI64: 451 | AK64: 2763.84115 | AL64: 611.0870965 | AM64: 823.6 | AN64: 0.741970734 | AO64: -1706.159118 | AR64: 962 | AS64: 1707 | AU64: 2940.97166 | AV64: 650.2507688 | AW64: 573 | AX64: 1.134818096 | AY64: -168.924107 | AZ64: 0.00975 | BA64: 0.00975 | BB64: 0 | BC64: 169 | BE64: 337.4 | BF64: 74.59936197 | BG64: 65 | BH64: 1.147682492 | BI64: -103.5756214 | BJ64: 0.01688 | BK64: 0.01688 | BL64: 0 | BM64: 104 | BO64: 425 | BP64: 93.9677796 | BQ64: 78 | BR64: 1.204715123 | BS64: 1.663403442 | BT64: 0.0075 | BU64: 0.0075 | BV64: 0 | BW64: 0 | BY64: 0.9998373719 | BZ64: 1 | CA64: 0.9999349488 | CB64: 0.9 | CC64: 0.0025 | CD64: 3725.000224
A65: BAS_RHIN | B65: STRASBOURG | C65: STRASBOURG FRANCS BOURGEOIS | D65: 4.668652424 | F65: 0.0375 | G65: 0.0375 | I65: 5 | J65: 5 | L65: 0.75 | M65: 0.637 | N65: 0.7 | Q65: 223 | R65: 47.76538918 | S65: 36 | T65: 1.326816366 | U65: 21.31421527 | V65: 0.01 | W65: 0.01 | X65: 0 | Y65: 0 | AA65: 669 | AB65: 143.2961675 | AC65: 200 | AD65: 0.7164808377 | AE65: -451.4765819 | AH65: 265 | AI65: 452 | AK65: 5389.74748 | AL65: 1154.454646 | AM65: 828 | AN65: 1.394268896 | AO65: 750.9744311 | AP65: 0.01 | AQ65: 0.01 | AR65: 0 | AS65: 0 | AU65: 2949.21114 | AV65: 631.7050129 | AW65: 573 | AX65: 1.10245203 | AY65: -260.954267 | AZ65: 0.0075 | BA65: 0.0075 | BB65: 0 | BC65: 261 | BE65: 167.2 | BF65: 35.81333216 | BG65: 65 | BH65: 0.5509743409 | BI65: -287.9936114 | BL65: 106 | BM65: 288 | BO65: 701 | BP65: 150.1503938 | BQ65: 78 | BR65: 1.925005049 | BS65: 264.0141331 | BT65: 0.0075 | BU65: 0.0075 | BV65: 0 | BW65: 0 | BY65: 0.9974432726 | BZ65: 1 | CA65: 0.998977309 | CB65: 0.9 | CC65: 0.0025 | CD65: 3865.644207
A66: BAS_RHIN | B66: STRASBOURG | C66: STRASBOURG HALLES | D66: 7.986840581 | F66: 0.02775 | G66: 0.02775 | I66: 6 | J66: 6 | L66: 0.75 | M66: 0.719 | N66: 0.7 | O66: 0.002 | Q66: 764 | R66: 95.65734939 | S66: 36 | T66: 2.657148594 | U66: 418.9684869 | V66: 0.01 | W66: 0.01 | X66: 0 | Y66: 0 | AA66: 814 | AB66: 101.9176471 | AC66: 200 | AD66: 0.5095882356 | AE66: -1102.841739 | AH66: 784 | AI66: 1103 | AK66: 5996.50899 | AL66: 750.798633 | AM66: 748.6 | AN66: 1.002936993 | AO66: -1178.229641 | AP66: 0.0005 | AQ66: 0.0005 | AR66: 0 | AS66: 1179 | AU66: 3738.08336 | AV66: 468.0302958 | AW66: 573 | AX66: 0.816806799 | AY66: -1753.668223 | BB66: 839 | BC66: 1754 | BE66: 501.6 | BF66: 62.80330688 | BG66: 65 | BH66: 0.9662047212 | BI66: -277.1169566 | BJ66: 0.00525 | BK66: 0.00525 | BL66: 0 | BM66: 278 | BO66: 1098 | BP66: 137.4761383 | BQ66: 78 | BR66: 1.762514593 | BS66: 350.4317216 | BT66: 0.0075 | BU66: 0.0075 | BV66: 0 | BW66: 0 | BY66: 0.9971728595 | BZ66: 1 | CA66: 0.9988691438 | CB66: 0.9 | CC66: 0.0025 | CD66: 5978.948859
A67: BAS_RHIN | B67: STRASBOURG | C67: STRASBOURG KOENIGSHOFFEN | D67: 2.205714286 | F67: 0.075 | G67: 0.075 | I67: 6 | J67: 6 | L67: 0.73 | M67: 0.514 | N67: 0.7 | Q67: 198 | R67: 89.76683938 | S67: 36 | T67: 2.493523316 | U67: 102.7131429 | V67: 0.01 | W67: 0.01 | X67: 0 | Y67: 0 | AA67: 376 | AB67: 170.4663212 | AC67: 200 | AD67: 0.8523316062 | AE67: -153.3714286 | AH67: 66 | AI67: 154 | AK67: 2395.36942 | AL67: 1085.983545 | AM67: 709.4 | AN67: 1.530847964 | AO67: 517.6889629 | AP67: 0.01 | AQ67: 0.01 | AR67: 0 | AS67: 0 | AU67: 1737.36539 | AV67: 787.6656561 | AW67: 573 | AX67: 1.374634653 | AY67: 220.7162472 | AZ67: 0.015 | BA67: 0.015 | BB67: 0 | BC67: 0 | BE67: 230.9 | BF67: 104.6826425 | BG67: 65 | BH67: 1.610502192 | BI67: 15.84285714 | BJ67: 0.03 | BK67: 0.03 | BL67: 0 | BM67: 0 | BO67: 224 | BP67: 101.5544041 | BQ67: 78 | BR67: 1.30197954 | BS67: 17.54514286 | BT67: 0.0075 | BU67: 0.0075 | BV67: 0 | BW67: 0 | BY67: 0.9974093264 | BZ67: 1 | CA67: 0.9989637306 | CB67: 0.9 | CC67: 0.0025 | CD67: 1564.733714
A68: BAS_RHIN | B68: STRASBOURG | C68: STRASBOURG MEINAU | D68: 3.341212121 | F68: 0.0645 | G68: 0.0645 | I68: 6 | J68: 6 | L68: 0.5 | M68: 0.581 | N68: 0.7 | Q68: 222 | R68: 66.44295302 | S68: 36 | T68: 1.845637584 | U68: 77.65963636 | V68: 0.01 | W68: 0.01 | X68: 0 | Y68: 0 | AA68: 508 | AB68: 152.0406312 | AC68: 200 | AD68: 0.7602031562 | AE68: -293.8909091 | AH68: 161 | AI68: 294 | AK68: 3051.79325 | AL68: 913.379079 | AM68: 750.3 | AN68: 1.217351831 | AO68: 43.49950456 | AP68: 0.01 | AQ68: 0.01 | AR68: 0 | AS68: 0 | AU68: 2310.00085 | AV68: 691.3661169 | AW68: 573 | AX68: 1.20657263 | AY68: 12.58339546 | AZ68: 0.015 | BA68: 0.015 | BB68: 0 | BC68: 0 | BE68: 263.9 | BF68: 78.98331217 | BG68: 65 | BH68: 1.21512788 | BI68: -61.86818182 | BJ68: 0.0195 | BK68: 0.0195 | BL68: 0 | BM68: 62 | BO68: 381 | BP68: 114.0304734 | BQ68: 78 | BR68: 1.461929146 | BS68: 68.26254546 | BT68: 0.0075 | BU68: 0.0075 | BV68: 0 | BW68: 0 | BY68: 0.9994701987 | BZ68: 1 | CA68: 0.9997880795 | CB68: 0.9 | CC68: 0.0025 | CD68: 2506.911455
A69: BAS_RHIN | B69: STRASBOURG | C69: STRASBOURG MONTAGNE VERTE | D69: 2.41835428 | F69: 0.05563 | G69: 0.05563 | I69: 6 | J69: 6 | L69: 0.32 | M69: 0.466 | N69: 0.7 | Q69: 175 | R69: 72.36326019 | S69: 36 | T69: 2.010090561 | U69: 70.5270951 | V69: 0.01 | W69: 0.01 | X69: 0 | Y69: 0 | AA69: 263 | AB69: 108.7516425 | AC69: 200 | AD69: 0.5437582123 | AE69: -317.4050272 | AH69: 221 | AI69: 318 | AK69: 1997.31155 | AL69: 825.8970021 | AM69: 734.5 | AN69: 1.124434312 | AO69: -134.2259125 | AP69: 0.006 | AQ69: 0.006 | AR69: 0 | AS69: 135 | AU69: 1546.27123 | AV69: 639.3898705 | AW69: 573 | AX69: 1.115863648 | AY69: -116.589173 | AZ69: 0.009 | BA69: 0.009 | BB69: 0 | BC69: 117 | BE69: 195.8 | BF69: 80.96415054 | BG69: 65 | BH69: 1.245602316 | BI69: -39.98954231 | BJ69: 0.02063 | BK69: 0.02063 | BL69: 0 | BM69: 40 | BO69: 255 | BP69: 105.4436077 | BQ69: 78 | BR69: 1.351841124 | BS69: 28.64203938 | BT69: 0.0075 | BU69: 0.0075 | BV69: 0 | BW69: 0 | BY69: 0.9994497432 | BZ69: 1 | CA69: 0.9997798973 | CB69: 0.9 | CC69: 0.0025 | CD69: 1776.281219
A70: BAS_RHIN | B70: STRASBOURG | C70: STRASBOURG NEUDORF | D70: 8.518166599 | F70: 0.022 | G70: 0.022 | I70: 4 | J70: 4 | L70: 0.9027355144 | M70: 0.715 | N70: 0.7 | O70: 0.002 | Q70: 405 | R70: 47.54544247 | S70: 36 | T70: 1.320706735 | U70: 37.01520293 | V70: 0.01 | W70: 0.01 | X70: 0 | Y70: 0 | AA70: 688 | AB70: 80.76855413 | AC70: 200 | AD70: 0.4038427706 | AE70: -1356.359984 | AH70: 1016 | AI70: 1357 | AK70: 5063.98024 | AL70: 594.4918054 | AM70: 728.4 | AN70: 0.8161611826 | AO70: -2381.578821 | AR70: 1141 | AS70: 2382 | AU70: 3299.81828 | AV70: 387.3859758 | AW70: 573 | AX70: 0.6760662754 | AY70: -2557.273073 | BB70: 1582 | BC70: 2558 | BE70: 457.8 | BF70: 53.74395942 | BG70: 65 | BH70: 0.8268301449 | BI70: -372.7212434 | BL70: 41 | BM70: 373 | BO70: 889 | BP70: 104.3651811 | BQ70: 78 | BR70: 1.338015143 | BS70: 91.69960635 | BT70: 0.0075 | BU70: 0.0075 | BV70: 0 | BW70: 0 | BY70: 0.9982421446 | BZ70: 1 | CA70: 0.9992968578 | CB70: 0.9 | CC70: 0.0025 | CD70: 6204.632551
A71: BAS_RHIN | B71: STRASBOURG | C71: STRASBOURG ROBERTSAU | D71: 6.494460394 | F71: 0.03775 | G71: 0.03775 | I71: 5 | J71: 5 | L71: 0.7077865065 | M71: 0.639 | N71: 0.7 | Q71: 257 | R71: 39.57218682 | S71: 36 | T71: 1.099227412 | U71: -23.56068902 | V71: 0.005 | W71: 0.005 | X71: 0 | Y71: 24 | AA71: 874 | AB71: 134.5762307 | AC71: 200 | AD71: 0.6728811533 | AE71: -684.6704945 | AH71: 425 | AI71: 685 | AK71: 6506.97211 | AL71: 1001.926521 | AM71: 828 | AN71: 1.210056185 | AO71: 54.07626262 | AP71: 0.01 | AQ71: 0.01 | AR71: 0 | AS71: 0 | AU71: 4336.9354 | AV71: 667.7899528 | AW71: 573 | AX71: 1.165427492 | AY71: -128.6555668 | AZ71: 0.01275 | BA71: 0.01275 | BB71: 0 | BC71: 129 | BE71: 327.3 | BF71: 50.39679668 | BG71: 65 | BH71: 0.7753353335 | BI71: -305.9098884 | BL71: 53 | BM71: 306 | BO71: 910 | BP71: 140.1194164 | BQ71: 78 | BR71: 1.796402774 | BS71: 302.1185071 | BT71: 0.0075 | BU71: 0.0075 | BV71: 0 | BW71: 0 | BY71: 0.9964173757 | BZ71: 1 | CA71: 0.9985669503 | CB71: 0.9 | CC71: 0.0025 | CD71: =D71*AM71 -> 5377.413206
A72: BAS_RHIN | B72: STRASBOURG | C72: STRASBOURG VOSGES | D72: 3.301817316 | F72: 0.0405 | G72: 0.0405 | I72: 5 | J72: 5 | L72: 0.8 | M72: 0.45 | N72: 0.7 | Q72: 165 | R72: 49.97248006 | S72: 36 | T72: 1.388124446 | U72: 22.36149195 | V72: 0.01 | W72: 0.01 | X72: 0 | Y72: 0 | AA72: 317 | AB72: 96.00773443 | AC72: 200 | AD72: 0.4800386721 | AE72: -475.4361558 | AH72: 344 | AI72: 476 | AK72: 3469.38547 | AL72: 1050.75028 | AM72: 828 | AN72: 1.269022078 | AO72: 188.6997848 | AP72: 0.01 | AQ72: 0.01 | AR72: 0 | AS72: 0 | AU72: 2165.23277 | AV72: 655.7700087 | AW72: 573 | AX72: 1.144450277 | AY72: -105.0968165 | AZ72: 0.0105 | BA72: 0.0105 | BB72: 0 | BC72: 106 | BE72: 132.1 | BF72: 40.0082704 | BG72: 65 | BH72: 0.6155118524 | BI72: -189.8271883 | BL72: 62 | BM72: 190 | BO72: 415 | BP72: 125.6883589 | BQ72: 78 | BR72: 1.611389217 | BS72: 105.9498992 | BT72: 0.0075 | BU72: 0.0075 | BV72: 0 | BW72: 0 | BY72: 0.997386109 | BZ72: 1 | CA72: 0.9989544436 | CB72: 0.9 | CC72: 0.0025 | CD72: 2733.904738
A73: HAUT_RHIN | B73: COLMAR | C73: COLMAR MARAICHERS | D73: 4.63982251 | F73: 0.0285 | G73: 0.0285 | I73: 4 | J73: 4 | L73: 0.63 | M73: 0.467 | N73: 0.7 | Q73: 208 | R73: 44.82930103 | S73: 36 | T73: 1.245258362 | U73: 7.559667585 | V73: 0.01 | W73: 0.01 | X73: 0 | Y73: 0 | AA73: 637 | AB73: 137.2897344 | AC73: 200 | AD73: 0.686448672 | AE73: -476.5574023 | AH73: 291 | AI73: 477 | AK73: 4487.54925 | AL73: 967.1812318 | AM73: 828 | AN73: 1.168093275 | AO73: -122.5783955 | AP73: 0.0085 | AQ73: 0.0085 | AR73: 0 | AS73: 123 | AU73: 2048.9447 | AV73: 441.5998017 | AW73: 573 | AX73: 0.7706802821 | AY73: -1141.397258 | BB73: 610 | BC73: 1142 | BE73: 225.9 | BF73: 48.68720722 | BG73: 65 | BH73: 0.7490339573 | BI73: -226.4826947 | BL73: 46 | BM73: 227 | BO73: 467 | BP73: 100.6504018 | BQ73: 78 | BR73: 1.290389767 | BS73: 32.7126131 | BT73: 0.0075 | BU73: 0.0075 | BV73: 0 | BW73: 0 | BY73: 0.9878187614 | BZ73: 1 | CA73: 0.9951275046 | CB73: 0.9 | CC73: 0.0025 | CD73: 3841.773038
A74: HAUT_RHIN | B74: COLMAR | C74: COLMAR REPUBLIQUE | D74: 8.019729718 | F74: 0.038 | G74: 0.038 | I74: 5 | J74: 5 | L74: 0.35 | M74: 0.337 | N74: 0.7 | Q74: 283 | R74: 35.28797228 | S74: 36 | T74: 0.9802214523 | U74: -63.4523238 | X74: 6 | Y74: 64 | AA74: 1033 | AB74: 128.8073335 | AC74: 200 | AD74: 0.6440366673 | AE74: -891.7351322 | AH74: 571 | AI74: 892 | AK74: 8633.21598 | AL74: 1076.497124 | AM74: 828 | AN74: 1.3001173 | AO74: 664.8125325 | AP74: 0.01 | AQ74: 0.01 | AR74: 0 | AS74: 0 | AU74: 5547.12489 | AV74: 691.6847681 | AW74: 573 | AX74: 1.20712874 | AY74: 32.75873611 | AZ74: 0.015 | BA74: 0.015 | BB74: 0 | BC74: 0 | BE74: 489 | BF74: 60.97462349 | BG74: 65 | BH74: 0.9380711306 | BI74: -292.9236475 | BJ74: 0.003 | BK74: 0.003 | BL74: 0 | BM74: 293 | BO74: 1030 | BP74: 128.433256 | BQ74: 78 | BR74: 1.646580205 | BS74: 279.3532984 | BT74: 0.0075 | BU74: 0.0075 | BV74: 0 | BW74: 0 | BY74: 0.9946398222 | BZ74: 1 | CA74: 0.9978559289 | CB74: 0.9 | CC74: 0.0025 | CD74: 6640.336206
A75: HAUT_RHIN | B75: COLMAR | C75: COLMAR SAINTE MARIE | D75: 6.983445897 | F75: 0.02625 | G75: 0.02625 | I75: 4 | J75: 4 | L75: 0.5 | M75: 0.531 | N75: 0.7 | Q75: 291 | R75: 41.66997272 | S75: 36 | T75: 1.157499242 | U75: -10.68486274 | V75: 0.008 | W75: 0.008 | X75: 0 | Y75: 11 | AA75: 549 | AB75: 78.61448461 | AC75: 200 | AD75: 0.3930724231 | AE75: -1127.027015 | AH75: 848 | AI75: 1128 | AK75: 3467.89726 | AL75: 496.5882619 | AM75: 809.9 | AN75: 0.6131476255 | AO75: -3319.174138 | AR75: 2188 | AS75: 3320 | AU75: 3554.07573 | AV75: 508.9286554 | AW75: 573 | AX75: 0.8881826446 | AY75: -1247.741669 | BB75: 448 | BC75: 1248 | BE75: 458.3 | BF75: 65.62662714 | BG75: 65 | BH75: 1.009640418 | BI75: -222.5859749 | BJ75: 0.00825 | BK75: 0.00825 | BL75: 0 | BM75: 223 | BO75: 752 | BP75: 107.6832285 | BQ75: 78 | BR75: 1.380554211 | BS75: 98.34946407 | BT75: 0.0075 | BU75: 0.0075 | BV75: 0 | BW75: 0 | BY75: 0.9820552362 | BZ75: 1 | CA75: 0.9928220945 | CB75: 0.9 | CC75: 0.0025 | CD75: 5655.892832
A76: HAUT_RHIN | B76: COLMAR | C76: ENSISHEIM | D76: 3.01921477 | F76: 0.02 | G76: 0.02 | I76: 3 | J76: 3 | L76: 0.05 | M76: 0.113 | N76: 0.7 | Q76: 134 | R76: 44.3824008 | S76: 36 | T76: 1.232844467 | U76: 3.569921945 | V76: 0.01 | W76: 0.01 | X76: 0 | Y76: 0 | AA76: 310 | AB76: 102.6757033 | AC76: 200 | AD76: 0.5133785167 | AE76: -414.6115448 | AH76: 294 | AI76: 415 | AK76: 1599.66379 | AL76: 529.8277572 | AM76: 773.2 | AN76: 0.6852402447 | AO76: -1201.684442 | AR76: 735 | AS76: 1202 | AU76: 1470.84858 | AV76: 487.1626208 | AW76: 573 | AX76: 0.8501965459 | AY76: -605.1634957 | BB76: 260 | BC76: 606 | BE76: 154.7 | BF76: 51.23848808 | BG76: 65 | BH76: 0.788284432 | BI76: -139.6734401 | BL76: 22 | BM76: 140 | BO76: 469 | BP76: 155.3384028 | BQ76: 78 | BR76: 1.991517984 | BS76: 186.4014975 | BT76: 0.0075 | BU76: 0.0075 | BV76: 0 | BW76: 0 | BY76: 0.9942028986 | BZ76: 1 | CA76: 0.9976811594 | CB76: 0.9 | CC76: 0.0025 | CD76: 2334.45686
A77: HAUT_RHIN | B77: COLMAR | C77: GUEBWILLER | D77: 5.525656799 | F77: 0.02 | G77: 0.02 | I77: 3 | J77: 3 | L77: 0.5279016553 | M77: 0.622 | N77: 0.7 | Q77: 269 | R77: 48.68199561 | S77: 36 | T77: 1.352277656 | U77: 30.2916263 | V77: 0.01 | W77: 0.01 | X77: 0 | Y77: 0 | AA77: 613 | AB77: 110.9370383 | AC77: 200 | AD77: 0.5546851916 | AE77: -713.1576316 | AH77: 493 | AI77: 714 | AK77: 3580.9618 | AL77: 648.0608425 | AM77: 810.1 | AN77: 0.7999763516 | AO77: -1790.639687 | AR77: 896 | AS77: 1791 | AU77: 3042.94879 | AV77: 550.6944968 | AW77: 573 | AX77: 0.9610724202 | AY77: -756.4928246 | BB77: 124 | BC77: 757 | BE77: 237.7 | BF77: 43.01751062 | BG77: 65 | BH77: 0.6618078557 | BI77: -301.0515379 | BL77: 86 | BM77: 302 | BO77: 581 | BP77: 105.1458716 | BQ77: 78 | BR77: 1.348023994 | BS77: 63.79852366 | BT77: 0.0075 | BU77: 0.0075 | BV77: 0 | BW77: 0 | BY77: 0.9897589412 | BZ77: 1 | CA77: 0.9959035765 | CB77: 0.9 | CC77: 0.0025 | CD77: 4476.334572
A78: HAUT_RHIN | B78: COLMAR | C78: HORBOURG WIHR | D78: 5.77310031 | F78: 0.0195 | G78: 0.0195 | I78: 5 | J78: 5 | L78: 0.5182142857 | M78: 0.627 | N78: 0.7 | Q78: 236 | R78: 40.87924812 | S78: 36 | T78: 1.13553467 | U78: -13.39793339 | V78: 0.007 | W78: 0.007 | X78: 0 | Y78: 14 | AA78: 720 | AB78: 124.7163502 | AC78: 200 | AD78: 0.623581751 | AE78: -665.5440744 | AH78: 435 | AI78: 666 | AK78: 4383.71292 | AL78: 759.3342718 | AM78: 748.1 | AN78: 1.015017072 | AO78: -798.9146903 | AP78: 0.001 | AQ78: 0.001 | AR78: 0 | AS78: 799 | AU78: 3366.95261 | AV78: 583.2139456 | AW78: 573 | AX78: 1.017825385 | AY78: -602.6311632 | AZ78: 0.0015 | BA78: 0.0015 | BB78: 0 | BC78: 603 | BE78: 308.2 | BF78: 53.38552657 | BG78: 65 | BH78: 0.8213157934 | BI78: -254.6772802 | BL78: 30 | BM78: 255 | BO78: 677 | BP78: 117.2680126 | BQ78: 78 | BR78: 1.503436059 | BS78: 136.637811 | BT78: 0.0075 | BU78: 0.0075 | BV78: 0 | BW78: 0 | BY78: 0.9938872538 | BZ78: 1 | CA78: 0.9975549015 | CB78: 0.9 | CC78: 0.0025 | CD78: 4318.856342
A79: HAUT_RHIN | B79: COLMAR | C79: INGERSHEIM | D79: 5.454252641 | F79: 0.014 | G79: 0.014 | I79: 3 | J79: 3 | L79: 0.3841048522 | M79: 0.6 | N79: 0.7 | Q79: 189 | R79: 34.6518602 | S79: 36 | T79: 0.9625516721 | U79: -46.6237141 | X79: 8 | Y79: 47 | AA79: 700 | AB79: 128.340223 | AC79: 200 | AD79: 0.6417011148 | AE79: -609.0206339 | AH79: 391 | AI79: 610 | AK79: 4895.39583 | AL79: 897.5374175 | AM79: 828 | AN79: 1.083982388 | AO79: -523.9495943 | AP79: 0.004 | AQ79: 0.004 | AR79: 0 | AS79: 524 | AU79: 2283.39869 | AV79: 418.6455671 | AW79: 573 | AX79: 0.7306205359 | AY79: -1466.945426 | BB79: 842 | BC79: 1467 | BE79: 279.6 | BF79: 51.26275191 | BG79: 65 | BH79: 0.7886577217 | BI79: -252.1896325 | BL79: 40 | BM79: 253 | BO79: 531 | BP79: 97.35522627 | BQ79: 78 | BR79: 1.248143926 | BS79: 20.48195278 | BT79: 0.0075 | BU79: 0.0075 | BV79: 0 | BW79: 0 | BY79: 0.9899856938 | BZ79: 1 | CA79: 0.9959942775 | CB79: 0.9 | CC79: 0.0025 | CD79: 4516.121187
A80: HAUT_RHIN | B80: COLMAR | C80: MUNSTER | D80: 4.913830936 | F80: 0.046 | G80: 0.046 | I80: 6 | J80: 6 | L80: 0.5 | M80: 0.701 | N80: 0.7 | O80: 0.001 | Q80: 224 | R80: 45.58561394 | S80: 36 | T80: 1.266267054 | U80: 11.72250356 | V80: 0.01 | W80: 0.01 | X80: 0 | Y80: 0 | AA80: 706 | AB80: 143.6760868 | AC80: 200 | AD80: 0.7183804339 | AE80: -473.3194247 | AH80: 277 | AI80: 474 | AK80: 4936.4508 | AL80: 1004.603305 | AM80: 826.9 | AN80: 1.214903018 | AO80: 60.55463873 | AP80: 0.01 | AQ80: 0.01 | AR80: 0 | AS80: 0 | AU80: 3399.96844 | AV80: 691.9180746 | AW80: 573 | AX80: 1.207535907 | AY80: 21.21828834 | AZ80: 0.015 | BA80: 0.015 | BB80: 0 | BC80: 0 | BE80: 259.4 | BF80: 52.789769 | BG80: 65 | BH80: 0.8121502922 | BI80: -219.6985163 | BL80: 29 | BM80: 220 | BO80: 677 | BP80: 137.7743778 | BQ80: 78 | BR80: 1.766338177 | BS80: 217.0654244 | BT80: 0.0075 | BU80: 0.0075 | BV80: 0 | BW80: 0 | BY80: 0.9876813034 | BZ80: 1 | CA80: 0.9950725214 | CB80: 0.9 | CC80: 0.0025 | CD80: 4063.246801
A81: HAUT_RHIN | B81: COLMAR | C81: NEUF BRISACH | D81: 3.599858221 | F81: 0.04013 | G81: 0.04013 | I81: 5 | J81: 5 | L81: 0.67 | M81: 0.505 | N81: 0.7 | Q81: 154 | R81: 42.77946256 | S81: 36 | T81: 1.188318405 | U81: -1.513875143 | V81: 0.0095 | W81: 0.0095 | X81: 0 | Y81: 2 | AA81: 314 | AB81: 87.22565744 | AC81: 200 | AD81: 0.4361282872 | AE81: -549.965973 | AH81: 406 | AI81: 550 | AK81: 1909.55193 | AL81: 530.4519825 | AM81: 750.3 | AN81: 0.7069865154 | AO81: -1331.616418 | AR81: 792 | AS81: 1332 | AU81: 2202.75135 | AV81: 611.8994735 | AW81: 573 | AX81: 1.067887388 | AY81: -272.5111627 | AZ81: 0.00525 | BA81: 0.00525 | BB81: 0 | BC81: 273 | BE81: 260.3 | BF81: 72.30840328 | BG81: 65 | BH81: 1.112436974 | BI81: -90.68617654 | BJ81: 0.01538 | BK81: 0.01538 | BL81: 0 | BM81: 91 | BO81: 397 | BP81: 110.282121 | BQ81: 78 | BR81: 1.413873347 | BS81: 60.05327052 | BT81: 0.0075 | BU81: 0.0075 | BV81: 0 | BW81: 0 | BY81: 0.9920269313 | BZ81: 1 | CA81: 0.9968107725 | CB81: 0.9 | CC81: 0.0025 | CD81: 2700.973623
A82: HAUT_RHIN | B82: COLMAR | C82: ORBEY | D82: 5.00078827 | F82: 0.019 | G82: 0.019 | I82: 3 | J82: 3 | L82: 0.53 | M82: 0.369 | N82: 0.7 | Q82: 153 | R82: 30.59517655 | S82: 36 | T82: 0.8498660153 | U82: -63.03405325 | X82: 28 | Y82: 64 | AA82: 656 | AB82: 131.1793191 | AC82: 200 | AD82: 0.6558965953 | AE82: -544.1891847 | AH82: 345 | AI82: 545 | AK82: 4904.51381 | AL82: 980.7481432 | AM82: 828 | AN82: 1.184478434 | AO82: -64.26941467 | AP82: 0.009 | AQ82: 0.009 | AR82: 0 | AS82: 65 | AU82: 1964.44314 | AV82: 392.8266973 | AW82: 573 | AX82: 0.6855614264 | AY82: -1474.098874 | BB82: 902 | BC82: 1475 | BE82: 189.8 | BF82: 37.9540164 | BG82: 65 | BH82: 0.5839079446 | BI82: -297.7768563 | BL82: 103 | BM82: 298 | BO82: 491 | BP82: 98.18452083 | BQ82: 78 | BR82: 1.258775908 | BS82: 22.92621797 | BT82: 0.0075 | BU82: 0.0075 | BV82: 0 | BW82: 0 | BY82: 0.9918032787 | BZ82: 1 | CA82: 0.9967213115 | CB82: 0.9 | CC82: 0.0025 | CD82: 4140.652687
A83: HAUT_RHIN | B83: COLMAR | C83: RIBEAUVILLE | D83: 4.853276777 | F83: 0.02675 | G83: 0.02675 | I83: 5 | J83: 5 | L83: 0.6971134021 | M83: 0.651 | N83: 0.7 | Q83: 214 | R83: 44.09392042 | S83: 36 | T83: 1.224831123 | U83: 4.338443238 | V83: 0.01 | W83: 0.01 | X83: 0 | Y83: 0 | AA83: 920 | AB83: 189.5626486 | AC83: 200 | AD83: 0.9478132428 | AE83: -244.7864265 | AH83: 51 | AI83: 245 | AK83: 4128.84618 | AL83: 850.7337145 | AM83: 828 | AN83: 1.027456177 | AO83: -693.3696255 | AP83: 0.0015 | AQ83: 0.0015 | AR83: 0 | AS83: 694 | AU83: 2418.95088 | AV83: 498.4160169 | AW83: 573 | AX83: 0.8698359806 | AY83: -918.1622318 | BB83: 362 | BC83: 919 | BE83: 306.3 | BF83: 63.11199919 | BG83: 65 | BH83: 0.9709538337 | BI83: -166.8944857 | BJ83: 0.00525 | BK83: 0.00525 | BL83: 0 | BM83: 167 | BO83: 568 | BP83: 117.0343308 | BQ83: 78 | BR83: 1.500440139 | BS83: 113.7332937 | BT83: 0.0075 | BU83: 0.0075 | BV83: 0 | BW83: 0 | BY83: 0.9903444676 | BZ83: 1 | CA83: 0.9961377871 | CB83: 0.9 | CC83: 0.0025 | CD83: 4018.513171
A84: HAUT_RHIN | B84: COLMAR | C84: ROUFFACH | D84: 3.661272667 | F84: 0.05088 | G84: 0.05088 | I84: 5 | J84: 5 | L84: 0.6659579439 | M84: 0.682 | N84: 0.7 | Q84: 152 | R84: 41.5156187 | S84: 36 | T84: 1.153211631 | U84: -6.16697921 | V84: 0.0075 | W84: 0.0075 | X84: 0 | Y84: 7 | AA84: 307 | AB84: 83.85062461 | AC84: 200 | AD84: 0.4192531231 | AE84: -571.7054401 | AH84: 426 | AI84: 572 | AK84: 1952.59289 | AL84: 533.3098809 | AM84: 795.7 | AN84: 0.6702398906 | AO84: -1543.336703 | AR84: 961 | AS84: 1544 | AU84: 2530.47064 | AV84: 691.1450936 | AW84: 573 | AX84: 1.2061869 | AY84: 12.97955424 | AZ84: 0.015 | BA84: 0.015 | BB84: 0 | BC84: 0 | BE84: 282.1 | BF84: 77.04971076 | BG84: 65 | BH84: 1.185380166 | BI84: -74.87408502 | BJ84: 0.01838 | BK84: 0.01838 | BL84: 0 | BM84: 75 | BO84: 534 | BP84: 145.8509236 | BQ84: 78 | BR84: 1.869883636 | BS84: 191.3048784 | BT84: 0.0075 | BU84: 0.0075 | BV84: 0 | BW84: 0 | BY84: 0.9842475387 | BZ84: 1 | CA84: 0.9936990155 | CB84: 0.9 | CC84: 0.0025 | CD84: 2913.274661
A85: HAUT_RHIN | B85: MULHOUSE | C85: ALTKIRCH | D85: 7.799810881 | F85: 0.016 | G85: 0.016 | I85: 3 | J85: 3 | L85: 0.1378653367 | M85: 0.361 | N85: 0.7 | Q85: 208 | R85: 26.66731324 | S85: 36 | T85: 0.7407587012 | U85: -128.95183 | X85: 73 | Y85: 129 | AA85: 635 | AB85: 81.41223034 | AC85: 200 | AD85: 0.4070611517 | AE85: -1236.954611 | AH85: 925 | AI85: 1237 | AK85: 4968.92474 | AL85: 637.0570795 | AM85: 821.3 | AN85: 0.775669158 | AO85: -2718.256872 | AR85: 1438 | AS85: 2719 | AU85: 4839.66954 | AV85: 620.4854982 | AW85: 573 | AX85: 1.082871725 | AY85: -523.4804216 | AZ85: 0.006 | BA85: 0.006 | BB85: 0 | BC85: 524 | BE85: 284.4 | BF85: 36.46242253 | BG85: 65 | BH85: 0.5609603466 | BI85: -476.0815609 | BL85: 172 | BM85: 477 | BO85: 798 | BP85: 102.3101729 | BQ85: 78 | BR85: 1.311668884 | BS85: 67.93770157 | BT85: 0.0075 | BU85: 0.0075 | BV85: 0 | BW85: 0 | BY85: 0.9851372816 | BZ85: 1 | CA85: 0.9940549126 | CB85: 0.9 | CC85: 0.0025 | CD85: 6405.984676
A86: HAUT_RHIN | B86: MULHOUSE | C86: MULHOUSE DORNACH | D86: 5.175197292 | F86: 0.02 | G86: 0.02 | I86: 3 | J86: 3 | L86: 0.1981322957 | M86: 0.226 | N86: 0.7 | Q86: 253 | R86: 48.88702511 | S86: 36 | T86: 1.35797292 | U86: 29.43147697 | V86: 0.01 | W86: 0.01 | X86: 0 | Y86: 0 | AA86: 413 | AB86: 79.80372084 | AC86: 200 | AD86: 0.3990186042 | AE86: -829.0473502 | AH86: 623 | AI86: 830 | AK86: 2376.7144 | AL86: 459.2509746 | AM86: 795.4 | AN86: 0.5773836743 | AO86: -2562.907912 | AR86: 1740 | AS86: 2563 | AU86: 2461.72332 | AV86: 475.6771928 | AW86: 573 | AX86: 0.8301521689 | AY86: -1096.742338 | BB86: 504 | BC86: 1097 | BE86: 197.7 | BF86: 38.20144215 | BG86: 65 | BH86: 0.5877144947 | BI86: -306.881736 | BL86: 106 | BM86: 307 | BO86: 545 | BP86: 105.3099948 | BQ86: 78 | BR86: 1.350128139 | BS86: 60.60153344 | BT86: 0.0075 | BU86: 0.0075 | BV86: 0 | BW86: 0 | BY86: 0.9786381842 | BZ86: 1 | CA86: 0.9914552737 | CB86: 0.9 | CC86: 0.0025 | CD86: 4116.351926
A87: HAUT_RHIN | B87: MULHOUSE | C87: MULHOUSE REUNION | D87: 10.80428793 | F87: 0.02975 | G87: 0.02975 | I87: 4 | J87: 4 | L87: 0.33 | M87: 0.439 | N87: 0.7 | Q87: 596 | R87: 55.16328366 | S87: 36 | T87: 1.532313435 | U87: 129.2547613 | V87: 0.01 | W87: 0.01 | X87: 0 | Y87: 0 | AA87: 1346 | AB87: 124.5801675 | AC87: 200 | AD87: 0.6229008373 | AE87: -1247.029104 | AH87: 815 | AI87: 1248 | AK87: 8290.89948 | AL87: 767.3712077 | AM87: 828 | AN87: 0.9267768209 | AO87: -2444.241011 | AR87: 656 | AS87: 2445 | AU87: 5899.2509 | AV87: 546.0101523 | AW87: 573 | AX87: 0.9528972989 | AY87: -1529.777483 | BB87: 292 | BC87: 1530 | BE87: 724.2 | BF87: 67.02894299 | BG87: 65 | BH87: 1.031214508 | BI87: -329.2180736 | BJ87: 0.00975 | BK87: 0.00975 | BL87: 0 | BM87: 330 | BO87: 1177 | BP87: 108.9382296 | BQ87: 78 | BR87: 1.39664397 | BS87: 165.7186494 | BT87: 0.0075 | BU87: 0.0075 | BV87: 0 | BW87: 0 | BY87: 0.9951547453 | BZ87: 1 | CA87: 0.9980618981 | CB87: 0.9 | CC87: 0.0025 | CD87: 8945.950409
A88: HAUT_RHIN | B88: MULHOUSE | C88: PFASTATT | D88: 3.318649526 | F88: 0.02 | G88: 0.02 | I88: 3 | J88: 3 | L88: 0.33 | M88: 0.262 | N88: 0.7 | Q88: 163 | R88: 49.11636457 | S88: 36 | T88: 1.36434346 | U88: 19.63434049 | V88: 0.01 | W88: 0.01 | X88: 0 | Y88: 0 | AA88: 286 | AB88: 86.17963355 | AC88: 200 | AD88: 0.4308981677 | AE88: -510.4758862 | AH88: 378 | AI88: 511 | AK88: 1094.27918 | AL88: 329.7362893 | AM88: 731.6 | AN88: 0.4507056988 | AO88: -1819.229612 | AR88: 1334 | AS88: 1820 | AU88: 1584.37382 | AV88: 477.415228 | AW88: 573 | AX88: 0.8331853892 | AY88: -697.5295939 | BB88: 318 | BC88: 698 | BE88: 184.8 | BF88: 55.68530168 | BG88: 65 | BH88: 0.8566969489 | BI88: -138.7683288 | BL88: 10 | BM88: 139 | BO88: 343 | BP88: 103.3552948 | BQ88: 78 | BR88: 1.325067882 | BS88: 32.37440439 | BT88: 0.0075 | BU88: 0.0075 | BV88: 0 | BW88: 0 | BY88: 0.9843964335 | BZ88: 1 | CA88: 0.9937585734 | CB88: 0.9 | CC88: 0.0025 | CD88: 2427.923993
A89: HAUT_RHIN | B89: MULHOUSE | C89: RIEDISHEIM | D89: 3.511272571 | F89: 0.0205 | G89: 0.0205 | I89: 4 | J89: 4 | L89: 0.95 | M89: 0.581 | N89: 0.7 | Q89: 127 | R89: 36.16922282 | S89: 36 | T89: 1.004700634 | U89: -24.68697508 | V89: 0.0005 | W89: 0.0005 | X89: 0 | Y89: 25 | AA89: 520 | AB89: 148.0944556 | AC89: 200 | AD89: 0.7404722781 | AE89: -322.7054171 | AH89: 183 | AI89: 323 | AK89: 3534.10564 | AL89: 1006.50279 | AM89: 828 | AN89: 1.21558308 | AO89: 45.30521316 | AP89: 0.01 | AQ89: 0.01 | AR89: 0 | AS89: 0 | AU89: 1524.25176 | AV89: 434.1023743 | AW89: 573 | AX89: 0.7575957667 | AY89: -890.09926 | BB89: 488 | BC89: 891 | BE89: 167.6 | BF89: 47.73198224 | BG89: 65 | BH89: 0.7343381883 | BI89: -174.7490757 | BL89: 38 | BM89: 175 | BO89: 384 | BP89: 109.3620595 | BQ89: 78 | BR89: 1.402077686 | BS89: 55.34488733 | BT89: 0.0075 | BU89: 0.0075 | BV89: 0 | BW89: 0 | BY89: 0.9858507252 | BZ89: 1 | CA89: 0.9943402901 | CB89: 0.9 | CC89: 0.0025 | CD89: 2907.333689
A90: HAUT_RHIN | B90: MULHOUSE | C90: RIXHEIM | D90: 2.804267075 | F90: 0.0235 | G90: 0.0235 | I90: 3 | J90: 3 | L90: 0.7 | M90: 0.081 | N90: 0.7 | Q90: 87 | R90: 31.02414915 | S90: 36 | T90: 0.8617819209 | U90: -34.14433764 | X90: 14 | Y90: 35 | AA90: 326 | AB90: 116.2514095 | AC90: 200 | AD90: 0.5812570474 | AE90: -347.024098 | AH90: 235 | AI90: 348 | AK90: 1205.46092 | AL90: 429.8666595 | AM90: 828 | AN90: 0.5191626323 | AO90: -1580.858846 | AR90: 1117 | AS90: 1581 | AU90: 1902.3492 | AV90: 678.3766129 | AW90: 573 | AX90: 1.183903338 | AY90: -25.86484077 | AZ90: 0.0135 | BA90: 0.0135 | BB90: 0 | BC90: 26 | BE90: 97.2 | BF90: 34.66146319 | BG90: 65 | BH90: 0.5332532799 | BI90: -176.2160398 | BL90: 67 | BM90: 177 | BO90: 342 | BP90: 121.9570001 | BQ90: 78 | BR90: 1.563551284 | BS90: 79.52060178 | BT90: 0.0075 | BU90: 0.0075 | BV90: 0 | BW90: 0 | BY90: 0.9830102374 | BZ90: 1 | CA90: 0.993204095 | CB90: 0.9 | CC90: 0.0025 | CD90: 2321.933138
A91: HAUT_RHIN | B91: MULHOUSE | C91: SAINT LOUIS | D91: 7.514253058 | F91: 0.03 | G91: 0.03 | I91: 4 | J91: 4 | L91: 0.36290295 | M91: 0.29 | N91: 0.7 | Q91: 329 | R91: 43.78346024 | S91: 36 | T91: 1.216207229 | U91: 4.384267903 | V91: 0.01 | W91: 0.01 | X91: 0 | Y91: 0 | AA91: 1027 | AB91: 136.6735978 | AC91: 200 | AD91: 0.6833679889 | AE91: -776.4207339 | AH91: 476 | AI91: 777 | AK91: 7527.04208 | AL91: 1001.701969 | AM91: 828 | AN91: 1.209784986 | AO91: 60.88024177 | AP91: 0.01 | AQ91: 0.01 | AR91: 0 | AS91: 0 | AU91: 3518.15955 | AV91: 468.1981726 | AW91: 573 | AX91: 0.8170997776 | AY91: -1648.640853 | BB91: 788 | BC91: 1649 | BE91: 327 | BF91: 43.51729939 | BG91: 65 | BH91: 0.6694969137 | BI91: -405.6396731 | BL91: 113 | BM91: 406 | BO91: 858 | BP91: 114.1830057 | BQ91: 78 | BR91: 1.463884689 | BS91: 154.6659138 | BT91: 0.0075 | BU91: 0.0075 | BV91: 0 | BW91: 0 | BY91: 0.9872961104 | BZ91: 1 | CA91: 0.9949184442 | CB91: 0.9 | CC91: 0.0025 | CD91: 6221.801532
A92: HAUT_RHIN | B92: MULHOUSE | C92: THANN | D92: 11.54276135 | F92: 0.03625 | G92: 0.03625 | I92: 5 | J92: 5 | L92: 0.8227713475 | M92: 0.68 | N92: 0.7 | Q92: 457 | R92: 39.59191271 | S92: 36 | T92: 1.099775353 | U92: -41.64729053 | V92: 0.005 | W92: 0.005 | X92: 0 | Y92: 42 | AA92: 1387 | AB92: 120.1618882 | AC92: 200 | AD92: 0.6008094412 | AE92: -1383.262725 | AH92: 922 | AI92: 1384 | AK92: 10167.32782 | AL92: 880.8401653 | AM92: 750.7 | AN92: 1.173358419 | AO92: -230.8533189 | AP92: 0.0085 | AQ92: 0.0085 | AR92: 0 | AS92: 231 | AU92: 7736.56525 | AV92: 670.2525516 | AW92: 573 | AX92: 1.169725221 | AY92: -200.2374576 | AZ92: 0.01275 | BA92: 0.01275 | BB92: 0 | BC92: 201 | BE92: 435.1 | BF92: 37.69461974 | BG92: 65 | BH92: 0.5799172267 | BI92: -690.3192321 | BL92: 241 | BM92: 691 | BO92: 1449 | BP92: 125.53322 | BQ92: 78 | BR92: 1.609400256 | BS92: 368.5975372 | BT92: 0.0075 | BU92: 0.0075 | BV92: 0 | BW92: 0 | BY92: 0.9777330082 | BZ92: 1 | CA92: 0.9910932033 | CB92: 0.9 | CC92: 0.0025 | CD92: 8665.150949
A93: HAUT_RHIN | B93: MULHOUSE | C93: WITTELSHEIM | D93: 3.408443566 | F93: 0.04625 | G93: 0.04625 | I93: 5 | J93: 5 | L93: 0.32 | M93: 0.582 | N93: 0.7 | Q93: 144 | R93: 42.24802237 | S93: 36 | T93: 1.173556177 | U93: -3.244762038 | V93: 0.0085 | W93: 0.0085 | X93: 0 | Y93: 4 | AA93: 241 | AB93: 70.70675966 | AC93: 200 | AD93: 0.3535337983 | AE93: -577.0264558 | AH93: 441 | AI93: 578 | AK93: 936.37126 | AL93: 274.721069 | AM93: 681.5 | AN93: 0.4031123536 | AO93: -1851.053888 | AR93: 1387 | AS93: 1852 | AU93: 3088.81339 | AV93: 906.2240082 | AW93: 573 | AX93: 1.581542772 | AY93: 745.1675942 | AZ93: 0.015 | BA93: 0.015 | BB93: 0 | BC93: 0 | BE93: 237.3 | BF93: 69.62122019 | BG93: 65 | BH93: 1.071095695 | BI93: -95.02324766 | BJ93: 0.01275 | BK93: 0.01275 | BL93: 0 | BM93: 96 | BO93: 419 | BP93: 122.9300095 | BQ93: 78 | BR93: 1.576025763 | BS93: 99.96968225 | BT93: 0.0075 | BU93: 0.0075 | BV93: 0 | BW93: 0 | BY93: 0.9796054831 | BZ93: 1 | CA93: 0.9918421932 | CB93: 0.9 | CC93: 0.0025 | CD93: 2322.85429
A94: HAUT_RHIN | B94: MULHOUSE | C94: WITTENHEIM | D94: 5.516752036 | F94: 0.01 | G94: 0.01 | I94: 2 | J94: 2 | L94: 0.3750749625 | M94: 0.174 | N94: 0.7 | Q94: 118 | R94: 21.3893971 | S94: 36 | T94: 0.5941499194 | U94: -120.323688 | X94: 81 | Y94: 121 | AA94: 382 | AB94: 69.24364145 | AC94: 200 | AD94: 0.3462182073 | AE94: -942.0204888 | AH94: 722 | AI94: 943 | AK94: 1852.31655 | AL94: 335.7621546 | AM94: 786.9 | AN94: 0.4266897377 | AO94: -3357.042063 | AR94: 2489 | AS94: 3358 | AU94: 2390.30707 | AV94: 433.2815856 | AW94: 573 | AX94: 0.7561633257 | AY94: -1403.01163 | BB94: 771 | BC94: 1404 | BE94: 169.7 | BF94: 30.76085328 | BG94: 65 | BH94: 0.4732438967 | BI94: -368.1833236 | BL94: 154 | BM94: 369 | BO94: 545 | BP94: 98.79001202 | BQ94: 78 | BR94: 1.266538616 | BS94: 28.63200938 | BT94: 0.0075 | BU94: 0.0075 | BV94: 0 | BW94: 0 | BY94: 0.9893864872 | BZ94: 1 | CA94: 0.9957545949 | CB94: 0.9 | CC94: 0.0025 | CD94: 4341.132178
A95: MARNE_ARDENNES | B95: CHALONS_EN_CHAMPAGNE | C95: CHALONS ROOSEVELT | D95: 4.961573748 | F95: 0.0735 | G95: 0.0735 | I95: 7 | J95: 7 | L95: 0.75 | M95: 0.808 | N95: 0.7 | O95: 0.015 | Q95: 225 | R95: 45.34851469 | S95: 36 | T95: 1.259680964 | U95: 10.6600141 | V95: 0.01 | W95: 0.01 | X95: 0 | Y95: 0 | AA95: 958 | AB95: 193.0838981 | AC95: 200 | AD95: 0.9654194906 | AE95: -232.7776994 | AH95: 35 | AI95: 233 | AK95: 5427.79783 | AL95: 1093.966976 | AM95: 675.8 | AN95: 1.618773271 | AO95: 1404.159984 | AP95: 0.01 | AQ95: 0.01 | AR95: 0 | AS95: 0 | AU95: 3301.38748 | AV95: 665.391194 | AW95: 573 | AX95: 1.161241176 | AY95: -110.1906289 | AZ95: 0.012 | BA95: 0.012 | BB95: 0 | BC95: 111 | BE95: 367.4 | BF95: 74.04908577 | BG95: 65 | BH95: 1.139216704 | BI95: -116.3534404 | BJ95: 0.0165 | BK95: 0.0165 | BL95: 0 | BM95: 117 | BO95: 521 | BP95: 105.0070051 | BQ95: 78 | BR95: 1.346243656 | BS95: 56.59669722 | BT95: 0.0075 | BU95: 0.0075 | BV95: 0 | BW95: 0 | BY95: 0.997170701 | BZ95: 1 | CA95: 0.9988682804 | CB95: 0.9 | CC95: 0.0025 | CD95: 3353.031539
A96: MARNE_ARDENNES | B96: CHALONS_EN_CHAMPAGNE | C96: CHALONS VIVIERS | D96: 9.755155586 | F96: 0.05775 | G96: 0.05775 | I96: 7 | J96: 7 | L96: 0.63 | M96: 0.769 | N96: 0.7 | O96: 0.009 | Q96: 561 | R96: 57.50805254 | S96: 36 | T96: 1.597445904 | U96: 139.5772787 | V96: 0.01 | W96: 0.01 | X96: 0 | Y96: 0 | AA96: 1511 | AB96: 154.8924552 | AC96: 200 | AD96: 0.7744622762 | AE96: -830.2373407 | AH96: 441 | AI96: 831 | AK96: 11938.51907 | AL96: 1223.816367 | AM96: 705.5 | AN96: 1.734679471 | AO96: 3679.804351 | AP96: 0.01 | AQ96: 0.01 | AR96: 0 | AS96: 0 | AU96: 7551.53753 | AV96: 774.1073387 | AW96: 573 | AX96: 1.350972668 | AY96: 843.8925488 | AZ96: 0.015 | BA96: 0.015 | BB96: 0 | BC96: 0 | BE96: 604.2 | BF96: 61.93648012 | BG96: 65 | BH96: 0.9528689249 | BI96: -346.9276697 | BJ96: 0.00375 | BK96: 0.00375 | BL96: 0 | BM96: 347 | BO96: 1596 | BP96: 163.6057965 | BQ96: 78 | BR96: 2.097510212 | BS96: 682.9174371 | BT96: 0.0075 | BU96: 0.0075 | BV96: 0 | BW96: 0 | BY96: 0.9979991663 | BZ96: 1 | CA96: 0.9991996665 | CB96: 0.9 | CC96: 0.0025 | CD96: 6882.262266
A97: MARNE_ARDENNES | B97: CHALONS_EN_CHAMPAGNE | C97: FAGNIERES LECLERC | D97: 3.129399991 | F97: 0.05375 | G97: 0.05375 | I97: 6 | J97: 6 | L97: 0.84 | M97: 0.722 | N97: 0.7 | O97: 0.003 | Q97: 153 | R97: 48.89116139 | S97: 36 | T97: 1.358087816 | U97: 17.8099204 | V97: 0.01 | W97: 0.01 | X97: 0 | Y97: 0 | AA97: 372 | AB97: 118.8726277 | AC97: 200 | AD97: 0.5943631385 | AE97: -379.0559978 | AH97: 254 | AI97: 380 | AK97: 1732.75791 | AL97: 553.7029191 | AM97: 612 | AN97: 0.9047433319 | AO97: -565.4734432 | AR97: 183 | AS97: 566 | AU97: 2232.54147 | AV97: 713.4087929 | AW97: 573 | AX97: 1.245041523 | AY97: 80.76603633 | AZ97: 0.015 | BA97: 0.015 | BB97: 0 | BC97: 0 | BE97: 228.2 | BF97: 72.92132699 | BG97: 65 | BH97: 1.121866569 | BI97: -76.9164991 | BJ97: 0.01575 | BK97: 0.01575 | BL97: 0 | BM97: 77 | BO97: 300 | BP97: 95.86502233 | BQ97: 78 | BR97: 1.229038748 | BS97: 7.088160861 | BT97: 0.0075 | BU97: 0.0075 | BV97: 0 | BW97: 0 | BY97: 0.9976773649 | BZ97: 1 | CA97: 0.9990709459 | CB97: 0.9 | CC97: 0.0025 | CD97: 1915.192794
A98: MARNE_ARDENNES | B98: CHALONS_EN_CHAMPAGNE | C98: MONTMIRAIL | D98: 2.918181818 | F98: 0.06913 | G98: 0.06913 | I98: 7 | J98: 7 | L98: 0.93 | M98: 0.741 | N98: 0.7 | O98: 0.005 | Q98: 132 | R98: 45.23364486 | S98: 36 | T98: 1.256490135 | U98: 5.934545458 | V98: 0.01 | W98: 0.01 | X98: 0 | Y98: 0 | AA98: 405 | AB98: 138.7850467 | AC98: 200 | AD98: 0.6939252337 | AE98: -295.3636363 | AH98: 179 | AI98: 296 | AK98: 2187.85245 | AL98: 749.7313692 | AM98: 619 | AN98: 1.211197688 | AO98: 20.22699552 | AP98: 0.01 | AQ98: 0.01 | AR98: 0 | AS98: 0 | AU98: 2306.2191 | AV98: 790.2931496 | AW98: 573 | AX98: 1.379220156 | AY98: 299.6772819 | AZ98: 0.015 | BA98: 0.015 | BB98: 0 | BC98: 0 | BE98: 230.1 | BF98: 78.85046729 | BG98: 65 | BH98: 1.213084112 | BI98: -54.42272726 | BJ98: 0.01913 | BK98: 0.01913 | BL98: 0 | BM98: 55 | BO98: 293 | BP98: 100.4049844 | BQ98: 78 | BR98: 1.28724339 | BS98: 19.85818183 | BT98: 0.0075 | BU98: 0.0075 | BV98: 0 | BW98: 0 | BY98: 0.9955134596 | BZ98: 1 | CA98: 0.9982053838 | CB98: 0.9 | CC98: 0.0025 | CD98: 1806.354545
A99: MARNE_ARDENNES | B99: CHALONS_EN_CHAMPAGNE | C99: MOURMELON LE GRAND | D99: 2.901551227 | F99: 0.0945 | G99: 0.0945 | I99: 8 | J99: 8 | L99: 0.7459831122 | M99: 0.842 | N99: 0.7 | O99: 0.02 | Q99: 169 | R99: 58.24470664 | S99: 36 | T99: 1.617908518 | U99: 43.65298701 | V99: 0.01 | W99: 0.01 | X99: 0 | Y99: 0 | AA99: 735 | AB99: 253.3127774 | AC99: 200 | AD99: 1.266563887 | AE99: 38.62770562 | AF99: 0.01 | AG99: 0.01 | AH99: 0 | AI99: 0 | AK99: 2443.32889 | AL99: 842.0767718 | AM99: 656.6 | AN99: 1.282480615 | AO99: 157.1386475 | AP99: 0.01 | AQ99: 0.01 | AR99: 0 | AS99: 0 | AU99: 2448.9721 | AV99: 844.0216659 | AW99: 573 | AX99: 1.472987201 | AY99: 453.8654766 | AZ99: 0.015 | BA99: 0.015 | BB99: 0 | BC99: 0 | BE99: 229.3 | BF99: 79.02669369 | BG99: 65 | BH99: 1.215795287 | BI99: -53.60124459 | BJ99: 0.0195 | BK99: 0.0195 | BL99: 0 | BM99: 54 | BO99: 357 | BP99: 123.0376347 | BQ99: 78 | BR99: 1.577405574 | BS99: 85.41480519 | BT99: 0.0075 | BU99: 0.0075 | BV99: 0 | BW99: 0 | BY99: 0.995004995 | BZ99: 1 | CA99: 0.998001998 | CB99: 0.9 | CC99: 0.0025 | CD99: 1905.158535
A100: MARNE_ARDENNES | B100: CHALONS_EN_CHAMPAGNE | C100: SAINTE MENEHOULD | D100: 3.23471144 | F100: 0.05963 | G100: 0.05963 | I100: 7 | J100: 7 | L100: 0.5 | M100: 0.726 | N100: 0.7 | O100: 0.003 | Q100: 147 | R100: 45.44454822 | S100: 36 | T100: 1.262348562 | U100: 7.260465801 | V100: 0.01 | W100: 0.01 | X100: 0 | Y100: 0 | AA100: 551 | AB100: 170.3397692 | AC100: 200 | AD100: 0.8516988459 | AE100: -225.3307456 | AH100: 96 | AI100: 226 | AK100: 2695.97207 | AL100: 833.4505628 | AM100: 642.5 | AN100: 1.29719932 | AO100: 202.0095499 | AP100: 0.01 | AQ100: 0.01 | AR100: 0 | AS100: 0 | AU100: 2139.10781 | AV100: 661.2978777 | AW100: 573 | AX100: 1.154097518 | AY100: -85.07977601 | AZ100: 0.01125 | BA100: 0.01125 | BB100: 0 | BC100: 86 | BE100: 233.9 | BF100: 72.30938659 | BG100: 65 | BH100: 1.112452101 | BI100: -81.48436538 | BJ100: 0.01538 | BK100: 0.01538 | BL100: 0 | BM100: 82 | BO100: 386 | BP100: 119.3305824 | BQ100: 78 | BR100: 1.529879262 | BS100: 83.23100923 | BT100: 0.0075 | BU100: 0.0075 | BV100: 0 | BW100: 0 | BY100: 0.9964643489 | BZ100: 1 | CA100: 0.9985857395 | CB100: 0.9 | CC100: 0.0025 | CD100: 2078.3021
A101: MARNE_ARDENNES | B101: CHALONS_EN_CHAMPAGNE | C101: SARRY | D101: 2.509457771 | F101: 0.06575 | G101: 0.06575 | I101: 7 | J101: 7 | L101: 1 | M101: 0.845 | N101: 0.7 | O101: 0.02 | Q101: 109 | R101: 43.43567812 | S101: 36 | T101: 1.206546614 | U101: 0.5914242798 | V101: 0.01 | W101: 0.01 | X101: 0 | Y101: 0 | AA101: 413 | AB101: 164.5773859 | AC101: 200 | AD101: 0.8228869294 | AE101: -189.2698651 | AH101: 89 | AI101: 190 | AK101: 2480.30567 | AL101: 988.3831074 | AM101: 654 | AN101: 1.511289155 | AO101: 510.8832111 | AP101: 0.01 | AQ101: 0.01 | AR101: 0 | AS101: 0 | AU101: 1714.04608 | AV101: 683.0344386 | AW101: 573 | AX101: 1.192032179 | AY101: -11.45708355 | AZ101: 0.01425 | BA101: 0.01425 | BB101: 0 | BC101: 12 | BE101: 149.3 | BF101: 59.49492425 | BG101: 65 | BH101: 0.9153065268 | BI101: -95.3721327 | BJ101: 0.0015 | BK101: 0.0015 | BL101: 0 | BM101: 96 | BO101: 281 | BP101: 111.9763812 | BQ101: 78 | BR101: 1.435594631 | BS101: 46.11475261 | BT101: 0.0075 | BU101: 0.0075 | BV101: 0 | BW101: 0 | BY101: 0.9988851728 | BZ101: 1 | CA101: 0.9995540691 | CB101: 0.9 | CC101: 0.0025 | CD101: 1641.185382
A102: MARNE_ARDENNES | B102: CHALONS_EN_CHAMPAGNE | C102: SEZANNE | D102: 6.562410237 | F102: 0.0415 | G102: 0.0415 | I102: 6 | J102: 6 | L102: 0.68 | M102: 0.712 | N102: 0.7 | O102: 0.001 | Q102: 289 | R102: 44.0386976 | S102: 36 | T102: 1.223297156 | U102: 5.503877744 | V102: 0.01 | W102: 0.01 | X102: 0 | Y102: 0 | AA102: 890 | AB102: 135.6209027 | AC102: 200 | AD102: 0.6781045133 | AE102: -684.978457 | AH102: 423 | AI102: 685 | AK102: 6632.22599 | AL102: 1010.638736 | AM102: 783.4 | AN102: 1.290067317 | AO102: 463.035374 | AP102: 0.01 | AQ102: 0.01 | AR102: 0 | AS102: 0 | AU102: 4291.82323 | AV102: 654.0010567 | AW102: 573 | AX102: 1.141363101 | AY102: -220.4900492 | AZ102: 0.0105 | BA102: 0.0105 | BB102: 0 | BC102: 221 | BE102: 352.1 | BF102: 53.65406722 | BG102: 65 | BH102: 0.825447188 | BI102: -287.7349981 | BL102: 32 | BM102: 288 | BO102: 743 | BP102: 113.2205963 | BQ102: 78 | BR102: 1.451546106 | BS102: 128.7584018 | BT102: 0.0075 | BU102: 0.0075 | BV102: 0 | BW102: 0 | BY102: 0.9957886677 | BZ102: 1 | CA102: 0.9983154671 | CB102: 0.9 | CC102: 0.0025 | CD102: 5140.99218
A103: MARNE_ARDENNES | B103: CHALONS_EN_CHAMPAGNE | C103: VERTUS | D103: 2.492855637 | F103: 0.07275 | G103: 0.07275 | I103: 7 | J103: 7 | L103: 0.68 | M103: 0.861 | N103: 0.7 | O103: 0.02 | Q103: 104 | R103: 41.71922291 | S103: 36 | T103: 1.158867303 | U103: -3.691363523 | V103: 0.008 | W103: 0.008 | X103: 0 | Y103: 4 | AA103: 440 | AB103: 176.5044046 | AC103: 200 | AD103: 0.882522023 | AE103: -158.2853529 | AH103: 59 | AI103: 159 | AK103: 3523.9255 | AL103: 1413.609937 | AM103: 820.6 | AN103: 1.722654079 | AO103: 1069.160697 | AP103: 0.01 | AQ103: 0.01 | AR103: 0 | AS103: 0 | AU103: 1745.50147 | AV103: 700.2015857 | AW103: 573 | AX103: 1.221992296 | AY103: 31.41393393 | AZ103: 0.015 | BA103: 0.015 | BB103: 0 | BC103: 0 | BE103: 167 | BF103: 66.99144448 | BG103: 65 | BH103: 1.030637607 | BI103: -76.05342462 | BJ103: 0.00975 | BK103: 0.00975 | BL103: 0 | BM103: 77 | BO103: 252 | BP103: 101.0888863 | BQ103: 78 | BR103: 1.296011363 | BS103: 18.66871237 | BT103: 0.0075 | BU103: 0.0075 | BV103: 0 | BW103: 0 | BY103: 0.9972144847 | BZ103: 1 | CA103: 0.9988857939 | CB103: 0.9 | CC103: 0.0025 | CD103: 2045.637336
A104: MARNE_ARDENNES | B104: CHALONS_EN_CHAMPAGNE | C104: VITRY LE FRANCOIS | D104: 6.152246961 | F104: 0.03975 | G104: 0.03975 | I104: 6 | J104: 6 | L104: 0.58 | M104: 0.739 | N104: 0.7 | O104: 0.005 | Q104: 258 | R104: 41.93589783 | S104: 36 | T104: 1.164886051 | U104: -7.777068715 | V104: 0.008 | W104: 0.008 | X104: 0 | Y104: 8 | AA104: 598 | AB104: 97.20025932 | AC104: 200 | AD104: 0.4860012966 | AE104: -878.5392706 | AH104: 633 | AI104: 879 | AK104: 5650.92986 | AL104: 918.5147956 | AM104: 622.7 | AN104: 1.475051864 | AO104: 1053.724841 | AP104: 0.01 | AQ104: 0.01 | AR104: 0 | AS104: 0 | AU104: 3856.88135 | AV104: 626.9061327 | AW104: 573 | AX104: 1.09407702 | AY104: -373.4036604 | AZ104: 0.00675 | BA104: 0.00675 | BB104: 0 | BC104: 374 | BE104: 282.5 | BF104: 45.9181827 | BG104: 65 | BH104: 0.7064335801 | BI104: -317.3440787 | BL104: 78 | BM104: 318 | BO104: 786 | BP104: 127.7582004 | BQ104: 78 | BR104: 1.637925646 | BS104: 210.1496845 | BT104: 0.0075 | BU104: 0.0075 | BV104: 0 | BW104: 0 | BY104: 0.9963171577 | BZ104: 1 | CA104: 0.9985268631 | CB104: 0.9 | CC104: 0.0025 | CD104: 3831.004183
A105: MARNE_ARDENNES | B105: CHARLEVILLE_MEZIERES | C105: CARIGNAN | D105: 2.711806373 | F105: 0.07375 | G105: 0.07375 | I105: 7 | J105: 7 | L105: 0.72 | M105: 0.771 | N105: 0.7 | O105: 0.01 | Q105: 171 | R105: 63.05759943 | S105: 36 | T105: 1.751599984 | U105: 53.8499647 | V105: 0.01 | W105: 0.01 | X105: 0 | Y105: 0 | AA105: 492 | AB105: 181.4288826 | AC105: 200 | AD105: 0.9071444129 | AE105: -158.8335295 | AH105: 51 | AI105: 159 | AK105: 3023.85036 | AL105: 1115.068683 | AM105: 612 | AN105: 1.822007652 | AO105: 1032.29976 | AP105: 0.01 | AQ105: 0.01 | AR105: 0 | AS105: 0 | AU105: 1940.75229 | AV105: 715.6677222 | AW105: 573 | AX105: 1.248983808 | AY105: 76.11422806 | AZ105: 0.015 | BA105: 0.015 | BB105: 0 | BC105: 0 | BE105: 211.9 | BF105: 78.13979719 | BG105: 65 | BH105: 1.202150726 | BI105: -52.50112135 | BJ105: 0.01875 | BK105: 0.01875 | BL105: 0 | BM105: 53 | BO105: 335 | BP105: 123.5338936 | BQ105: 78 | BR105: 1.583767867 | BS105: 81.17492351 | BT105: 0.0075 | BU105: 0.0075 | BV105: 0 | BW105: 0 | BY105: 0.9973377022 | BZ105: 1 | CA105: 0.9989350809 | CB105: 0.9 | CC105: 0.0025 | CD105: 1659.6255
A106: MARNE_ARDENNES | B106: CHARLEVILLE_MEZIERES | C106: CHARLEVILLE JEAN JAURES | D106: 9.526654997 | F106: 0.0415 | G106: 0.0415 | I106: 7 | J106: 7 | L106: 0.68 | M106: 0.729 | N106: 0.7 | O106: 0.004 | Q106: 571 | R106: 59.93709231 | S106: 36 | T106: 1.664919231 | U106: 159.4485041 | V106: 0.01 | W106: 0.01 | X106: 0 | Y106: 0 | AA106: 1226 | AB106: 128.6915502 | AC106: 200 | AD106: 0.6434577511 | AE106: -1060.397199 | AH106: 680 | AI106: 1061 | AK106: 9159.94959 | AL106: 961.5074328 | AM106: 709.6 | AN106: 1.354999201 | AO106: 1047.812327 | AP106: 0.01 | AQ106: 0.01 | AR106: 0 | AS106: 0 | AU106: 5615.00597 | AV106: 589.3995292 | AW106: 573 | AX106: 1.02862047 | AY106: -935.5220061 | AZ106: 0.00225 | BA106: 0.00225 | BB106: 0 | BC106: 936 | BE106: 603.7 | BF106: 63.36956678 | BG106: 65 | BH106: 0.9749164119 | BI106: -325.1488622 | BJ106: 0.00525 | BK106: 0.00525 | BL106: 0 | BM106: 326 | BO106: 1133 | BP106: 118.9294669 | BQ106: 78 | BR106: 1.524736755 | BS106: 241.3050923 | BT106: 0.0075 | BU106: 0.0075 | BV106: 0 | BW106: 0 | BY106: 0.9942422847 | BZ106: 1 | CA106: 0.9976969139 | CB106: 0.9 | CC106: 0.0025 | CD106: 6760.114386
A107: MARNE_ARDENNES | B107: CHARLEVILLE_MEZIERES | C107: CHARLEVILLE MEZIERES | D107: 3.608065036 | F107: 0.0575 | G107: 0.0575 | I107: 6 | J107: 6 | L107: 0.6 | M107: 0.584 | N107: 0.7 | Q107: 305 | R107: 84.53284433 | S107: 36 | T107: 2.348134565 | U107: 149.1315905 | V107: 0.01 | W107: 0.01 | X107: 0 | Y107: 0 | AA107: 747 | AB107: 207.0361794 | AC107: 200 | AD107: 1.035180897 | AE107: -118.9356086 | AF107: 0.002 | AG107: 0.002 | AH107: 0 | AI107: 119 | AK107: 2754.82318 | AL107: 763.5181608 | AM107: 612 | AN107: 1.247578694 | AO107: 105.0602178 | AP107: 0.01 | AQ107: 0.01 | AR107: 0 | AS107: 0 | AU107: 2156.05517 | AV107: 597.5654953 | AW107: 573 | AX107: 1.042871719 | AY107: -324.8503485 | AZ107: 0.003 | BA107: 0.003 | BB107: 0 | BC107: 325 | BE107: 387.6 | BF107: 107.4260015 | BG107: 65 | BH107: 1.652707716 | BI107: 35.81365902 | BJ107: 0.03 | BK107: 0.03 | BL107: 0 | BM107: 0 | BO107: 267 | BP107: 74.0008834 | BQ107: 78 | BR107: 0.9487292743 | BS107: -70.71488734 | BV107: 15 | BW107: 71 | BY107: 0.9988015751 | BZ107: 1 | CA107: 0.99952063 | CB107: 0.9 | CC107: 0.0025 | CD107: 2208.135802
A108: MARNE_ARDENNES | B108: CHARLEVILLE_MEZIERES | C108: CHARLEVILLE MOHON | D108: 3.387346217 | F108: 0.020375 | G108: 0.020375 | I108: 5 | J108: 5 | L108: 0.55 | M108: 0.733 | N108: 0.7 | O108: 0.004 | Q108: 137 | R108: 40.4446405 | S108: 36 | T108: 1.123462236 | U108: -9.333356592 | V108: 0.006 | W108: 0.006 | X108: 0 | Y108: 10 | AA108: 362 | AB108: 106.8683201 | AC108: 200 | AD108: 0.5343416007 | AE108: -450.9630922 | AH108: 316 | AI108: 451 | AK108: 2377.01431 | AL108: 701.733498 | AM108: 612 | AN108: 1.146623363 | AO108: -110.6527521 | AP108: 0.0075 | AQ108: 0.0075 | AR108: 0 | AS108: 111 | AU108: 1383.94533 | AV108: 408.5632944 | AW108: 573 | AX108: 0.7130249467 | AY108: -945.1939291 | BB108: 558 | BC108: 946 | BE108: 122.3 | BF108: 36.10496009 | BG108: 65 | BH108: 0.5554609245 | BI108: -207.9662562 | BL108: 76 | BM108: 208 | BO108: 266 | BP108: 78.52755016 | BQ108: 78 | BR108: 1.006763464 | BS108: -51.05560595 | BT108: 0.000375 | BU108: 0.000375 | BV108: 0 | BW108: 52 | BY108: 0.9959829274 | BZ108: 1 | CA108: 0.998393171 | CB108: 0.9 | CC108: 0.0025 | CD108: 2073.055885
A109: MARNE_ARDENNES | B109: CHARLEVILLE_MEZIERES | C109: CHARLEVILLE NEVERS | D109: 3.010692641 | F109: 0.0505 | G109: 0.0505 | I109: 6 | J109: 6 | L109: 0.7 | M109: 0.617 | N109: 0.7 | Q109: 144 | R109: 47.82952536 | S109: 36 | T109: 1.328597927 | U109: 13.93807792 | V109: 0.01 | W109: 0.01 | X109: 0 | Y109: 0 | AA109: 516 | AB109: 171.3891325 | AC109: 200 | AD109: 0.8569456626 | AE109: -206.5662338 | AH109: 87 | AI109: 207 | AK109: 1893.40577 | AL109: 628.893745 | AM109: 626 | AN109: 1.004622596 | AO109: -368.2265417 | AP109: 0.0005 | AQ109: 0.0005 | AR109: 0 | AS109: 369 | AU109: 2072.44471 | AV109: 688.3614362 | AW109: 573 | AX109: 1.201328859 | AY109: 2.292450255 | AZ109: 0.015 | BA109: 0.015 | BB109: 0 | BC109: 0 | BE109: 215.4 | BF109: 71.54499835 | BG109: 65 | BH109: 1.100692282 | BI109: -78.14253247 | BJ109: 0.015 | BK109: 0.015 | BL109: 0 | BM109: 79 | BO109: 318 | BP109: 105.6235352 | BQ109: 78 | BR109: 1.354147887 | BS109: 36.19916883 | BT109: 0.0075 | BU109: 0.0075 | BV109: 0 | BW109: 0 | BY109: 0.9994778068 | BZ109: 1 | CA109: 0.9997911227 | CB109: 0.9 | CC109: 0.0025 | CD109: 1884.693593
A110: MARNE_ARDENNES | B110: CHARLEVILLE_MEZIERES | C110: GIVET | D110: 3.587832612 | F110: 0.06338 | G110: 0.06338 | I110: 6 | J110: 6 | L110: 0.55 | M110: 0.67 | N110: 0.7 | Q110: 207 | R110: 57.69499929 | S110: 36 | T110: 1.602638869 | U110: 52.00563117 | V110: 0.01 | W110: 0.01 | X110: 0 | Y110: 0 | AA110: 584 | AB110: 162.7723651 | AC110: 200 | AD110: 0.8138618257 | AE110: -277.0798269 | AH110: 134 | AI110: 278 | AK110: 2677.45962 | AL110: 746.2610187 | AM110: 623.5 | AN110: 1.196890166 | AO110: -6.956740224 | AP110: 0.01 | AQ110: 0.01 | AR110: 0 | AS110: 7 | AU110: 2524.11179 | AV110: 703.5199417 | AW110: 573 | AX110: 1.227783493 | AY110: 57.11808606 | AZ110: 0.015 | BA110: 0.015 | BB110: 0 | BC110: 0 | BE110: 278 | BF110: 77.48410533 | BG110: 65 | BH110: 1.192063159 | BI110: -71.81367966 | BJ110: 0.01838 | BK110: 0.01838 | BL110: 0 | BM110: 72 | BO110: 373 | BP110: 103.9624866 | BQ110: 78 | BR110: 1.332852393 | BS110: 37.17886753 | BT110: 0.0075 | BU110: 0.0075 | BV110: 0 | BW110: 0 | BY110: 0.9991268282 | BZ110: 1 | CA110: 0.9996507313 | CB110: 0.9 | CC110: 0.0025 | CD110: 2237.013634
A111: MARNE_ARDENNES | B111: CHARLEVILLE_MEZIERES | C111: MOUZON | D111: 1.972727273 | F111: 0.04275 | G111: 0.04275 | I111: 6 | J111: 6 | L111: 0.58 | M111: 0.531 | N111: 0.7 | Q111: 105 | R111: 53.22580645 | S111: 36 | T111: 1.478494624 | U111: 19.77818182 | V111: 0.01 | W111: 0.01 | X111: 0 | Y111: 0 | AA111: 202 | AB111: 102.3963134 | AC111: 200 | AD111: 0.5119815668 | AE111: -271.4545455 | AH111: 193 | AI111: 272 | AK111: 1305.80142 | AL111: 661.9269871 | AM111: 612 | AN111: 1.081580044 | AO111: -142.9694891 | AP111: 0.004 | AQ111: 0.004 | AR111: 0 | AS111: 143 | AU111: 1668.33496 | AV111: 845.6997493 | AW111: 573 | AX111: 1.475915793 | AY111: 311.8876872 | AZ111: 0.015 | BA111: 0.015 | BB111: 0 | BC111: 0 | BE111: 122.1 | BF111: 61.89400921 | BG111: 65 | BH111: 0.9522155264 | BI111: -70.2409091 | BJ111: 0.00375 | BK111: 0.00375 | BL111: 0 | BM111: 71 | BO111: 247 | BP111: 125.2073733 | BQ111: 78 | BR111: 1.605222734 | BS111: 62.35272727 | BT111: 0.0075 | BU111: 0.0075 | BV111: 0 | BW111: 0 | BY111: 0.9988649262 | BZ111: 1 | CA111: 0.9995459705 | CB111: 0.9 | CC111: 0.0025 | CD111: 1207.309091
A112: MARNE_ARDENNES | B112: CHARLEVILLE_MEZIERES | C112: RETHEL | D112: 5.738025334 | F112: 0.030875 | G112: 0.030875 | I112: 6 | J112: 6 | L112: 0.5 | M112: 0.714 | N112: 0.7 | O112: 0.002 | Q112: 243 | R112: 42.34906363 | S112: 36 | T112: 1.176362879 | U112: -4.88269445 | V112: 0.009 | W112: 0.009 | X112: 0 | Y112: 5 | AA112: 629 | AB112: 109.6195927 | AC112: 200 | AD112: 0.5480979634 | AE112: -748.1260803 | AH112: 519 | AI112: 749 | AK112: 3825.24611 | AL112: 666.6485223 | AM112: 622.9 | AN112: 1.070233621 | AO112: -463.813067 | AP112: 0.0035 | AQ112: 0.0035 | AR112: 0 | AS112: 464 | AU112: 2272.76422 | AV112: 396.0882163 | AW112: 573 | AX112: 0.6912534316 | AY112: -1672.702 | BB112: 1016 | BC112: 1673 | BE112: 380.8 | BF112: 66.36429395 | BG112: 65 | BH112: 1.020989138 | BI112: -178.6574701 | BJ112: 0.009 | BK112: 0.009 | BL112: 0 | BM112: 179 | BO112: 505 | BP112: 88.00937092 | BQ112: 78 | BR112: 1.128325268 | BS112: -32.07917131 | BT112: 0.004875 | BU112: 0.004875 | BV112: 0 | BW112: 33 | BY112: 0.9954862536 | BZ112: 1 | CA112: 0.9981945014 | CB112: 0.9 | CC112: 0.0025 | CD112: 3574.215981
A113: MARNE_ARDENNES | B113: CHARLEVILLE_MEZIERES | C113: REVIN | D113: 4.239259646 | F113: 0.0365 | G113: 0.0365 | I113: 5 | J113: 5 | L113: 0.55 | M113: 0.763 | N113: 0.7 | O113: 0.009 | Q113: 185 | R113: 43.63969547 | S113: 36 | T113: 1.212213763 | U113: 1.86398328 | V113: 0.01 | W113: 0.01 | X113: 0 | Y113: 0 | AA113: 641 | AB113: 151.2056476 | AC113: 200 | AD113: 0.7560282378 | AE113: -376.4223151 | AH113: 207 | AI113: 377 | AK113: 2320.46871 | AL113: 547.3759344 | AM113: 612 | AN113: 0.8944051215 | AO113: -792.8435742 | AR113: 274 | AS113: 793 | AU113: 2366.70395 | AV113: 558.2823765 | AW113: 573 | AX113: 0.9743147932 | AY113: -548.2109828 | BB113: 63 | BC113: 549 | BE113: 276.1 | BF113: 65.12929687 | BG113: 65 | BH113: 1.001989183 | BI113: -137.2278155 | BJ113: 0.0075 | BK113: 0.0075 | BL113: 0 | BM113: 138 | BO113: 422 | BP113: 99.54568373 | BQ113: 78 | BR113: 1.276226714 | BS113: 25.20529711 | BT113: 0.0075 | BU113: 0.0075 | BV113: 0 | BW113: 0 | BY113: 0.9983909895 | BZ113: 1 | CA113: 0.9993563958 | CB113: 0.9 | CC113: 0.0025 | CD113: 2594.426904
A114: MARNE_ARDENNES | B114: CHARLEVILLE_MEZIERES | C114: ROCROI | D114: 3.186120567 | F114: 0.0115 | G114: 0.0115 | I114: 4 | J114: 4 | L114: 0.45 | M114: 0.493 | N114: 0.7 | Q114: 100 | R114: 31.38613178 | S114: 36 | T114: 0.871836994 | U114: -37.6404085 | X114: 15 | Y114: 38 | AA114: 312 | AB114: 97.92473116 | AC114: 200 | AD114: 0.4896236558 | AE114: -452.6689361 | AH114: 326 | AI114: 453 | AK114: 1130.91077 | AL114: 354.9491446 | AM114: 612 | AN114: 0.5799822625 | AO114: -1208.976175 | AR114: 819 | AS114: 1209 | AU114: 1849.57139 | AV114: 580.5089139 | AW114: 573 | AX114: 1.013104562 | AY114: -341.205112 | AZ114: 0.00075 | BA114: 0.00075 | BB114: 0 | BC114: 342 | BE114: 189 | BF114: 59.31978907 | BG114: 65 | BH114: 0.9126121395 | BI114: -121.6467553 | BJ114: 0.00075 | BK114: 0.00075 | BL114: 0 | BM114: 122 | BO114: 303 | BP114: 95.0999793 | BQ114: 78 | BR114: 1.219230504 | BS114: 4.77911491 | BT114: 0.0075 | BU114: 0.0075 | BV114: 0 | BW114: 0 | BY114: 0.9992121331 | BZ114: 1 | CA114: 0.9996848533 | CB114: 0.9 | CC114: 0.0025 | CD114: 1949.905787
A115: MARNE_ARDENNES | B115: CHARLEVILLE_MEZIERES | C115: SEDAN | D115: 9.454317397 | F115: 0.056 | G115: 0.056 | I115: 6 | J115: 6 | L115: 0.89 | M115: 0.781 | N115: 0.7 | O115: 0.011 | Q115: 410 | R115: 43.36643068 | S115: 36 | T115: 1.204623074 | U115: 1.573488437 | V115: 0.01 | W115: 0.01 | X115: 0 | Y115: 0 | AA115: 1089 | AB115: 115.1854707 | AC115: 200 | AD115: 0.5759273537 | AE115: -1180.036175 | AH115: 802 | AI115: 1181 | AK115: 8835.01468 | AL115: 934.4952479 | AM115: 666.7 | AN115: 1.401672788 | AO115: 1271.182589 | AP115: 0.01 | AQ115: 0.01 | AR115: 0 | AS115: 0 | AU115: 6554.88317 | AV115: 693.3216746 | AW115: 573 | AX115: 1.20998547 | AY115: 54.09452762 | AZ115: 0.015 | BA115: 0.015 | BB115: 0 | BC115: 0 | BE115: 447.6 | BF115: 47.34344968 | BG115: 65 | BH115: 0.7283607644 | BI115: -474.1959462 | BL115: 106 | BM115: 475 | BO115: 958 | BP115: 101.3293673 | BQ115: 78 | BR115: 1.299094452 | BS115: 73.07589161 | BT115: 0.0075 | BU115: 0.0075 | BV115: 0 | BW115: 0 | BY115: 0.9965556831 | BZ115: 1 | CA115: 0.9986222732 | CB115: 0.9 | CC115: 0.0025 | CD115: 6303.193409
A116: MARNE_ARDENNES | B116: CHARLEVILLE_MEZIERES | C116: VILLERS SEMEUSE CORA | D116: 3.586059307 | F116: 0.05825 | G116: 0.05825 | I116: 5 | J116: 5 | L116: 0.33 | M116: 0.661 | N116: 0.7 | Q116: 240 | R116: 66.92583124 | S116: 36 | T116: 1.859050868 | U116: 85.08223793 | V116: 0.01 | W116: 0.01 | X116: 0 | Y116: 0 | AA116: 383 | AB116: 106.8024723 | AC116: 200 | AD116: 0.5340123617 | AE116: -477.6542337 | AH116: 335 | AI116: 478 | AK116: 2027.40529 | AL116: 565.3574345 | AM116: 612 | AN116: 0.9237866577 | AO116: -606.1966652 | AR116: 168 | AS116: 607 | AU116: 2567.24864 | AV116: 715.8968718 | AW116: 573 | AX116: 1.24938372 | AY116: 101.4742604 | AZ116: 0.015 | BA116: 0.015 | BB116: 0 | BC116: 0 | BE116: 308.6 | BF116: 86.05546467 | BG116: 65 | BH116: 1.323930226 | BI116: -41.04078245 | BJ116: 0.02325 | BK116: 0.02325 | BL116: 0 | BM116: 42 | BO116: 387 | BP116: 107.9179029 | BQ116: 78 | BR116: 1.383562857 | BS116: 51.34484885 | BT116: 0.0075 | BU116: 0.0075 | BV116: 0 | BW116: 0 | BY116: 0.9976686095 | BZ116: 1 | CA116: 0.9990674438 | CB116: 0.9 | CC116: 0.0025 | CD116: 2194.668296
A117: MARNE_ARDENNES | B117: CHARLEVILLE_MEZIERES | C117: VOUZIERS | D117: 2.898422737 | F117: 0.06563 | G117: 0.06563 | I117: 6 | J117: 6 | L117: 0.6 | M117: 0.651 | N117: 0.7 | Q117: 138 | R117: 47.61210235 | S117: 36 | T117: 1.322558399 | U117: 12.78813777 | V117: 0.01 | W117: 0.01 | X117: 0 | Y117: 0 | AA117: 472 | AB117: 162.8471907 | AC117: 200 | AD117: 0.8142359533 | AE117: -223.6214568 | AH117: 108 | AI117: 224 | AK117: 2375.06714 | AL117: 819.4343461 | AM117: 612 | AN117: 1.33894501 | AO117: 246.4654822 | AP117: 0.01 | AQ117: 0.01 | AR117: 0 | AS117: 0 | AU117: 2187.39364 | AV117: 754.6841295 | AW117: 573 | AX117: 1.31707527 | AY117: 194.4381662 | AZ117: 0.015 | BA117: 0.015 | BB117: 0 | BC117: 0 | BE117: 235.5 | BF117: 81.25108771 | BG117: 65 | BH117: 1.250016734 | BI117: -47.09621683 | BJ117: 0.02063 | BK117: 0.02063 | BL117: 0 | BM117: 48 | BO117: 363 | BP117: 125.2405301 | BQ117: 78 | BR117: 1.605647822 | BS117: 91.70763184 | BT117: 0.0075 | BU117: 0.0075 | BV117: 0 | BW117: 0 | BY117: 0.9968879668 | BZ117: 1 | CA117: 0.9987551867 | CB117: 0.9 | CC117: 0.0025 | CD117: 1773.834715
A118: MARNE_ARDENNES | B118: REIMS | C118: AY CHAMPAGNE | D118: 2.494199134 | F118: 0.06 | G118: 0.06 | I118: 6 | J118: 6 | L118: 0.67 | M118: 0.646 | N118: 0.7 | Q118: 150 | R118: 60.13954457 | S118: 36 | T118: 1.670542905 | U118: 42.2505974 | V118: 0.01 | W118: 0.01 | X118: 0 | Y118: 0 | AA118: 274 | AB118: 109.8549014 | AC118: 200 | AD118: 0.5492745071 | AE118: -324.6077922 | AH118: 225 | AI118: 325 | AK118: 2934.51129 | AL118: 1176.534483 | AM118: 828 | AN118: 1.420935366 | AO118: 456.2750302 | AP118: 0.01 | AQ118: 0.01 | AR118: 0 | AS118: 0 | AU118: 1742.88383 | AV118: 698.7749318 | AW118: 573 | AX118: 1.219502499 | AY118: 27.87250526 | AZ118: 0.015 | BA118: 0.015 | BB118: 0 | BC118: 0 | BE118: 178.5 | BF118: 71.56605804 | BG118: 65 | BH118: 1.101016277 | BI118: -64.68441559 | BJ118: 0.015 | BK118: 0.015 | BL118: 0 | BM118: 65 | BO118: 285 | BP118: 114.2651347 | BQ118: 78 | BR118: 1.464937624 | BS118: 51.54296103 | BT118: 0.0075 | BU118: 0.0075 | BV118: 0 | BW118: 0 | BY118: 0.9910447761 | BZ118: 1 | CA118: 0.9964179104 | CB118: 0.9 | CC118: 0.0025 | CD118: 2065.196883
A119: MARNE_ARDENNES | B119: REIMS | C119: BETHENY | D119: 2.975 | F119: 0.06413 | G119: 0.06413 | I119: 6 | J119: 6 | L119: 0.47 | M119: 0.615 | N119: 0.7 | Q119: 244 | R119: 82.01680672 | S119: 36 | T119: 2.278244631 | U119: 115.48 | V119: 0.01 | W119: 0.01 | X119: 0 | Y119: 0 | AA119: 574 | AB119: 192.9411765 | AC119: 200 | AD119: 0.9647058824 | AE119: -140 | AH119: 21 | AI119: 140 | AK119: 3934.66797 | AL119: 1322.577469 | AM119: 793.4 | AN119: 1.666974375 | AO119: 1102.22997 | AP119: 0.01 | AQ119: 0.01 | AR119: 0 | AS119: 0 | AU119: 2699.41155 | AV119: 907.3652269 | AW119: 573 | AX119: 1.583534427 | AY119: 653.80155 | AZ119: 0.015 | BA119: 0.015 | BB119: 0 | BC119: 0 | BE119: 234.5 | BF119: 78.82352941 | BG119: 65 | BH119: 1.212669683 | BI119: -55.5625 | BJ119: 0.01913 | BK119: 0.01913 | BL119: 0 | BM119: 56 | BO119: 367 | BP119: 123.3613445 | BQ119: 78 | BR119: 1.581555699 | BS119: 88.54 | BT119: 0.0075 | BU119: 0.0075 | BV119: 0 | BW119: 0 | BY119: 0.9961912823 | BZ119: 1 | CA119: 0.9984765129 | CB119: 0.9 | CC119: 0.0025 | CD119: 2360.365
A120: MARNE_ARDENNES | B120: REIMS | C120: DAMERY | D120: 2.186956522 | F120: 0.06413 | G120: 0.06413 | I120: 6 | J120: 6 | L120: 0.75 | M120: 0.414 | N120: 0.7 | Q120: 144 | R120: 65.84493042 | S120: 36 | T120: 1.829025845 | U120: 49.52347826 | V120: 0.01 | W120: 0.01 | X120: 0 | Y120: 0 | AA120: 264 | AB120: 120.7157058 | AC120: 200 | AD120: 0.6035785288 | AE120: -260.8695652 | AH120: 174 | AI120: 261 | AK120: 3035.0701 | AL120: 1387.805414 | AM120: 828 | AN120: 1.676093495 | AO120: 862.1101 | AP120: 0.01 | AQ120: 0.01 | AR120: 0 | AS120: 0 | AU120: 1614.21604 | AV120: 738.1107141 | AW120: 573 | AX120: 1.288151334 | AY120: 110.4647357 | AZ120: 0.015 | BA120: 0.015 | BB120: 0 | BC120: 0 | BE120: 171.3 | BF120: 78.32803181 | BG120: 65 | BH120: 1.205046643 | BI120: -41.92826087 | BJ120: 0.01913 | BK120: 0.01913 | BL120: 0 | BM120: 42 | BO120: 222 | BP120: 101.5109344 | BQ120: 78 | BR120: 1.301422236 | BS120: 17.30086957 | BT120: 0.0075 | BU120: 0.0075 | BV120: 0 | BW120: 0 | BY120: 0.9973360656 | BZ120: 1 | CA120: 0.9989344262 | CB120: 0.9 | CC120: 0.0025 | CD120: 1810.8
A121: MARNE_ARDENNES | B121: REIMS | C121: DORMANS | D121: 2.484991217 | F121: 0.0435 | G121: 0.0435 | I121: 6 | J121: 6 | L121: 0.67 | M121: 0.655 | N121: 0.7 | Q121: 109 | R121: 43.86333411 | S121: 36 | T121: 1.218425948 | U121: 1.648379447 | V121: 0.01 | W121: 0.01 | X121: 0 | Y121: 0 | AA121: 287 | AB121: 115.493366 | AC121: 200 | AD121: 0.5774668299 | AE121: -309.397892 | AH121: 210 | AI121: 310 | AK121: 1944.12571 | AL121: 782.3471154 | AM121: 768.6 | AN121: 1.017885916 | AO121: -347.8313888 | AP121: 0.001 | AQ121: 0.001 | AR121: 0 | AS121: 348 | AU121: 1665.44405 | AV121: 670.2011818 | AW121: 573 | AX121: 1.16963557 | AY121: -43.23591047 | AZ121: 0.01275 | BA121: 0.01275 | BB121: 0 | BC121: 44 | BE121: 166.7 | BF121: 67.08273208 | BG121: 65 | BH121: 1.032042032 | BI121: -75.58664361 | BJ121: 0.00975 | BK121: 0.00975 | BL121: 0 | BM121: 76 | BO121: 242 | BP121: 97.38465005 | BQ121: 78 | BR121: 1.248521155 | BS121: 9.404822136 | BT121: 0.0075 | BU121: 0.0075 | BV121: 0 | BW121: 0 | BY121: 0.9971212666 | BZ121: 1 | CA121: 0.9988485067 | CB121: 0.9 | CC121: 0.0025 | CD121: 1909.964249
A122: MARNE_ARDENNES | B122: REIMS | C122: EPERNAY | D122: 11.33578721 | F122: 0.04725 | G122: 0.04725 | I122: 6 | J122: 6 | L122: 0.7692821457 | M122: 0.727 | N122: 0.7 | O122: 0.003 | Q122: 540 | R122: 47.63674459 | S122: 36 | T122: 1.323242905 | U122: 50.29399262 | V122: 0.01 | W122: 0.01 | X122: 0 | Y122: 0 | AA122: 1182 | AB122: 104.2715409 | AC122: 200 | AD122: 0.5213577047 | AE122: -1538.58893 | AH122: 1086 | AI122: 1539 | AK122: 12155.29236 | AL122: 1072.293625 | AM122: 828 | AN122: 1.29504061 | AO122: 892.0541903 | AP122: 0.01 | AQ122: 0.01 | AR122: 0 | AS122: 0 | AU122: 7725.52883 | AV122: 681.5167477 | AW122: 573 | AX122: 1.189383504 | AY122: -68.95845408 | AZ122: 0.01425 | BA122: 0.01425 | BB122: 0 | BC122: 69 | BE122: 624.5 | BF122: 55.09101296 | BG122: 65 | BH122: 0.8475540456 | BI122: -480.7392528 | BL122: 39 | BM122: 481 | BO122: 1718 | BP122: 151.5554208 | BQ122: 78 | BR122: 1.943018215 | BS122: 656.9703173 | BT122: 0.0075 | BU122: 0.0075 | BV122: 0 | BW122: 0 | BY122: 0.9956083279 | BZ122: 1 | CA122: 0.9982433312 | CB122: 0.9 | CC122: 0.0025 | CD122: 9386.031808
A123: MARNE_ARDENNES | B123: REIMS | C123: FISMES | D123: 2.915300834 | F123: 0.057 | G123: 0.057 | I123: 6 | J123: 6 | L123: 0.68 | M123: 0.79 | N123: 0.7 | O123: 0.012 | Q123: 160 | R123: 54.88284369 | S123: 36 | T123: 1.524523436 | U123: 34.05900395 | V123: 0.01 | W123: 0.01 | X123: 0 | Y123: 0 | AA123: 391 | AB123: 134.1199493 | AC123: 200 | AD123: 0.6705997463 | AE123: -308.6722003 | AH123: 193 | AI123: 309 | AK123: 2229.61965 | AL123: 764.7991671 | AM123: 617.6 | AN123: 1.23834062 | AO123: 69.03189554 | AP123: 0.01 | AQ123: 0.01 | AR123: 0 | AS123: 0 | AU123: 2090.73505 | AV123: 717.1592809 | AW123: 573 | AX123: 1.251586878 | AY123: 86.1741962 | AZ123: 0.015 | BA123: 0.015 | BB123: 0 | BC123: 0 | BE123: 148.2 | BF123: 50.83523396 | BG123: 65 | BH123: 0.7820805225 | BI123: -136.0418314 | BL123: 23 | BM123: 137 | BO123: 321 | BP123: 110.1087051 | BQ123: 78 | BR123: 1.411650066 | BS123: 48.12784189 | BT123: 0.0075 | BU123: 0.0075 | BV123: 0 | BW123: 0 | BY123: 0.9956264471 | BZ123: 1 | CA123: 0.9982505789 | CB123: 0.9 | CC123: 0.0025 | CD123: 1800.489795
A124: MARNE_ARDENNES | B124: REIMS | C124: PIERRY LECLERC | D124: 1.922608696 | F124: 0.066 | G124: 0.066 | I124: 7 | J124: 7 | L124: 0.8 | M124: 0.786 | N124: 0.7 | O124: 0.012 | Q124: 95 | R124: 49.41203075 | S124: 36 | T124: 1.37255641 | U124: 11.94330435 | V124: 0.01 | W124: 0.01 | X124: 0 | Y124: 0 | AA124: 323 | AB124: 168.0009046 | AC124: 200 | AD124: 0.8400045228 | AE124: -138.426087 | AH124: 62 | AI124: 139 | AK124: 1839.68745 | AL124: 956.8704511 | AM124: 791.5 | AN124: 1.208932977 | AO124: 13.59371082 | AP124: 0.01 | AQ124: 0.01 | AR124: 0 | AS124: 0 | AU124: 1324.65068 | AV124: 688.9861067 | AW124: 573 | AX124: 1.202419034 | AY124: 2.664940837 | AZ124: 0.015 | BA124: 0.015 | BB124: 0 | BC124: 0 | BE124: 127.1 | BF124: 66.10809588 | BG124: 65 | BH124: 1.017047629 | BI124: -60.35434783 | BJ124: 0.009 | BK124: 0.009 | BL124: 0 | BM124: 61 | BO124: 193 | BP124: 100.3844414 | BQ124: 78 | BR124: 1.286980018 | BS124: 13.04382608 | BT124: 0.0075 | BU124: 0.0075 | BV124: 0 | BW124: 0 | BY124: 0.9923761118 | BZ124: 1 | CA124: 0.9969504447 | CB124: 0.9 | CC124: 0.0025 | CD124: 1521.744783
A125: MARNE_ARDENNES | B125: REIMS | C125: REIMS CENTRE VILLE | D125: 7.38840952 | F125: 0.05263 | G125: 0.05263 | I125: 5 | J125: 5 | L125: 0.78 | M125: 0.629 | N125: 0.7 | Q125: 478 | R125: 64.6959266 | S125: 36 | T125: 1.797109072 | U125: 158.8207087 | V125: 0.01 | W125: 0.01 | X125: 0 | Y125: 0 | AA125: 684 | AB125: 92.57743472 | AC125: 200 | AD125: 0.4628871736 | AE125: -1089.218285 | AH125: 794 | AI125: 1090 | AK125: 5756.05384 | AL125: 779.0653488 | AM125: 828 | AN125: 0.9409001798 | AO125: -1585.069859 | AR125: 362 | AS125: 1586 | AU125: 5788.7149 | AV125: 783.4859295 | AW125: 573 | AX125: 1.367340191 | AY125: 708.4445141 | AZ125: 0.015 | BA125: 0.015 | BB125: 0 | BC125: 0 | BE125: 560.1 | BF125: 75.80792571 | BG125: 65 | BH125: 1.16627578 | BI125: -160.2699282 | BJ125: 0.01763 | BK125: 0.01763 | BL125: 0 | BM125: 161 | BO125: 1015 | BP125: 137.3773337 | BQ125: 78 | BR125: 1.761247868 | BS125: 323.4448689 | BT125: 0.0075 | BU125: 0.0075 | BV125: 0 | BW125: 0 | BY125: 0.9977995837 | BZ125: 1 | CA125: 0.9991198335 | CB125: 0.9 | CC125: 0.0025 | CD125: 6117.603082
A126: MARNE_ARDENNES | B126: REIMS | C126: REIMS CHATILLONS | D126: 4.118775463 | F126: 0.047 | G126: 0.047 | I126: 5 | J126: 5 | L126: 0.6 | M126: 0.599 | N126: 0.7 | Q126: 235 | R126: 57.05579295 | S126: 36 | T126: 1.584883137 | U126: 57.0689 | V126: 0.01 | W126: 0.01 | X126: 0 | Y126: 0 | AA126: 600 | AB126: 145.674365 | AC126: 200 | AD126: 0.7283718248 | AE126: -388.5061111 | AH126: 224 | AI126: 389 | AK126: 2717.38363 | AL126: 659.7552245 | AM126: 723.5 | AN126: 0.9118938831 | AO126: -858.5372269 | AR126: 263 | AS126: 859 | AU126: 2735.77005 | AV126: 664.2192745 | AW126: 573 | AX126: 1.159195942 | AY126: -96.29995829 | AZ126: 0.012 | BA126: 0.012 | BB126: 0 | BC126: 97 | BE126: 294.6 | BF126: 71.5261132 | BG126: 65 | BH126: 1.100401742 | BI126: -106.9806076 | BJ126: 0.015 | BK126: 0.015 | BL126: 0 | BM126: 107 | BO126: 643 | BP126: 156.1143611 | BQ126: 78 | BR126: 2.001466168 | BS126: 257.4826167 | BT126: 0.0075 | BU126: 0.0075 | BV126: 0 | BW126: 0 | BY126: 0.9981617647 | BZ126: 1 | CA126: 0.9992647059 | CB126: 0.9 | CC126: 0.0025 | CD126: 2979.934047
A127: MARNE_ARDENNES | B127: REIMS | C127: REIMS EUROPE | D127: 2.742041007 | F127: 0.0405 | G127: 0.0405 | I127: 6 | J127: 6 | L127: 0.3 | M127: 0.527 | N127: 0.7 | Q127: 110 | R127: 40.11610319 | S127: 36 | T127: 1.1143362 | U127: -8.456171507 | V127: 0.0055 | W127: 0.0055 | X127: 0 | Y127: 9 | AA127: 299 | AB127: 109.0428623 | AC127: 200 | AD127: 0.5452143116 | AE127: -359.0898417 | AH127: 250 | AI127: 360 | AK127: 2508.90805 | AL127: 914.9783112 | AM127: 667.8 | AN127: 1.370138232 | AO127: 311.5460686 | AP127: 0.01 | AQ127: 0.01 | AR127: 0 | AS127: 0 | AU127: 1661.788 | AV127: 606.0405354 | AW127: 573 | AX127: 1.057662365 | AY127: -223.6393965 | AZ127: 0.0045 | BA127: 0.0045 | BB127: 0 | BC127: 224 | BE127: 185.9 | BF127: 67.7962144 | BG127: 65 | BH127: 1.043018683 | BI127: -81.44899819 | BJ127: 0.0105 | BK127: 0.0105 | BL127: 0 | BM127: 82 | BO127: 266 | BP127: 97.00803136 | BQ127: 78 | BR127: 1.24369271 | BS127: 9.344961735 | BT127: 0.0075 | BU127: 0.0075 | BV127: 0 | BW127: 0 | BY127: 0.9977464789 | BZ127: 1 | CA127: 0.9990985915 | CB127: 0.9 | CC127: 0.0025 | CD127: 1831.134985
A128: MARNE_ARDENNES | B128: REIMS | C128: REIMS HIPPODROME | D128: 3.965760966 | F128: 0.0625 | G128: 0.0625 | I128: 7 | J128: 7 | L128: 0.79 | M128: 0.767 | N128: 0.7 | O128: 0.009 | Q128: 291 | R128: 73.3780988 | S128: 36 | T128: 2.038280522 | U128: 119.6791263 | V128: 0.01 | W128: 0.01 | X128: 0 | Y128: 0 | AA128: 466 | AB128: 117.5058215 | AC128: 200 | AD128: 0.5875291073 | AE128: -485.7826319 | AH128: 328 | AI128: 486 | AK128: 3119.18565 | AL128: 786.52891 | AM128: 715.1 | AN128: 1.099886603 | AO128: -283.9131502 | AP128: 0.005 | AQ128: 0.005 | AR128: 0 | AS128: 284 | AU128: 2906.75428 | AV128: 732.9625524 | AW128: 573 | AX128: 1.279166758 | AY128: 179.8970397 | AZ128: 0.015 | BA128: 0.015 | BB128: 0 | BC128: 0 | BE128: 277.2 | BF128: 69.89831267 | BG128: 65 | BH128: 1.075358657 | BI128: -109.4616942 | BJ128: 0.0135 | BK128: 0.0135 | BL128: 0 | BM128: 110 | BO128: 499 | BP128: 125.8270492 | BQ128: 78 | BR128: 1.613167297 | BS128: 127.8047736 | BT128: 0.0075 | BU128: 0.0075 | BV128: 0 | BW128: 0 | BY128: 0.9967320261 | BZ128: 1 | CA128: 0.9986928105 | CB128: 0.9 | CC128: 0.0025 | CD128: 2835.915667
A129: MARNE_ARDENNES | B129: REIMS | C129: REIMS HOTEL DE VILLE | D129: 8.28085026 | F129: 0.054 | G129: 0.054 | I129: 6 | J129: 6 | L129: 0.74 | M129: 0.681 | N129: 0.7 | Q129: 494 | R129: 59.6557098 | S129: 36 | T129: 1.65710305 | U129: 136.2672688 | V129: 0.01 | W129: 0.01 | X129: 0 | Y129: 0 | AA129: 1036 | AB129: 125.1079258 | AC129: 200 | AD129: 0.6255396291 | AE129: -951.4040623 | AH129: 621 | AI129: 952 | AK129: 12647.53461 | AL129: 1527.323187 | AM129: 828 | AN129: 1.844593221 | AO129: 4419.681792 | AP129: 0.01 | AQ129: 0.01 | AR129: 0 | AS129: 0 | AU129: 5543.1276 | AV129: 669.3911164 | AW129: 573 | AX129: 1.168221844 | AY129: -150.7850386 | AZ129: 0.01275 | BA129: 0.01275 | BB129: 0 | BC129: 151 | BE129: 562.7 | BF129: 67.95195932 | BG129: 65 | BH129: 1.045414759 | BI129: -244.6829003 | BJ129: 0.01125 | BK129: 0.01125 | BL129: 0 | BM129: 245 | BO129: 927 | BP129: 111.9450263 | BQ129: 78 | BR129: 1.435192645 | BS129: 151.9124157 | BT129: 0.0075 | BU129: 0.0075 | BV129: 0 | BW129: 0 | BY129: 0.997238114 | BZ129: 1 | CA129: 0.9988952456 | CB129: 0.9 | CC129: 0.0025 | CD129: 6856.544015
A130: MARNE_ARDENNES | B130: REIMS | C130: REIMS JEAN JAURES | D130: 4.284542515 | F130: 0.02525 | G130: 0.02525 | I130: 4 | J130: 4 | L130: 0.25 | M130: 0.673 | N130: 0.7 | Q130: 230 | R130: 53.68134386 | S130: 36 | T130: 1.491148441 | U130: 44.90776337 | V130: 0.01 | W130: 0.01 | X130: 0 | Y130: 0 | AA130: 527 | AB130: 123.0002966 | AC130: 200 | AD130: 0.6150014829 | AE130: -501.2902035 | AH130: 330 | AI130: 502 | AK130: 2220.71182 | AL130: 518.3078036 | AM130: 675.8 | AN130: 0.7669544297 | AO130: -1253.880778 | AR130: 675 | AS130: 1254 | AU130: 2275.77378 | AV130: 531.159108 | AW130: 573 | AX130: 0.926979246 | AY130: -670.277653 | BB130: 180 | BC130: 671 | BE130: 271.4 | BF130: 63.34398575 | BG130: 65 | BH130: 0.9745228578 | BI130: -146.3428952 | BJ130: 0.00525 | BK130: 0.00525 | BL130: 0 | BM130: 147 | BO130: 420 | BP130: 98.02680183 | BQ130: 78 | BR130: 1.25675387 | BS130: 18.96682064 | BT130: 0.0075 | BU130: 0.0075 | BV130: 0 | BW130: 0 | BY130: 0.9992198471 | BZ130: 1 | CA130: 0.9996879388 | CB130: 0.9 | CC130: 0.0025 | CD130: 2895.493831
A131: MARNE_ARDENNES | B131: REIMS | C131: REIMS SAINTE ANNE | D131: 1.796832298 | F131: 0.01 | G131: 0.01 | I131: 2 | J131: 2 | L131: 0.25 | M131: 0.533 | N131: 0.7 | Q131: 57 | R131: 31.722493 | S131: 36 | T131: 0.8811803611 | U131: -20.62315528 | X131: 8 | Y131: 21 | AA131: 141 | AB131: 78.47143005 | AC131: 200 | AD131: 0.3923571503 | AE131: -290.2397515 | AH131: 219 | AI131: 291 | AK131: 1200.18691 | AL131: 667.9459799 | AM131: 687.4 | AN131: 0.9716991269 | AO131: -281.9841161 | AR131: 35 | AS131: 282 | AU131: 774.27668 | AV131: 430.9120449 | AW131: 573 | AX131: 0.7520280017 | AY131: -461.2252082 | BB131: 256 | BC131: 462 | BE131: 75.9 | BF131: 42.24100384 | BG131: 65 | BH131: 0.6498615975 | BI131: -99.29114906 | BL131: 30 | BM131: 100 | BO131: 234 | BP131: 130.2291818 | BQ131: 78 | BR131: 1.669604895 | BS131: 65.8164969 | BT131: 0.0075 | BU131: 0.0075 | BV131: 0 | BW131: 0 | BY131: 0.9988355167 | BZ131: 1 | CA131: 0.9995342067 | CB131: 0.9 | CC131: 0.0025 | CD131: 1235.142522
A132: MARNE_ARDENNES | B132: REIMS | C132: REIMS SAINT MARCEAUX | D132: 4.686817484 | F132: 0.04925 | G132: 0.04925 | I132: 5 | J132: 5 | L132: 0.72 | M132: 0.664 | N132: 0.7 | Q132: 233 | R132: 49.71390519 | S132: 36 | T132: 1.380941811 | U132: 30.52948471 | V132: 0.01 | W132: 0.01 | X132: 0 | Y132: 0 | AA132: 440 | AB132: 93.88033597 | AC132: 200 | AD132: 0.4694016799 | AE132: -684.8361961 | AH132: 498 | AI132: 685 | AK132: 3377.95284 | AL132: 720.7348807 | AM132: 828 | AN132: 0.8704527545 | AO132: -1278.869012 | AR132: 503 | AS132: 1279 | AU132: 3254.71505 | AV132: 694.4403236 | AW132: 573 | AX132: 1.211937738 | AY132: 32.05934828 | AZ132: 0.015 | BA132: 0.015 | BB132: 0 | BC132: 0 | BE132: 333.3 | BF132: 71.1143545 | BG132: 65 | BH132: 1.094066992 | BI132: -123.6647047 | BJ132: 0.01425 | BK132: 0.01425 | BL132: 0 | BM132: 124 | BO132: 459 | BP132: 97.93425957 | BQ132: 78 | BR132: 1.25556743 | BS132: 20.31388354 | BT132: 0.0075 | BU132: 0.0075 | BV132: 0 | BW132: 0 | BY132: 0.9936213395 | BZ132: 1 | CA132: 0.9974485358 | CB132: 0.9 | CC132: 0.0025 | CD132: 3880.684876
A133: MARNE_ARDENNES | B133: REIMS | C133: REIMS SAINT REMI | D133: 2.981818182 | F133: 0.07025 | G133: 0.07025 | I133: 7 | J133: 7 | L133: 0.9 | M133: 0.715 | N133: 0.7 | O133: 0.002 | Q133: 246 | R133: 82.5 | S133: 36 | T133: 2.291666667 | U133: 117.1854545 | V133: 0.01 | W133: 0.01 | X133: 0 | Y133: 0 | AA133: 502 | AB133: 168.3536585 | AC133: 200 | AD133: 0.8417682927 | AE133: -213.6363637 | AH133: 95 | AI133: 214 | AK133: 2782.46602 | AL133: 933.144092 | AM133: 766.8 | AN133: 1.216932827 | AO133: 38.71620174 | AP133: 0.01 | AQ133: 0.01 | AR133: 0 | AS133: 0 | AU133: 2126.45452 | AV133: 713.1402353 | AW133: 573 | AX133: 1.244572837 | AY133: 76.15633813 | AZ133: 0.015 | BA133: 0.015 | BB133: 0 | BC133: 0 | BE133: 255.8 | BF133: 85.78658536 | BG133: 65 | BH133: 1.319793621 | BI133: -34.92727274 | BJ133: 0.02325 | BK133: 0.02325 | BL133: 0 | BM133: 35 | BO133: 287 | BP133: 96.25 | BQ133: 78 | BR133: 1.233974359 | BS133: 7.901818174 | BT133: 0.0075 | BU133: 0.0075 | BV133: 0 | BW133: 0 | BY133: 0.9990871748 | BZ133: 1 | CA133: 0.9996348699 | CB133: 0.9 | CC133: 0.0025 | CD133: 2286.458182
A134: MARNE_ARDENNES | B134: REIMS | C134: REIMS SAINT THOMAS | D134: 7.54554195 | F134: 0.045 | G134: 0.045 | I134: 5 | J134: 5 | L134: 0.35 | M134: 0.412 | N134: 0.7 | Q134: 392 | R134: 51.95120544 | S134: 36 | T134: 1.44308904 | U134: 66.03258778 | V134: 0.01 | W134: 0.01 | X134: 0 | Y134: 0 | AA134: 908 | AB134: 120.3359555 | AC134: 200 | AD134: 0.6016797773 | AE134: -902.9300679 | AH134: 602 | AI134: 903 | AK134: 9169.13065 | AL134: 1215.171914 | AM134: 726 | AN134: 1.673790515 | AO134: 2595.454504 | AP134: 0.01 | AQ134: 0.01 | AR134: 0 | AS134: 0 | AU134: 5331.70276 | AV134: 706.6030241 | AW134: 573 | AX134: 1.233164091 | AY134: 143.3881155 | AZ134: 0.015 | BA134: 0.015 | BB134: 0 | BC134: 0 | BE134: 417.1 | BF134: 55.27767293 | BG134: 65 | BH134: 0.8504257374 | BI134: -318.5903401 | BL134: 25 | BM134: 319 | BO134: 948 | BP134: 125.6370989 | BQ134: 78 | BR134: 1.610732037 | BS134: 241.7372735 | BT134: 0.0075 | BU134: 0.0075 | BV134: 0 | BW134: 0 | BY134: 0.9982404692 | BZ134: 1 | CA134: 0.9992961877 | CB134: 0.9 | CC134: 0.0025 | CD134: 5478.063455
A135: MARNE_ARDENNES | B135: REIMS | C135: TINQUEUX | D135: 5.816623377 | F135: 0.05925 | G135: 0.05925 | I135: 6 | J135: 6 | L135: 0.82 | M135: 0.69 | N135: 0.7 | Q135: 411 | R135: 70.65955166 | S135: 36 | T135: 1.962765324 | U135: 159.7218701 | V135: 0.01 | W135: 0.01 | X135: 0 | Y135: 0 | AA135: 790 | AB135: 135.8176297 | AC135: 200 | AD135: 0.6790881486 | AE135: -605.9896104 | AH135: 374 | AI135: 606 | AK135: 6090.7476 | AL135: 1047.127724 | AM135: 772.8 | AN135: 1.354978939 | AO135: 696.6437454 | AP135: 0.01 | AQ135: 0.01 | AR135: 0 | AS135: 0 | AU135: 3922.88629 | AV135: 674.4267311 | AW135: 573 | AX135: 1.177010002 | AY135: -76.62394382 | AZ135: 0.0135 | BA135: 0.0135 | BB135: 0 | BC135: 77 | BE135: 424.5 | BF135: 72.98048584 | BG135: 65 | BH135: 1.122776705 | BI135: -142.6207792 | BJ135: 0.01575 | BK135: 0.01575 | BL135: 0 | BM135: 143 | BO135: 698 | BP135: 120.0008931 | BQ135: 78 | BR135: 1.538472988 | BS135: 153.5640519 | BT135: 0.0075 | BU135: 0.0075 | BV135: 0 | BW135: 0 | BY135: 0.9961494904 | BZ135: 1 | CA135: 0.9984597961 | CB135: 0.9 | CC135: 0.0025 | CD135: =D135*AM135 -> 4495.086546
A136: MEURTHE_ET_MOSELLE_MEUSE | B136: NANCY | C136: BACCARAT | D136: 2.749560117 | F136: 0.041 | G136: 0.041 | I136: 7 | J136: 7 | L136: 0.81 | M136: 0.779 | N136: 0.7 | O136: 0.011 | Q136: 104 | R136: 37.82423208 | S136: 36 | T136: 1.050673113 | U136: -14.78099707 | V136: 0.0025 | W136: 0.0025 | X136: 0 | Y136: 15 | AA136: 315 | AB136: 114.5637799 | AC136: 200 | AD136: 0.5728188993 | AE136: -344.8944282 | AH136: 235 | AI136: 345 | AK136: 2027.11573 | AL136: 737.2509214 | AM136: 724.7 | AN136: 1.017318782 | AO136: -364.0117304 | AP136: 0.001 | AQ136: 0.001 | AR136: 0 | AS136: 365 | AU136: 1782.05581 | AV136: 648.1239667 | AW136: 573 | AX136: 1.131106399 | AY136: -108.5417267 | AZ136: 0.00975 | BA136: 0.00975 | BB136: 0 | BC136: 109 | BE136: 177.7 | BF136: 64.62851962 | BG136: 65 | BH136: 0.9942849173 | BI136: -90.38211144 | BJ136: 0.00675 | BK136: 0.00675 | BL136: 0 | BM136: 91 | BO136: 292 | BP136: 106.1988055 | BQ136: 78 | BR136: 1.361523147 | BS136: 34.64117302 | BT136: 0.0075 | BU136: 0.0075 | BV136: 0 | BW136: 0 | BY136: 0.9969627942 | BZ136: 1 | CA136: 0.9987851177 | CB136: 0.9 | CC136: 0.0025 | CD136: 1992.606217
A137: MEURTHE_ET_MOSELLE_MEUSE | B137: NANCY | C137: BLAINVILLE | D137: 3.343416554 | F137: 0.05813 | G137: 0.05813 | I137: 6 | J137: 6 | L137: 0.7171791153 | M137: 0.488 | N137: 0.7 | Q137: 166 | R137: 49.649811 | S137: 36 | T137: 1.379161417 | U137: 21.56440487 | V137: 0.01 | W137: 0.01 | X137: 0 | Y137: 0 | AA137: 440 | AB137: 131.6019087 | AC137: 200 | AD137: 0.6580095434 | AE137: -362.419973 | AH137: 229 | AI137: 363 | AK137: 4082.51701 | AL137: 1221.061433 | AM137: 647 | AN137: 1.887266512 | AO137: 1486.688397 | AP137: 0.01 | AQ137: 0.01 | AR137: 0 | AS137: 0 | AU137: 2211.98257 | AV137: 661.5934731 | AW137: 573 | AX137: 1.154613391 | AY137: -86.95065253 | AZ137: 0.01125 | BA137: 0.01125 | BB137: 0 | BC137: 87 | BE137: 250.8 | BF137: 75.01308794 | BG137: 65 | BH137: 1.154047507 | BI137: -75.18311402 | BJ137: 0.01688 | BK137: 0.01688 | BL137: 0 | BM137: 76 | BO137: 454 | BP137: 135.7892421 | BQ137: 78 | BR137: 1.74088772 | BS137: 141.0562105 | BT137: 0.0075 | BU137: 0.0075 | BV137: 0 | BW137: 0 | BY137: 0.9981606376 | BZ137: 1 | CA137: 0.9992642551 | CB137: 0.9 | CC137: 0.0025 | CD137: 2163.19051
A138: MEURTHE_ET_MOSELLE_MEUSE | B138: NANCY | C138: BLAMONT | D138: 1.557188863 | F138: 0.03425 | G138: 0.03425 | I138: 4 | J138: 4 | L138: 0.4 | N138: 0.7 | Q138: 86 | R138: 55.2277261 | S138: 36 | T138: 1.534103503 | U138: 18.72944113 | V138: 0.01 | W138: 0.01 | X138: 0 | Y138: 0 | AA138: 109 | AB138: 69.99793192 | AC138: 200 | AD138: 0.3499896596 | AE138: -264.7253271 | AH138: 203 | AI138: 265 | AK138: 650.66042 | AL138: 417.8429705 | AM138: 612 | AN138: 0.6827499517 | AO138: -492.9390808 | AR138: 303 | AS138: 493 | AU138: 886.91219 | AV138: 569.5598082 | AW138: 573 | AX138: 0.9939961748 | AY138: -183.8108721 | BB138: 6 | BC138: 184 | BE138: 110.8 | BF138: 71.15386107 | BG138: 65 | BH138: 1.094674786 | BI138: -41.02591412 | BJ138: 0.01425 | BK138: 0.01425 | BL138: 0 | BM138: 42 | BO138: 147 | BP138: 94.40088066 | BQ138: 78 | BR138: 1.210267701 | BS138: 1.247122442 | BT138: 0.0075 | BU138: 0.0075 | BV138: 0 | BW138: 0 | BY138: 0.9976327359 | BZ138: 1 | CA138: 0.9990530944 | CB138: 0.9 | CC138: 0.0025 | CD138: 952.999584
A139: MEURTHE_ET_MOSELLE_MEUSE | B139: NANCY | C139: DOMBASLE SUR MEURTHE | D139: 3.661631229 | F139: 0.06675 | G139: 0.06675 | I139: 6 | J139: 6 | L139: 0.5 | M139: 0.457 | N139: 0.7 | Q139: 185 | R139: 50.52393003 | S139: 36 | T139: 1.403442501 | U139: 26.81753092 | V139: 0.01 | W139: 0.01 | X139: 0 | Y139: 0 | AA139: 530 | AB139: 144.744232 | AC139: 200 | AD139: 0.7237211599 | AE139: -348.7914949 | AH139: 203 | AI139: 349 | AK139: 4506.00964 | AL139: 1230.601707 | AM139: 704.9 | AN139: 1.745781965 | AO139: 1408.709016 | AP139: 0.01 | AQ139: 0.01 | AR139: 0 | AS139: 0 | AU139: 2822.77019 | AV139: 770.9051004 | AW139: 573 | AX139: 1.345384119 | AY139: 305.0325572 | AZ139: 0.015 | BA139: 0.015 | BB139: 0 | BC139: 0 | BE139: 305.2 | BF139: 83.35082944 | BG139: 65 | BH139: 1.282320453 | BI139: -51.80904479 | BJ139: 0.02175 | BK139: 0.02175 | BL139: 0 | BM139: 52 | BO139: 462 | BP139: 126.1732739 | BQ139: 78 | BR139: 1.617606076 | BS139: 119.271317 | BT139: 0.0075 | BU139: 0.0075 | BV139: 0 | BW139: 0 | BY139: 0.9970414201 | BZ139: 1 | CA139: 0.998816568 | CB139: 0.9 | CC139: 0.0025 | CD139: 2581.083853
A140: MEURTHE_ET_MOSELLE_MEUSE | B140: NANCY | C140: ESSEY LES NANCY | D140: 3.869929105 | F140: 0.028 | G140: 0.028 | I140: 5 | J140: 5 | L140: 0.75 | M140: 0.735 | N140: 0.7 | O140: 0.005 | Q140: 172 | R140: 44.44525864 | S140: 36 | T140: 1.234590518 | U140: 4.819062673 | V140: 0.01 | W140: 0.01 | X140: 0 | Y140: 0 | AA140: 302 | AB140: 78.03760529 | AC140: 200 | AD140: 0.3901880265 | AE140: -626.7829852 | AH140: 472 | AI140: 627 | AK140: 2435.88647 | AL140: 629.4395592 | AM140: 787.3 | AN140: 0.7994913746 | AO140: -1220.267751 | AR140: 611 | AS140: 1221 | AU140: 2304.03641 | AV140: 595.3691521 | AW140: 573 | AX140: 1.03903866 | AY140: -356.9268425 | AZ140: 0.003 | BA140: 0.003 | BB140: 0 | BC140: 357 | BE140: 192.6 | BF140: 49.76835358 | BG140: 65 | BH140: 0.7656669781 | BI140: -184.7180877 | BL140: 34 | BM140: 185 | BO140: 749 | BP140: 193.5435972 | BQ140: 78 | BR140: 2.48132817 | BS140: 386.7746358 | BT140: 0.0075 | BU140: 0.0075 | BV140: 0 | BW140: 0 | BY140: 0.9988766149 | BZ140: 1 | CA140: 0.9995506459 | CB140: 0.9 | CC140: 0.0025 | CD140: 3046.795184
A141: MEURTHE_ET_MOSELLE_MEUSE | B141: NANCY | C141: JARVILLE LA MALGRANGE | D141: 3.359021534 | F141: 0.076 | G141: 0.076 | I141: 7 | J141: 7 | L141: 0.25 | M141: 0.702 | N141: 0.7 | O141: 0.001 | Q141: 219 | R141: 65.19755761 | S141: 36 | T141: 1.811043267 | U141: 73.89026971 | V141: 0.01 | W141: 0.01 | X141: 0 | Y141: 0 | AA141: 500 | AB141: 148.8528713 | AC141: 200 | AD141: 0.7442643563 | AE141: -306.1651683 | AH141: 172 | AI141: 307 | AK141: 3113.91123 | AL141: 927.0292548 | AM141: 733.2 | AN141: 1.264360686 | AO141: 158.5097232 | AP141: 0.01 | AQ141: 0.01 | AR141: 0 | AS141: 0 | AU141: 2395.0613 | AV141: 713.0235027 | AW141: 573 | AX141: 1.244369115 | AY141: 85.39809295 | AZ141: 0.015 | BA141: 0.015 | BB141: 0 | BC141: 0 | BE141: 353 | BF141: 105.0901271 | BG141: 65 | BH141: 1.616771186 | BI141: 25.4954004 | BJ141: 0.03 | BK141: 0.03 | BL141: 0 | BM141: 0 | BO141: 426 | BP141: 126.8226463 | BQ141: 78 | BR141: 1.625931363 | BS141: 111.5955844 | BT141: 0.0075 | BU141: 0.0075 | BV141: 0 | BW141: 0 | BY141: 0.9974135144 | BZ141: 1 | CA141: 0.9989654058 | CB141: 0.9 | CC141: 0.0025 | CD141: 2462.834589
A142: MEURTHE_ET_MOSELLE_MEUSE | B142: NANCY | C142: LUNEVILLE CARNOT | D142: 9.88530928 | F142: 0.06488 | G142: 0.06488 | I142: 6 | J142: 6 | L142: 0.2 | M142: 0.543 | N142: 0.7 | Q142: 534 | R142: 54.01955415 | S142: 36 | T142: 1.500543171 | U142: 106.9546391 | V142: 0.01 | W142: 0.01 | X142: 0 | Y142: 0 | AA142: 1188 | AB142: 120.178334 | AC142: 200 | AD142: 0.6008916698 | AE142: -1184.474227 | AH142: 790 | AI142: 1185 | AK142: 11828.00935 | AL142: 1196.523954 | AM142: 668.9 | AN142: 1.788793473 | AO142: 3893.269297 | AP142: 0.01 | AQ142: 0.01 | AR142: 0 | AS142: 0 | AU142: 7703.36005 | AV142: 779.2735494 | AW142: 573 | AX142: 1.359988742 | AY142: 906.2213889 | AZ142: 0.015 | BA142: 0.015 | BB142: 0 | BC142: 0 | BE142: 790.6 | BF142: 79.97726501 | BG142: 65 | BH142: 1.230419462 | BI142: -173.2176548 | BJ142: 0.01988 | BK142: 0.01988 | BL142: 0 | BM142: 174 | BO142: 1116 | BP142: 112.8947986 | BQ142: 78 | BR142: 1.447369212 | BS142: 190.7350514 | BT142: 0.0075 | BU142: 0.0075 | BV142: 0 | BW142: 0 | BY142: 0.9925427873 | BZ142: 1 | CA142: 0.9970171149 | CB142: 0.9 | CC142: 0.0025 | CD142: 6612.283378
A143: MEURTHE_ET_MOSELLE_MEUSE | B143: NANCY | C143: NANCY ARTEM | D143: 2.613991235 | F143: 0.05975 | G143: 0.05975 | I143: 6 | J143: 6 | L143: 0.74 | M143: 0.769 | N143: 0.7 | O143: 0.009 | Q143: 148 | R143: 56.61839949 | S143: 36 | T143: 1.572733319 | U143: 35.07557865 | V143: 0.01 | W143: 0.01 | X143: 0 | Y143: 0 | AA143: 293 | AB143: 112.0891287 | AC143: 200 | AD143: 0.5604456436 | AE143: -334.3578964 | AH143: 230 | AI143: 335 | AK143: 1993.59922 | AL143: 762.664845 | AM143: 775.3 | AN143: 0.9837028828 | AO143: -438.3536653 | AR143: 34 | AS143: 439 | AU143: 1946.96824 | AV143: 744.8258487 | AW143: 573 | AX143: 1.299870591 | AY143: 149.5878669 | AZ143: 0.015 | BA143: 0.015 | BB143: 0 | BC143: 0 | BE143: 189.7 | BF143: 72.5710161 | BG143: 65 | BH143: 1.116477171 | BI143: -65.1641454 | BJ143: 0.01575 | BK143: 0.01575 | BL143: 0 | BM143: 66 | BO143: 315 | BP143: 120.5053773 | BQ143: 78 | BR143: 1.544940735 | BS143: 70.33042041 | BT143: 0.0075 | BU143: 0.0075 | BV143: 0 | BW143: 0 | BY143: 0.996547756 | BZ143: 1 | CA143: 0.9986191024 | CB143: 0.9 | CC143: 0.0025 | CD143: 2026.627404
A144: MEURTHE_ET_MOSELLE_MEUSE | B144: NANCY | C144: NANCY PLACE DOMBASLE | D144: 11.29003854 | F144: 0.07375 | G144: 0.07375 | I144: 6 | J144: 6 | L144: 0.41 | M144: 0.547 | N144: 0.7 | Q144: 1113 | R144: 98.58248017 | S144: 36 | T144: 2.738402227 | U144: 625.2703353 | V144: 0.01 | W144: 0.01 | X144: 0 | Y144: 0 | AA144: 1580 | AB144: 139.946378 | AC144: 200 | AD144: 0.6997318898 | AE144: -1129.609248 | AH144: 679 | AI144: 1130 | AK144: 11129.97199 | AL144: 985.8223208 | AM144: 828 | AN144: 1.190606668 | AO144: -87.81029838 | AP144: 0.0095 | AQ144: 0.0095 | AR144: 0 | AS144: 88 | AU144: 7711.22013 | AV144: 683.0109664 | AW144: 573 | AX144: 1.191991215 | AY144: -51.81036667 | AZ144: 0.01425 | BA144: 0.01425 | BB144: 0 | BC144: 52 | BE144: 1158.9 | BF144: 102.648011 | BG144: 65 | BH144: 1.57920017 | BI144: 58.12124284 | BJ144: 0.03 | BK144: 0.03 | BL144: 0 | BM144: 0 | BO144: 1217 | BP144: 107.7941405 | BQ144: 78 | BR144: 1.38197616 | BS144: 160.2523931 | BT144: 0.0075 | BU144: 0.0075 | BV144: 0 | BW144: 0 | BY144: 0.9968903437 | BZ144: 1 | CA144: 0.9987561375 | CB144: 0.9 | CC144: 0.0025 | CD144: 9348.151907
A145: MEURTHE_ET_MOSELLE_MEUSE | B145: NANCY | C145: NANCY POINT CENTRAL | D145: 4.000910852 | F145: 0.02375 | G145: 0.02375 | I145: 4 | J145: 4 | L145: 0.3 | M145: 0.565 | N145: 0.7 | Q145: 224 | R145: 55.98725098 | S145: 36 | T145: 1.555201416 | U145: 51.16065121 | V145: 0.01 | W145: 0.01 | X145: 0 | Y145: 0 | AA145: 376 | AB145: 93.97859986 | AC145: 200 | AD145: 0.4698929993 | AE145: -584.2186044 | AH145: 425 | AI145: 585 | AK145: 1582.75393 | AL145: 395.5983996 | AM145: 733.3 | AN145: 0.5394768848 | AO145: -1937.887583 | AR145: 1352 | AS145: 1938 | AU145: 2409.00045 | AV145: 602.1130036 | AW145: 573 | AX145: 1.050808034 | AY145: -342.0258516 | AZ145: 0.00375 | BA145: 0.00375 | BB145: 0 | BC145: 343 | BE145: 229.4 | BF145: 57.33694364 | BG145: 65 | BH145: 0.8821068252 | BI145: -160.688808 | BL145: 5 | BM145: 161 | BO145: 409 | BP145: 102.2267217 | BQ145: 78 | BR145: 1.310598996 | BS145: 34.51474428 | BT145: 0.0075 | BU145: 0.0075 | BV145: 0 | BW145: 0 | BY145: 0.9967434287 | BZ145: 1 | CA145: 0.9986973715 | CB145: 0.9 | CC145: 0.0025 | CD145: 2933.867928
A146: MEURTHE_ET_MOSELLE_MEUSE | B146: NANCY | C146: NANCY SAINT SEBASTIEN | D146: 5.288830736 | F146: 0.01675 | G146: 0.01675 | I146: 4 | J146: 4 | L146: 0.7586552567 | M146: 0.625 | N146: 0.7 | Q146: 170 | R146: 32.14321057 | S146: 36 | T146: 0.8928669602 | U146: -58.4774878 | X146: 21 | Y146: 59 | AA146: 491 | AB146: 92.83715523 | AC146: 200 | AD146: 0.4641857761 | AE146: -778.3193766 | AH146: 567 | AI146: 779 | AK146: 4800.5908 | AL146: 907.6847114 | AM146: 808.7 | AN146: 1.122399791 | AO146: -331.9020994 | AP146: 0.006 | AQ146: 0.006 | AR146: 0 | AS146: 332 | AU146: 2252.50787 | AV146: 425.8990281 | AW146: 573 | AX146: 0.7432792811 | AY146: -1384.092144 | BB146: 778 | BC146: 1385 | BE146: 309.9 | BF146: 58.59518209 | BG146: 65 | BH146: 0.9014643398 | BI146: -205.7609968 | BJ146: 0.00075 | BK146: 0.00075 | BL146: 0 | BM146: 206 | BO146: 538 | BP146: 101.7238076 | BQ146: 78 | BR146: 1.304151379 | BS146: 42.96544311 | BT146: 0.0075 | BU146: 0.0075 | BV146: 0 | BW146: 0 | BY146: 0.9959427717 | BZ146: 1 | CA146: 0.9983771087 | CB146: 0.9 | CC146: 0.0025 | CD146: 4277.077416
A147: MEURTHE_ET_MOSELLE_MEUSE | B147: NANCY | C147: SAINT MAX | D147: 3.991646904 | F147: 0.06038 | G147: 0.06038 | I147: 8 | J147: 8 | L147: 0.89 | M147: 0.706 | N147: 0.7 | O147: 0.001 | Q147: 165 | R147: 41.33632157 | S147: 36 | T147: 1.148231155 | U147: -7.439146244 | V147: 0.0075 | W147: 0.0075 | X147: 0 | Y147: 8 | AA147: 823 | AB147: 206.1805615 | AC147: 200 | AD147: 1.030902808 | AE147: -134.9952569 | AF147: 0.0015 | AG147: 0.0015 | AH147: 0 | AI147: 135 | AK147: 4162.92143 | AL147: 1042.908236 | AM147: 771.1 | AN147: 1.352494146 | AO147: 469.370717 | AP147: 0.01 | AQ147: 0.01 | AR147: 0 | AS147: 0 | AU147: 2514.06562 | AV147: 629.8316661 | AW147: 573 | AX147: 1.099182663 | AY147: -230.5907911 | AZ147: 0.0075 | BA147: 0.0075 | BB147: 0 | BC147: 231 | BE147: 340.7 | BF147: 85.35324096 | BG147: 65 | BH147: 1.313126784 | BI147: -48.48557312 | BJ147: 0.02288 | BK147: 0.02288 | BL147: 0 | BM147: 49 | BO147: 505 | BP147: 126.5141963 | BQ147: 78 | BR147: 1.621976876 | BS147: 131.3818498 | BT147: 0.0075 | BU147: 0.0075 | BV147: 0 | BW147: 0 | BY147: 0.999006458 | BZ147: 1 | CA147: 0.9996025832 | CB147: 0.9 | CC147: 0.0025 | CD147: 3077.958928
A148: MEURTHE_ET_MOSELLE_MEUSE | B148: NANCY | C148: SAINT NICOLAS DE PORT | D148: 2.820454545 | F148: 0.02 | G148: 0.02 | I148: 3 | J148: 3 | L148: 0.68 | M148: 0.537 | N148: 0.7 | Q148: 131 | R148: 46.44641418 | S148: 36 | T148: 1.290178172 | U148: 9.156363639 | V148: 0.01 | W148: 0.01 | X148: 0 | Y148: 0 | AA148: 267 | AB148: 94.66559227 | AC148: 200 | AD148: 0.4733279613 | AE148: -409.9090909 | AH148: 298 | AI148: 410 | AK148: 1331.34635 | AL148: 472.0325496 | AM148: 713.4 | AN148: 0.6616660353 | AO148: -1083.188377 | AR148: 681 | AS148: 1084 | AU148: 1393.52869 | AV148: 494.0794711 | AW148: 573 | AX148: 0.8622678378 | AY148: -545.8158554 | BB148: 223 | BC148: 546 | BE148: 127.4 | BF148: 45.17002417 | BG148: 65 | BH148: 0.6949234488 | BI148: -147.5943182 | BL148: 38 | BM148: 148 | BO148: 295 | BP148: 104.5930701 | BQ148: 78 | BR148: 1.340936796 | BS148: 31.00545455 | BT148: 0.0075 | BU148: 0.0075 | BV148: 0 | BW148: 0 | BY148: 1 | BZ148: 1 | CA148: 1 | CB148: 0.9 | CC148: 0.0025 | CD148: 2012.112273
A149: MEURTHE_ET_MOSELLE_MEUSE | B149: NANCY | C149: TOMBLAINE | D149: 2.712215007 | F149: 0.05825 | G149: 0.05825 | I149: 7 | J149: 7 | L149: 0.74 | M149: 0.784 | N149: 0.7 | O149: 0.012 | Q149: 119 | R149: 43.87557759 | S149: 36 | T149: 1.218766044 | U149: 1.832311685 | V149: 0.01 | W149: 0.01 | X149: 0 | Y149: 0 | AA149: 401 | AB149: 147.8496354 | AC149: 200 | AD149: 0.7392481771 | AE149: -249.9316018 | AH149: 142 | AI149: 250 | AK149: 1987.55345 | AL149: 732.8155934 | AM149: 690.5 | AN149: 1.061282539 | AO149: -259.787905 | AP149: 0.003 | AQ149: 0.003 | AR149: 0 | AS149: 260 | AU149: 1646.90849 | AV149: 607.219002 | AW149: 573 | AX149: 1.059719026 | AY149: -218.010549 | AZ149: 0.0045 | BA149: 0.0045 | BB149: 0 | BC149: 219 | BE149: 211.5 | BF149: 77.98054337 | BG149: 65 | BH149: 1.199700667 | BI149: -52.94096321 | BJ149: 0.01875 | BK149: 0.01875 | BL149: 0 | BM149: 53 | BO149: 323 | BP149: 119.0908535 | BQ149: 78 | BR149: 1.526805814 | BS149: 69.13667532 | BT149: 0.0075 | BU149: 0.0075 | BV149: 0 | BW149: 0 | BY149: 0.9973342219 | BZ149: 1 | CA149: 0.9989336888 | CB149: 0.9 | CC149: 0.0025 | CD149: 1872.784463
A150: MEURTHE_ET_MOSELLE_MEUSE | B150: NANCY | C150: VANDOEUVRE LES NANCY | D150: 4.462567683 | F150: 0.022 | G150: 0.022 | I150: 4 | J150: 4 | L150: 0.17 | M150: 0.448 | N150: 0.7 | Q150: 250 | R150: 56.02155928 | S150: 36 | T150: 1.556154424 | U150: 57.21707608 | V150: 0.01 | W150: 0.01 | X150: 0 | Y150: 0 | AA150: 376 | AB150: 84.25642515 | AC150: 200 | AD150: 0.4212821258 | AE150: -695.016244 | AH150: 517 | AI150: 696 | AK150: 3504.56854 | AL150: 785.3255768 | AM150: 753.1 | AN150: 1.042790568 | AO150: -528.3431268 | AP150: 0.002 | AQ150: 0.002 | AR150: 0 | AS150: 529 | AU150: 2263.95816 | AV150: 507.321865 | AW150: 573 | AX150: 0.885378473 | AY150: -804.503379 | BB150: 294 | BC150: 805 | BE150: 229.6 | BF150: 51.45020004 | BG150: 65 | BH150: 0.7915415391 | BI150: -205.5003491 | BL150: 32 | BM150: 206 | BO150: 499 | BP150: 111.8190323 | BQ150: 78 | BR150: 1.433577337 | BS150: 81.30366484 | BT150: 0.0075 | BU150: 0.0075 | BV150: 0 | BW150: 0 | BY150: 0.9974141646 | BZ150: 1 | CA150: 0.9989656659 | CB150: 0.9 | CC150: 0.0025 | CD150: 3360.759722
A151: MEURTHE_ET_MOSELLE_MEUSE | B151: PONT_A_MOUSSON | C151: BRIEY | D151: 4.635048532 | F151: 0.035 | G151: 0.035 | I151: 4 | J151: 4 | L151: 0.7196765499 | M151: 0.632 | N151: 0.7 | Q151: 163 | R151: 35.16683782 | S151: 36 | T151: 0.976856606 | U151: -37.23409658 | X151: 4 | Y151: 38 | AA151: 483 | AB151: 104.2060286 | AC151: 200 | AD151: 0.5210301431 | AE151: -629.4116477 | AH151: 445 | AI151: 630 | AK151: 4707.09967 | AL151: 1015.544851 | AM151: 660.5 | AN151: 1.537539517 | AO151: 1033.360204 | AP151: 0.01 | AQ151: 0.01 | AR151: 0 | AS151: 0 | AU151: 3244.40304 | AV151: 699.9717517 | AW151: 573 | AX151: 1.22159119 | AY151: 57.3436694 | AZ151: 0.015 | BA151: 0.015 | BB151: 0 | BC151: 0 | BE151: 262.1 | BF151: 56.54741222 | BG151: 65 | BH151: 0.869960188 | BI151: -189.8172319 | BL151: 10 | BM151: 190 | BO151: 766 | BP151: 165.262563 | BQ151: 78 | BR151: 2.118750808 | BS151: 332.1594574 | BT151: 0.0075 | BU151: 0.0075 | BV151: 0 | BW151: 0 | BY151: 0.9924352633 | BZ151: 1 | CA151: 0.9969741053 | CB151: 0.9 | CC151: 0.0025 | CD151: 3061.449555
A152: MEURTHE_ET_MOSELLE_MEUSE | B152: PONT_A_MOUSSON | C152: CHALIGNY NEUVES MAISONS | D152: 3.776445329 | F152: 0.05 | G152: 0.05 | I152: 6 | J152: 6 | L152: 0.28 | M152: 0.394 | N152: 0.7 | Q152: 249 | R152: 65.93502045 | S152: 36 | T152: 1.831528346 | U152: 85.8575618 | V152: 0.01 | W152: 0.01 | X152: 0 | Y152: 0 | AA152: 397 | AB152: 105.1253137 | AC152: 200 | AD152: 0.5256265687 | AE152: -509.3468789 | AH152: 359 | AI152: 510 | AK152: 3182.68055 | AL152: 842.7715147 | AM152: 714.6 | AN152: 1.179361202 | AO152: -55.69684835 | AP152: 0.009 | AQ152: 0.009 | AR152: 0 | AS152: 56 | AU152: 2253.91486 | AV152: 596.8350297 | AW152: 573 | AX152: 1.04159691 | AY152: -342.7689481 | AZ152: 0.003 | BA152: 0.003 | BB152: 0 | BC152: 343 | BE152: 290.8 | BF152: 77.00363031 | BG152: 65 | BH152: 1.184671236 | BI152: -77.40341956 | BJ152: 0.018 | BK152: 0.018 | BL152: 0 | BM152: 78 | BO152: 619 | BP152: 163.9107537 | BQ152: 78 | BR152: 2.101419919 | BS152: 265.5247172 | BT152: 0.0075 | BU152: 0.0075 | BV152: 0 | BW152: 0 | BY152: 0.9962149886 | BZ152: 1 | CA152: 0.9984859955 | CB152: 0.9 | CC152: 0.0025 | CD152: 2698.647832
A153: MEURTHE_ET_MOSELLE_MEUSE | B153: PONT_A_MOUSSON | C153: CHAMPIGNEULLES | D153: 3.622488267 | F153: 0.0205 | G153: 0.0205 | I153: 4 | J153: 4 | L153: 0.56 | M153: 0.562 | N153: 0.7 | Q153: 134 | R153: 36.9911481 | S153: 36 | T153: 1.027531892 | U153: -22.49149314 | V153: 0.0015 | W153: 0.0015 | X153: 0 | Y153: 23 | AA153: 409 | AB153: 112.9058177 | AC153: 200 | AD153: 0.5645290886 | AE153: -460.3971841 | AH153: 316 | AI153: 461 | AK153: 1676.30561 | AL153: 462.7497693 | AM153: 712.6 | AN153: 0.6493822191 | AO153: -1421.356557 | AR153: 906 | AS153: 1422 | AU153: 1803.41011 | AV153: 497.8373916 | AW153: 573 | AX153: 0.8688261633 | AY153: -687.4128225 | BB153: 273 | BC153: 688 | BE153: 241.1 | BF153: 66.55646125 | BG153: 65 | BH153: 1.023945558 | BI153: -112.0926061 | BJ153: 0.009 | BK153: 0.009 | BL153: 0 | BM153: 113 | BO153: 548 | BP153: 151.2772325 | BQ153: 78 | BR153: 1.939451699 | BS153: 208.9350982 | BT153: 0.0075 | BU153: 0.0075 | BV153: 0 | BW153: 0 | BY153: 0.9982110912 | BZ153: 1 | CA153: 0.9992844365 | CB153: 0.9 | CC153: 0.0025 | CD153: 2581.385139
A154: MEURTHE_ET_MOSELLE_MEUSE | B154: PONT_A_MOUSSON | C154: DIEULOUARD | D154: 3.423920671 | F154: 0.0135 | G154: 0.0135 | I154: 4 | J154: 4 | L154: 0.85 | M154: 0.718 | N154: 0.7 | O154: 0.002 | Q154: 94 | R154: 27.4539071 | S154: 36 | T154: 0.7626085304 | U154: -53.91337298 | X154: 30 | Y154: 54 | AA154: 255 | AB154: 74.47602457 | AC154: 200 | AD154: 0.3723801228 | AE154: -566.740961 | AH154: 430 | AI154: 567 | AK154: 1604.00597 | AL154: 468.4705413 | AM154: 680.5 | AN154: 0.6884210746 | AO154: -1191.96765 | AR154: 726 | AS154: 1192 | AU154: 2001.53203 | AV154: 584.5731319 | AW154: 573 | AX154: 1.020197438 | AY154: -352.7558232 | AZ154: 0.0015 | BA154: 0.0015 | BB154: 0 | BC154: 353 | BE154: 157.3 | BF154: 45.94148496 | BG154: 65 | BH154: 0.7067920763 | BI154: -176.5322654 | BL154: 43 | BM154: 177 | BO154: 349 | BP154: 101.9299317 | BQ154: 78 | BR154: 1.306793996 | BS154: 28.52102521 | BT154: 0.0075 | BU154: 0.0075 | BV154: 0 | BW154: 0 | BY154: 0.9871244635 | BZ154: 1 | CA154: 0.9948497854 | CB154: 0.9 | CC154: 0.0025 | CD154: 2329.978016
A155: MEURTHE_ET_MOSELLE_MEUSE | B155: PONT_A_MOUSSON | C155: FROUARD | D155: 2.8 | F155: 0.0215 | G155: 0.0215 | I155: 4 | J155: 4 | L155: 0.41 | M155: 0.499 | N155: 0.7 | Q155: 104 | R155: 37.14285714 | S155: 36 | T155: 1.031746032 | U155: -16.96 | V155: 0.0015 | W155: 0.0015 | X155: 0 | Y155: 17 | AA155: 254 | AB155: 90.71428571 | AC155: 200 | AD155: 0.4535714286 | AE155: -418 | AH155: 306 | AI155: 418 | AK155: 2695.63556 | AL155: 962.7269857 | AM155: 695.1 | AN155: 1.385019401 | AO155: 360.09956 | AP155: 0.01 | AQ155: 0.01 | AR155: 0 | AS155: 0 | AU155: 1384.73453 | AV155: 494.5480464 | AW155: 573 | AX155: 0.8630855959 | AY155: -540.54547 | BB155: 220 | BC155: 541 | BE155: 159.4 | BF155: 56.92857143 | BG155: 65 | BH155: 0.8758241758 | BI155: -113.6 | BL155: 5 | BM155: 114 | BO155: 350 | BP155: 125 | BQ155: 78 | BR155: 1.602564103 | BS155: 87.92 | BT155: 0.0075 | BU155: 0.0075 | BV155: 0 | BW155: 0 | BY155: 0.9953991258 | BZ155: 1 | CA155: 0.9981596503 | CB155: 0.9 | CC155: 0.0025 | CD155: 1946.28
A156: MEURTHE_ET_MOSELLE_MEUSE | B156: PONT_A_MOUSSON | C156: JARNY | D156: 4.870079939 | F156: 0.03425 | G156: 0.03425 | I156: 5 | J156: 5 | L156: 0.61 | M156: 0.627 | N156: 0.7 | Q156: 186 | R156: 38.19239157 | S156: 36 | T156: 1.060899766 | U156: -24.38745338 | V156: 0.003 | W156: 0.003 | X156: 0 | Y156: 25 | AA156: 515 | AB156: 105.7477508 | AC156: 200 | AD156: 0.5287387542 | AE156: -653.8191854 | AH156: 460 | AI156: 654 | AK156: 5332.30265 | AL156: 1094.910703 | AM156: 762 | AN156: 1.436890686 | AO156: 879.1015535 | AP156: 0.01 | AQ156: 0.01 | AR156: 0 | AS156: 0 | AU156: 1976.10673 | AV156: 405.764742 | AW156: 573 | AX156: 0.708140911 | AY156: -1372.560236 | BB156: 815 | BC156: 1373 | BE156: 331.3 | BF156: 68.02763078 | BG156: 65 | BH156: 1.046578935 | BI156: -143.5327941 | BJ156: 0.01125 | BK156: 0.01125 | BL156: 0 | BM156: 144 | BO156: 595 | BP156: 122.1745859 | BQ156: 78 | BR156: 1.566340845 | BS156: 139.1605177 | BT156: 0.0075 | BU156: 0.0075 | BV156: 0 | BW156: 0 | BY156: 0.9980232271 | BZ156: 1 | CA156: 0.9992092908 | CB156: 0.9 | CC156: 0.0025 | CD156: 3711.000914
A157: MEURTHE_ET_MOSELLE_MEUSE | B157: PONT_A_MOUSSON | C157: JOEUF | D157: 3.633388028 | F157: 0.05263 | G157: 0.05263 | I157: 5 | J157: 5 | L157: 0.56 | M157: 0.634 | N157: 0.7 | Q157: 198 | R157: 54.49459251 | S157: 36 | T157: 1.513738681 | U157: 41.0376372 | V157: 0.01 | W157: 0.01 | X157: 0 | Y157: 0 | AA157: 225 | AB157: 61.92567331 | AC157: 200 | AD157: 0.3096283665 | AE157: -647.0131267 | AH157: 502 | AI157: 648 | AK157: 1219.92504 | AL157: 335.754131 | AM157: 635.3 | AN157: 0.5284969794 | AO157: -1550.024657 | AR157: 1089 | AS157: 1551 | AU157: 2743.83143 | AV157: 755.1715944 | AW157: 573 | AX157: 1.317925994 | AY157: 245.5138221 | AZ157: 0.015 | BA157: 0.015 | BB157: 0 | BC157: 0 | BE157: 277.4 | BF157: 76.34747455 | BG157: 65 | BH157: 1.174576532 | BI157: -76.85533271 | BJ157: 0.01763 | BK157: 0.01763 | BL157: 0 | BM157: 77 | BO157: 371 | BP157: 102.1085546 | BQ157: 78 | BR157: 1.309084034 | BS157: 30.9148806 | BT157: 0.0075 | BU157: 0.0075 | BV157: 0 | BW157: 0 | BY157: 0.9981028668 | BZ157: 1 | CA157: 0.9992411467 | CB157: 0.9 | CC157: 0.0025 | CD157: 2308.291414
A158: MEURTHE_ET_MOSELLE_MEUSE | B158: PONT_A_MOUSSON | C158: LAXOU ARISTIDE BRIAND | D158: 3.969936925 | F158: 0.03975 | G158: 0.03975 | I158: 6 | J158: 6 | L158: 0.32 | M158: 0.635 | N158: 0.7 | Q158: 244 | R158: 61.46193369 | S158: 36 | T158: 1.707275936 | U158: 72.49872485 | V158: 0.01 | W158: 0.01 | X158: 0 | Y158: 0 | AA158: 520 | AB158: 130.9844488 | AC158: 200 | AD158: 0.6549222442 | AE158: -432.7848619 | AH158: 274 | AI158: 433 | AK158: 4106.43736 | AL158: 1034.383527 | AM158: 828 | AN158: 1.249255468 | AO158: 161.9080316 | AP158: 0.01 | AQ158: 0.01 | AR158: 0 | AS158: 0 | AU158: 2397.70933 | AV158: 603.9666059 | AW158: 573 | AX158: 1.054042942 | AY158: -332.0192994 | AZ158: 0.00375 | BA158: 0.00375 | BB158: 0 | BC158: 333 | BE158: 253.2 | BF158: 63.77935086 | BG158: 65 | BH158: 0.9812207824 | BI158: -133.8688502 | BJ158: 0.006 | BK158: 0.006 | BL158: 0 | BM158: 134 | BO158: 628 | BP158: 158.1889113 | BQ158: 78 | BR158: 2.028062965 | BS158: 256.4139038 | BT158: 0.0075 | BU158: 0.0075 | BV158: 0 | BW158: 0 | BY158: 0.9966810488 | BZ158: 1 | CA158: 0.9986724195 | CB158: 0.9 | CC158: 0.0025 | CD158: 3287.107774
A159: MEURTHE_ET_MOSELLE_MEUSE | B159: PONT_A_MOUSSON | C159: LAXOU BOUFFLERS | D159: 3.258144175 | F159: 0.05188 | G159: 0.05188 | I159: 6 | J159: 6 | L159: 0.15 | M159: 0.479 | N159: 0.7 | Q159: 206 | R159: 63.22617692 | S159: 36 | T159: 1.756282692 | U159: 65.24817166 | V159: 0.01 | W159: 0.01 | X159: 0 | Y159: 0 | AA159: 265 | AB159: 81.33464506 | AC159: 200 | AD159: 0.4066732253 | AE159: -516.9546019 | AH159: 387 | AI159: 517 | AK159: 2645.8717 | AL159: 812.0793796 | AM159: 790.4 | AN159: 1.027428365 | AO159: -444.4128867 | AP159: 0.0015 | AQ159: 0.0015 | AR159: 0 | AS159: 445 | AU159: 2200.18214 | AV159: 675.2869186 | AW159: 573 | AX159: 1.178511202 | AY159: -40.11779445 | AZ159: 0.0135 | BA159: 0.0135 | BB159: 0 | BC159: 41 | BE159: 243.7 | BF159: 74.79718114 | BG159: 65 | BH159: 1.150725864 | BI159: -73.96905702 | BJ159: 0.01688 | BK159: 0.01688 | BL159: 0 | BM159: 74 | BO159: 324 | BP159: 99.44311321 | BQ159: 78 | BR159: 1.274911708 | BS159: 19.03770526 | BT159: 0.0075 | BU159: 0.0075 | BV159: 0 | BW159: 0 | BY159: 0.997700593 | BZ159: 1 | CA159: 0.9990802372 | CB159: 0.9 | CC159: 0.0025 | CD159: 2575.237156
A160: MEURTHE_ET_MOSELLE_MEUSE | B160: PONT_A_MOUSSON | C160: LUDRES | D160: 3.848917749 | F160: 0.0445 | G160: 0.0445 | I160: 6 | J160: 6 | L160: 0.75 | M160: 0.758 | N160: 0.7 | O160: 0.008 | Q160: 234 | R160: 60.79631087 | S160: 36 | T160: 1.688786413 | U160: 67.72675324 | V160: 0.01 | W160: 0.01 | X160: 0 | Y160: 0 | AA160: 572 | AB160: 148.6132044 | AC160: 200 | AD160: 0.7430660218 | AE160: -351.7402598 | AH160: 198 | AI160: 352 | AK160: 3672.21004 | AL160: 954.088988 | AM160: 811.8 | AN160: 1.175275915 | AO160: -77.25167437 | AP160: 0.009 | AQ160: 0.009 | AR160: 0 | AS160: 78 | AU160: 2420.75019 | AV160: 628.9430816 | AW160: 573 | AX160: 1.097631905 | AY160: -225.7656542 | AZ160: 0.0075 | BA160: 0.0075 | BB160: 0 | BC160: 226 | BE160: 167.8 | BF160: 43.59667079 | BG160: 65 | BH160: 0.6707180122 | BI160: -207.4694805 | BL160: 58 | BM160: 208 | BO160: 485 | BP160: 126.0094478 | BQ160: 78 | BR160: 1.61550574 | BS160: 124.7412987 | BT160: 0.0075 | BU160: 0.0075 | BV160: 0 | BW160: 0 | BY160: 0.9941018767 | BZ160: 1 | CA160: 0.9976407507 | CB160: 0.9 | CC160: 0.0025 | CD160: 3124.551429
A161: MEURTHE_ET_MOSELLE_MEUSE | B161: PONT_A_MOUSSON | C161: NANCY PLATEAU DE HAYE | D161: 0.9935483871 | F161: 0.0325 | G161: 0.0325 | I161: 4 | J161: 4 | L161: 0.9 | N161: 0.7 | Q161: 37 | R161: 37.24025974 | S161: 36 | T161: 1.034451659 | U161: -5.921290323 | V161: 0.0015 | W161: 0.0015 | X161: 0 | Y161: 6 | AA161: 52 | AB161: 52.33766234 | AC161: 200 | AD161: 0.2616883117 | AE161: -186.4516129 | AH161: 147 | AI161: 187 | AK161: 155.2096 | AL161: 156.2174545 | AM161: 612 | AN161: 0.2552572787 | AO161: -574.4523355 | AR161: 453 | AS161: 575 | AU161: 778.83099 | AV161: 783.8883341 | AW161: 573 | AX161: 1.368042468 | AY161: 95.66711903 | AZ161: 0.015 | BA161: 0.015 | BB161: 0 | BC161: 0 | BE161: 69.7 | BF161: 70.1525974 | BG161: 65 | BH161: 1.079270729 | BI161: -27.17096774 | BJ161: 0.0135 | BK161: 0.0135 | BL161: 0 | BM161: 28 | BO161: 75 | BP161: 75.48701299 | BQ161: 78 | BR161: 0.9677822178 | BS161: -17.99612903 | BV161: 3 | BW161: 18 | BY161: 0.9894514768 | BZ161: 1 | CA161: 0.9957805907 | CB161: 0.9 | CC161: 0.0025 | CD161: 608.0516129
A162: MEURTHE_ET_MOSELLE_MEUSE | B162: PONT_A_MOUSSON | C162: NANCY TROIS MAISONS | D162: 2.742875625 | F162: 0.04125 | G162: 0.04125 | I162: 5 | J162: 5 | L162: 0.21 | M162: 0.472 | N162: 0.7 | Q162: 119 | R162: 43.38512432 | S162: 36 | T162: 1.205142342 | U162: 0.507772987 | V162: 0.01 | W162: 0.01 | X162: 0 | Y162: 0 | AA162: 376 | AB162: 137.0824096 | AC162: 200 | AD162: 0.6854120481 | AE162: -282.2901501 | AH162: 173 | AI162: 283 | AK162: 2762.35667 | AL162: 1007.102416 | AM162: 783.2 | AN162: 1.285881533 | AO162: 184.4924423 | AP162: 0.01 | AQ162: 0.01 | AR162: 0 | AS162: 0 | AU162: 1811.68932 | AV162: 660.5072805 | AW162: 573 | AX162: 1.152717767 | AY162: -74.31195996 | AZ162: 0.01125 | BA162: 0.01125 | BB162: 0 | BC162: 75 | BE162: 157.5 | BF162: 57.42148807 | BG162: 65 | BH162: 0.8834075088 | BI162: -109.9303735 | BL162: 3 | BM162: 110 | BO162: 305 | BP162: 111.1971674 | BQ162: 78 | BR162: 1.42560471 | BS162: 48.26684147 | BT162: 0.0075 | BU162: 0.0075 | BV162: 0 | BW162: 0 | BY162: 0.9969654528 | BZ162: 1 | CA162: 0.9987861811 | CB162: 0.9 | CC162: 0.0025 | CD162: 2148.22019
A163: MEURTHE_ET_MOSELLE_MEUSE | B163: PONT_A_MOUSSON | C163: PAGNY SUR MOSELLE | D163: 2.818138842 | F163: 0.054 | G163: 0.054 | I163: 6 | J163: 6 | L163: 0.5 | M163: 0.488 | N163: 0.7 | Q163: 140 | R163: 49.67817693 | S163: 36 | T163: 1.379949359 | U163: 18.25640203 | V163: 0.01 | W163: 0.01 | X163: 0 | Y163: 0 | AA163: 434 | AB163: 154.0023485 | AC163: 200 | AD163: 0.7700117424 | AE163: -242.353322 | AH163: 130 | AI163: 243 | AK163: 2719.22536 | AL163: 964.9011325 | AM163: 716.7 | AN163: 1.346311054 | AO163: 295.5132305 | AP163: 0.01 | AQ163: 0.01 | AR163: 0 | AS163: 0 | AU163: 1790.73364 | AV163: 635.4313043 | AW163: 573 | AX163: 1.108955156 | AY163: -147.0186276 | AZ163: 0.00825 | BA163: 0.00825 | BB163: 0 | BC163: 148 | BE163: 205.5 | BF163: 72.92046685 | BG163: 65 | BH163: 1.121853336 | BI163: -69.26853708 | BJ163: 0.01575 | BK163: 0.01575 | BL163: 0 | BM163: 70 | BO163: 269 | BP163: 95.45306853 | BQ163: 78 | BR163: 1.223757289 | BS163: 5.222204408 | BT163: 0.0075 | BU163: 0.0075 | BV163: 0 | BW163: 0 | BY163: 0.9959432049 | BZ163: 1 | CA163: 0.9983772819 | CB163: 0.9 | CC163: 0.0025 | CD163: 2019.760108
A164: MEURTHE_ET_MOSELLE_MEUSE | B164: PONT_A_MOUSSON | C164: POMPEY | D164: 2.575939347 | F164: 0.0805 | G164: 0.0805 | I164: 7 | J164: 7 | L164: 0.33 | M164: 0.65 | N164: 0.7 | Q164: 205 | R164: 79.58261914 | S164: 36 | T164: 2.210628309 | U164: 93.71942019 | V164: 0.01 | W164: 0.01 | X164: 0 | Y164: 0 | AA164: 573 | AB164: 222.4431257 | AC164: 200 | AD164: 1.112215628 | AE164: -45.22544338 | AF164: 0.0055 | AG164: 0.0055 | AH164: 0 | AI164: 46 | AK164: 3147.99462 | AL164: 1222.076375 | AM164: 666.2 | AN164: 1.834398642 | AO164: 1088.685668 | AP164: 0.01 | AQ164: 0.01 | AR164: 0 | AS164: 0 | AU164: 2664.80799 | AV164: 1034.499509 | AW164: 573 | AX164: 1.805409265 | AY164: 893.5920947 | AZ164: 0.015 | BA164: 0.015 | BB164: 0 | BC164: 0 | BE164: 294.3 | BF164: 114.2495844 | BG164: 65 | BH164: 1.757685915 | BI164: 43.14591363 | BJ164: 0.03 | BK164: 0.03 | BL164: 0 | BM164: 0 | BO164: 314 | BP164: 121.89728 | BQ164: 78 | BR164: 1.562785642 | BS164: 72.89207708 | BT164: 0.0075 | BU164: 0.0075 | BV164: 0 | BW164: 0 | BY164: 0.997254902 | BZ164: 1 | CA164: 0.9989019608 | CB164: 0.9 | CC164: 0.0025 | CD164: 1716.090793
A165: MEURTHE_ET_MOSELLE_MEUSE | B165: PONT_A_MOUSSON | C165: PONT A MOUSSON BREUIL | D165: 2.590544268 | F165: 0.038625 | G165: 0.038625 | I165: 5 | J165: 5 | L165: 0.26 | M165: 0.486 | N165: 0.7 | Q165: 143 | R165: 55.20075521 | S165: 36 | T165: 1.533354311 | U165: 31.08848761 | V165: 0.01 | W165: 0.01 | X165: 0 | Y165: 0 | AA165: 244 | AB165: 94.18870119 | AC165: 200 | AD165: 0.470943506 | AE165: -377.7306244 | AH165: 275 | AI165: 378 | AK165: 2377.35189 | AL165: 917.7036344 | AM165: 701.3 | AN165: 1.308574981 | AO165: 197.2534557 | AP165: 0.01 | AQ165: 0.01 | AR165: 0 | AS165: 0 | AU165: 1658.48814 | AV165: 640.2083764 | AW165: 573 | AX165: 1.117292105 | AY165: -122.7700988 | AZ165: 0.009 | BA165: 0.009 | BB165: 0 | BC165: 123 | BE165: 138.2 | BF165: 53.34786272 | BG165: 65 | BH165: 0.8207363496 | BI165: -114.3780661 | BL165: 14 | BM165: 115 | BO165: 240 | BP165: 92.64462412 | BQ165: 78 | BR165: 1.187751591 | BS165: -2.474943504 | BT165: 0.007125 | BU165: 0.007125 | BV165: 0 | BW165: 3 | BY165: 0.9958549223 | BZ165: 1 | CA165: 0.9983419689 | CB165: 0.9 | CC165: 0.0025 | CD165: 1816.748695
A166: MEURTHE_ET_MOSELLE_MEUSE | B166: PONT_A_MOUSSON | C166: PONT A MOUSSON CENTRALE | D166: 7.576118019 | F166: 0.0465 | G166: 0.0465 | I166: 5 | J166: 5 | L166: 0.22 | M166: 0.326 | N166: 0.7 | Q166: 413 | R166: 54.51340633 | S166: 36 | T166: 1.514261287 | U166: 85.71170156 | V166: 0.01 | W166: 0.01 | X166: 0 | Y166: 0 | AA166: 932 | AB166: 123.018147 | AC166: 200 | AD166: 0.6150907349 | AE166: -886.2683247 | AH166: 584 | AI166: 887 | AK166: 8558.63803 | AL166: 1129.686471 | AM166: 753.3 | AN166: 1.499650167 | AO166: 1710.130385 | AP166: 0.01 | AQ166: 0.01 | AR166: 0 | AS166: 0 | AU166: 4055.47395 | AV166: 535.2970927 | AW166: 573 | AX166: 0.9342008599 | AY166: -1153.8648 | BB166: 286 | BC166: 1154 | BE166: 563.7 | BF166: 74.40485992 | BG166: 65 | BH166: 1.144690153 | BI166: -174.9715069 | BJ166: 0.0165 | BK166: 0.0165 | BL166: 0 | BM166: 175 | BO166: 793 | BP166: 104.6710199 | BQ166: 78 | BR166: 1.341936153 | BS166: 83.87535338 | BT166: 0.0075 | BU166: 0.0075 | BV166: 0 | BW166: 0 | BY166: 0.9981149859 | BZ166: 1 | CA166: 0.9992459943 | CB166: 0.9 | CC166: 0.0025 | CD166: 5707.089704
A167: MEURTHE_ET_MOSELLE_MEUSE | B167: PONT_A_MOUSSON | C167: TOUL | D167: 10.74081388 | F167: 0.06413 | G167: 0.06413 | I167: 6 | J167: 6 | L167: 0 | M167: 0.186 | N167: 0.7 | Q167: 717 | R167: 66.75471785 | S167: 36 | T167: 1.854297718 | U167: 252.9968404 | V167: 0.01 | W167: 0.01 | X167: 0 | Y167: 0 | AA167: 1044 | AB167: 97.19933812 | AC167: 200 | AD167: 0.4859966906 | AE167: -1533.795331 | AH167: 1105 | AI167: 1534 | AK167: 9713.56954 | AL167: 904.360661 | AM167: 695.9 | AN167: 1.299555484 | AO167: 744.1306852 | AP167: 0.01 | AQ167: 0.01 | AR167: 0 | AS167: 0 | AU167: 8224.93982 | AV167: 765.7650446 | AW167: 573 | AX167: 1.33641369 | AY167: 839.5561962 | AZ167: 0.015 | BA167: 0.015 | BB167: 0 | BC167: 0 | BE167: 847.8 | BF167: 78.93256596 | BG167: 65 | BH167: 1.214347169 | BI167: -199.4293533 | BJ167: 0.01913 | BK167: 0.01913 | BL167: 0 | BM167: 200 | BO167: 1065 | BP167: 99.15449722 | BQ167: 78 | BR167: 1.271211503 | BS167: 59.65982084 | BT167: 0.0075 | BU167: 0.0075 | BV167: 0 | BW167: 0 | BY167: 0.9953788076 | BZ167: 1 | CA167: 0.998151523 | CB167: 0.9 | CC167: 0.0025 | CD167: 7474.532379
A168: MEURTHE_ET_MOSELLE_MEUSE | B168: PONT_A_MOUSSON | C168: VEZELISE | D168: 1.977272727 | F168: 0.021 | G168: 0.021 | I168: 3 | J168: 3 | L168: 0.81 | M168: 0.777 | N168: 0.7 | O168: 0.011 | Q168: 34 | R168: 17.1954023 | S168: 36 | T168: 0.4776500639 | U168: -51.41818182 | X168: 38 | Y168: 52 | AA168: 141 | AB168: 71.31034483 | AC168: 200 | AD168: 0.3565517241 | AE168: -333.5454546 | AH168: 255 | AI168: 334 | AK168: 570.03001 | AL168: 288.2910395 | AM168: 661.5 | AN168: 0.4358141187 | AO168: -999.5290809 | AR168: 738 | AS168: 1000 | AU168: 687.167 | AV168: 347.5327356 | AW168: 573 | AX168: 0.6065143728 | AY168: -672.4057273 | BB168: 446 | BC168: 673 | BE168: 97.3 | BF168: 49.2091954 | BG168: 65 | BH168: 0.7570645446 | BI168: -95.48409091 | BL168: 19 | BM168: 96 | BO168: 220 | BP168: 111.2643678 | BQ168: 78 | BR168: 1.426466254 | BS168: 34.92727272 | BT168: 0.0075 | BU168: 0.0075 | BV168: 0 | BW168: 0 | BY168: 0.9932170543 | BZ168: 1 | CA168: 0.9972868217 | CB168: 0.9 | CC168: 0.0025 | CD168: 1307.965909
A169: MEURTHE_ET_MOSELLE_MEUSE | B169: PONT_A_MOUSSON | C169: VILLERS GENERAL LECLERC | D169: 6.05766482 | F169: 0.02 | G169: 0.02 | I169: 3 | J169: 3 | L169: 0.56 | M169: 0.68 | N169: 0.7 | Q169: 217 | R169: 35.82238477 | S169: 36 | T169: 0.9950662437 | U169: -44.69112021 | V169: 0 | W169: 0 | X169: 2 | Y169: 45 | AA169: 885 | AB169: 146.095901 | AC169: 200 | AD169: 0.7304795052 | AE169: -568.8395567 | AH169: 327 | AI169: 569 | AK169: 6184.85234 | AL169: 1020.99613 | AM169: 828 | AN169: 1.233087114 | AO169: 165.9565751 | AP169: 0.01 | AQ169: 0.01 | AR169: 0 | AS169: 0 | AU169: 3165.53699 | AV169: 522.5672077 | AW169: 573 | AX169: 0.9119846557 | AY169: -999.71334 | BB169: 306 | BC169: 1000 | BE169: 320.5 | BF169: 52.90817659 | BG169: 65 | BH169: 0.8139719475 | BI169: -270.1223199 | BL169: 34 | BM169: 271 | BO169: 937 | BP169: 154.680067 | BQ169: 78 | BR169: 1.983077782 | BS169: 370.0025729 | BT169: 0.0075 | BU169: 0.0075 | BV169: 0 | BW169: 0 | BY169: 0.993989071 | BZ169: 1 | CA169: 0.9975956284 | CB169: 0.9 | CC169: 0.0025 | CD169: 5015.746471
A170: MEURTHE_ET_MOSELLE_MEUSE | B170: VERDUN | C170: BAR LE DUC | D170: 9.101558707 | F170: 0.038 | G170: 0.038 | I170: 5 | J170: 5 | L170: 0.47 | M170: 0.667 | N170: 0.7 | Q170: 435 | R170: 47.79401133 | S170: 36 | T170: 1.327611426 | U170: 41.81266386 | V170: 0.01 | W170: 0.01 | X170: 0 | Y170: 0 | AA170: 756 | AB170: 83.06269556 | AC170: 200 | AD170: 0.4153134778 | AE170: -1428.37409 | AH170: 1065 | AI170: 1429 | AK170: 6941.56147 | AL170: 762.6783163 | AM170: 780.7 | AN170: 0.9769159937 | AO170: -1585.142789 | AR170: 165 | AS170: 1586 | AU170: 6371.43804 | AV170: 700.0381193 | AW170: 573 | AX170: 1.221707015 | AY170: 113.2062731 | AZ170: 0.015 | BA170: 0.015 | BB170: 0 | BC170: 0 | BE170: 554.5 | BF170: 60.92363054 | BG170: 65 | BH170: 0.9372866237 | BI170: -332.9019739 | BJ170: 0.003 | BK170: 0.003 | BL170: 0 | BM170: 333 | BO170: 1242 | BP170: 136.4601427 | BQ170: 78 | BR170: 1.749489009 | BS170: 390.094105 | BT170: 0.0075 | BU170: 0.0075 | BV170: 0 | BW170: 0 | BY170: 0.9967320261 | BZ170: 1 | CA170: 0.9986928105 | CB170: 0.9 | CC170: 0.0025 | CD170: 7105.586882
A171: MEURTHE_ET_MOSELLE_MEUSE | B171: VERDUN | C171: COMMERCY | D171: 4.575885351 | F171: 0.045 | G171: 0.045 | I171: 5 | J171: 5 | L171: 0 | M171: 0.588 | N171: 0.7 | Q171: 201 | R171: 43.92592571 | S171: 36 | T171: 1.220164603 | U171: 3.321752828 | V171: 0.01 | W171: 0.01 | X171: 0 | Y171: 0 | AA171: 418 | AB171: 91.34844252 | AC171: 200 | AD171: 0.4567422126 | AE171: -680.2124843 | AH171: 498 | AI171: 681 | AK171: 4330.54749 | AL171: 946.3846136 | AM171: 643.6 | AN171: 1.470454651 | AO171: 796.4997156 | AP171: 0.01 | AQ171: 0.01 | AR171: 0 | AS171: 0 | AU171: 3348.64509 | AV171: 731.802664 | AW171: 573 | AX171: 1.27714252 | AY171: 202.2663225 | AZ171: 0.015 | BA171: 0.015 | BB171: 0 | BC171: 0 | BE171: 248.2 | BF171: 54.24086946 | BG171: 65 | BH171: 0.8344749148 | BI171: -197.9488217 | BL171: 20 | BM171: 198 | BO171: 515 | BP171: 112.5465261 | BQ171: 78 | BR171: 1.44290418 | BS171: 86.69713113 | BT171: 0.0075 | BU171: 0.0075 | BV171: 0 | BW171: 0 | BY171: 0.9914383562 | BZ171: 1 | CA171: 0.9965753425 | CB171: 0.9 | CC171: 0.0025 | CD171: 2945.039812
A172: MEURTHE_ET_MOSELLE_MEUSE | B172: VERDUN | C172: ETAIN | D172: 1.497872727 | F172: 0.0645 | G172: 0.0645 | I172: 6 | J172: 6 | L172: 0.43 | M172: 0.464 | N172: 0.7 | Q172: 67 | R172: 44.73010209 | S172: 36 | T172: 1.242502836 | U172: 2.291898185 | V172: 0.01 | W172: 0.01 | X172: 0 | Y172: 0 | AA172: 197 | AB172: 131.5198524 | AC172: 200 | AD172: 0.657599262 | AE172: -162.4894545 | AH172: 103 | AI172: 163 | AK172: 1047.25231 | AL172: 699.1597423 | AM172: 612 | AN172: 1.14241788 | AO172: -52.78542086 | AP172: 0.007 | AQ172: 0.007 | AR172: 0 | AS172: 53 | AU172: 1428.23433 | AV172: 953.5084684 | AW172: 573 | AX172: 1.664063645 | AY172: 398.2970428 | AZ172: 0.015 | BA172: 0.015 | BB172: 0 | BC172: 0 | BE172: 127 | BF172: 84.78690992 | BG172: 65 | BH172: 1.304413999 | BI172: -19.0425909 | BJ172: 0.0225 | BK172: 0.0225 | BL172: 0 | BM172: 20 | BO172: 165 | BP172: 110.1562216 | BQ172: 78 | BR172: 1.412259251 | BS172: 24.79911273 | BT172: 0.0075 | BU172: 0.0075 | BV172: 0 | BW172: 0 | BY172: 0.9787472036 | BZ172: 1 | CA172: 0.9914988814 | CB172: 0.9 | CC172: 0.0025 | CD172: 916.698109
A173: MEURTHE_ET_MOSELLE_MEUSE | B173: VERDUN | C173: LIGNY EN BARROIS | D173: 2.885295117 | F173: 0.02825 | G173: 0.02825 | I173: 5 | J173: 5 | L173: 0.9 | M173: 0.783 | N173: 0.7 | O173: 0.011 | Q173: 105 | R173: 36.3914247 | S173: 36 | T173: 1.010872908 | U173: -19.64474906 | V173: 0.0005 | W173: 0.0005 | X173: 0 | Y173: 20 | AA173: 259 | AB173: 89.76551427 | AC173: 200 | AD173: 0.4488275713 | AE173: -433.4708281 | AH173: 319 | AI173: 434 | AK173: 1744.68162 | AL173: 604.6804743 | AM173: 689.4 | AN173: 0.8771112189 | AO173: -642.2653245 | AR173: 245 | AS173: 643 | AU173: 1798.77285 | AV173: 623.4276831 | AW173: 573 | AX173: 1.088006428 | AY173: -185.1560725 | AZ173: 0.00675 | BA173: 0.00675 | BB173: 0 | BC173: 186 | BE173: 166.5 | BF173: 57.70640203 | BG173: 65 | BH173: 0.8877908004 | BI173: -114.8162739 | BL173: 3 | BM173: 115 | BO173: 347 | BP173: 120.264994 | BQ173: 78 | BR173: 1.541858898 | BS173: 76.93637704 | BT173: 0.0075 | BU173: 0.0075 | BV173: 0 | BW173: 0 | BY173: 0.9937007874 | BZ173: 1 | CA173: 0.997480315 | CB173: 0.9 | CC173: 0.0025 | CD173: 1989.122454
A174: MEURTHE_ET_MOSELLE_MEUSE | B174: VERDUN | C174: LONGUYON | D174: 2.819487107 | F174: 0.046 | G174: 0.046 | I174: 6 | J174: 6 | L174: 0.56 | M174: 0.741 | N174: 0.7 | O174: 0.005 | Q174: 125 | R174: 44.33430452 | S174: 36 | T174: 1.231508459 | U174: 3.198156973 | V174: 0.01 | W174: 0.01 | X174: 0 | Y174: 0 | AA174: 254 | AB174: 90.08730679 | AC174: 200 | AD174: 0.4504365339 | AE174: -422.6769057 | AH174: 310 | AI174: 423 | AK174: 1645.6114 | AL174: 583.6562955 | AM174: 650.1 | AN174: 0.89779464 | AO174: -553.926882 | AR174: 188 | AS174: 554 | AU174: 2452.28694 | AV174: 869.7634878 | AW174: 573 | AX174: 1.517911846 | AY174: 513.6076052 | AZ174: 0.015 | BA174: 0.015 | BB174: 0 | BC174: 0 | BE174: 179.8 | BF174: 63.77046362 | BG174: 65 | BH174: 0.9810840557 | BI174: -95.09999294 | BJ174: 0.006 | BK174: 0.006 | BL174: 0 | BM174: 96 | BO174: 277 | BP174: 98.24481882 | BQ174: 78 | BR174: 1.259548959 | BS174: 13.09600678 | BT174: 0.0075 | BU174: 0.0075 | BV174: 0 | BW174: 0 | BY174: 0.9979018044 | BZ174: 1 | CA174: 0.9991607218 | CB174: 0.9 | CC174: 0.0025 | CD174: 1832.948568
A175: MEURTHE_ET_MOSELLE_MEUSE | B175: VERDUN | C175: LONGWY BAS | D175: 3.760487013 | F175: 0.064 | G175: 0.064 | I175: 7 | J175: 7 | L175: 0.75 | M175: 0.703 | N175: 0.7 | O175: 0.001 | Q175: 166 | R175: 44.14321853 | S175: 36 | T175: 1.226200515 | U175: 3.546961038 | V175: 0.01 | W175: 0.01 | X175: 0 | Y175: 0 | AA175: 513 | AB175: 136.4185006 | AC175: 200 | AD175: 0.6820925032 | AE175: -389.5168831 | AH175: 240 | AI175: 390 | AK175: 4045.84229 | AL175: 1075.882532 | AM175: 699.1 | AN175: 1.538953701 | AO175: 891.0945251 | AP175: 0.01 | AQ175: 0.01 | AR175: 0 | AS175: 0 | AU175: 2951.84667 | AV175: 784.9639315 | AW175: 573 | AX175: 1.369919601 | AY175: 366.1357999 | AZ175: 0.015 | BA175: 0.015 | BB175: 0 | BC175: 0 | BE175: 288 | BF175: 76.58582492 | BG175: 65 | BH175: 1.17824346 | BI175: -78.64748377 | BJ175: 0.018 | BK175: 0.018 | BL175: 0 | BM175: 79 | BO175: 421 | BP175: 111.9535843 | BQ175: 78 | BR175: 1.435302363 | BS175: 69.01841558 | BT175: 0.0075 | BU175: 0.0075 | BV175: 0 | BW175: 0 | BY175: 0.9917568264 | BZ175: 1 | CA175: 0.9967027306 | CB175: 0.9 | CC175: 0.0025 | CD175: 2628.956471
A176: MEURTHE_ET_MOSELLE_MEUSE | B176: VERDUN | C176: LONGWY HAUT | D176: 3.666803411 | F176: 0.06075 | G176: 0.06075 | I176: 6 | J176: 6 | L176: 0.41 | M176: 0.622 | N176: 0.7 | Q176: 166 | R176: 45.27103893 | S176: 36 | T176: 1.257528859 | U176: 7.594092628 | V176: 0.01 | W176: 0.01 | X176: 0 | Y176: 0 | AA176: 529 | AB176: 144.267347 | AC176: 200 | AD176: 0.7213367348 | AE176: -351.0328187 | AH176: 205 | AI176: 352 | AK176: 4674.28444 | AL176: 1274.757306 | AM176: 738.1 | AN176: 1.727079402 | AO176: 1426.523322 | AP176: 0.01 | AQ176: 0.01 | AR176: 0 | AS176: 0 | AU176: 2617.94311 | AV176: 713.9578582 | AW176: 573 | AX176: 1.245999753 | AY176: 96.64908432 | AZ176: 0.015 | BA176: 0.015 | BB176: 0 | BC176: 0 | BE176: 267.3 | BF176: 72.89728137 | BG176: 65 | BH176: 1.121496636 | BI176: -90.21333261 | BJ176: 0.01575 | BK176: 0.01575 | BL176: 0 | BM176: 91 | BO176: 395 | BP176: 107.7232553 | BQ176: 78 | BR176: 1.381067376 | BS176: 51.78720069 | BT176: 0.0075 | BU176: 0.0075 | BV176: 0 | BW176: 0 | BY176: 0.9968859478 | BZ176: 1 | CA176: 0.9987543791 | CB176: 0.9 | CC176: 0.0025 | CD176: 2706.467598
A177: MEURTHE_ET_MOSELLE_MEUSE | B177: VERDUN | C177: MONTMEDY | D177: 1.679409048 | F177: 0.06225 | G177: 0.06225 | I177: 6 | J177: 6 | L177: 0.95 | M177: 0.521 | N177: 0.7 | Q177: 90 | R177: 53.59027934 | S177: 36 | T177: 1.488618871 | U177: 17.44952914 | V177: 0.01 | W177: 0.01 | X177: 0 | Y177: 0 | AA177: 279 | AB177: 166.129866 | AC177: 200 | AD177: 0.8306493298 | AE177: -124.0581714 | AH177: 57 | AI177: 125 | AK177: 2074.25404 | AL177: 1235.109483 | AM177: 694.2 | AN177: 1.779183928 | AO177: 675.2391269 | AP177: 0.01 | AQ177: 0.01 | AR177: 0 | AS177: 0 | AU177: 1828.06044 | AV177: 1088.514107 | AW177: 573 | AX177: 1.89967558 | AY177: 673.2987788 | AZ177: 0.015 | BA177: 0.015 | BB177: 0 | BC177: 0 | BE177: 127.1 | BF177: 75.68138339 | BG177: 65 | BH177: 1.164328975 | BI177: -36.64238215 | BJ177: 0.01725 | BK177: 0.01725 | BL177: 0 | BM177: 37 | BO177: 204 | BP177: 121.4712998 | BQ177: 78 | BR177: 1.557324357 | BS177: 46.80731314 | BT177: 0.0075 | BU177: 0.0075 | BV177: 0 | BW177: 0 | BY177: 0.9877622378 | BZ177: 1 | CA177: 0.9951048951 | CB177: 0.9 | CC177: 0.0025 | CD177: 1165.845761
A178: MEURTHE_ET_MOSELLE_MEUSE | B178: VERDUN | C178: REVIGNY SUR ORNAIN | D178: 3.133354665 | F178: 0.02225 | G178: 0.02225 | I178: 5 | J178: 5 | L178: 0.61 | M178: 0.731 | N178: 0.7 | O178: 0.004 | Q178: 130 | R178: 41.48907925 | S178: 36 | T178: 1.152474424 | U178: -5.360921515 | V178: 0.0075 | W178: 0.0075 | X178: 0 | Y178: 6 | AA178: 359 | AB178: 114.5736881 | AC178: 200 | AD178: 0.5728684404 | AE178: -393.0051195 | AH178: 268 | AI178: 394 | AK178: 1811.49694 | AL178: 578.1333854 | AM178: 642.7 | AN178: 0.8995384867 | AO178: -605.0715116 | AR178: 203 | AS178: 606 | AU178: 1810.49456 | AV178: 577.8134791 | AW178: 573 | AX178: 1.008400487 | AY178: -344.0001074 | AZ178: 0.00075 | BA178: 0.00075 | BB178: 0 | BC178: 345 | BE178: 181.2 | BF178: 57.82939354 | BG178: 65 | BH178: 0.8896829775 | BI178: -124.3020798 | BL178: 3 | BM178: 125 | BO178: 312 | BP178: 99.5737902 | BQ178: 78 | BR178: 1.276587054 | BS178: 18.71800338 | BT178: 0.0075 | BU178: 0.0075 | BV178: 0 | BW178: 0 | BY178: 0.9962651727 | BZ178: 1 | CA178: 0.9985060691 | CB178: 0.9 | CC178: 0.0025 | CD178: 2013.807043
A179: MEURTHE_ET_MOSELLE_MEUSE | B179: VERDUN | C179: STENAY | D179: 2.8038 | F179: 0.0585 | G179: 0.0585 | I179: 7 | J179: 7 | L179: 0.7 | M179: 0.625 | N179: 0.7 | Q179: 160 | R179: 57.06541123 | S179: 36 | T179: 1.585150312 | U179: 38.87584 | V179: 0.01 | W179: 0.01 | X179: 0 | Y179: 0 | AA179: 596 | AB179: 212.5686568 | AC179: 200 | AD179: 1.062843284 | AE179: -76.912 | AF179: 0.003 | AG179: 0.003 | AH179: 0 | AI179: 77 | AK179: 2926.19704 | AL179: 1043.653984 | AM179: 622.6 | AN179: 1.676283302 | AO179: 831.421984 | AP179: 0.01 | AQ179: 0.01 | AR179: 0 | AS179: 0 | AU179: 2125.45212 | AV179: 758.0612455 | AW179: 573 | AX179: 1.322969015 | AY179: 197.55924 | AZ179: 0.015 | BA179: 0.015 | BB179: 0 | BC179: 0 | BE179: 190.2 | BF179: 67.8365076 | BG179: 65 | BH179: 1.043638578 | BI179: -83.1705 | BJ179: 0.0105 | BK179: 0.0105 | BL179: 0 | BM179: 84 | BO179: 351 | BP179: 125.1872459 | BQ179: 78 | BR179: 1.604964691 | BS179: 88.56432 | BT179: 0.0075 | BU179: 0.0075 | BV179: 0 | BW179: 0 | BY179: 0.997311828 | BZ179: 1 | CA179: 0.9989247312 | CB179: 0.9 | CC179: 0.0025 | CD179: 1745.64588
A180: MEURTHE_ET_MOSELLE_MEUSE | B180: VERDUN | C180: VAUCOULEURS | D180: 1.758463203 | F180: 0.05638 | G180: 0.05638 | I180: 5 | J180: 5 | L180: 0.56 | M180: 0.541 | N180: 0.7 | Q180: 83 | R180: 47.20030527 | S180: 36 | T180: 1.311119591 | U180: 7.034389613 | V180: 0.01 | W180: 0.01 | X180: 0 | Y180: 0 | AA180: 143 | AB180: 81.32100787 | AC180: 200 | AD180: 0.4066050393 | AE180: -279.0311688 | AH180: 209 | AI180: 280 | AK180: 850.13204 | AL180: 483.4517085 | AM180: 612 | AN180: 0.789953772 | AO180: -441.2833366 | AR180: 227 | AS180: 442 | AU180: 1191.12178 | AV180: 677.3652003 | AW180: 573 | AX180: 1.18213822 | AY180: -17.99751866 | AZ180: 0.0135 | BA180: 0.0135 | BB180: 0 | BC180: 18 | BE180: 150.1 | BF180: 85.35862434 | BG180: 65 | BH180: 1.313209605 | BI180: -21.35016233 | BJ180: 0.02288 | BK180: 0.02288 | BL180: 0 | BM180: 22 | BO180: 166 | BP180: 94.40061053 | BQ180: 78 | BR180: 1.210264238 | BS180: 1.407844162 | BT180: 0.0075 | BU180: 0.0075 | BV180: 0 | BW180: 0 | BY180: 0.9899328859 | BZ180: 1 | CA180: 0.9959731544 | CB180: 0.9 | CC180: 0.0025 | CD180: 1076.17948
A181: MEURTHE_ET_MOSELLE_MEUSE | B181: VERDUN | C181: VERDUN CENTRALE | D181: 10.45478437 | F181: 0.03625 | G181: 0.03625 | I181: 7 | J181: 7 | L181: 0.6889364845 | M181: 0.753 | N181: 0.7 | O181: 0.007 | Q181: 534 | R181: 51.07709361 | S181: 36 | T181: 1.418808156 | U181: 82.35331518 | V181: 0.01 | W181: 0.01 | X181: 0 | Y181: 0 | AA181: 985 | AB181: 94.21523822 | AC181: 200 | AD181: 0.4710761911 | AE181: -1524.148249 | AH181: 1106 | AI181: 1525 | AK181: 7613.23899 | AL181: 728.2062183 | AM181: 654.1 | AN181: 1.113294937 | AO181: -592.9303584 | AP181: 0.0055 | AQ181: 0.0055 | AR181: 0 | AS181: 593 | AU181: 6256.89136 | AV181: 598.4715837 | AW181: 573 | AX181: 1.044453026 | AY181: -931.8183734 | AZ181: 0.003 | BA181: 0.003 | BB181: 0 | BC181: 932 | BE181: 617.2 | BF181: 59.03517262 | BG181: 65 | BH181: 0.9082334249 | BI181: -402.1414762 | BJ181: 0.00075 | BK181: 0.00075 | BL181: 0 | BM181: 403 | BO181: 1049 | BP181: 100.3368375 | BQ181: 78 | BR181: 1.286369711 | BS181: 70.43218288 | BT181: 0.0075 | BU181: 0.0075 | BV181: 0 | BW181: 0 | BY181: 0.9937581274 | BZ181: 1 | CA181: 0.997503251 | CB181: 0.9 | CC181: 0.0025 | CD181: 6838.474457
A182: MEURTHE_ET_MOSELLE_MEUSE | B182: VERDUN | C182: VERDUN MAZEL | D182: 3.888387097 | F182: 0.056 | G182: 0.056 | I182: 6 | J182: 6 | L182: 0.8 | M182: 0.779 | N182: 0.7 | O182: 0.011 | Q182: 189 | R182: 48.60627178 | S182: 36 | T182: 1.350174216 | U182: 21.02167742 | V182: 0.01 | W182: 0.01 | X182: 0 | Y182: 0 | AA182: 557 | AB182: 143.2470549 | AC182: 200 | AD182: 0.7162352746 | AE182: -376.2129032 | AH182: 221 | AI182: 377 | AK182: 3695.94636 | AL182: 950.5088532 | AM182: 652.9 | AN182: 1.455826088 | AO182: 649.4728374 | AP182: 0.01 | AQ182: 0.01 | AR182: 0 | AS182: 0 | AU182: 2851.38339 | AV182: 733.307492 | AW182: 573 | AX182: 1.279768747 | AY182: 177.7284222 | AZ182: 0.015 | BA182: 0.015 | BB182: 0 | BC182: 0 | BE182: 223.5 | BF182: 57.4788452 | BG182: 65 | BH182: 0.8842899261 | BI182: -155.6177419 | BL182: 4 | BM182: 156 | BO182: 400 | BP182: 102.8704165 | BQ182: 78 | BR182: 1.318851493 | BS182: 36.04696774 | BT182: 0.0075 | BU182: 0.0075 | BV182: 0 | BW182: 0 | BY182: 0.9991568297 | BZ182: 1 | CA182: 0.9996627319 | CB182: 0.9 | CC182: 0.0025 | CD182: 2538.727936
A183: MEURTHE_ET_MOSELLE_MEUSE | B183: VERDUN | C183: VILLERUPT | D183: 2.817493519 | F183: 0.0335 | G183: 0.0335 | I183: 6 | J183: 6 | L183: 0.78 | M183: 0.73 | N183: 0.7 | O183: 0.004 | Q183: 111 | R183: 39.39671884 | S183: 36 | T183: 1.094353301 | U183: -10.71572001 | V183: 0.0045 | W183: 0.0045 | X183: 0 | Y183: 11 | AA183: 279 | AB183: 99.0241852 | AC183: 200 | AD183: 0.495120926 | AE183: -397.1984445 | AH183: 285 | AI183: 398 | AK183: 1618.66662 | AL183: 574.5058895 | AM183: 756.3 | AN183: 0.7596269859 | AO183: -938.3777978 | AR183: 513 | AS183: 939 | AU183: 1893.52707 | AV183: 672.0608432 | AW183: 573 | AX183: 1.172881053 | AY183: -43.78147346 | AZ183: 0.01275 | BA183: 0.01275 | BB183: 0 | BC183: 44 | BE183: 171 | BF183: 60.69224254 | BG183: 65 | BH183: 0.9337268084 | BI183: -103.7056181 | BJ183: 0.00225 | BK183: 0.00225 | BL183: 0 | BM183: 104 | BO183: 355 | BP183: 125.9985152 | BQ183: 78 | BR183: 1.61536558 | BS183: 91.28260665 | BT183: 0.0075 | BU183: 0.0075 | BV183: 0 | BW183: 0 | BY183: 0.9944838455 | BZ183: 1 | CA183: 0.9977935382 | CB183: 0.9 | CC183: 0.0025 | CD183: 2130.870348
A184: MOSELLE | B184: METZ | C184: ARS SUR MOSELLE | D184: 3.43806227 | F184: 0.03075 | G184: 0.03075 | I184: 5 | J184: 5 | L184: 0.45 | M184: 0.54 | N184: 0.7 | Q184: 170 | R184: 49.44645753 | S184: 36 | T184: 1.373512709 | U184: 21.47570995 | V184: 0.01 | W184: 0.01 | X184: 0 | Y184: 0 | AA184: 304 | AB184: 88.42190052 | AC184: 200 | AD184: 0.4421095026 | AE184: -521.1349447 | AH184: 384 | AI184: 522 | AK184: 3467.83168 | AL184: 1008.658776 | AM184: 828 | AN184: 1.218186927 | AO184: 51.77300883 | AP184: 0.01 | AQ184: 0.01 | AR184: 0 | AS184: 0 | AU184: 1998.97132 | AV184: 581.4238263 | AW184: 573 | AX184: 1.014701268 | AY184: -365.0402966 | AZ184: 0.00075 | BA184: 0.00075 | BB184: 0 | BC184: 366 | BE184: 169.8 | BF184: 49.38828523 | BG184: 65 | BH184: 0.7598197727 | BI184: -165.4110713 | BL184: 32 | BM184: 166 | BO184: 368 | BP184: 107.0370375 | BQ184: 78 | BR184: 1.372269711 | BS184: 46.19737156 | BT184: 0.0075 | BU184: 0.0075 | BV184: 0 | BW184: 0 | BY184: 0.9917465389 | BZ184: 1 | CA184: 0.9966986155 | CB184: 0.9 | CC184: 0.0025 | CD184: 2846.715559
A185: MOSELLE | B185: METZ | C185: BOULAY | D185: 3.858946925 | F185: 0.026 | G185: 0.026 | I185: 4 | J185: 4 | L185: 0.5073344235 | M185: 0.686 | N185: 0.7 | Q185: 154 | R185: 39.90726045 | S185: 36 | T185: 1.108535012 | U185: -12.70650717 | V185: 0.0055 | W185: 0.0055 | X185: 0 | Y185: 13 | AA185: 270 | AB185: 69.96727481 | AC185: 200 | AD185: 0.3498363741 | AE185: -656.147262 | AH185: 502 | AI185: 657 | AK185: 1165.48637 | AL185: 302.0218709 | AM185: 643.7 | AN185: 0.4691966302 | AO185: -1815.318593 | AR185: 1319 | AS185: 1816 | AU185: 2522.32104 | AV185: 653.629368 | AW185: 573 | AX185: 1.140714429 | AY185: -131.0908658 | AZ185: 0.0105 | BA185: 0.0105 | BB185: 0 | BC185: 132 | BE185: 168.1 | BF185: 43.56110702 | BG185: 65 | BH185: 0.6701708773 | BI185: -208.1473252 | BL185: 58 | BM185: 209 | BO185: 403 | BP185: 104.4326361 | BQ185: 78 | BR185: 1.33887995 | BS185: 41.8025678 | BT185: 0.0075 | BU185: 0.0075 | BV185: 0 | BW185: 0 | BY185: 0.9971145919 | BZ185: 1 | CA185: 0.9988458368 | CB185: 0.9 | CC185: 0.0025 | CD185: 2484.004136
A186: MOSELLE | B186: METZ | C186: CLOUANGE | D186: 2.590499289 | F186: 0.03175 | G186: 0.03175 | I186: 4 | J186: 4 | L186: 0.33 | M186: 0.558 | N186: 0.7 | Q186: 93 | R186: 35.90041519 | S186: 36 | T186: 0.9972337552 | U186: -18.90956927 | V186: 0 | W186: 0 | X186: 1 | Y186: 19 | AA186: 186 | AB186: 71.80083037 | AC186: 200 | AD186: 0.3590041519 | AE186: -435.7198293 | AH186: 333 | AI186: 436 | AK186: 912.09573 | AL186: 352.0926387 | AM186: 675.5 | AN186: 0.5212326257 | AO186: -1187.762993 | AR186: 838 | AS186: 1188 | AU186: 2476.0738 | AV186: 955.8287898 | AW186: 573 | AX186: 1.668113071 | AY186: 694.8464892 | AZ186: 0.015 | BA186: 0.015 | BB186: 0 | BC186: 0 | BE186: 167.3 | BF186: 64.58214474 | BG186: 65 | BH186: 0.9935714575 | BI186: -85.27368064 | BJ186: 0.00675 | BK186: 0.00675 | BL186: 0 | BM186: 86 | BO186: 336 | BP186: 129.7047258 | BQ186: 78 | BR186: 1.6628811 | BS186: 93.52926659 | BT186: 0.0075 | BU186: 0.0075 | BV186: 0 | BW186: 0 | BY186: 0.9987277354 | BZ186: 1 | CA186: 0.9994910941 | CB186: 0.9 | CC186: 0.0025 | CD186: 1749.882269
A187: MOSELLE | B187: METZ | C187: MAIZIERES LES METZ | D187: 3.73951612 | F187: 0.025 | G187: 0.025 | I187: 4 | J187: 4 | L187: 0.56 | M187: 0.517 | N187: 0.7 | Q187: 163 | R187: 43.58852717 | S187: 36 | T187: 1.210792422 | U187: 1.452903633 | V187: 0.01 | W187: 0.01 | X187: 0 | Y187: 0 | AA187: 445 | AB187: 118.9993533 | AC187: 200 | AD187: 0.5949967667 | AE187: -452.4838687 | AH187: 303 | AI187: 453 | AK187: 3121.251 | AL187: 834.66708 | AM187: 761.4 | AN187: 1.096226793 | AO187: -295.4700882 | AP187: 0.005 | AQ187: 0.005 | AR187: 0 | AS187: 296 | AU187: 1608.82729 | AV187: 430.2233868 | AW187: 573 | AX187: 0.750826155 | AY187: -962.4639938 | BB187: 534 | BC187: 963 | BE187: 181.6 | BF187: 48.56243273 | BG187: 65 | BH187: 0.7471143497 | BI187: -183.0028217 | BL187: 38 | BM187: 184 | BO187: 463 | BP187: 123.8128103 | BQ187: 78 | BR187: 1.587343722 | BS187: 112.9812912 | BT187: 0.0075 | BU187: 0.0075 | BV187: 0 | BW187: 0 | BY187: 0.995 | BZ187: 1 | CA187: 0.998 | CB187: 0.9 | CC187: 0.0025 | CD187: 2847.267573
A188: MOSELLE | B188: METZ | C188: MARANGE SILVANGE | D188: 2.778489712 | F188: 0.022 | G188: 0.022 | I188: 3 | J188: 3 | L188: 0.7 | M188: 0.429 | N188: 0.7 | Q188: 109 | R188: 39.22994551 | S188: 36 | T188: 1.089720709 | U188: -11.03075556 | V188: 0.0045 | W188: 0.0045 | X188: 0 | Y188: 12 | AA188: 288 | AB188: 103.653434 | AC188: 200 | AD188: 0.51826717 | AE188: -378.8375309 | AH188: 268 | AI188: 379 | AK188: 1115.90439 | AL188: 401.622646 | AM188: 711.2 | AN188: 0.564711257 | AO188: -1255.36987 | AR188: 861 | AS188: 1256 | AU188: 2440.08152 | AV188: 878.2042666 | AW188: 573 | AX188: 1.532642699 | AY188: 529.591994 | AZ188: 0.015 | BA188: 0.015 | BB188: 0 | BC188: 0 | BE188: 141.1 | BF188: 50.78298451 | BG188: 65 | BH188: 0.7812766847 | BI188: -129.8027469 | BL188: 22 | BM188: 130 | BO188: 195 | BP188: 70.18201261 | BQ188: 78 | BR188: 0.8997693924 | BS188: -65.06663705 | BV188: 22 | BW188: 66 | BY188: 0.9942878903 | BZ188: 1 | CA188: 0.9977151561 | CB188: 0.9 | CC188: 0.0025 | CD188: 1976.061883
A189: MOSELLE | B189: METZ | C189: MARLY | D189: 3.63363236 | F189: 0.03775 | G189: 0.03775 | I189: 6 | J189: 6 | L189: 0.84 | M189: 0.784 | N189: 0.7 | O189: 0.012 | Q189: 140 | R189: 38.52893912 | S189: 36 | T189: 1.070248309 | U189: -16.97291796 | V189: 0.0035 | W189: 0.0035 | X189: 0 | Y189: 17 | AA189: 471 | AB189: 129.6223595 | AC189: 200 | AD189: 0.6481117974 | AE189: -401.0717664 | AH189: 256 | AI189: 402 | AK189: 3332.67161 | AL189: 917.1735827 | AM189: 828 | AN189: 1.107697564 | AO189: -277.7055031 | AP189: 0.0055 | AQ189: 0.0055 | AR189: 0 | AS189: 278 | AU189: 2261.63791 | AV189: 622.4179239 | AW189: 573 | AX189: 1.086244195 | AY189: -236.8477009 | AZ189: 0.00675 | BA189: 0.00675 | BB189: 0 | BC189: 237 | BE189: 134.6 | BF189: 37.0428229 | BG189: 65 | BH189: 0.5698895831 | BI189: -219.6791551 | BL189: 78 | BM189: 220 | BO189: 345 | BP189: 94.94631427 | BQ189: 78 | BR189: 1.217260439 | BS189: 4.892011085 | BT189: 0.0075 | BU189: 0.0075 | BV189: 0 | BW189: 0 | BY189: 0.9842995169 | BZ189: 1 | CA189: 0.9937198068 | CB189: 0.9 | CC189: 0.0025 | CD189: 3008.647594
A190: MOSELLE | B190: METZ | C190: METZ CATHEDRALE | D190: 4.683432258 | F190: 0.004 | G190: 0.004 | I190: 2 | J190: 2 | L190: 0.58 | M190: 0.477 | N190: 0.7 | Q190: 144 | R190: 30.74668151 | S190: 36 | T190: 0.8540744864 | U190: -58.32427354 | X190: 25 | Y190: 59 | AA190: 442 | AB190: 94.37523074 | AC190: 200 | AD190: 0.4718761537 | AE190: -682.0237419 | AH190: 495 | AI190: 683 | AK190: 2883.98572 | AL190: 615.7846556 | AM190: 828 | AN190: 0.7437012749 | AO190: -1769.472571 | AR190: 994 | AS190: 1770 | AU190: 2447.14322 | AV190: 522.5106472 | AW190: 573 | AX190: 0.9118859462 | AY190: -773.1848005 | BB190: 237 | BC190: 774 | BE190: 171.2 | BF190: 36.55438802 | BG190: 65 | BH190: 0.5623752003 | BI190: -285.4346451 | BL190: 103 | BM190: 286 | BO190: 379 | BP190: 80.92355758 | BQ190: 78 | BR190: 1.037481507 | BS190: -59.36925933 | BT190: 0.0015 | BU190: 0.0015 | BV190: 0 | BW190: 60 | BY190: 0.9937280944 | BZ190: 1 | CA190: 0.9974912378 | CB190: 0.9 | CC190: 0.0025 | CD190: 3877.881909
A191: MOSELLE | B191: METZ | C191: METZ MOZART | D191: 2.83795803 | F191: 0.011 | G191: 0.011 | I191: 3 | J191: 3 | L191: 0.68 | M191: 0.59 | N191: 0.7 | Q191: 71 | R191: 25.01798802 | S191: 36 | T191: 0.6949441118 | U191: -51.59978689 | X191: 32 | Y191: 52 | AA191: 215 | AB191: 75.75869613 | AC191: 200 | AD191: 0.3787934806 | AE191: -466.1099272 | AH191: 353 | AI191: 467 | AK191: 2392.17913 | AL191: 842.9226595 | AM191: 828 | AN191: 1.018022536 | AO191: -427.6159684 | AP191: 0.001 | AQ191: 0.001 | AR191: 0 | AS191: 428 | AU191: 1567.03468 | AV191: 552.1697867 | AW191: 573 | AX191: 0.9636470972 | AY191: -384.3452613 | BB191: 60 | BC191: 385 | BE191: 96.6 | BF191: 34.03855835 | BG191: 65 | BH191: 0.5236701285 | BI191: -180.1009079 | BL191: 70 | BM191: 181 | BO191: 338 | BP191: 119.0997176 | BQ191: 78 | BR191: 1.526919457 | BS191: 72.36712841 | BT191: 0.0075 | BU191: 0.0075 | BV191: 0 | BW191: 0 | BY191: 0.9955835962 | BZ191: 1 | CA191: 0.9982334385 | CB191: 0.9 | CC191: 0.0025 | CD191: 2349.829249
A192: MOSELLE | B192: METZ | C192: METZ PLAPPEVILLE | D192: 3.076901234 | F192: 0.031 | G192: 0.031 | I192: 4 | J192: 4 | L192: 0.1 | M192: 0.522 | N192: 0.7 | Q192: 98 | R192: 31.85022611 | S192: 36 | T192: 0.8847285029 | U192: -34.9221333 | X192: 13 | Y192: 35 | AA192: 326 | AB192: 105.9507521 | AC192: 200 | AD192: 0.5297537607 | AE192: -412.4562961 | AH192: 290 | AI192: 413 | AK192: 2808.46392 | AL192: 912.7572537 | AM192: 817.8 | AN192: 1.116113052 | AO192: -211.0838748 | AP192: 0.006 | AQ192: 0.006 | AR192: 0 | AS192: 212 | AU192: 2212.26631 | AV192: 718.9916549 | AW192: 573 | AX192: 1.254784738 | AY192: 96.58902164 | AZ192: 0.015 | BA192: 0.015 | BB192: 0 | BC192: 0 | BE192: 171.6 | BF192: 55.77039591 | BG192: 65 | BH192: 0.858006091 | BI192: -128.3978703 | BL192: 9 | BM192: 129 | BO192: 332 | BP192: 107.900766 | BQ192: 78 | BR192: 1.383343154 | BS192: 44.00204452 | BT192: 0.0075 | BU192: 0.0075 | BV192: 0 | BW192: 0 | BY192: 0.9968463303 | BZ192: 1 | CA192: 0.9987385321 | CB192: 0.9 | CC192: 0.0025 | CD192: 2516.289829
A193: MOSELLE | B193: METZ | C193: METZ POMPIDOU | D193: 3.860460936 | F193: 0.0275 | G193: 0.0275 | I193: 4 | J193: 4 | L193: 0.68 | M193: 0.644 | N193: 0.7 | Q193: 180 | R193: 46.62655651 | S193: 36 | T193: 1.295182125 | U193: 13.22808756 | V193: 0.01 | W193: 0.01 | X193: 0 | Y193: 0 | AA193: 526 | AB193: 136.2531596 | AC193: 200 | AD193: 0.6812657979 | AE193: -400.5106247 | AH193: 247 | AI193: 401 | AK193: 3628.77112 | AL193: 939.9838983 | AM193: 814.9 | AN193: 1.15349601 | AO193: -146.2964203 | AP193: 0.0075 | AQ193: 0.0075 | AR193: 0 | AS193: 147 | AU193: 2119.06838 | AV193: 548.9158976 | AW193: 573 | AX193: 0.9579684077 | AY193: -535.3845597 | BB193: 93 | BC193: 536 | BE193: 206.4 | BF193: 53.46511813 | BG193: 65 | BH193: 0.822540279 | BI193: -169.9949413 | BL193: 20 | BM193: 170 | BO193: 432 | BP193: 111.9037356 | BQ193: 78 | BR193: 1.434663277 | BS193: 70.66085637 | BT193: 0.0075 | BU193: 0.0075 | BV193: 0 | BW193: 0 | BY193: 0.996961256 | BZ193: 1 | CA193: 0.9987845024 | CB193: 0.9 | CC193: 0.0025 | CD193: 3145.889617
A194: MOSELLE | B194: METZ | C194: METZ REPUBLIQUE | D194: 4.085585674 | F194: 0.03275 | G194: 0.03275 | I194: 5 | J194: 5 | L194: 0.79 | M194: 0.825 | N194: 0.7 | O194: 0.017 | Q194: 153 | R194: 37.44873127 | S194: 36 | T194: 1.040242535 | U194: -23.49730114 | V194: 0.002 | W194: 0.002 | X194: 0 | Y194: 24 | AA194: 317 | AB194: 77.58985498 | AC194: 200 | AD194: 0.3879492749 | AE194: -663.5405619 | AH194: 501 | AI194: 664 | AK194: 2196.57465 | AL194: 537.6400901 | AM194: 828 | AN194: 0.6493237803 | AO194: -1862.863276 | AR194: 1187 | AS194: 1863 | AU194: 2451.81775 | AV194: 600.1141441 | AW194: 573 | AX194: 1.047319623 | AY194: -357.4309598 | AZ194: 0.00375 | BA194: 0.00375 | BB194: 0 | BC194: 358 | BE194: 155.8 | BF194: 38.13406753 | BG194: 65 | BH194: 0.586677962 | BI194: -242.5446033 | BL194: 84 | BM194: 243 | BO194: 441 | BP194: 107.9404607 | BQ194: 78 | BR194: 1.38385206 | BS194: 58.58918087 | BT194: 0.0075 | BU194: 0.0075 | BV194: 0 | BW194: 0 | BY194: 0.9925858951 | BZ194: 1 | CA194: 0.997034358 | CB194: 0.9 | CC194: 0.0025 | CD194: 3382.864938
A195: MOSELLE | B195: METZ | C195: METZ SAINT LIVIER | D195: 2.848148775 | F195: 0.013 | G195: 0.013 | I195: 3 | J195: 3 | L195: 0.58 | M195: 0.721 | N195: 0.7 | O195: 0.003 | Q195: 76 | R195: 26.68399933 | S195: 36 | T195: 0.7412222035 | U195: -47.04002709 | X195: 27 | Y195: 48 | AA195: 212 | AB195: 74.43431391 | AC195: 200 | AD195: 0.3721715695 | AE195: -471.5557061 | AH195: 358 | AI195: 472 | AK195: 1253.85815 | AL195: 440.2361846 | AM195: 792.6 | AN195: 0.5554329859 | AO195: -1455.073113 | AR195: 1004 | AS195: 1456 | AU195: 1108.22393 | AV195: 389.1032448 | AW195: 573 | AX195: 0.6790632544 | AY195: -850.1631679 | BB195: 524 | BC195: 851 | BE195: 111.2 | BF195: 39.04290428 | BG195: 65 | BH195: 0.6006600658 | BI195: -166.4945056 | BL195: 56 | BM195: 167 | BO195: 279 | BP195: 97.95836595 | BQ195: 78 | BR195: 1.255876486 | BS195: 12.41327463 | BT195: 0.0075 | BU195: 0.0075 | BV195: 0 | BW195: 0 | BY195: 0.9864956111 | BZ195: 1 | CA195: 0.9945982444 | CB195: 0.9 | CC195: 0.0025 | CD195: 2257.442719
A196: MOSELLE | B196: METZ | C196: METZ SAINT LOUIS | D196: 6.844910631 | F196: 0.03525 | G196: 0.03525 | I196: 5 | J196: 5 | L196: 0.4 | M196: 0.557 | N196: 0.7 | Q196: 296 | R196: 43.24380784 | S196: 36 | T196: 1.201216884 | U196: 0.2998607408 | V196: 0.01 | W196: 0.01 | X196: 0 | Y196: 0 | AA196: 671 | AB196: 98.02903736 | AC196: 200 | AD196: 0.4901451868 | AE196: -971.7785514 | AH196: 698 | AI196: 972 | AK196: 7246.57835 | AL196: 1058.681222 | AM196: 828 | AN196: 1.278600509 | AO196: 445.475147 | AP196: 0.01 | AQ196: 0.01 | AR196: 0 | AS196: 0 | AU196: 4193.55819 | AV196: 612.6534612 | AW196: 573 | AX196: 1.069203248 | AY196: -513.0023599 | AZ196: 0.00525 | BA196: 0.00525 | BB196: 0 | BC196: 514 | BE196: 248.2 | BF196: 36.26051725 | BG196: 65 | BH196: 0.5578541115 | BI196: -419.1787865 | BL196: 153 | BM196: 420 | BO196: 999 | BP196: 145.9478515 | BQ196: 78 | BR196: 1.871126301 | BS196: 358.3163649 | BT196: 0.0075 | BU196: 0.0075 | BV196: 0 | BW196: 0 | BY196: 0.9875844043 | BZ196: 1 | CA196: 0.9950337617 | CB196: 0.9 | CC196: 0.0025 | CD196: 5667.586002
A197: MOSELLE | B197: METZ | C197: METZ SAINT MAXIMIN | D197: 2.871463444 | F197: 0.027875 | G197: 0.027875 | I197: 5 | J197: 5 | L197: 0.68 | M197: 0.684 | N197: 0.7 | Q197: 271 | R197: 94.37696326 | S197: 36 | T197: 2.621582313 | U197: 146.9527792 | V197: 0.01 | W197: 0.01 | X197: 0 | Y197: 0 | AA197: 278 | AB197: 96.8147446 | AC197: 200 | AD197: 0.484073723 | AE197: -411.1512267 | AH197: 297 | AI197: 412 | AK197: 1748.52947 | AL197: 608.933216 | AM197: 806.1 | AN197: 0.7554065451 | AO197: -1029.094549 | AR197: 567 | AS197: 1030 | AU197: 1956.709 | AV197: 681.4326694 | AW197: 573 | AX197: 1.18923677 | AY197: -17.70926444 | AZ197: 0.01425 | BA197: 0.01425 | BB197: 0 | BC197: 18 | BE197: 169.7 | BF197: 59.09878474 | BG197: 65 | BH197: 0.9092120729 | BI197: -110.2676858 | BJ197: 0.00075 | BK197: 0.00075 | BL197: 0 | BM197: 111 | BO197: 226 | BP197: 78.70551179 | BQ197: 78 | BR197: 1.009045023 | BS197: -42.76897841 | BT197: 0.000375 | BU197: 0.000375 | BV197: 0 | BW197: 43 | BY197: 0.9937007874 | BZ197: 1 | CA197: 0.997480315 | CB197: 0.9 | CC197: 0.0025 | CD197: 2314.686683
A198: MOSELLE | B198: METZ | C198: METZ SARRE | D198: 3.904774293 | F198: 0.0245 | G198: 0.0245 | I198: 5 | J198: 5 | L198: 0 | M198: 0.423 | N198: 0.7 | Q198: 186 | R198: 47.63399522 | S198: 36 | T198: 1.323166534 | U198: 17.31375055 | V198: 0.01 | W198: 0.01 | X198: 0 | Y198: 0 | AA198: 322 | AB198: 82.46315302 | AC198: 200 | AD198: 0.4123157651 | AE198: -615.1458303 | AH198: 459 | AI198: 616 | AK198: 1577.69101 | AL198: 404.0415378 | AM198: 646.5 | AN198: 0.6249675759 | AO198: -1451.632886 | AR198: 947 | AS198: 1452 | AU198: 2247.47378 | AV198: 575.5707274 | AW198: 573 | AX198: 1.004486435 | AY198: -437.4490237 | AZ198: 0.00075 | BA198: 0.00075 | BB198: 0 | BC198: 438 | BE198: 241.1 | BF198: 61.74492606 | BG198: 65 | BH198: 0.9499219394 | BI198: -139.6154935 | BJ198: 0.00375 | BK198: 0.00375 | BL198: 0 | BM198: 140 | BO198: 411 | BP198: 105.2557636 | BQ198: 78 | BR198: 1.349432867 | BS198: 45.51312619 | BT198: 0.0075 | BU198: 0.0075 | BV198: 0 | BW198: 0 | BY198: 0.9981154299 | BZ198: 1 | CA198: 0.999246172 | CB198: 0.9 | CC198: 0.0025 | CD198: 2524.43658
A199: MOSELLE | B199: METZ | C199: MONTIGNY LES METZ | D199: 7.749221051 | F199: 0.05 | G199: 0.05 | I199: 6 | J199: 6 | L199: 0.75 | M199: 0.776 | N199: 0.7 | O199: 0.01 | Q199: 339 | R199: 43.74633241 | S199: 36 | T199: 1.2151759 | U199: 4.233650592 | V199: 0.01 | W199: 0.01 | X199: 0 | Y199: 0 | AA199: 1027 | AB199: 132.5294495 | AC199: 200 | AD199: 0.6626472475 | AE199: -832.8130523 | AH199: 523 | AI199: 833 | AK199: 7025.97876 | AL199: 906.6690334 | AM199: 828 | AN199: 1.09501091 | AO199: -673.6472764 | AP199: 0.005 | AQ199: 0.005 | AR199: 0 | AS199: 674 | AU199: 5899.70565 | AV199: 761.3288627 | AW199: 573 | AX199: 1.328671663 | AY199: 571.3412553 | AZ199: 0.015 | BA199: 0.015 | BB199: 0 | BC199: 0 | BE199: 262.6 | BF199: 33.88727696 | BG199: 65 | BH199: 0.5213427225 | BI199: -492.9490525 | BL199: 191 | BM199: 493 | BO199: 884 | BP199: 114.0759819 | BQ199: 78 | BR199: 1.462512588 | BS199: 158.6729096 | BT199: 0.0075 | BU199: 0.0075 | BV199: 0 | BW199: 0 | BY199: 0.9930043486 | BZ199: 1 | CA199: 0.9972017395 | CB199: 0.9 | CC199: 0.0025 | CD199: =D199*AM199 -> 6416.35503
A200: MOSELLE | B200: METZ | C200: MOULINS LES METZ | D200: 2.550341769 | F200: 0.0115 | G200: 0.0115 | I200: 3 | J200: 3 | L200: 0.3 | M200: 0.598 | N200: 0.7 | Q200: 90 | R200: 35.28938792 | S200: 36 | T200: 0.9802607755 | U200: -20.1747644 | X200: 2 | Y200: 21 | AA200: 271 | AB200: 106.2602681 | AC200: 200 | AD200: 0.5313013403 | AE200: -341.0820245 | AH200: 240 | AI200: 342 | AK200: 1140.51158 | AL200: 447.1995064 | AM200: 828 | AN200: 0.5400960222 | AO200: -1393.508001 | AR200: 972 | AS200: 1394 | AU200: 1484.55208 | AV200: 582.0992693 | AW200: 573 | AX200: 1.015880051 | AY200: -269.0629201 | AZ200: 0.0015 | BA200: 0.0015 | BB200: 0 | BC200: 270 | BE200: 115.1 | BF200: 45.13120611 | BG200: 65 | BH200: 0.6943262478 | BI200: -133.5583224 | BL200: 35 | BM200: 134 | BO200: 252 | BP200: 98.81028618 | BQ200: 78 | BR200: 1.266798541 | BS200: 13.28801046 | BT200: 0.0075 | BU200: 0.0075 | BV200: 0 | BW200: 0 | BY200: 0.9915449654 | BZ200: 1 | CA200: 0.9966179862 | CB200: 0.9 | CC200: 0.0025 | CD200: 2111.682984
A201: MOSELLE | B201: METZ | C201: REMILLY | D201: 4.075214263 | F201: 0.025 | G201: 0.025 | I201: 3 | J201: 3 | L201: 0.25 | M201: 0.573 | N201: 0.7 | Q201: 137 | R201: 33.61786428 | S201: 36 | T201: 0.9338295634 | U201: -39.04925615 | X201: 10 | Y201: 40 | AA201: 372 | AB201: 91.28354389 | AC201: 200 | AD201: 0.4564177194 | AE201: -606.051423 | AH201: 444 | AI201: 607 | AK201: 1595.17211 | AL201: 391.4326971 | AM201: 762.4 | AN201: 0.5134216908 | AO201: -2133.159915 | AR201: 1512 | AS201: 2134 | AU201: 3029.99569 | AV201: 743.5181305 | AW201: 573 | AX201: 1.29758836 | AY201: 227.878363 | AZ201: 0.015 | BA201: 0.015 | BB201: 0 | BC201: 0 | BE201: 208.5 | BF201: 51.16295403 | BG201: 65 | BH201: 0.7871223697 | BI201: -188.8333906 | BL201: 30 | BM201: 189 | BO201: 499 | BP201: 122.4475495 | BQ201: 78 | BR201: 1.569840378 | BS201: 117.559945 | BT201: 0.0075 | BU201: 0.0075 | BV201: 0 | BW201: 0 | BY201: 0.9972096268 | BZ201: 1 | CA201: 0.9988838507 | CB201: 0.9 | CC201: 0.0025 | CD201: 3106.943354
... 61 more rows

Sheet CUMUL résultats semaine
A1: 1 | B1: 2 | C1: 3 | D1: 4 | E1: 5 | F1: 6 | G1: 7 | H1: 8 | I1: 9 | J1: 10 | K1: 11 | L1: 12 | M1: 13 | N1: 14 | O1: 15 | P1: 16 | Q1: 17 | R1: 18 | S1: 19 | T1: 20 | U1: 21 | V1: 22 | W1: 23 | X1: 24 | Y1: 25 | Z1: 26 | AA1: 27 | AB1: 28 | AC1: 29 | AD1: 30 | AE1: 31 | AF1: 32 | AG1: 33 | AH1: 34 | AI1: 35 | AJ1: 36 | AK1: 37 | AL1: 38 | AM1: 39 | AN1: 40 | AO1: 41 | AP1: 42 | AQ1: 43 | AR1: 44 | AS1: 45 | AT1: 46 | AU1: 47 | AV1: 48 | AW1: 49 | AX1: 50 | AY1: 51 | AZ1: 52 | BA1: 53 | BB1: 54 | BC1: 55 | BD1: 56 | BE1: 57 | BF1: 58 | BG1: 59 | BH1: 60 | BI1: 61 | BJ1: 62 | BK1: 63 | BL1: 64 | BM1: 65 | BN1: 66 | BO1: 67 | BP1: 68 | BQ1: 69 | BR1: 70 | BS1: 71 | BT1: 72 | BU1: 73 | BV1: 74 | BW1: 75 | BX1: 76 | BY1: 77 | BZ1: 78 | CA1: 79 | CB1: 80 | CC1: 81 | CD1: 82 | CE1: 83 | CF1: 84 | CG1: 85 | CH1: 86 | CI1: 87
A2: REGIONS | B2: TERRITOIRES | C2: AGENCES | D2: S0 PROD IARD | E2: S0 RAF IARD 100% | F2: S0 RAF IARD 120% | G2: S0 PROD CONSO | H2: S0 RAF CONSO 100% | I2: S0 RAF CONSO 120% | J2: S0 PROD BANCA | K2: S0 RAF BANCA 100% | L2: S0 RAF BANCA 120% | M2: S0 PROD ASS VIE | N2: S0 RAF ASS VIE 100% | O2: S0 RAF ASS VIE 120% | P2: S45 PROD IARD | Q2: S45 RAF IARD 100% | R2: S45 RAF IARD 120% | S2: S45 PROD CONSO | T2: S45 RAF CONSO 100% | U2: S45 RAF CONSO 120% | V2: S45 PROD BANCA | W2: S45 RAF BANCA 100% | X2: S45 RAF BANCA 120% | Y2: S45 PROD ASS VIE | Z2: S45 RAF ASS VIE 100% | AA2: S45 RAF ASS VIE 120% | AB2: S46 PROD IARD | AC2: S46 RAF IARD 100% | AD2: S46 RAF IARD 120% | AE2: S46 PROD CONSO | AF2: S46 RAF CONSO 100% | AG2: S46 RAF CONSO 120% | AH2: S46 PROD BANCA | AI2: S46 RAF BANCA 100% | AJ2: S46 RAF BANCA 120% | AK2: S46 PROD ASS VIE | AL2: S46 RAF ASS VIE 100% | AM2: S46 RAF ASS VIE 120% | AN2: S47 PROD IARD | AO2: S47 RAF IARD 100% | AP2: S47 RAF IARD 120% | AQ2: S47 PROD CONSO | AR2: S47 RAF CONSO 100% | AS2: S47 RAF CONSO 120% | AT2: S47 PROD BANCA | AU2: S47 RAF BANCA 100% | AV2: S47 RAF BANCA 120% | AW2: S47 PROD ASS VIE | AX2: S47 RAF ASS VIE 100% | AY2: S47 RAF ASS VIE 120% | AZ2: S48 PROD IARD | BA2: S48 RAF IARD 100% | BB2: S48 RAF IARD 120% | BC2: S48 PROD CONSO | BD2: S48 RAF CONSO 100% | BE2: S48 RAF CONSO 120% | BF2: S48 PROD BANCA | BG2: S48 RAF BANCA 100% | BH2: S48 RAF BANCA 120% | BI2: S48 PROD ASS VIE | BJ2: S48 RAF ASS VIE 100% | BK2: S48 RAF ASS VIE 120% | BL2: S49 PROD IARD | BM2: S49 RAF IARD 100% | BN2: S49 RAF IARD 120% | BO2: S49 PROD CONSO | BP2: S49 RAF CONSO 100% | BQ2: S49 RAF CONSO 120% | BR2: S49 PROD BANCA | BS2: S49 RAF BANCA 100% | BT2: S49 RAF BANA 120% | BU2: S49 PROD ASS VIE | BV2: S49 RAF ASS VIE 100% | BW2: S49 RAF ASS VIE 120% | BX2: S50 PROD IARD | BY2: S50 RAF IARD 100% | BZ2: S50 RAF IARD 120% | CA2: S50 PROD CONSO | CB2: S50 RAF CONSO 100% | CC2: S50 RAF CONSO 120% | CD2: S50 PROD BANCA | CE2: S50 RAF BANCA 100% | CF2: S50 RAF BANCA 120% | CG2: S50 PROD ASS VIE | CH2: S50 RAF ASS VIE 100% | CI2: S50 RAF ASS VIE 120%
C3: BOURBONNE LES BAINS | D3: =VLOOKUP($C3,'S0 remplacer avec S44'!$C:$BQ,55,0) ->  | E3: =VLOOKUP($C3,'S0 remplacer avec S44'!$C:$BQ,62,0) ->  | F3: =VLOOKUP($C3,'S0 remplacer avec S44'!$C:$BQ,63,0) ->  | G3: =VLOOKUP($C3,'S0 remplacer avec S44'!$C:$BQ,45,0) ->  | H3: =VLOOKUP($C3,'S0 remplacer avec S44'!$C:$BQ,52,0) ->  | I3: =VLOOKUP($C3,'S0 remplacer avec S44'!$C:$BQ,53,0) ->  | J3: =VLOOKUP($C3,'S0 remplacer avec S44'!$C:$BQ,15,0) ->  | K3: =VLOOKUP($C3,'S0 remplacer avec S44'!$C:$BQ,22,0) ->  | L3: =VLOOKUP($C3,'S0 remplacer avec S44'!$C:$BQ,23,0) ->  | M3: =VLOOKUP($C3,'S0 remplacer avec S44'!$C:$BQ,35,0) ->  | N3: =VLOOKUP($C3,'S0 remplacer avec S44'!$C:$BQ,42,0) ->  | O3: =VLOOKUP($C3,'S0 remplacer avec S44'!$C:$BQ,43,0) ->  | P3: =VLOOKUP($C3,'S45'!$C:$BQ,55,0) ->  | Q3: =VLOOKUP($C3,'S45'!$C:$BQ,62,0) ->  | R3: =VLOOKUP($C3,'S45'!$C:$BQ,63,0) ->  | S3: =VLOOKUP($C3,'S45'!$C:$BQ,45,0) ->  | T3: =VLOOKUP($C3,'S45'!$C:$BQ,52,0) ->  | U3: =VLOOKUP($C3,'S45'!$C:$BQ,53,0) ->  | V3: =VLOOKUP($C3,'S45'!$C:$BQ,15,0) ->  | W3: =VLOOKUP($C3,'S45'!$C:$BQ,22,0) ->  | X3: =VLOOKUP($C3,'S45'!$C:$BQ,23,0) ->  | Y3: =VLOOKUP($C3,'S45'!$C:$BQ,35,0) ->  | Z3: =VLOOKUP($C3,'S45'!$C:$BQ,42,0) ->  | AA3: =VLOOKUP($C3,'S45'!$C:$BQ,43,0) ->  | AB3: =VLOOKUP($C3,'S46'!$C:$BQ,55,0) ->  | AC3: =VLOOKUP($C3,'S46'!$C:$BQ,62,0) ->  | AD3: =VLOOKUP($C3,'S46'!$C:$BQ,63,0) ->  | AE3: =VLOOKUP($C3,'S46'!$C:$BQ,45,0) ->  | AF3: =VLOOKUP($C3,'S46'!$C:$BQ,52,0) ->  | AG3: =VLOOKUP($C3,'S46'!$C:$BQ,53,0) ->  | AH3: =VLOOKUP($C3,'S46'!$C:$BQ,15,0) ->  | AI3: =VLOOKUP($C3,'S46'!$C:$BQ,22,0) ->  | AJ3: =VLOOKUP($C3,'S46'!$C:$BQ,23,0) ->  | AK3: =VLOOKUP($C3,'S46'!$C:$BQ,35,0) ->  | AL3: =VLOOKUP($C3,'S46'!$C:$BQ,42,0) ->  | AM3: =VLOOKUP($C3,'S46'!$C:$BQ,43,0) ->  | AN3: =VLOOKUP($C3,'S47'!$C:$BQ,55,0) ->  | AO3: =VLOOKUP($C3,'S47'!$C:$BQ,62,0) ->  | AP3: =VLOOKUP($C3,'S47'!$C:$BQ,63,0) ->  | AQ3: =VLOOKUP($C3,'S47'!$C:$BQ,45,0) ->  | AR3: =VLOOKUP($C3,'S47'!$C:$BQ,52,0) ->  | AS3: =VLOOKUP($C3,'S47'!$C:$BQ,53,0) ->  | AT3: =VLOOKUP($C3,'S47'!$C:$BQ,15,0) ->  | AU3: =VLOOKUP($C3,'S47'!$C:$BQ,22,0) ->  | AV3: =VLOOKUP($C3,'S47'!$C:$BQ,23,0) ->  | AW3: =VLOOKUP($C3,'S47'!$C:$BQ,35,0) ->  | AX3: =VLOOKUP($C3,'S47'!$C:$BQ,42,0) ->  | AY3: =VLOOKUP($C3,'S47'!$C:$BQ,43,0) ->  | AZ3: =VLOOKUP($C3,'S48'!$C:$BQ,55,0) ->  | BA3: =VLOOKUP($C3,'S48'!$C:$BQ,62,0) ->  | BB3: =VLOOKUP($C3,'S48'!$C:$BQ,63,0) ->  | BC3: =VLOOKUP($C3,'S48'!$C:$BQ,45,0) ->  | BD3: =VLOOKUP($C3,'S48'!$C:$BQ,52,0) ->  | BE3: =VLOOKUP($C3,'S48'!$C:$BQ,53,0) ->  | BF3: =VLOOKUP($C3,'S48'!$C:$BQ,15,0) ->  | BG3: =VLOOKUP($C3,'S48'!$C:$BQ,22,0) ->  | BH3: =VLOOKUP($C3,'S48'!$C:$BQ,23,0) ->  | BI3: =VLOOKUP($C3,'S48'!$C:$BQ,35,0) ->  | BJ3: =VLOOKUP($C3,'S48'!$C:$BQ,42,0) ->  | BK3: =VLOOKUP($C3,'S48'!$C:$BQ,43,0) ->  | BL3: =VLOOKUP($C3,'S49'!$C:$BQ,55,0) ->  | BM3: =VLOOKUP($C3,'S49'!$C:$BQ,62,0) ->  | BN3: =VLOOKUP($C3,'S49'!$C:$BQ,63,0) ->  | BO3: =VLOOKUP($C3,'S49'!$C:$BQ,45,0) ->  | BP3: =VLOOKUP($C3,'S49'!$C:$BQ,52,0) ->  | BQ3: =VLOOKUP($C3,'S49'!$C:$BQ,53,0) ->  | BR3: =VLOOKUP($C3,'S49'!$C:$BQ,15,0) ->  | BS3: =VLOOKUP($C3,'S49'!$C:$BQ,22,0) ->  | BT3: =VLOOKUP($C3,'S49'!$C:$BQ,23,0) ->  | BU3: =VLOOKUP($C3,'S49'!$C:$BQ,35,0) ->  | BV3: =VLOOKUP($C3,'S49'!$C:$BQ,42,0) ->  | BW3: =VLOOKUP($C3,'S49'!$C:$BQ,43,0) ->  | BX3: =VLOOKUP($C3,'S50'!$C:$BQ,55,0) ->  | BY3: =VLOOKUP($C3,'S50'!$C:$BQ,62,0) ->  | BZ3: =VLOOKUP($C3,'S50'!$C:$BQ,63,0) ->  | CA3: =VLOOKUP($C3,'S50'!$C:$BQ,45,0) ->  | CB3: =VLOOKUP($C3,'S50'!$C:$BQ,52,0) ->  | CC3: =VLOOKUP($C3,'S50'!$C:$BQ,53,0) ->  | CD3: =VLOOKUP($C3,'S50'!$C:$BQ,15,0) ->  | CE3: =VLOOKUP($C3,'S50'!$C:$BQ,22,0) ->  | CF3: =VLOOKUP($C3,'S50'!$C:$BQ,23,0) ->  | CG3: =VLOOKUP($C3,'S50'!$C:$BQ,35,0) ->  | CH3: =VLOOKUP($C3,'S50'!$C:$BQ,42,0) ->  | CI3: =VLOOKUP($C3,'S50'!$C:$BQ,43,0) -> 
A4: AUBE_HAUTE_MARNE | B4: CHAUMONT | C4: CHAUMONT HOTEL DE VILLE | D4: =VLOOKUP($C4,'S0 remplacer avec S44'!$C:$BQ,55,0) -> 507.2 | E4: =VLOOKUP($C4,'S0 remplacer avec S44'!$C:$BQ,62,0) -> 1 | F4: =VLOOKUP($C4,'S0 remplacer avec S44'!$C:$BQ,63,0) -> 103 | G4: =VLOOKUP($C4,'S0 remplacer avec S44'!$C:$BQ,45,0) -> 5716.0244 | H4: =VLOOKUP($C4,'S0 remplacer avec S44'!$C:$BQ,52,0) -> 0 | I4: =VLOOKUP($C4,'S0 remplacer avec S44'!$C:$BQ,53,0) -> 0 | J4: =VLOOKUP($C4,'S0 remplacer avec S44'!$C:$BQ,15,0) -> 385 | K4: =VLOOKUP($C4,'S0 remplacer avec S44'!$C:$BQ,22,0) -> 0 | L4: =VLOOKUP($C4,'S0 remplacer avec S44'!$C:$BQ,23,0) -> 0 | M4: =VLOOKUP($C4,'S0 remplacer avec S44'!$C:$BQ,35,0) -> 7608.85525 | N4: =VLOOKUP($C4,'S0 remplacer avec S44'!$C:$BQ,42,0) -> 0 | O4: =VLOOKUP($C4,'S0 remplacer avec S44'!$C:$BQ,43,0) -> 0 | P4: =VLOOKUP($C4,'S45'!$C:$BQ,55,0) -> 519.5 | Q4: =VLOOKUP($C4,'S45'!$C:$BQ,62,0) -> 0 | R4: =VLOOKUP($C4,'S45'!$C:$BQ,63,0) -> 91 | S4: =VLOOKUP($C4,'S45'!$C:$BQ,45,0) -> 5803.45836 | T4: =VLOOKUP($C4,'S45'!$C:$BQ,52,0) -> 0 | U4: =VLOOKUP($C4,'S45'!$C:$BQ,53,0) -> 0 | V4: =VLOOKUP($C4,'S45'!$C:$BQ,15,0) -> 394 | W4: =VLOOKUP($C4,'S45'!$C:$BQ,22,0) -> 0 | X4: =VLOOKUP($C4,'S45'!$C:$BQ,23,0) -> 0 | Y4: =VLOOKUP($C4,'S45'!$C:$BQ,35,0) -> 7669.23143 | Z4: =VLOOKUP($C4,'S45'!$C:$BQ,42,0) -> 0 | AA4: =VLOOKUP($C4,'S45'!$C:$BQ,43,0) -> 0 | AB4: =VLOOKUP($C4,'S46'!$C:$BQ,55,0) -> 541.8 | AC4: =VLOOKUP($C4,'S46'!$C:$BQ,62,0) -> 0 | AD4: =VLOOKUP($C4,'S46'!$C:$BQ,63,0) -> 68 | AE4: =VLOOKUP($C4,'S46'!$C:$BQ,45,0) -> 5857.55413 | AF4: =VLOOKUP($C4,'S46'!$C:$BQ,52,0) -> 0 | AG4: =VLOOKUP($C4,'S46'!$C:$BQ,53,0) -> 0 | AH4: =VLOOKUP($C4,'S46'!$C:$BQ,15,0) -> 400 | AI4: =VLOOKUP($C4,'S46'!$C:$BQ,22,0) -> 0 | AJ4: =VLOOKUP($C4,'S46'!$C:$BQ,23,0) -> 0 | AK4: =VLOOKUP($C4,'S46'!$C:$BQ,35,0) -> 7669.14143 | AL4: =VLOOKUP($C4,'S46'!$C:$BQ,42,0) -> 0 | AM4: =VLOOKUP($C4,'S46'!$C:$BQ,43,0) -> 0 | AN4: =VLOOKUP($C4,'S47'!$C:$BQ,55,0) -> 619.3 | AO4: =VLOOKUP($C4,'S47'!$C:$BQ,62,0) -> 0 | AP4: =VLOOKUP($C4,'S47'!$C:$BQ,63,0) -> 113 | AQ4: =VLOOKUP($C4,'S47'!$C:$BQ,45,0) -> 6827.21143 | AR4: =VLOOKUP($C4,'S47'!$C:$BQ,52,0) -> 0 | AS4: =VLOOKUP($C4,'S47'!$C:$BQ,53,0) -> 0 | AT4: =VLOOKUP($C4,'S47'!$C:$BQ,15,0) -> 456 | AU4: =VLOOKUP($C4,'S47'!$C:$BQ,22,0) -> 0 | AV4: =VLOOKUP($C4,'S47'!$C:$BQ,23,0) -> 0 | AW4: =VLOOKUP($C4,'S47'!$C:$BQ,35,0) -> 8490.58946 | AX4: =VLOOKUP($C4,'S47'!$C:$BQ,42,0) -> 0 | AY4: =VLOOKUP($C4,'S47'!$C:$BQ,43,0) -> 0 | AZ4: =VLOOKUP($C4,'S48'!$C:$BQ,55,0) -> 627.5 | BA4: =VLOOKUP($C4,'S48'!$C:$BQ,62,0) -> 0 | BB4: =VLOOKUP($C4,'S48'!$C:$BQ,63,0) -> 287 | BC4: =VLOOKUP($C4,'S48'!$C:$BQ,45,0) -> 6931.58246 | BD4: =VLOOKUP($C4,'S48'!$C:$BQ,52,0) -> 0 | BE4: =VLOOKUP($C4,'S48'!$C:$BQ,53,0) -> 0 | BF4: =VLOOKUP($C4,'S48'!$C:$BQ,15,0) -> 460 | BG4: =VLOOKUP($C4,'S48'!$C:$BQ,22,0) -> 0 | BH4: =VLOOKUP($C4,'S48'!$C:$BQ,23,0) -> 0 | BI4: =VLOOKUP($C4,'S48'!$C:$BQ,35,0) -> 8979.45779 | BJ4: =VLOOKUP($C4,'S48'!$C:$BQ,42,0) -> 0 | BK4: =VLOOKUP($C4,'S48'!$C:$BQ,43,0) -> 0 | BL4: =VLOOKUP($C4,'S49'!$C:$BQ,55,0) -> 638 | BM4: =VLOOKUP($C4,'S49'!$C:$BQ,62,0) -> 0 | BN4: =VLOOKUP($C4,'S49'!$C:$BQ,63,0) -> 289 | BO4: =VLOOKUP($C4,'S49'!$C:$BQ,45,0) -> 7028.05497 | BP4: =VLOOKUP($C4,'S49'!$C:$BQ,52,0) -> 0 | BQ4: =VLOOKUP($C4,'S49'!$C:$BQ,53,0) -> 0 | BR4: =VLOOKUP($C4,'S49'!$C:$BQ,15,0) -> 466 | BS4: =VLOOKUP($C4,'S49'!$C:$BQ,22,0) -> 0 | BT4: =VLOOKUP($C4,'S49'!$C:$BQ,23,0) -> 0 | BU4: =VLOOKUP($C4,'S49'!$C:$BQ,35,0) -> 8980.71845 | BV4: =VLOOKUP($C4,'S49'!$C:$BQ,42,0) -> 0 | BW4: =VLOOKUP($C4,'S49'!$C:$BQ,43,0) -> 0 | BX4: =VLOOKUP($C4,'S50'!$C:$BQ,55,0) -> 636.8 | BY4: =VLOOKUP($C4,'S50'!$C:$BQ,62,0) -> 0 | BZ4: =VLOOKUP($C4,'S50'!$C:$BQ,63,0) -> 290 | CA4: =VLOOKUP($C4,'S50'!$C:$BQ,45,0) -> 7095.76054 | CB4: =VLOOKUP($C4,'S50'!$C:$BQ,52,0) -> 0 | CC4: =VLOOKUP($C4,'S50'!$C:$BQ,53,0) -> 0 | CD4: =VLOOKUP($C4,'S50'!$C:$BQ,15,0) -> 468 | CE4: =VLOOKUP($C4,'S50'!$C:$BQ,22,0) -> 0 | CF4: =VLOOKUP($C4,'S50'!$C:$BQ,23,0) -> 0 | CG4: =VLOOKUP($C4,'S50'!$C:$BQ,35,0) -> 9032.13707 | CH4: =VLOOKUP($C4,'S50'!$C:$BQ,42,0) -> 0 | CI4: =VLOOKUP($C4,'S50'!$C:$BQ,43,0) -> 0
A5: AUBE_HAUTE_MARNE | B5: CHAUMONT | C5: CHAUMONT REPUBLIQUE | D5: =VLOOKUP($C5,'S0 remplacer avec S44'!$C:$BQ,55,0) -> 359.5 | E5: =VLOOKUP($C5,'S0 remplacer avec S44'!$C:$BQ,62,0) -> 0 | F5: =VLOOKUP($C5,'S0 remplacer avec S44'!$C:$BQ,63,0) -> 18 | G5: =VLOOKUP($C5,'S0 remplacer avec S44'!$C:$BQ,45,0) -> 3321.10733 | H5: =VLOOKUP($C5,'S0 remplacer avec S44'!$C:$BQ,52,0) -> 0 | I5: =VLOOKUP($C5,'S0 remplacer avec S44'!$C:$BQ,53,0) -> 5 | J5: =VLOOKUP($C5,'S0 remplacer avec S44'!$C:$BQ,15,0) -> 212 | K5: =VLOOKUP($C5,'S0 remplacer avec S44'!$C:$BQ,22,0) -> 0 | L5: =VLOOKUP($C5,'S0 remplacer avec S44'!$C:$BQ,23,0) -> 0 | M5: =VLOOKUP($C5,'S0 remplacer avec S44'!$C:$BQ,35,0) -> 3756.84208 | N5: =VLOOKUP($C5,'S0 remplacer avec S44'!$C:$BQ,42,0) -> 0 | O5: =VLOOKUP($C5,'S0 remplacer avec S44'!$C:$BQ,43,0) -> 0 | P5: =VLOOKUP($C5,'S45'!$C:$BQ,55,0) -> 360.5 | Q5: =VLOOKUP($C5,'S45'!$C:$BQ,62,0) -> 0 | R5: =VLOOKUP($C5,'S45'!$C:$BQ,63,0) -> 17 | S5: =VLOOKUP($C5,'S45'!$C:$BQ,45,0) -> 3323.43801 | T5: =VLOOKUP($C5,'S45'!$C:$BQ,52,0) -> 0 | U5: =VLOOKUP($C5,'S45'!$C:$BQ,53,0) -> 3 | V5: =VLOOKUP($C5,'S45'!$C:$BQ,15,0) -> 214 | W5: =VLOOKUP($C5,'S45'!$C:$BQ,22,0) -> 0 | X5: =VLOOKUP($C5,'S45'!$C:$BQ,23,0) -> 0 | Y5: =VLOOKUP($C5,'S45'!$C:$BQ,35,0) -> 3801.16593 | Z5: =VLOOKUP($C5,'S45'!$C:$BQ,42,0) -> 0 | AA5: =VLOOKUP($C5,'S45'!$C:$BQ,43,0) -> 0 | AB5: =VLOOKUP($C5,'S46'!$C:$BQ,55,0) -> 367.3 | AC5: =VLOOKUP($C5,'S46'!$C:$BQ,62,0) -> 0 | AD5: =VLOOKUP($C5,'S46'!$C:$BQ,63,0) -> 10 | AE5: =VLOOKUP($C5,'S46'!$C:$BQ,45,0) -> 3361.72135 | AF5: =VLOOKUP($C5,'S46'!$C:$BQ,52,0) -> 0 | AG5: =VLOOKUP($C5,'S46'!$C:$BQ,53,0) -> 0 | AH5: =VLOOKUP($C5,'S46'!$C:$BQ,15,0) -> 218 | AI5: =VLOOKUP($C5,'S46'!$C:$BQ,22,0) -> 0 | AJ5: =VLOOKUP($C5,'S46'!$C:$BQ,23,0) -> 0 | AK5: =VLOOKUP($C5,'S46'!$C:$BQ,35,0) -> 3811.35407 | AL5: =VLOOKUP($C5,'S46'!$C:$BQ,42,0) -> 0 | AM5: =VLOOKUP($C5,'S46'!$C:$BQ,43,0) -> 0 | AN5: =VLOOKUP($C5,'S47'!$C:$BQ,55,0) -> 299.4 | AO5: =VLOOKUP($C5,'S47'!$C:$BQ,62,0) -> 0 | AP5: =VLOOKUP($C5,'S47'!$C:$BQ,63,0) -> 0 | AQ5: =VLOOKUP($C5,'S47'!$C:$BQ,45,0) -> 2514.81332 | AR5: =VLOOKUP($C5,'S47'!$C:$BQ,52,0) -> 0 | AS5: =VLOOKUP($C5,'S47'!$C:$BQ,53,0) -> 0 | AT5: =VLOOKUP($C5,'S47'!$C:$BQ,15,0) -> 170 | AU5: =VLOOKUP($C5,'S47'!$C:$BQ,22,0) -> 0 | AV5: =VLOOKUP($C5,'S47'!$C:$BQ,23,0) -> 0 | AW5: =VLOOKUP($C5,'S47'!$C:$BQ,35,0) -> 3049.39133 | AX5: =VLOOKUP($C5,'S47'!$C:$BQ,42,0) -> 0 | AY5: =VLOOKUP($C5,'S47'!$C:$BQ,43,0) -> 0 | AZ5: =VLOOKUP($C5,'S48'!$C:$BQ,55,0) -> 307.4 | BA5: =VLOOKUP($C5,'S48'!$C:$BQ,62,0) -> 0 | BB5: =VLOOKUP($C5,'S48'!$C:$BQ,63,0) -> 12 | BC5: =VLOOKUP($C5,'S48'!$C:$BQ,45,0) -> 2487.24231 | BD5: =VLOOKUP($C5,'S48'!$C:$BQ,52,0) -> 0 | BE5: =VLOOKUP($C5,'S48'!$C:$BQ,53,0) -> 0 | BF5: =VLOOKUP($C5,'S48'!$C:$BQ,15,0) -> 170 | BG5: =VLOOKUP($C5,'S48'!$C:$BQ,22,0) -> 0 | BH5: =VLOOKUP($C5,'S48'!$C:$BQ,23,0) -> 0 | BI5: =VLOOKUP($C5,'S48'!$C:$BQ,35,0) -> 3124.72384 | BJ5: =VLOOKUP($C5,'S48'!$C:$BQ,42,0) -> 0 | BK5: =VLOOKUP($C5,'S48'!$C:$BQ,43,0) -> 0 | BL5: =VLOOKUP($C5,'S49'!$C:$BQ,55,0) -> 309.4 | BM5: =VLOOKUP($C5,'S49'!$C:$BQ,62,0) -> 0 | BN5: =VLOOKUP($C5,'S49'!$C:$BQ,63,0) -> 17 | BO5: =VLOOKUP($C5,'S49'!$C:$BQ,45,0) -> 2503.10947 | BP5: =VLOOKUP($C5,'S49'!$C:$BQ,52,0) -> 0 | BQ5: =VLOOKUP($C5,'S49'!$C:$BQ,53,0) -> 0 | BR5: =VLOOKUP($C5,'S49'!$C:$BQ,15,0) -> 171 | BS5: =VLOOKUP($C5,'S49'!$C:$BQ,22,0) -> 0 | BT5: =VLOOKUP($C5,'S49'!$C:$BQ,23,0) -> 0 | BU5: =VLOOKUP($C5,'S49'!$C:$BQ,35,0) -> 3134.06299 | BV5: =VLOOKUP($C5,'S49'!$C:$BQ,42,0) -> 0 | BW5: =VLOOKUP($C5,'S49'!$C:$BQ,43,0) -> 0 | BX5: =VLOOKUP($C5,'S50'!$C:$BQ,55,0) -> 309.4 | BY5: =VLOOKUP($C5,'S50'!$C:$BQ,62,0) -> 0 | BZ5: =VLOOKUP($C5,'S50'!$C:$BQ,63,0) -> 17 | CA5: =VLOOKUP($C5,'S50'!$C:$BQ,45,0) -> 2505.24413 | CB5: =VLOOKUP($C5,'S50'!$C:$BQ,52,0) -> 0 | CC5: =VLOOKUP($C5,'S50'!$C:$BQ,53,0) -> 0 | CD5: =VLOOKUP($C5,'S50'!$C:$BQ,15,0) -> 172 | CE5: =VLOOKUP($C5,'S50'!$C:$BQ,22,0) -> 0 | CF5: =VLOOKUP($C5,'S50'!$C:$BQ,23,0) -> 0 | CG5: =VLOOKUP($C5,'S50'!$C:$BQ,35,0) -> 3153.39699 | CH5: =VLOOKUP($C5,'S50'!$C:$BQ,42,0) -> 0 | CI5: =VLOOKUP($C5,'S50'!$C:$BQ,43,0) -> 0
A6: AUBE_HAUTE_MARNE | B6: CHAUMONT | C6: JOINVILLE | D6: =VLOOKUP($C6,'S0 remplacer avec S44'!$C:$BQ,55,0) -> 135.9 | E6: =VLOOKUP($C6,'S0 remplacer avec S44'!$C:$BQ,62,0) -> 0 | F6: =VLOOKUP($C6,'S0 remplacer avec S44'!$C:$BQ,63,0) -> 10 | G6: =VLOOKUP($C6,'S0 remplacer avec S44'!$C:$BQ,45,0) -> 1253.16696 | H6: =VLOOKUP($C6,'S0 remplacer avec S44'!$C:$BQ,52,0) -> 0 | I6: =VLOOKUP($C6,'S0 remplacer avec S44'!$C:$BQ,53,0) -> 31 | J6: =VLOOKUP($C6,'S0 remplacer avec S44'!$C:$BQ,15,0) -> 91 | K6: =VLOOKUP($C6,'S0 remplacer avec S44'!$C:$BQ,22,0) -> 0 | L6: =VLOOKUP($C6,'S0 remplacer avec S44'!$C:$BQ,23,0) -> 0 | M6: =VLOOKUP($C6,'S0 remplacer avec S44'!$C:$BQ,35,0) -> 1157.86494 | N6: =VLOOKUP($C6,'S0 remplacer avec S44'!$C:$BQ,42,0) -> 0 | O6: =VLOOKUP($C6,'S0 remplacer avec S44'!$C:$BQ,43,0) -> 214 | P6: =VLOOKUP($C6,'S45'!$C:$BQ,55,0) -> 134.9 | Q6: =VLOOKUP($C6,'S45'!$C:$BQ,62,0) -> 0 | R6: =VLOOKUP($C6,'S45'!$C:$BQ,63,0) -> 11 | S6: =VLOOKUP($C6,'S45'!$C:$BQ,45,0) -> 1287.53314 | T6: =VLOOKUP($C6,'S45'!$C:$BQ,52,0) -> 0 | U6: =VLOOKUP($C6,'S45'!$C:$BQ,53,0) -> 0 | V6: =VLOOKUP($C6,'S45'!$C:$BQ,15,0) -> 92 | W6: =VLOOKUP($C6,'S45'!$C:$BQ,22,0) -> 0 | X6: =VLOOKUP($C6,'S45'!$C:$BQ,23,0) -> 0 | Y6: =VLOOKUP($C6,'S45'!$C:$BQ,35,0) -> 1174.05557 | Z6: =VLOOKUP($C6,'S45'!$C:$BQ,42,0) -> 0 | AA6: =VLOOKUP($C6,'S45'!$C:$BQ,43,0) -> 198 | AB6: =VLOOKUP($C6,'S46'!$C:$BQ,55,0) -> 136.9 | AC6: =VLOOKUP($C6,'S46'!$C:$BQ,62,0) -> 0 | AD6: =VLOOKUP($C6,'S46'!$C:$BQ,63,0) -> 9 | AE6: =VLOOKUP($C6,'S46'!$C:$BQ,45,0) -> 1300.69815 | AF6: =VLOOKUP($C6,'S46'!$C:$BQ,52,0) -> 0 | AG6: =VLOOKUP($C6,'S46'!$C:$BQ,53,0) -> 0 | AH6: =VLOOKUP($C6,'S46'!$C:$BQ,15,0) -> 94 | AI6: =VLOOKUP($C6,'S46'!$C:$BQ,22,0) -> 0 | AJ6: =VLOOKUP($C6,'S46'!$C:$BQ,23,0) -> 0 | AK6: =VLOOKUP($C6,'S46'!$C:$BQ,35,0) -> 1388.94037 | AL6: =VLOOKUP($C6,'S46'!$C:$BQ,42,0) -> 0 | AM6: =VLOOKUP($C6,'S46'!$C:$BQ,43,0) -> 0 | AN6: =VLOOKUP($C6,'S47'!$C:$BQ,55,0) -> 138.8 | AO6: =VLOOKUP($C6,'S47'!$C:$BQ,62,0) -> 0 | AP6: =VLOOKUP($C6,'S47'!$C:$BQ,63,0) -> 7 | AQ6: =VLOOKUP($C6,'S47'!$C:$BQ,45,0) -> 1306.30927 | AR6: =VLOOKUP($C6,'S47'!$C:$BQ,52,0) -> 0 | AS6: =VLOOKUP($C6,'S47'!$C:$BQ,53,0) -> 0 | AT6: =VLOOKUP($C6,'S47'!$C:$BQ,15,0) -> 94 | AU6: =VLOOKUP($C6,'S47'!$C:$BQ,22,0) -> 0 | AV6: =VLOOKUP($C6,'S47'!$C:$BQ,23,0) -> 0 | AW6: =VLOOKUP($C6,'S47'!$C:$BQ,35,0) -> 1393.12863 | AX6: =VLOOKUP($C6,'S47'!$C:$BQ,42,0) -> 0 | AY6: =VLOOKUP($C6,'S47'!$C:$BQ,43,0) -> 0 | AZ6: =VLOOKUP($C6,'S48'!$C:$BQ,55,0) -> 139.8 | BA6: =VLOOKUP($C6,'S48'!$C:$BQ,62,0) -> 0 | BB6: =VLOOKUP($C6,'S48'!$C:$BQ,63,0) -> 43 | BC6: =VLOOKUP($C6,'S48'!$C:$BQ,45,0) -> 1307.31037 | BD6: =VLOOKUP($C6,'S48'!$C:$BQ,52,0) -> 0 | BE6: =VLOOKUP($C6,'S48'!$C:$BQ,53,0) -> 0 | BF6: =VLOOKUP($C6,'S48'!$C:$BQ,15,0) -> 94 | BG6: =VLOOKUP($C6,'S48'!$C:$BQ,22,0) -> 0 | BH6: =VLOOKUP($C6,'S48'!$C:$BQ,23,0) -> 0 | BI6: =VLOOKUP($C6,'S48'!$C:$BQ,35,0) -> 1404.84449 | BJ6: =VLOOKUP($C6,'S48'!$C:$BQ,42,0) -> 0 | BK6: =VLOOKUP($C6,'S48'!$C:$BQ,43,0) -> 0 | BL6: =VLOOKUP($C6,'S49'!$C:$BQ,55,0) -> 140.8 | BM6: =VLOOKUP($C6,'S49'!$C:$BQ,62,0) -> 0 | BN6: =VLOOKUP($C6,'S49'!$C:$BQ,63,0) -> 43 | BO6: =VLOOKUP($C6,'S49'!$C:$BQ,45,0) -> 1317.0933 | BP6: =VLOOKUP($C6,'S49'!$C:$BQ,52,0) -> 0 | BQ6: =VLOOKUP($C6,'S49'!$C:$BQ,53,0) -> 0 | BR6: =VLOOKUP($C6,'S49'!$C:$BQ,15,0) -> 94 | BS6: =VLOOKUP($C6,'S49'!$C:$BQ,22,0) -> 0 | BT6: =VLOOKUP($C6,'S49'!$C:$BQ,23,0) -> 0 | BU6: =VLOOKUP($C6,'S49'!$C:$BQ,35,0) -> 1406.71866 | BV6: =VLOOKUP($C6,'S49'!$C:$BQ,42,0) -> 0 | BW6: =VLOOKUP($C6,'S49'!$C:$BQ,43,0) -> 0 | BX6: =VLOOKUP($C6,'S50'!$C:$BQ,55,0) -> 143.3 | BY6: =VLOOKUP($C6,'S50'!$C:$BQ,62,0) -> 0 | BZ6: =VLOOKUP($C6,'S50'!$C:$BQ,63,0) -> 40 | CA6: =VLOOKUP($C6,'S50'!$C:$BQ,45,0) -> 1318.27766 | CB6: =VLOOKUP($C6,'S50'!$C:$BQ,52,0) -> 0 | CC6: =VLOOKUP($C6,'S50'!$C:$BQ,53,0) -> 0 | CD6: =VLOOKUP($C6,'S50'!$C:$BQ,15,0) -> 94 | CE6: =VLOOKUP($C6,'S50'!$C:$BQ,22,0) -> 0 | CF6: =VLOOKUP($C6,'S50'!$C:$BQ,23,0) -> 0 | CG6: =VLOOKUP($C6,'S50'!$C:$BQ,35,0) -> 1407.56021 | CH6: =VLOOKUP($C6,'S50'!$C:$BQ,42,0) -> 0 | CI6: =VLOOKUP($C6,'S50'!$C:$BQ,43,0) -> 0
A7: AUBE_HAUTE_MARNE | B7: CHAUMONT | C7: LANGRES | D7: =VLOOKUP($C7,'S0 remplacer avec S44'!$C:$BQ,55,0) -> 639.9 | E7: =VLOOKUP($C7,'S0 remplacer avec S44'!$C:$BQ,62,0) -> 0 | F7: =VLOOKUP($C7,'S0 remplacer avec S44'!$C:$BQ,63,0) -> 62 | G7: =VLOOKUP($C7,'S0 remplacer avec S44'!$C:$BQ,45,0) -> 5597.27425 | H7: =VLOOKUP($C7,'S0 remplacer avec S44'!$C:$BQ,52,0) -> 0 | I7: =VLOOKUP($C7,'S0 remplacer avec S44'!$C:$BQ,53,0) -> 583 | J7: =VLOOKUP($C7,'S0 remplacer avec S44'!$C:$BQ,15,0) -> 358 | K7: =VLOOKUP($C7,'S0 remplacer avec S44'!$C:$BQ,22,0) -> 0 | L7: =VLOOKUP($C7,'S0 remplacer avec S44'!$C:$BQ,23,0) -> 31 | M7: =VLOOKUP($C7,'S0 remplacer avec S44'!$C:$BQ,35,0) -> 7468.39068 | N7: =VLOOKUP($C7,'S0 remplacer avec S44'!$C:$BQ,42,0) -> 0 | O7: =VLOOKUP($C7,'S0 remplacer avec S44'!$C:$BQ,43,0) -> 19 | P7: =VLOOKUP($C7,'S45'!$C:$BQ,55,0) -> 645.7 | Q7: =VLOOKUP($C7,'S45'!$C:$BQ,62,0) -> 0 | R7: =VLOOKUP($C7,'S45'!$C:$BQ,63,0) -> 56 | S7: =VLOOKUP($C7,'S45'!$C:$BQ,45,0) -> 5711.66801 | T7: =VLOOKUP($C7,'S45'!$C:$BQ,52,0) -> 0 | U7: =VLOOKUP($C7,'S45'!$C:$BQ,53,0) -> 468 | V7: =VLOOKUP($C7,'S45'!$C:$BQ,15,0) -> 366 | W7: =VLOOKUP($C7,'S45'!$C:$BQ,22,0) -> 0 | X7: =VLOOKUP($C7,'S45'!$C:$BQ,23,0) -> 23 | Y7: =VLOOKUP($C7,'S45'!$C:$BQ,35,0) -> 7706.02123 | Z7: =VLOOKUP($C7,'S45'!$C:$BQ,42,0) -> 0 | AA7: =VLOOKUP($C7,'S45'!$C:$BQ,43,0) -> 0 | AB7: =VLOOKUP($C7,'S46'!$C:$BQ,55,0) -> 674 | AC7: =VLOOKUP($C7,'S46'!$C:$BQ,62,0) -> 0 | AD7: =VLOOKUP($C7,'S46'!$C:$BQ,63,0) -> 27 | AE7: =VLOOKUP($C7,'S46'!$C:$BQ,45,0) -> 5817.04932 | AF7: =VLOOKUP($C7,'S46'!$C:$BQ,52,0) -> 0 | AG7: =VLOOKUP($C7,'S46'!$C:$BQ,53,0) -> 363 | AH7: =VLOOKUP($C7,'S46'!$C:$BQ,15,0) -> 375 | AI7: =VLOOKUP($C7,'S46'!$C:$BQ,22,0) -> 0 | AJ7: =VLOOKUP($C7,'S46'!$C:$BQ,23,0) -> 14 | AK7: =VLOOKUP($C7,'S46'!$C:$BQ,35,0) -> 7774.44773 | AL7: =VLOOKUP($C7,'S46'!$C:$BQ,42,0) -> 0 | AM7: =VLOOKUP($C7,'S46'!$C:$BQ,43,0) -> 0 | AN7: =VLOOKUP($C7,'S47'!$C:$BQ,55,0) -> 678.7 | AO7: =VLOOKUP($C7,'S47'!$C:$BQ,62,0) -> 0 | AP7: =VLOOKUP($C7,'S47'!$C:$BQ,63,0) -> 23 | AQ7: =VLOOKUP($C7,'S47'!$C:$BQ,45,0) -> 5908.65232 | AR7: =VLOOKUP($C7,'S47'!$C:$BQ,52,0) -> 0 | AS7: =VLOOKUP($C7,'S47'!$C:$BQ,53,0) -> 271 | AT7: =VLOOKUP($C7,'S47'!$C:$BQ,15,0) -> 376 | AU7: =VLOOKUP($C7,'S47'!$C:$BQ,22,0) -> 0 | AV7: =VLOOKUP($C7,'S47'!$C:$BQ,23,0) -> 13 | AW7: =VLOOKUP($C7,'S47'!$C:$BQ,35,0) -> 7860.07696 | AX7: =VLOOKUP($C7,'S47'!$C:$BQ,42,0) -> 0 | AY7: =VLOOKUP($C7,'S47'!$C:$BQ,43,0) -> 0 | AZ7: =VLOOKUP($C7,'S48'!$C:$BQ,55,0) -> 686.5 | BA7: =VLOOKUP($C7,'S48'!$C:$BQ,62,0) -> 0 | BB7: =VLOOKUP($C7,'S48'!$C:$BQ,63,0) -> 190 | BC7: =VLOOKUP($C7,'S48'!$C:$BQ,45,0) -> 6112.59837 | BD7: =VLOOKUP($C7,'S48'!$C:$BQ,52,0) -> 0 | BE7: =VLOOKUP($C7,'S48'!$C:$BQ,53,0) -> 67 | BF7: =VLOOKUP($C7,'S48'!$C:$BQ,15,0) -> 384 | BG7: =VLOOKUP($C7,'S48'!$C:$BQ,22,0) -> 0 | BH7: =VLOOKUP($C7,'S48'!$C:$BQ,23,0) -> 5 | BI7: =VLOOKUP($C7,'S48'!$C:$BQ,35,0) -> 8087.1306 | BJ7: =VLOOKUP($C7,'S48'!$C:$BQ,42,0) -> 0 | BK7: =VLOOKUP($C7,'S48'!$C:$BQ,43,0) -> 0 | BL7: =VLOOKUP($C7,'S49'!$C:$BQ,55,0) -> 695.3 | BM7: =VLOOKUP($C7,'S49'!$C:$BQ,62,0) -> 0 | BN7: =VLOOKUP($C7,'S49'!$C:$BQ,63,0) -> 189 | BO7: =VLOOKUP($C7,'S49'!$C:$BQ,45,0) -> 6171.80999 | BP7: =VLOOKUP($C7,'S49'!$C:$BQ,52,0) -> 0 | BQ7: =VLOOKUP($C7,'S49'!$C:$BQ,53,0) -> 60 | BR7: =VLOOKUP($C7,'S49'!$C:$BQ,15,0) -> 395 | BS7: =VLOOKUP($C7,'S49'!$C:$BQ,22,0) -> 0 | BT7: =VLOOKUP($C7,'S49'!$C:$BQ,23,0) -> 0 | BU7: =VLOOKUP($C7,'S49'!$C:$BQ,35,0) -> 8237.50787 | BV7: =VLOOKUP($C7,'S49'!$C:$BQ,42,0) -> 0 | BW7: =VLOOKUP($C7,'S49'!$C:$BQ,43,0) -> 0 | BX7: =VLOOKUP($C7,'S50'!$C:$BQ,55,0) -> 702.4 | BY7: =VLOOKUP($C7,'S50'!$C:$BQ,62,0) -> 0 | BZ7: =VLOOKUP($C7,'S50'!$C:$BQ,63,0) -> 182 | CA7: =VLOOKUP($C7,'S50'!$C:$BQ,45,0) -> 6260.66561 | CB7: =VLOOKUP($C7,'S50'!$C:$BQ,52,0) -> 0 | CC7: =VLOOKUP($C7,'S50'!$C:$BQ,53,0) -> 0 | CD7: =VLOOKUP($C7,'S50'!$C:$BQ,15,0) -> 403 | CE7: =VLOOKUP($C7,'S50'!$C:$BQ,22,0) -> 0 | CF7: =VLOOKUP($C7,'S50'!$C:$BQ,23,0) -> 0 | CG7: =VLOOKUP($C7,'S50'!$C:$BQ,35,0) -> 8256.01087 | CH7: =VLOOKUP($C7,'S50'!$C:$BQ,42,0) -> 0 | CI7: =VLOOKUP($C7,'S50'!$C:$BQ,43,0) -> 0
C8: NOGENT | D8: =VLOOKUP($C8,'S0 remplacer avec S44'!$C:$BQ,55,0) ->  | E8: =VLOOKUP($C8,'S0 remplacer avec S44'!$C:$BQ,62,0) ->  | F8: =VLOOKUP($C8,'S0 remplacer avec S44'!$C:$BQ,63,0) ->  | G8: =VLOOKUP($C8,'S0 remplacer avec S44'!$C:$BQ,45,0) ->  | H8: =VLOOKUP($C8,'S0 remplacer avec S44'!$C:$BQ,52,0) ->  | I8: =VLOOKUP($C8,'S0 remplacer avec S44'!$C:$BQ,53,0) ->  | J8: =VLOOKUP($C8,'S0 remplacer avec S44'!$C:$BQ,15,0) ->  | K8: =VLOOKUP($C8,'S0 remplacer avec S44'!$C:$BQ,22,0) ->  | L8: =VLOOKUP($C8,'S0 remplacer avec S44'!$C:$BQ,23,0) ->  | M8: =VLOOKUP($C8,'S0 remplacer avec S44'!$C:$BQ,35,0) ->  | N8: =VLOOKUP($C8,'S0 remplacer avec S44'!$C:$BQ,42,0) ->  | O8: =VLOOKUP($C8,'S0 remplacer avec S44'!$C:$BQ,43,0) ->  | P8: =VLOOKUP($C8,'S45'!$C:$BQ,55,0) ->  | Q8: =VLOOKUP($C8,'S45'!$C:$BQ,62,0) ->  | R8: =VLOOKUP($C8,'S45'!$C:$BQ,63,0) ->  | S8: =VLOOKUP($C8,'S45'!$C:$BQ,45,0) ->  | T8: =VLOOKUP($C8,'S45'!$C:$BQ,52,0) ->  | U8: =VLOOKUP($C8,'S45'!$C:$BQ,53,0) ->  | V8: =VLOOKUP($C8,'S45'!$C:$BQ,15,0) ->  | W8: =VLOOKUP($C8,'S45'!$C:$BQ,22,0) ->  | X8: =VLOOKUP($C8,'S45'!$C:$BQ,23,0) ->  | Y8: =VLOOKUP($C8,'S45'!$C:$BQ,35,0) ->  | Z8: =VLOOKUP($C8,'S45'!$C:$BQ,42,0) ->  | AA8: =VLOOKUP($C8,'S45'!$C:$BQ,43,0) ->  | AB8: =VLOOKUP($C8,'S46'!$C:$BQ,55,0) ->  | AC8: =VLOOKUP($C8,'S46'!$C:$BQ,62,0) ->  | AD8: =VLOOKUP($C8,'S46'!$C:$BQ,63,0) ->  | AE8: =VLOOKUP($C8,'S46'!$C:$BQ,45,0) ->  | AF8: =VLOOKUP($C8,'S46'!$C:$BQ,52,0) ->  | AG8: =VLOOKUP($C8,'S46'!$C:$BQ,53,0) ->  | AH8: =VLOOKUP($C8,'S46'!$C:$BQ,15,0) ->  | AI8: =VLOOKUP($C8,'S46'!$C:$BQ,22,0) ->  | AJ8: =VLOOKUP($C8,'S46'!$C:$BQ,23,0) ->  | AK8: =VLOOKUP($C8,'S46'!$C:$BQ,35,0) ->  | AL8: =VLOOKUP($C8,'S46'!$C:$BQ,42,0) ->  | AM8: =VLOOKUP($C8,'S46'!$C:$BQ,43,0) ->  | AN8: =VLOOKUP($C8,'S47'!$C:$BQ,55,0) ->  | AO8: =VLOOKUP($C8,'S47'!$C:$BQ,62,0) ->  | AP8: =VLOOKUP($C8,'S47'!$C:$BQ,63,0) ->  | AQ8: =VLOOKUP($C8,'S47'!$C:$BQ,45,0) ->  | AR8: =VLOOKUP($C8,'S47'!$C:$BQ,52,0) ->  | AS8: =VLOOKUP($C8,'S47'!$C:$BQ,53,0) ->  | AT8: =VLOOKUP($C8,'S47'!$C:$BQ,15,0) ->  | AU8: =VLOOKUP($C8,'S47'!$C:$BQ,22,0) ->  | AV8: =VLOOKUP($C8,'S47'!$C:$BQ,23,0) ->  | AW8: =VLOOKUP($C8,'S47'!$C:$BQ,35,0) ->  | AX8: =VLOOKUP($C8,'S47'!$C:$BQ,42,0) ->  | AY8: =VLOOKUP($C8,'S47'!$C:$BQ,43,0) ->  | AZ8: =VLOOKUP($C8,'S48'!$C:$BQ,55,0) ->  | BA8: =VLOOKUP($C8,'S48'!$C:$BQ,62,0) ->  | BB8: =VLOOKUP($C8,'S48'!$C:$BQ,63,0) ->  | BC8: =VLOOKUP($C8,'S48'!$C:$BQ,45,0) ->  | BD8: =VLOOKUP($C8,'S48'!$C:$BQ,52,0) ->  | BE8: =VLOOKUP($C8,'S48'!$C:$BQ,53,0) ->  | BF8: =VLOOKUP($C8,'S48'!$C:$BQ,15,0) ->  | BG8: =VLOOKUP($C8,'S48'!$C:$BQ,22,0) ->  | BH8: =VLOOKUP($C8,'S48'!$C:$BQ,23,0) ->  | BI8: =VLOOKUP($C8,'S48'!$C:$BQ,35,0) ->  | BJ8: =VLOOKUP($C8,'S48'!$C:$BQ,42,0) ->  | BK8: =VLOOKUP($C8,'S48'!$C:$BQ,43,0) ->  | BL8: =VLOOKUP($C8,'S49'!$C:$BQ,55,0) ->  | BM8: =VLOOKUP($C8,'S49'!$C:$BQ,62,0) ->  | BN8: =VLOOKUP($C8,'S49'!$C:$BQ,63,0) ->  | BO8: =VLOOKUP($C8,'S49'!$C:$BQ,45,0) ->  | BP8: =VLOOKUP($C8,'S49'!$C:$BQ,52,0) ->  | BQ8: =VLOOKUP($C8,'S49'!$C:$BQ,53,0) ->  | BR8: =VLOOKUP($C8,'S49'!$C:$BQ,15,0) ->  | BS8: =VLOOKUP($C8,'S49'!$C:$BQ,22,0) ->  | BT8: =VLOOKUP($C8,'S49'!$C:$BQ,23,0) ->  | BU8: =VLOOKUP($C8,'S49'!$C:$BQ,35,0) ->  | BV8: =VLOOKUP($C8,'S49'!$C:$BQ,42,0) ->  | BW8: =VLOOKUP($C8,'S49'!$C:$BQ,43,0) ->  | BX8: =VLOOKUP($C8,'S50'!$C:$BQ,55,0) ->  | BY8: =VLOOKUP($C8,'S50'!$C:$BQ,62,0) ->  | BZ8: =VLOOKUP($C8,'S50'!$C:$BQ,63,0) ->  | CA8: =VLOOKUP($C8,'S50'!$C:$BQ,45,0) ->  | CB8: =VLOOKUP($C8,'S50'!$C:$BQ,52,0) ->  | CC8: =VLOOKUP($C8,'S50'!$C:$BQ,53,0) ->  | CD8: =VLOOKUP($C8,'S50'!$C:$BQ,15,0) ->  | CE8: =VLOOKUP($C8,'S50'!$C:$BQ,22,0) ->  | CF8: =VLOOKUP($C8,'S50'!$C:$BQ,23,0) ->  | CG8: =VLOOKUP($C8,'S50'!$C:$BQ,35,0) ->  | CH8: =VLOOKUP($C8,'S50'!$C:$BQ,42,0) ->  | CI8: =VLOOKUP($C8,'S50'!$C:$BQ,43,0) -> 
A9: AUBE_HAUTE_MARNE | B9: CHAUMONT | C9: SAINT DIZIER CENTRE | D9: =VLOOKUP($C9,'S0 remplacer avec S44'!$C:$BQ,55,0) -> 573.1 | E9: =VLOOKUP($C9,'S0 remplacer avec S44'!$C:$BQ,62,0) -> 18 | F9: =VLOOKUP($C9,'S0 remplacer avec S44'!$C:$BQ,63,0) -> 136 | G9: =VLOOKUP($C9,'S0 remplacer avec S44'!$C:$BQ,45,0) -> 6051.47381 | H9: =VLOOKUP($C9,'S0 remplacer avec S44'!$C:$BQ,52,0) -> 0 | I9: =VLOOKUP($C9,'S0 remplacer avec S44'!$C:$BQ,53,0) -> 195 | J9: =VLOOKUP($C9,'S0 remplacer avec S44'!$C:$BQ,15,0) -> 424 | K9: =VLOOKUP($C9,'S0 remplacer avec S44'!$C:$BQ,22,0) -> 0 | L9: =VLOOKUP($C9,'S0 remplacer avec S44'!$C:$BQ,23,0) -> 0 | M9: =VLOOKUP($C9,'S0 remplacer avec S44'!$C:$BQ,35,0) -> 8787.71804 | N9: =VLOOKUP($C9,'S0 remplacer avec S44'!$C:$BQ,42,0) -> 0 | O9: =VLOOKUP($C9,'S0 remplacer avec S44'!$C:$BQ,43,0) -> 0 | P9: =VLOOKUP($C9,'S45'!$C:$BQ,55,0) -> 575.8 | Q9: =VLOOKUP($C9,'S45'!$C:$BQ,62,0) -> 15 | R9: =VLOOKUP($C9,'S45'!$C:$BQ,63,0) -> 133 | S9: =VLOOKUP($C9,'S45'!$C:$BQ,45,0) -> 6180.5896 | T9: =VLOOKUP($C9,'S45'!$C:$BQ,52,0) -> 0 | U9: =VLOOKUP($C9,'S45'!$C:$BQ,53,0) -> 66 | V9: =VLOOKUP($C9,'S45'!$C:$BQ,15,0) -> 430 | W9: =VLOOKUP($C9,'S45'!$C:$BQ,22,0) -> 0 | X9: =VLOOKUP($C9,'S45'!$C:$BQ,23,0) -> 0 | Y9: =VLOOKUP($C9,'S45'!$C:$BQ,35,0) -> 8813.11433 | Z9: =VLOOKUP($C9,'S45'!$C:$BQ,42,0) -> 0 | AA9: =VLOOKUP($C9,'S45'!$C:$BQ,43,0) -> 0 | AB9: =VLOOKUP($C9,'S46'!$C:$BQ,55,0) -> 596.3 | AC9: =VLOOKUP($C9,'S46'!$C:$BQ,62,0) -> 0 | AD9: =VLOOKUP($C9,'S46'!$C:$BQ,63,0) -> 113 | AE9: =VLOOKUP($C9,'S46'!$C:$BQ,45,0) -> 6247.90879 | AF9: =VLOOKUP($C9,'S46'!$C:$BQ,52,0) -> 0 | AG9: =VLOOKUP($C9,'S46'!$C:$BQ,53,0) -> 0 | AH9: =VLOOKUP($C9,'S46'!$C:$BQ,15,0) -> 433 | AI9: =VLOOKUP($C9,'S46'!$C:$BQ,22,0) -> 0 | AJ9: =VLOOKUP($C9,'S46'!$C:$BQ,23,0) -> 0 | AK9: =VLOOKUP($C9,'S46'!$C:$BQ,35,0) -> 8813.38433 | AL9: =VLOOKUP($C9,'S46'!$C:$BQ,42,0) -> 0 | AM9: =VLOOKUP($C9,'S46'!$C:$BQ,43,0) -> 0 | AN9: =VLOOKUP($C9,'S47'!$C:$BQ,55,0) -> 611.3 | AO9: =VLOOKUP($C9,'S47'!$C:$BQ,62,0) -> 0 | AP9: =VLOOKUP($C9,'S47'!$C:$BQ,63,0) -> 98 | AQ9: =VLOOKUP($C9,'S47'!$C:$BQ,45,0) -> 6367.39489 | AR9: =VLOOKUP($C9,'S47'!$C:$BQ,52,0) -> 0 | AS9: =VLOOKUP($C9,'S47'!$C:$BQ,53,0) -> 0 | AT9: =VLOOKUP($C9,'S47'!$C:$BQ,15,0) -> 438 | AU9: =VLOOKUP($C9,'S47'!$C:$BQ,22,0) -> 0 | AV9: =VLOOKUP($C9,'S47'!$C:$BQ,23,0) -> 0 | AW9: =VLOOKUP($C9,'S47'!$C:$BQ,35,0) -> 8903.66472 | AX9: =VLOOKUP($C9,'S47'!$C:$BQ,42,0) -> 0 | AY9: =VLOOKUP($C9,'S47'!$C:$BQ,43,0) -> 0 | AZ9: =VLOOKUP($C9,'S48'!$C:$BQ,55,0) -> 623.1 | BA9: =VLOOKUP($C9,'S48'!$C:$BQ,62,0) -> 0 | BB9: =VLOOKUP($C9,'S48'!$C:$BQ,63,0) -> 263 | BC9: =VLOOKUP($C9,'S48'!$C:$BQ,45,0) -> 6400.89308 | BD9: =VLOOKUP($C9,'S48'!$C:$BQ,52,0) -> 0 | BE9: =VLOOKUP($C9,'S48'!$C:$BQ,53,0) -> 0 | BF9: =VLOOKUP($C9,'S48'!$C:$BQ,15,0) -> 444 | BG9: =VLOOKUP($C9,'S48'!$C:$BQ,22,0) -> 0 | BH9: =VLOOKUP($C9,'S48'!$C:$BQ,23,0) -> 0 | BI9: =VLOOKUP($C9,'S48'!$C:$BQ,35,0) -> 9615.3043 | BJ9: =VLOOKUP($C9,'S48'!$C:$BQ,42,0) -> 0 | BK9: =VLOOKUP($C9,'S48'!$C:$BQ,43,0) -> 0 | BL9: =VLOOKUP($C9,'S49'!$C:$BQ,55,0) -> 632.9 | BM9: =VLOOKUP($C9,'S49'!$C:$BQ,62,0) -> 0 | BN9: =VLOOKUP($C9,'S49'!$C:$BQ,63,0) -> 258 | BO9: =VLOOKUP($C9,'S49'!$C:$BQ,45,0) -> 6470.1975 | BP9: =VLOOKUP($C9,'S49'!$C:$BQ,52,0) -> 0 | BQ9: =VLOOKUP($C9,'S49'!$C:$BQ,53,0) -> 0 | BR9: =VLOOKUP($C9,'S49'!$C:$BQ,15,0) -> 447 | BS9: =VLOOKUP($C9,'S49'!$C:$BQ,22,0) -> 0 | BT9: =VLOOKUP($C9,'S49'!$C:$BQ,23,0) -> 0 | BU9: =VLOOKUP($C9,'S49'!$C:$BQ,35,0) -> 9678.4031 | BV9: =VLOOKUP($C9,'S49'!$C:$BQ,42,0) -> 0 | BW9: =VLOOKUP($C9,'S49'!$C:$BQ,43,0) -> 0 | BX9: =VLOOKUP($C9,'S50'!$C:$BQ,55,0) -> 643.1 | BY9: =VLOOKUP($C9,'S50'!$C:$BQ,62,0) -> 0 | BZ9: =VLOOKUP($C9,'S50'!$C:$BQ,63,0) -> 248 | CA9: =VLOOKUP($C9,'S50'!$C:$BQ,45,0) -> 6469.25781 | CB9: =VLOOKUP($C9,'S50'!$C:$BQ,52,0) -> 0 | CC9: =VLOOKUP($C9,'S50'!$C:$BQ,53,0) -> 0 | CD9: =VLOOKUP($C9,'S50'!$C:$BQ,15,0) -> 458 | CE9: =VLOOKUP($C9,'S50'!$C:$BQ,22,0) -> 0 | CF9: =VLOOKUP($C9,'S50'!$C:$BQ,23,0) -> 0 | CG9: =VLOOKUP($C9,'S50'!$C:$BQ,35,0) -> 9791.15037 | CH9: =VLOOKUP($C9,'S50'!$C:$BQ,42,0) -> 0 | CI9: =VLOOKUP($C9,'S50'!$C:$BQ,43,0) -> 0
C10: SAINT DIZIER EUROPE | D10: =VLOOKUP($C10,'S0 remplacer avec S44'!$C:$BQ,55,0) ->  | E10: =VLOOKUP($C10,'S0 remplacer avec S44'!$C:$BQ,62,0) ->  | F10: =VLOOKUP($C10,'S0 remplacer avec S44'!$C:$BQ,63,0) ->  | G10: =VLOOKUP($C10,'S0 remplacer avec S44'!$C:$BQ,45,0) ->  | H10: =VLOOKUP($C10,'S0 remplacer avec S44'!$C:$BQ,52,0) ->  | I10: =VLOOKUP($C10,'S0 remplacer avec S44'!$C:$BQ,53,0) ->  | J10: =VLOOKUP($C10,'S0 remplacer avec S44'!$C:$BQ,15,0) ->  | K10: =VLOOKUP($C10,'S0 remplacer avec S44'!$C:$BQ,22,0) ->  | L10: =VLOOKUP($C10,'S0 remplacer avec S44'!$C:$BQ,23,0) ->  | M10: =VLOOKUP($C10,'S0 remplacer avec S44'!$C:$BQ,35,0) ->  | N10: =VLOOKUP($C10,'S0 remplacer avec S44'!$C:$BQ,42,0) ->  | O10: =VLOOKUP($C10,'S0 remplacer avec S44'!$C:$BQ,43,0) ->  | P10: =VLOOKUP($C10,'S45'!$C:$BQ,55,0) ->  | Q10: =VLOOKUP($C10,'S45'!$C:$BQ,62,0) ->  | R10: =VLOOKUP($C10,'S45'!$C:$BQ,63,0) ->  | S10: =VLOOKUP($C10,'S45'!$C:$BQ,45,0) ->  | T10: =VLOOKUP($C10,'S45'!$C:$BQ,52,0) ->  | U10: =VLOOKUP($C10,'S45'!$C:$BQ,53,0) ->  | V10: =VLOOKUP($C10,'S45'!$C:$BQ,15,0) ->  | W10: =VLOOKUP($C10,'S45'!$C:$BQ,22,0) ->  | X10: =VLOOKUP($C10,'S45'!$C:$BQ,23,0) ->  | Y10: =VLOOKUP($C10,'S45'!$C:$BQ,35,0) ->  | Z10: =VLOOKUP($C10,'S45'!$C:$BQ,42,0) ->  | AA10: =VLOOKUP($C10,'S45'!$C:$BQ,43,0) ->  | AB10: =VLOOKUP($C10,'S46'!$C:$BQ,55,0) ->  | AC10: =VLOOKUP($C10,'S46'!$C:$BQ,62,0) ->  | AD10: =VLOOKUP($C10,'S46'!$C:$BQ,63,0) ->  | AE10: =VLOOKUP($C10,'S46'!$C:$BQ,45,0) ->  | AF10: =VLOOKUP($C10,'S46'!$C:$BQ,52,0) ->  | AG10: =VLOOKUP($C10,'S46'!$C:$BQ,53,0) ->  | AH10: =VLOOKUP($C10,'S46'!$C:$BQ,15,0) ->  | AI10: =VLOOKUP($C10,'S46'!$C:$BQ,22,0) ->  | AJ10: =VLOOKUP($C10,'S46'!$C:$BQ,23,0) ->  | AK10: =VLOOKUP($C10,'S46'!$C:$BQ,35,0) ->  | AL10: =VLOOKUP($C10,'S46'!$C:$BQ,42,0) ->  | AM10: =VLOOKUP($C10,'S46'!$C:$BQ,43,0) ->  | AN10: =VLOOKUP($C10,'S47'!$C:$BQ,55,0) ->  | AO10: =VLOOKUP($C10,'S47'!$C:$BQ,62,0) ->  | AP10: =VLOOKUP($C10,'S47'!$C:$BQ,63,0) ->  | AQ10: =VLOOKUP($C10,'S47'!$C:$BQ,45,0) ->  | AR10: =VLOOKUP($C10,'S47'!$C:$BQ,52,0) ->  | AS10: =VLOOKUP($C10,'S47'!$C:$BQ,53,0) ->  | AT10: =VLOOKUP($C10,'S47'!$C:$BQ,15,0) ->  | AU10: =VLOOKUP($C10,'S47'!$C:$BQ,22,0) ->  | AV10: =VLOOKUP($C10,'S47'!$C:$BQ,23,0) ->  | AW10: =VLOOKUP($C10,'S47'!$C:$BQ,35,0) ->  | AX10: =VLOOKUP($C10,'S47'!$C:$BQ,42,0) ->  | AY10: =VLOOKUP($C10,'S47'!$C:$BQ,43,0) ->  | AZ10: =VLOOKUP($C10,'S48'!$C:$BQ,55,0) ->  | BA10: =VLOOKUP($C10,'S48'!$C:$BQ,62,0) ->  | BB10: =VLOOKUP($C10,'S48'!$C:$BQ,63,0) ->  | BC10: =VLOOKUP($C10,'S48'!$C:$BQ,45,0) ->  | BD10: =VLOOKUP($C10,'S48'!$C:$BQ,52,0) ->  | BE10: =VLOOKUP($C10,'S48'!$C:$BQ,53,0) ->  | BF10: =VLOOKUP($C10,'S48'!$C:$BQ,15,0) ->  | BG10: =VLOOKUP($C10,'S48'!$C:$BQ,22,0) ->  | BH10: =VLOOKUP($C10,'S48'!$C:$BQ,23,0) ->  | BI10: =VLOOKUP($C10,'S48'!$C:$BQ,35,0) ->  | BJ10: =VLOOKUP($C10,'S48'!$C:$BQ,42,0) ->  | BK10: =VLOOKUP($C10,'S48'!$C:$BQ,43,0) ->  | BL10: =VLOOKUP($C10,'S49'!$C:$BQ,55,0) ->  | BM10: =VLOOKUP($C10,'S49'!$C:$BQ,62,0) ->  | BN10: =VLOOKUP($C10,'S49'!$C:$BQ,63,0) ->  | BO10: =VLOOKUP($C10,'S49'!$C:$BQ,45,0) ->  | BP10: =VLOOKUP($C10,'S49'!$C:$BQ,52,0) ->  | BQ10: =VLOOKUP($C10,'S49'!$C:$BQ,53,0) ->  | BR10: =VLOOKUP($C10,'S49'!$C:$BQ,15,0) ->  | BS10: =VLOOKUP($C10,'S49'!$C:$BQ,22,0) ->  | BT10: =VLOOKUP($C10,'S49'!$C:$BQ,23,0) ->  | BU10: =VLOOKUP($C10,'S49'!$C:$BQ,35,0) ->  | BV10: =VLOOKUP($C10,'S49'!$C:$BQ,42,0) ->  | BW10: =VLOOKUP($C10,'S49'!$C:$BQ,43,0) ->  | BX10: =VLOOKUP($C10,'S50'!$C:$BQ,55,0) ->  | BY10: =VLOOKUP($C10,'S50'!$C:$BQ,62,0) ->  | BZ10: =VLOOKUP($C10,'S50'!$C:$BQ,63,0) ->  | CA10: =VLOOKUP($C10,'S50'!$C:$BQ,45,0) ->  | CB10: =VLOOKUP($C10,'S50'!$C:$BQ,52,0) ->  | CC10: =VLOOKUP($C10,'S50'!$C:$BQ,53,0) ->  | CD10: =VLOOKUP($C10,'S50'!$C:$BQ,15,0) ->  | CE10: =VLOOKUP($C10,'S50'!$C:$BQ,22,0) ->  | CF10: =VLOOKUP($C10,'S50'!$C:$BQ,23,0) ->  | CG10: =VLOOKUP($C10,'S50'!$C:$BQ,35,0) ->  | CH10: =VLOOKUP($C10,'S50'!$C:$BQ,42,0) ->  | CI10: =VLOOKUP($C10,'S50'!$C:$BQ,43,0) -> 
A11: AUBE_HAUTE_MARNE | B11: CHAUMONT | C11: WASSY | D11: =VLOOKUP($C11,'S0 remplacer avec S44'!$C:$BQ,55,0) -> 157.6 | E11: =VLOOKUP($C11,'S0 remplacer avec S44'!$C:$BQ,62,0) -> 0 | F11: =VLOOKUP($C11,'S0 remplacer avec S44'!$C:$BQ,63,0) -> 0 | G11: =VLOOKUP($C11,'S0 remplacer avec S44'!$C:$BQ,45,0) -> 1502.73805 | H11: =VLOOKUP($C11,'S0 remplacer avec S44'!$C:$BQ,52,0) -> 0 | I11: =VLOOKUP($C11,'S0 remplacer avec S44'!$C:$BQ,53,0) -> 0 | J11: =VLOOKUP($C11,'S0 remplacer avec S44'!$C:$BQ,15,0) -> 109 | K11: =VLOOKUP($C11,'S0 remplacer avec S44'!$C:$BQ,22,0) -> 0 | L11: =VLOOKUP($C11,'S0 remplacer avec S44'!$C:$BQ,23,0) -> 0 | M11: =VLOOKUP($C11,'S0 remplacer avec S44'!$C:$BQ,35,0) -> 1585.36639 | N11: =VLOOKUP($C11,'S0 remplacer avec S44'!$C:$BQ,42,0) -> 0 | O11: =VLOOKUP($C11,'S0 remplacer avec S44'!$C:$BQ,43,0) -> 0 | P11: =VLOOKUP($C11,'S45'!$C:$BQ,55,0) -> 157.6 | Q11: =VLOOKUP($C11,'S45'!$C:$BQ,62,0) -> 0 | R11: =VLOOKUP($C11,'S45'!$C:$BQ,63,0) -> 0 | S11: =VLOOKUP($C11,'S45'!$C:$BQ,45,0) -> 1515.2022 | T11: =VLOOKUP($C11,'S45'!$C:$BQ,52,0) -> 0 | U11: =VLOOKUP($C11,'S45'!$C:$BQ,53,0) -> 0 | V11: =VLOOKUP($C11,'S45'!$C:$BQ,15,0) -> 109 | W11: =VLOOKUP($C11,'S45'!$C:$BQ,22,0) -> 0 | X11: =VLOOKUP($C11,'S45'!$C:$BQ,23,0) -> 0 | Y11: =VLOOKUP($C11,'S45'!$C:$BQ,35,0) -> 1589.51197 | Z11: =VLOOKUP($C11,'S45'!$C:$BQ,42,0) -> 0 | AA11: =VLOOKUP($C11,'S45'!$C:$BQ,43,0) -> 0 | AB11: =VLOOKUP($C11,'S46'!$C:$BQ,55,0) -> 159.8 | AC11: =VLOOKUP($C11,'S46'!$C:$BQ,62,0) -> 0 | AD11: =VLOOKUP($C11,'S46'!$C:$BQ,63,0) -> 0 | AE11: =VLOOKUP($C11,'S46'!$C:$BQ,45,0) -> 1517.57115 | AF11: =VLOOKUP($C11,'S46'!$C:$BQ,52,0) -> 0 | AG11: =VLOOKUP($C11,'S46'!$C:$BQ,53,0) -> 0 | AH11: =VLOOKUP($C11,'S46'!$C:$BQ,15,0) -> 111 | AI11: =VLOOKUP($C11,'S46'!$C:$BQ,22,0) -> 0 | AJ11: =VLOOKUP($C11,'S46'!$C:$BQ,23,0) -> 0 | AK11: =VLOOKUP($C11,'S46'!$C:$BQ,35,0) -> 1596.01483 | AL11: =VLOOKUP($C11,'S46'!$C:$BQ,42,0) -> 0 | AM11: =VLOOKUP($C11,'S46'!$C:$BQ,43,0) -> 0 | AN11: =VLOOKUP($C11,'S47'!$C:$BQ,55,0) -> 157.8 | AO11: =VLOOKUP($C11,'S47'!$C:$BQ,62,0) -> 0 | AP11: =VLOOKUP($C11,'S47'!$C:$BQ,63,0) -> 0 | AQ11: =VLOOKUP($C11,'S47'!$C:$BQ,45,0) -> 1526.04116 | AR11: =VLOOKUP($C11,'S47'!$C:$BQ,52,0) -> 0 | AS11: =VLOOKUP($C11,'S47'!$C:$BQ,53,0) -> 0 | AT11: =VLOOKUP($C11,'S47'!$C:$BQ,15,0) -> 111 | AU11: =VLOOKUP($C11,'S47'!$C:$BQ,22,0) -> 0 | AV11: =VLOOKUP($C11,'S47'!$C:$BQ,23,0) -> 0 | AW11: =VLOOKUP($C11,'S47'!$C:$BQ,35,0) -> 1600.57983 | AX11: =VLOOKUP($C11,'S47'!$C:$BQ,42,0) -> 0 | AY11: =VLOOKUP($C11,'S47'!$C:$BQ,43,0) -> 0 | AZ11: =VLOOKUP($C11,'S48'!$C:$BQ,55,0) -> 157.8 | BA11: =VLOOKUP($C11,'S48'!$C:$BQ,62,0) -> 0 | BB11: =VLOOKUP($C11,'S48'!$C:$BQ,63,0) -> 34 | BC11: =VLOOKUP($C11,'S48'!$C:$BQ,45,0) -> 1570.49497 | BD11: =VLOOKUP($C11,'S48'!$C:$BQ,52,0) -> 0 | BE11: =VLOOKUP($C11,'S48'!$C:$BQ,53,0) -> 0 | BF11: =VLOOKUP($C11,'S48'!$C:$BQ,15,0) -> 111 | BG11: =VLOOKUP($C11,'S48'!$C:$BQ,22,0) -> 0 | BH11: =VLOOKUP($C11,'S48'!$C:$BQ,23,0) -> 0 | BI11: =VLOOKUP($C11,'S48'!$C:$BQ,35,0) -> 1604.64463 | BJ11: =VLOOKUP($C11,'S48'!$C:$BQ,42,0) -> 0 | BK11: =VLOOKUP($C11,'S48'!$C:$BQ,43,0) -> 0 | BL11: =VLOOKUP($C11,'S49'!$C:$BQ,55,0) -> 158 | BM11: =VLOOKUP($C11,'S49'!$C:$BQ,62,0) -> 0 | BN11: =VLOOKUP($C11,'S49'!$C:$BQ,63,0) -> 33 | BO11: =VLOOKUP($C11,'S49'!$C:$BQ,45,0) -> 1588.4641 | BP11: =VLOOKUP($C11,'S49'!$C:$BQ,52,0) -> 0 | BQ11: =VLOOKUP($C11,'S49'!$C:$BQ,53,0) -> 0 | BR11: =VLOOKUP($C11,'S49'!$C:$BQ,15,0) -> 111 | BS11: =VLOOKUP($C11,'S49'!$C:$BQ,22,0) -> 0 | BT11: =VLOOKUP($C11,'S49'!$C:$BQ,23,0) -> 0 | BU11: =VLOOKUP($C11,'S49'!$C:$BQ,35,0) -> 1610.57536 | BV11: =VLOOKUP($C11,'S49'!$C:$BQ,42,0) -> 0 | BW11: =VLOOKUP($C11,'S49'!$C:$BQ,43,0) -> 0 | BX11: =VLOOKUP($C11,'S50'!$C:$BQ,55,0) -> 163 | BY11: =VLOOKUP($C11,'S50'!$C:$BQ,62,0) -> 0 | BZ11: =VLOOKUP($C11,'S50'!$C:$BQ,63,0) -> 28 | CA11: =VLOOKUP($C11,'S50'!$C:$BQ,45,0) -> 1592.09223 | CB11: =VLOOKUP($C11,'S50'!$C:$BQ,52,0) -> 0 | CC11: =VLOOKUP($C11,'S50'!$C:$BQ,53,0) -> 0 | CD11: =VLOOKUP($C11,'S50'!$C:$BQ,15,0) -> 111 | CE11: =VLOOKUP($C11,'S50'!$C:$BQ,22,0) -> 0 | CF11: =VLOOKUP($C11,'S50'!$C:$BQ,23,0) -> 0 | CG11: =VLOOKUP($C11,'S50'!$C:$BQ,35,0) -> 1619.37242 | CH11: =VLOOKUP($C11,'S50'!$C:$BQ,42,0) -> 0 | CI11: =VLOOKUP($C11,'S50'!$C:$BQ,43,0) -> 0
